Workbook

Sheet 运营部分析
C1: 数据截止日期 | E1: 2019-06-16 | G1: 同期日期 | H1: =E1-365 -> 2018-06-16 | J1: 四川运营部 | M1: =J1&"区域分析报表" -> 四川运营部区域分析报表
A2: 大类 | B2: 类别 编号 | C2: 类别名称 | D2: 季节 | E2: 订单分析 | K2: 累销分析 | S2: 库存分析 | Y2: 售罄率分析 | AQ2: 期货执行率 | AU2: SKU分析 | AY2: 存销比 | AZ2: 19春夏月销售 | BG2: 同期月销售 | BJ2: 19春夏周销售 | BM2: 负数代表销售较好或库存较少 | BO2: 周销售趋势 | BS2: 周销售环比 | BU2: 销售 占比 | BW2: 销售趋势 | BX2: 指标说明 | BZ2: 往年产品生命周期 | CA2: 分销额 | CD2: 数量 | CG2: 18年各月份销售数量 | CR2: 19年预计剩余数量 | CS2: 19年预计数量售罄 | CT2: 18年各月份销售分销额 | DE2: 19年预计剩余金额 | DF2: 19年预计金额售罄 | DH2: 爆款快反模块 | DM2: 纯调配售罄
E3: 19春夏订单 | G3: 去年同期订单 | I3: 同比 | K3: 19春夏累销 | M3: 去年同期累销 | O3: 同比 | Q3: 18春夏季末累销 | S3: 19春夏库存 | U3: 去年同期库存(9-30) | W3: 同比 | Y3: 19春夏售罄率 | AA3: 18年同期调加盟 | AC3: 18年同期调运营 | AE3: 去年同期售罄率 | AG3: 春夏爆款快反售罄 | AI3: 同比 | AK3: 18年调加盟 | AM3: 18年调运营 | AO3: 去年季末售罄率 | CA3: 其他运营部或加盟经销商调入 | CB3: 调入其他运营部 | CC3: 调入加盟经销商 | CD3: 其他运营部或加盟经销商调入 | CE3: 调入其他运营部 | CF3: 调入加盟经销商 | DH3: 19春夏累销 | DJ3: 19春夏订单 | DM3: 19春夏售罄率
E4: 数量 | F4: 分销额 | G4: 数量 | H4: 分销额 | I4: 数量 | J4: 分销额 | K4: 数量 | L4: 分销额 | M4: 数量 | N4: 分销额 | O4: 数量 | P4: 分销额 | Q4: 数量 | R4: 分销额 | S4: 数量 | T4: 分销额 | U4: 数量 | V4: 分销额 | W4: 数量 | X4: 分销额 | Y4: 数量 | Z4: 分销额 | AA4: 数量 | AB4: 分销额 | AC4: 数量 | AD4: 分销额 | AE4: 数量 | AF4: 分销额 | AG4: 数量 | AH4: 分销额 | AI4: 数量 | AJ4: 分销额 | AK4: 数量 | AL4: 分销额 | AM4: 数量 | AN4: 分销额 | AO4: 数量 | AP4: 分销额 | AQ4: 期货 发货 | AR4: 期货执行率 | AS4: 期货 未发 | AT4: 总进货 | AU4: 订单SKU | AV4: 月销SKU | AW4: 库存SKU | AX4: 动销率 | AZ4: 月销 数量 | BA4: 月销 金额 | BB4: 月零售吊牌额 | BC4: 月分销金额 | BD4: 提价 倍率 | BE4: 月平均销售单价 | BF4: 月平均销售分销折扣 | BG4: 月销售金额 | BH4: 月分销金额 | BI4: 月平均销售分销折扣 | BJ4: 周销售金额 | BK4: 周分销金额 | BL4: 周平均销售分销折扣 | BM4: 目前库存% | BN4: 库销差异 | BO4: 上上周 | BP4: 上周 | BQ4: 本周 | BR4: 月销售 | BS4: 上周 | BT4: 本周 | BU4: 本周 | BV4: 月份% | BY4: 类别名称季节 | BZ4: 8 9 10 11 12 1 2 | CG4: 12 | CH4: 1 | CI4: 2 | CJ4: 3 | CK4: 4 | CL4: 5 | CM4: 6 | CN4: 7 | CO4: 8 | CP4: 9 | CQ4: 合计 | CT4: 12 | CU4: 1 | CV4: 2 | CW4: 3 | CX4: 4 | CY4: 5 | CZ4: 6 | DA4: 7 | DB4: 8 | DC4: 9 | DD4: 合计 | DH4: 数量 | DI4: 分销额 | DJ4: 数量 | DK4: 分销额 | DM4: 数量 | DN4: 分销额
A5: T恤 | B5: 83 | C5: 短T横机 | D5: 春季 | E5: =SUMIFS('1.6-19春夏期货订单（更新）'!$AG:$AG,'1.6-19春夏期货订单（更新）'!$F:$F,运营部分析!$J$1,'1.6-19春夏期货订单（更新）'!$A:$A,运营部分析!$B5)+SUMIFS('1.2-19春夏发货（更新）'!$K:$K,'1.2-19春夏发货（更新）'!$A:$A,运营部分析!$B5,'1.2-19春夏发货（更新）'!$Q:$Q,运营部分析!$J$1,'1.2-19春夏发货（更新）'!$T:$T,"当季补货")+SUMIFS('1.2-19春夏发货（更新）'!$K:$K,'1.2-19春夏发货（更新）'!$A:$A,运营部分析!$B5,'1.2-19春夏发货（更新）'!$Q:$Q,运营部分析!$J$1,'1.2-19春夏发货（更新）'!$T:$T,"往季补货")+SUMIFS('1.3-19春夏调配（更新）'!$P:$P,'1.3-19春夏调配（更新）'!$K:$K,运营部分析!$J$1,'1.3-19春夏调配（更新）'!$A:$A,运营部分析!$B5)-SUMIFS('1.3-19春夏调配（更新）'!$P:$P,'1.3-19春夏调配（更新）'!$G:$G,运营部分析!$J$1,'1.3-19春夏调配（更新）'!$A:$A,运营部分析!$B5,'1.3-19春夏调配（更新）'!$Z:$Z,"是") -> 831 | F5: =SUMIFS('1.6-19春夏期货订单（更新）'!$AN:$AN,'1.6-19春夏期货订单（更新）'!$F:$F,运营部分析!$J$1,'1.6-19春夏期货订单（更新）'!$A:$A,运营部分析!$B5)/10000+SUMIFS('1.2-19春夏发货（更新）'!$U:$U,'1.2-19春夏发货（更新）'!$A:$A,运营部分析!$B5,'1.2-19春夏发货（更新）'!$Q:$Q,运营部分析!$J$1,'1.2-19春夏发货（更新）'!$T:$T,"当季补货")/10000+SUMIFS('1.2-19春夏发货（更新）'!$U:$U,'1.2-19春夏发货（更新）'!$A:$A,运营部分析!$B5,'1.2-19春夏发货（更新）'!$Q:$Q,运营部分析!$J$1,'1.2-19春夏发货（更新）'!$T:$T,"往季补货")/10000+SUMIFS('1.3-19春夏调配（更新）'!$AA:$AA,'1.3-19春夏调配（更新）'!$K:$K,运营部分析!$J$1,'1.3-19春夏调配（更新）'!$A:$A,运营部分析!$B5)/10000-SUMIFS('1.3-19春夏调配（更新）'!$AA:$AA,'1.3-19春夏调配（更新）'!$G:$G,运营部分析!$J$1,'1.3-19春夏调配（更新）'!$A:$A,运营部分析!$B5,'1.3-19春夏调配（更新）'!$Z:$Z,"是")/10000 -> 46.7649 | G5: =(SUMIFS('2.1-18春夏销售（止18年9月30日）'!$I:$I,'2.1-18春夏销售（止18年9月30日）'!$X:$X,"新品",'2.1-18春夏销售（止18年9月30日）'!$A:$A,运营部分析!$B5,'2.1-18春夏销售（止18年9月30日）'!$D:$D,运营部分析!$J$1)+SUMIFS('2.2--18春夏库存（止18年9月30日）'!$M:$M,'2.2--18春夏库存（止18年9月30日）'!$C:$C,运营部分析!$J$1,'2.2--18春夏库存（止18年9月30日）'!$A:$A,运营部分析!$B5)+SUMIFS('2.4-18春夏冬退货（止18年9月30日）'!$Q:$Q,'2.4-18春夏冬退货（止18年9月30日）'!$D:$D,运营部分析!$J$1,'2.4-18春夏冬退货（止18年9月30日）'!$A:$A,运营部分析!$B5)+SUMIFS('2.3-18春夏调配（止18年9月30日）'!$P:$P,'2.3-18春夏调配（止18年9月30日）'!$G:$G,运营部分析!$J$1,'2.3-18春夏调配（止18年9月30日）'!$A:$A,运营部分析!$B5)) -> 1241 | H5: =(SUMIFS('2.1-18春夏销售（止18年9月30日）'!$S:$S,'2.1-18春夏销售（止18年9月30日）'!$X:$X,"新品",'2.1-18春夏销售（止18年9月30日）'!$A:$A,运营部分析!$B5,'2.1-18春夏销售（止18年9月30日）'!$D:$D,运营部分析!$J$1)/10000+SUMIFS('2.2--18春夏库存（止18年9月30日）'!$P:$P,'2.2--18春夏库存（止18年9月30日）'!$C:$C,运营部分析!$J$1,'2.2--18春夏库存（止18年9月30日）'!$A:$A,运营部分析!$B5)/10000+SUMIFS('2.4-18春夏冬退货（止18年9月30日）'!$T:$T,'2.4-18春夏冬退货（止18年9月30日）'!$D:$D,运营部分析!$J$1,'2.4-18春夏冬退货（止18年9月30日）'!$A:$A,运营部分析!$B5)/10000+SUMIFS('2.3-18春夏调配（止18年9月30日）'!$Y:$Y,'2.3-18春夏调配（止18年9月30日）'!$G:$G,运营部分析!$J$1,'2.3-18春夏调配（止18年9月30日）'!$A:$A,运营部分析!$B5)/10000) -> 63.9379 | I5: =IFERROR(E5/G5-1,) -> -0.3303787268 | J5: -0.26858874 | K5: =SUMIFS('1.1-19春夏新旧品销售（更新）'!$I:$I,'1.1-19春夏新旧品销售（更新）'!$D:$D,运营部分析!$J$1,'1.1-19春夏新旧品销售（更新）'!$A:$A,运营部分析!$B5,'1.1-19春夏新旧品销售（更新）'!$AB:$AB,"新品") -> 103 | L5: =SUMIFS('1.1-19春夏新旧品销售（更新）'!$S:$S,'1.1-19春夏新旧品销售（更新）'!$D:$D,运营部分析!$J$1,'1.1-19春夏新旧品销售（更新）'!$A:$A,运营部分析!$B5,'1.1-19春夏新旧品销售（更新）'!$AB:$AB,"新品")/10000 -> 5.7907 | M5: =SUMIFS('2.1-18春夏销售（止18年9月30日）'!$I:$I,'2.1-18春夏销售（止18年9月30日）'!$D:$D,运营部分析!$J$1,'2.1-18春夏销售（止18年9月30日）'!$A:$A,运营部分析!$B5,'2.1-18春夏销售（止18年9月30日）'!$X:$X,"新品",'2.1-18春夏销售（止18年9月30日）'!$T:$T,"同期销售") -> 302 | N5: =SUMIFS('2.1-18春夏销售（止18年9月30日）'!$S:$S,'2.1-18春夏销售（止18年9月30日）'!$D:$D,运营部分析!$J$1,'2.1-18春夏销售（止18年9月30日）'!$A:$A,运营部分析!$B5,'2.1-18春夏销售（止18年9月30日）'!$X:$X,"新品",'2.1-18春夏销售（止18年9月30日）'!$T:$T,"同期销售")/10000 -> 15.2338 | O5: =IFERROR(K5/M5-1,) -> -0.6589403974 | P5: -0.6198781657 | Q5: =SUMIFS('2.1-18春夏销售（止18年9月30日）'!$I:$I,'2.1-18春夏销售（止18年9月30日）'!$D:$D,运营部分析!$J$1,'2.1-18春夏销售（止18年9月30日）'!$A:$A,运营部分析!$B5,'2.1-18春夏销售（止18年9月30日）'!$X:$X,"新品") -> 629 | R5: =SUMIFS('2.1-18春夏销售（止18年9月30日）'!$S:$S,'2.1-18春夏销售（止18年9月30日）'!$D:$D,运营部分析!$J$1,'2.1-18春夏销售（止18年9月30日）'!$A:$A,运营部分析!$B5,'2.1-18春夏销售（止18年9月30日）'!$X:$X,"新品")/10000 -> 31.9851 | S5: =SUMIFS('1.5-19春夏新旧品库存（更新）'!$BF:$BF,'1.5-19春夏新旧品库存（更新）'!$B:$B,运营部分析!$J$1,'1.5-19春夏新旧品库存（更新）'!$E:$E,运营部分析!$B5,'1.5-19春夏新旧品库存（更新）'!$BI:$BI,"新品") -> 727 | T5: =SUMIFS('1.5-19春夏新旧品库存（更新）'!$BG:$BG,'1.5-19春夏新旧品库存（更新）'!$B:$B,运营部分析!$J$1,'1.5-19春夏新旧品库存（更新）'!$E:$E,运营部分析!$B5,'1.5-19春夏新旧品库存（更新）'!$BI:$BI,"新品")/10000 -> 40.9143 | U5: =(SUMIFS('2.2--18春夏库存（止18年9月30日）'!$M:$M,'2.2--18春夏库存（止18年9月30日）'!$C:$C,运营部分析!$J$1,'2.2--18春夏库存（止18年9月30日）'!$A:$A,运营部分析!$B5)) -> 425 | V5: =(SUMIFS('2.2--18春夏库存（止18年9月30日）'!$P:$P,'2.2--18春夏库存（止18年9月30日）'!$C:$C,运营部分析!$J$1,'2.2--18春夏库存（止18年9月30日）'!$A:$A,运营部分析!$B5))/10000 -> 22.5465 | W5: =IFERROR(S5/U5-1,) -> 0.7105882353 | X5: 0.8146630297 | Y5: =IFERROR((K5+CF5)/(E5+CD5-CE5),"") -> 0.1251504212 | Z5: =IFERROR((L5+CC5)/(F5+CA5-CB5),"") -> 0.1251066505 | AA5: =SUMIFS('2.3-18春夏调配（止18年9月30日）'!$P:$P,'2.3-18春夏调配（止18年9月30日）'!$G:$G,运营部分析!$J$1,'2.3-18春夏调配（止18年9月30日）'!$A:$A,运营部分析!$B5,'2.3-18春夏调配（止18年9月30日）'!$Z:$Z,"否",'2.3-18春夏调配（止18年9月30日）'!$AA:$AA,"是") -> 51 | AB5: =SUMIFS('2.3-18春夏调配（止18年9月30日）'!$Y:$Y,'2.3-18春夏调配（止18年9月30日）'!$G:$G,运营部分析!$J$1,'2.3-18春夏调配（止18年9月30日）'!$A:$A,运营部分析!$B5,'2.3-18春夏调配（止18年9月30日）'!$Z:$Z,"否",'2.3-18春夏调配（止18年9月30日）'!$AA:$AA,"是")/10000 -> 2.4179 | AC5: =SUMIFS('2.3-18春夏调配（止18年9月30日）'!$P:$P,'2.3-18春夏调配（止18年9月30日）'!$G:$G,运营部分析!$J$1,'2.3-18春夏调配（止18年9月30日）'!$A:$A,运营部分析!$B5,'2.3-18春夏调配（止18年9月30日）'!$Z:$Z,"是",'2.3-18春夏调配（止18年9月30日）'!$AA:$AA,"是") -> 3 | AD5: =SUMIFS('2.3-18春夏调配（止18年9月30日）'!$Y:$Y,'2.3-18春夏调配（止18年9月30日）'!$G:$G,运营部分析!$J$1,'2.3-18春夏调配（止18年9月30日）'!$A:$A,运营部分析!$B5,'2.3-18春夏调配（止18年9月30日）'!$Z:$Z,"是",'2.3-18春夏调配（止18年9月30日）'!$AA:$AA,"是")/10000 -> 0.1407 | AE5: =IFERROR((M5+AA5)/(G5-AC5),"") -> 0.2851373183 | AF5: =IFERROR((N5+AB5)/(H5-AD5),"") -> 0.2766845567 | AG5: =IFERROR(DH5/DJ5,"") -> 0.1776315789 | AH5: 0.1776315789 | AI5: =IFERROR(Y5/AE5-1,"") -> -0.5610871914 | AJ5: =IFERROR(IF(F5=0,"",Z5/AF5-1),"") -> -0.5478365255 | AK5: =SUMIFS('2.3-18春夏调配（止18年9月30日）'!$P:$P,'2.3-18春夏调配（止18年9月30日）'!$G:$G,运营部分析!$J$1,'2.3-18春夏调配（止18年9月30日）'!$A:$A,运营部分析!$B5,'2.3-18春夏调配（止18年9月30日）'!$Z:$Z,"否") -> 179 | AL5: =SUMIFS('2.3-18春夏调配（止18年9月30日）'!$Y:$Y,'2.3-18春夏调配（止18年9月30日）'!$G:$G,运营部分析!$J$1,'2.3-18春夏调配（止18年9月30日）'!$A:$A,运营部分析!$B5,'2.3-18春夏调配（止18年9月30日）'!$Z:$Z,"否")/10000 -> 9.0311 | AM5: =SUMIFS('2.3-18春夏调配（止18年9月30日）'!$P:$P,'2.3-18春夏调配（止18年9月30日）'!$G:$G,运营部分析!$J$1,'2.3-18春夏调配（止18年9月30日）'!$A:$A,运营部分析!$B5,'2.3-18春夏调配（止18年9月30日）'!$Z:$Z,"是") -> 8 | AN5: =SUMIFS('2.3-18春夏调配（止18年9月30日）'!$Y:$Y,'2.3-18春夏调配（止18年9月30日）'!$G:$G,运营部分析!$J$1,'2.3-18春夏调配（止18年9月30日）'!$A:$A,运营部分析!$B5,'2.3-18春夏调配（止18年9月30日）'!$Z:$Z,"是")/10000 -> 0.3752 | AO5: =IFERROR((Q5+AK5)/(G5-AM5),"") -> 0.6553122466 | AP5: =IFERROR((R5+AL5)/(H5-AN5),"") -> 0.6452872518 | AQ5: =SUMIFS('1.2-19春夏发货（更新）'!$K:$K,'1.2-19春夏发货（更新）'!$A:$A,运营部分析!$B5,'1.2-19春夏发货（更新）'!Q:Q,运营部分析!$J$1) -> 831 | AR5: =IFERROR(AQ5/E5,"") -> 1 | AS5: =E5-AQ5 -> 0 | AT5: =K5+S5+CE5+CF5 -> 831 | AU5: =SUMIFS('1.6-19春夏期货订单（更新）'!$AP:$AP,'1.6-19春夏期货订单（更新）'!$A:$A,运营部分析!$B5,'1.6-19春夏期货订单（更新）'!$F:$F,运营部分析!$J$1) -> 7 | AV5: =SUMIFS('1.1-19春夏新旧品销售（更新）'!$X:$X,'1.1-19春夏新旧品销售（更新）'!$A:$A,运营部分析!$B5,'1.1-19春夏新旧品销售（更新）'!D:D,运营部分析!$J$1,'1.1-19春夏新旧品销售（更新）'!$U:$U,"月",'1.1-19春夏新旧品销售（更新）'!$AH:$AH,"新品") -> 7 | AW5: =SUMIFS('1.5-19春夏新旧品库存（更新）'!$BM:$BM,'1.5-19春夏新旧品库存（更新）'!$E:$E,运营部分析!$B5,'1.5-19春夏新旧品库存（更新）'!$B:$B,运营部分析!$J$1,'1.5-19春夏新旧品库存（更新）'!$BI:$BI,"新品") -> 7 | AX5: =IFERROR(AV5/AW5,) -> 1 | AY5: =IFERROR(S5/AZ5,) -> 20.19444444 | AZ5: =SUMIFS('1.1-19春夏新旧品销售（更新）'!$I:$I,'1.1-19春夏新旧品销售（更新）'!$A:$A,运营部分析!$B5,'1.1-19春夏新旧品销售（更新）'!$U:$U,"月",'1.1-19春夏新旧品销售（更新）'!$D:$D,运营部分析!$J$1,'1.1-19春夏新旧品销售（更新）'!$AH:$AH,"新品") -> 36 | BA5: =SUMIFS('1.1-19春夏新旧品销售（更新）'!$J:$J,'1.1-19春夏新旧品销售（更新）'!$A:$A,运营部分析!$B5,'1.1-19春夏新旧品销售（更新）'!$U:$U,"月",'1.1-19春夏新旧品销售（更新）'!$D:$D,运营部分析!$J$1,'1.1-19春夏新旧品销售（更新）'!$AH:$AH,"新品")/10000 -> 1.4481 | BB5: =SUMIFS('1.1-19春夏新旧品销售（更新）'!$K:$K,'1.1-19春夏新旧品销售（更新）'!$A:$A,运营部分析!$B5,'1.1-19春夏新旧品销售（更新）'!$U:$U,"月",'1.1-19春夏新旧品销售（更新）'!$D:$D,运营部分析!$J$1,'1.1-19春夏新旧品销售（更新）'!$AH:$AH,"新品")/10000 -> 2.1714 | BC5: =SUMIFS('1.1-19春夏新旧品销售（更新）'!$S:$S,'1.1-19春夏新旧品销售（更新）'!$A:$A,运营部分析!$B5,'1.1-19春夏新旧品销售（更新）'!$U:$U,"月",'1.1-19春夏新旧品销售（更新）'!$D:$D,运营部分析!$J$1,'1.1-19春夏新旧品销售（更新）'!$AH:$AH,"新品")/10000 -> 2.0434 | BD5: =IFERROR(BB5/BC5,"") -> 1.062640697 | BE5: =IFERROR(BA5/AZ5,)*10000 -> 402.25 | BF5: =IFERROR(BA5/BC5,0) -> 0.7086718215 | BG5: =SUMIFS('2.1-18春夏销售（止18年9月30日）'!$J:$J,'2.1-18春夏销售（止18年9月30日）'!$A:$A,运营部分析!$B5,'2.1-18春夏销售（止18年9月30日）'!$D:$D,运营部分析!$J$1,'2.1-18春夏销售（止18年9月30日）'!$U:$U,"月",'2.1-18春夏销售（止18年9月30日）'!$X:$X,"新品")/10000 -> 3.2282 | BH5: =SUMIFS('2.1-18春夏销售（止18年9月30日）'!$S:$S,'2.1-18春夏销售（止18年9月30日）'!$A:$A,运营部分析!$B5,'2.1-18春夏销售（止18年9月30日）'!$D:$D,运营部分析!$J$1,'2.1-18春夏销售（止18年9月30日）'!$U:$U,"月",'2.1-18春夏销售（止18年9月30日）'!$X:$X,"新品")/10000 -> 4.1577 | BI5: =IFERROR(BG5/BH5,) -> 0.7764388965 | BJ5: =SUMIFS('1.1-19春夏新旧品销售（更新）'!$J:$J,'1.1-19春夏新旧品销售（更新）'!$A:$A,运营部分析!$B5,'1.1-19春夏新旧品销售（更新）'!$D:$D,运营部分析!$J$1,'1.1-19春夏新旧品销售（更新）'!$T:$T,"本周",'1.1-19春夏新旧品销售（更新）'!$AH:$AH,"新品")/10000 -> 0.3763 | BK5: =SUMIFS('1.1-19春夏新旧品销售（更新）'!$S:$S,'1.1-19春夏新旧品销售（更新）'!$A:$A,运营部分析!$B5,'1.1-19春夏新旧品销售（更新）'!$D:$D,运营部分析!$J$1,'1.1-19春夏新旧品销售（更新）'!$T:$T,"本周",'1.1-19春夏新旧品销售（更新）'!$AH:$AH,"新品")/10000 -> 0.5111 | BL5: =IFERROR(BJ5/BK5,) -> 0.736255136 | BM5: =IFERROR(T5/$T$30,) -> 0.03801214496 | BN5: =BM5-BV5 -> 0.01884281588 | BO5: =SUMIFS('1.1-19春夏新旧品销售（更新）'!$I:$I,'1.1-19春夏新旧品销售（更新）'!$A:$A,运营部分析!#REF!,'1.1-19春夏新旧品销售（更新）'!$D:$D,运营部分析!$J$1,'1.1-19春夏新旧品销售（更新）'!$T:$T,"上上周",'1.1-19春夏新旧品销售（更新）'!$AH:$AH,"新品") -> 0 | BP5: =SUMIFS('1.1-19春夏新旧品销售（更新）'!$I:$I,'1.1-19春夏新旧品销售（更新）'!$A:$A,运营部分析!#REF!,'1.1-19春夏新旧品销售（更新）'!$D:$D,运营部分析!$J$1,'1.1-19春夏新旧品销售（更新）'!$T:$T,"上周",'1.1-19春夏新旧品销售（更新）'!$AH:$AH,"新品") -> 0 | BQ5: =SUMIFS('1.1-19春夏新旧品销售（更新）'!$I:$I,'1.1-19春夏新旧品销售（更新）'!$A:$A,运营部分析!#REF!,'1.1-19春夏新旧品销售（更新）'!$D:$D,运营部分析!$J$1,'1.1-19春夏新旧品销售（更新）'!$T:$T,"本周",'1.1-19春夏新旧品销售（更新）'!$AH:$AH,"新品") -> 0 | BR5: =SUMIFS('1.1-19春夏新旧品销售（更新）'!$I:$I,'1.1-19春夏新旧品销售（更新）'!$A:$A,运营部分析!$B5,'1.1-19春夏新旧品销售（更新）'!$D:$D,运营部分析!$J$1,'1.1-19春夏新旧品销售（更新）'!$U:$U,"月",'1.1-19春夏新旧品销售（更新）'!$AH:$AH,"新品") -> 36 | BS5: =IFERROR(BP5/BO5-1,) -> 0 | BT5: 0 | BU5: =IFERROR(BQ5/$BQ$30,) -> 0 | BV5: =IFERROR(BR5/$BR$30,) -> 0.01916932907 | CA5: =SUMIFS('1.3-19春夏调配（更新）'!$AA:$AA,'1.3-19春夏调配（更新）'!$K:$K,运营部分析!$J$1,'1.3-19春夏调配（更新）'!$A:$A,运营部分析!$B5,'1.3-19春夏调配（更新）'!$X:$X,"<>已审核")/10000 -> 0 | CB5: =SUMIFS('1.3-19春夏调配（更新）'!$AA:$AA,'1.3-19春夏调配（更新）'!$G:$G,运营部分析!$J$1,'1.3-19春夏调配（更新）'!$A:$A,运营部分析!$B5,'1.3-19春夏调配（更新）'!$Z:$Z,"是",'1.3-19春夏调配（更新）'!$X:$X,"<>已审核")/10000 -> 0 | CC5: =SUMIFS('1.3-19春夏调配（更新）'!$AA:$AA,'1.3-19春夏调配（更新）'!$G:$G,运营部分析!$J$1,'1.3-19春夏调配（更新）'!$A:$A,运营部分析!$B5,'1.3-19春夏调配（更新）'!$Z:$Z,"否",'1.3-19春夏调配（更新）'!$X:$X,"<>已审核")/10000 -> 0.0599 | CD5: =SUMIFS('1.3-19春夏调配（更新）'!$P:$P,'1.3-19春夏调配（更新）'!$K:$K,运营部分析!$J$1,'1.3-19春夏调配（更新）'!$A:$A,运营部分析!$B5,'1.3-19春夏调配（更新）'!$X:$X,"<>已审核") -> 0 | CE5: =SUMIFS('1.3-19春夏调配（更新）'!$P:$P,'1.3-19春夏调配（更新）'!$G:$G,运营部分析!$J$1,'1.3-19春夏调配（更新）'!$A:$A,运营部分析!$B5,'1.3-19春夏调配（更新）'!$Z:$Z,"是",'1.3-19春夏调配（更新）'!$X:$X,"<>已审核") -> 0 | CF5: =SUMIFS('1.3-19春夏调配（更新）'!$P:$P,'1.3-19春夏调配（更新）'!$G:$G,运营部分析!$J$1,'1.3-19春夏调配（更新）'!$A:$A,运营部分析!$B5,'1.3-19春夏调配（更新）'!$Z:$Z,"否",'1.3-19春夏调配（更新）'!$X:$X,"<>已审核") -> 1 | CG5: =SUMIFS('2.1-18春夏销售（止18年9月30日）'!$I:$I,'2.1-18春夏销售（止18年9月30日）'!$D:$D,运营部分析!$J$1,'2.1-18春夏销售（止18年9月30日）'!$V:$V,运营部分析!CG$4,'2.1-18春夏销售（止18年9月30日）'!$A:$A,运营部分析!$B5,'2.1-18春夏销售（止18年9月30日）'!$W:$W,"否",'2.1-18春夏销售（止18年9月30日）'!$X:$X,"新品") -> 0 | CH5: =SUMIFS('2.1-18春夏销售（止18年9月30日）'!$I:$I,'2.1-18春夏销售（止18年9月30日）'!$D:$D,运营部分析!$J$1,'2.1-18春夏销售（止18年9月30日）'!$V:$V,运营部分析!CH$4,'2.1-18春夏销售（止18年9月30日）'!$A:$A,运营部分析!$B5,'2.1-18春夏销售（止18年9月30日）'!$W:$W,"否",'2.1-18春夏销售（止18年9月30日）'!$X:$X,"新品") -> 0 | CI5: =SUMIFS('2.1-18春夏销售（止18年9月30日）'!$I:$I,'2.1-18春夏销售（止18年9月30日）'!$D:$D,运营部分析!$J$1,'2.1-18春夏销售（止18年9月30日）'!$V:$V,运营部分析!CI$4,'2.1-18春夏销售（止18年9月30日）'!$A:$A,运营部分析!$B5,'2.1-18春夏销售（止18年9月30日）'!$W:$W,"否",'2.1-18春夏销售（止18年9月30日）'!$X:$X,"新品") -> 0 | CJ5: =SUMIFS('2.1-18春夏销售（止18年9月30日）'!$I:$I,'2.1-18春夏销售（止18年9月30日）'!$D:$D,运营部分析!$J$1,'2.1-18春夏销售（止18年9月30日）'!$V:$V,运营部分析!CJ$4,'2.1-18春夏销售（止18年9月30日）'!$A:$A,运营部分析!$B5,'2.1-18春夏销售（止18年9月30日）'!$W:$W,"否",'2.1-18春夏销售（止18年9月30日）'!$X:$X,"新品") -> 0 | CK5: =SUMIFS('2.1-18春夏销售（止18年9月30日）'!$I:$I,'2.1-18春夏销售（止18年9月30日）'!$D:$D,运营部分析!$J$1,'2.1-18春夏销售（止18年9月30日）'!$V:$V,运营部分析!CK$4,'2.1-18春夏销售（止18年9月30日）'!$A:$A,运营部分析!$B5,'2.1-18春夏销售（止18年9月30日）'!$W:$W,"否",'2.1-18春夏销售（止18年9月30日）'!$X:$X,"新品") -> 0 | CL5: =SUMIFS('2.1-18春夏销售（止18年9月30日）'!$I:$I,'2.1-18春夏销售（止18年9月30日）'!$D:$D,运营部分析!$J$1,'2.1-18春夏销售（止18年9月30日）'!$V:$V,运营部分析!CL$4,'2.1-18春夏销售（止18年9月30日）'!$A:$A,运营部分析!$B5,'2.1-18春夏销售（止18年9月30日）'!$W:$W,"否",'2.1-18春夏销售（止18年9月30日）'!$X:$X,"新品") -> 0 | CM5: =SUMIFS('2.1-18春夏销售（止18年9月30日）'!$I:$I,'2.1-18春夏销售（止18年9月30日）'!$D:$D,运营部分析!$J$1,'2.1-18春夏销售（止18年9月30日）'!$V:$V,运营部分析!CM$4,'2.1-18春夏销售（止18年9月30日）'!$A:$A,运营部分析!$B5,'2.1-18春夏销售（止18年9月30日）'!$W:$W,"否",'2.1-18春夏销售（止18年9月30日）'!$X:$X,"新品") -> 34 | CN5: =SUMIFS('2.1-18春夏销售（止18年9月30日）'!$I:$I,'2.1-18春夏销售（止18年9月30日）'!$D:$D,运营部分析!$J$1,'2.1-18春夏销售（止18年9月30日）'!$V:$V,运营部分析!CN$4,'2.1-18春夏销售（止18年9月30日）'!$A:$A,运营部分析!$B5,'2.1-18春夏销售（止18年9月30日）'!$W:$W,"否",'2.1-18春夏销售（止18年9月30日）'!$X:$X,"新品") -> 179 | CO5: =SUMIFS('2.1-18春夏销售（止18年9月30日）'!$I:$I,'2.1-18春夏销售（止18年9月30日）'!$D:$D,运营部分析!$J$1,'2.1-18春夏销售（止18年9月30日）'!$V:$V,运营部分析!CO$4,'2.1-18春夏销售（止18年9月30日）'!$A:$A,运营部分析!$B5,'2.1-18春夏销售（止18年9月30日）'!$W:$W,"否",'2.1-18春夏销售（止18年9月30日）'!$X:$X,"新品") -> 71 | CP5: =SUMIFS('2.1-18春夏销售（止18年9月30日）'!$I:$I,'2.1-18春夏销售（止18年9月30日）'!$D:$D,运营部分析!$J$1,'2.1-18春夏销售（止18年9月30日）'!$V:$V,运营部分析!CP$4,'2.1-18春夏销售（止18年9月30日）'!$A:$A,运营部分析!$B5,'2.1-18春夏销售（止18年9月30日）'!$W:$W,"否",'2.1-18春夏销售（止18年9月30日）'!$X:$X,"新品") -> 43 | CQ5: =SUM(CG5:CP5) -> 327 | CR5: =IF(((S5+AS5)-CQ5)<0,0,((S5+AS5)-CQ5)) -> 400 | CS5: =IFERROR(IF((K5+CQ5+CF5)/(E5+CD5-CE5)>0.7,"70%",(K5+CQ5+CF5)/(E5+CD5-CE5)),"") -> 0.5186522262 | CT5: =SUMIFS('2.1-18春夏销售（止18年9月30日）'!$S:$S,'2.1-18春夏销售（止18年9月30日）'!$D:$D,运营部分析!$J$1,'2.1-18春夏销售（止18年9月30日）'!$V:$V,运营部分析!CT$4,'2.1-18春夏销售（止18年9月30日）'!$A:$A,运营部分析!$B5,'2.1-18春夏销售（止18年9月30日）'!$W:$W,"否",'2.1-18春夏销售（止18年9月30日）'!$X:$X,"新品")/10000 -> 0 | CU5: =SUMIFS('2.1-18春夏销售（止18年9月30日）'!$S:$S,'2.1-18春夏销售（止18年9月30日）'!$D:$D,运营部分析!$J$1,'2.1-18春夏销售（止18年9月30日）'!$V:$V,运营部分析!CU$4,'2.1-18春夏销售（止18年9月30日）'!$A:$A,运营部分析!$B5,'2.1-18春夏销售（止18年9月30日）'!$W:$W,"否",'2.1-18春夏销售（止18年9月30日）'!$X:$X,"新品")/10000 -> 0 | CV5: =SUMIFS('2.1-18春夏销售（止18年9月30日）'!$S:$S,'2.1-18春夏销售（止18年9月30日）'!$D:$D,运营部分析!$J$1,'2.1-18春夏销售（止18年9月30日）'!$V:$V,运营部分析!CV$4,'2.1-18春夏销售（止18年9月30日）'!$A:$A,运营部分析!$B5,'2.1-18春夏销售（止18年9月30日）'!$W:$W,"否",'2.1-18春夏销售（止18年9月30日）'!$X:$X,"新品")/10000 -> 0 | CW5: =SUMIFS('2.1-18春夏销售（止18年9月30日）'!$S:$S,'2.1-18春夏销售（止18年9月30日）'!$D:$D,运营部分析!$J$1,'2.1-18春夏销售（止18年9月30日）'!$V:$V,运营部分析!CW$4,'2.1-18春夏销售（止18年9月30日）'!$A:$A,运营部分析!$B5,'2.1-18春夏销售（止18年9月30日）'!$W:$W,"否",'2.1-18春夏销售（止18年9月30日）'!$X:$X,"新品")/10000 -> 0 | CX5: =SUMIFS('2.1-18春夏销售（止18年9月30日）'!$S:$S,'2.1-18春夏销售（止18年9月30日）'!$D:$D,运营部分析!$J$1,'2.1-18春夏销售（止18年9月30日）'!$V:$V,运营部分析!CX$4,'2.1-18春夏销售（止18年9月30日）'!$A:$A,运营部分析!$B5,'2.1-18春夏销售（止18年9月30日）'!$W:$W,"否",'2.1-18春夏销售（止18年9月30日）'!$X:$X,"新品")/10000 -> 0 | CY5: =SUMIFS('2.1-18春夏销售（止18年9月30日）'!$S:$S,'2.1-18春夏销售（止18年9月30日）'!$D:$D,运营部分析!$J$1,'2.1-18春夏销售（止18年9月30日）'!$V:$V,运营部分析!CY$4,'2.1-18春夏销售（止18年9月30日）'!$A:$A,运营部分析!$B5,'2.1-18春夏销售（止18年9月30日）'!$W:$W,"否",'2.1-18春夏销售（止18年9月30日）'!$X:$X,"新品")/10000 -> 0 | CZ5: =SUMIFS('2.1-18春夏销售（止18年9月30日）'!$S:$S,'2.1-18春夏销售（止18年9月30日）'!$D:$D,运营部分析!$J$1,'2.1-18春夏销售（止18年9月30日）'!$V:$V,运营部分析!CZ$4,'2.1-18春夏销售（止18年9月30日）'!$A:$A,运营部分析!$B5,'2.1-18春夏销售（止18年9月30日）'!$W:$W,"否",'2.1-18春夏销售（止18年9月30日）'!$X:$X,"新品")/10000 -> 1.8046 | DA5: =SUMIFS('2.1-18春夏销售（止18年9月30日）'!$S:$S,'2.1-18春夏销售（止18年9月30日）'!$D:$D,运营部分析!$J$1,'2.1-18春夏销售（止18年9月30日）'!$V:$V,运营部分析!DA$4,'2.1-18春夏销售（止18年9月30日）'!$A:$A,运营部分析!$B5,'2.1-18春夏销售（止18年9月30日）'!$W:$W,"否",'2.1-18春夏销售（止18年9月30日）'!$X:$X,"新品")/10000 -> 9.1881 | DB5: =SUMIFS('2.1-18春夏销售（止18年9月30日）'!$S:$S,'2.1-18春夏销售（止18年9月30日）'!$D:$D,运营部分析!$J$1,'2.1-18春夏销售（止18年9月30日）'!$V:$V,运营部分析!DB$4,'2.1-18春夏销售（止18年9月30日）'!$A:$A,运营部分析!$B5,'2.1-18春夏销售（止18年9月30日）'!$W:$W,"否",'2.1-18春夏销售（止18年9月30日）'!$X:$X,"新品")/10000 -> 3.6519 | DC5: =SUMIFS('2.1-18春夏销售（止18年9月30日）'!$S:$S,'2.1-18春夏销售（止18年9月30日）'!$D:$D,运营部分析!$J$1,'2.1-18春夏销售（止18年9月30日）'!$V:$V,运营部分析!DC$4,'2.1-18春夏销售（止18年9月30日）'!$A:$A,运营部分析!$B5,'2.1-18春夏销售（止18年9月30日）'!$W:$W,"否",'2.1-18春夏销售（止18年9月30日）'!$X:$X,"新品")/10000 -> 2.1067 | DD5: =SUM(CT5:DC5) -> 16.7513 | DE5: =IF((F5-L5-DD5+CA5-CB5-CC5)<0,"",(F5-L5-DD5+CA5-CB5-CC5)) -> 24.163 | DF5: =IFERROR(IF((L5+DD5+CC5)/(F5+CA5-CB5)>0.7,"70%",(L5+DD5+CC5)/(F5+CA5-CB5)),"") -> 0.483309063 | DH5: =SUMIFS('1.1-19春夏新旧品销售（更新）'!$I:$I,'1.1-19春夏新旧品销售（更新）'!$D:$D,运营部分析!$J$1,'1.1-19春夏新旧品销售（更新）'!$A:$A,运营部分析!$B5,'1.1-19春夏新旧品销售（更新）'!$AB:$AB,"新品",'1.1-19春夏新旧品销售（更新）'!$AG:$AG,"是") -> 27 | DI5: =SUMIFS('1.1-19春夏新旧品销售（更新）'!$S:$S,'1.1-19春夏新旧品销售（更新）'!$D:$D,运营部分析!$J$1,'1.1-19春夏新旧品销售（更新）'!$A:$A,运营部分析!$B5,'1.1-19春夏新旧品销售（更新）'!$AB:$AB,"新品",'1.1-19春夏新旧品销售（更新）'!$AG:$AG,"是")/10000 -> 1.5363 | DJ5: =SUMIFS('1.6-19春夏期货订单（更新）'!$AG:$AG,'1.6-19春夏期货订单（更新）'!$F:$F,运营部分析!$J$1,'1.6-19春夏期货订单（更新）'!$A:$A,运营部分析!$B5,'1.6-19春夏期货订单（更新）'!$AQ:$AQ,"是")+SUMIFS('1.2-19春夏发货（更新）'!$K:$K,'1.2-19春夏发货（更新）'!$A:$A,运营部分析!$B5,'1.2-19春夏发货（更新）'!$Q:$Q,运营部分析!$J$1,'1.2-19春夏发货（更新）'!$T:$T,"当季补货",'1.2-19春夏发货（更新）'!$W:$W,"是")+SUMIFS('1.2-19春夏发货（更新）'!$K:$K,'1.2-19春夏发货（更新）'!$A:$A,运营部分析!$B5,'1.2-19春夏发货（更新）'!$Q:$Q,运营部分析!$J$1,'1.2-19春夏发货（更新）'!$T:$T,"往季补货",'1.2-19春夏发货（更新）'!$W:$W,"是")+SUMIFS('1.3-19春夏调配（更新）'!$P:$P,'1.3-19春夏调配（更新）'!$K:$K,运营部分析!$J$1,'1.3-19春夏调配（更新）'!$A:$A,运营部分析!$B5,'1.3-19春夏调配（更新）'!$AC:$AC,"是",'1.3-19春夏调配（更新）'!$X:$X,"<>已审核")-SUMIFS('1.3-19春夏调配（更新）'!$P:$P,'1.3-19春夏调配（更新）'!$G:$G,运营部分析!$J$1,'1.3-19春夏调配（更新）'!$A:$A,运营部分析!$B5,'1.3-19春夏调配（更新）'!$AC:$AC,"是",'1.3-19春夏调配（更新）'!$X:$X,"<>已审核") -> 152 | DK5: =SUMIFS('1.6-19春夏期货订单（更新）'!$AN:$AN,'1.6-19春夏期货订单（更新）'!$F:$F,运营部分析!$J$1,'1.6-19春夏期货订单（更新）'!$A:$A,运营部分析!$B5,'1.6-19春夏期货订单（更新）'!$AQ:$AQ,"是")/10000+SUMIFS('1.2-19春夏发货（更新）'!$U:$U,'1.2-19春夏发货（更新）'!$A:$A,运营部分析!$B5,'1.2-19春夏发货（更新）'!$Q:$Q,运营部分析!$J$1,'1.2-19春夏发货（更新）'!$T:$T,"当季补货",'1.2-19春夏发货（更新）'!$W:$W,"是")/10000+SUMIFS('1.2-19春夏发货（更新）'!$U:$U,'1.2-19春夏发货（更新）'!$A:$A,运营部分析!$B5,'1.2-19春夏发货（更新）'!$Q:$Q,运营部分析!$J$1,'1.2-19春夏发货（更新）'!$T:$T,"往季补货",'1.2-19春夏发货（更新）'!$W:$W,"是")/10000+SUMIFS('1.3-19春夏调配（更新）'!$AA:$AA,'1.3-19春夏调配（更新）'!$K:$K,运营部分析!$J$1,'1.3-19春夏调配（更新）'!$A:$A,运营部分析!$B5,'1.3-19春夏调配（更新）'!$AC:$AC,"是",'1.3-19春夏调配（更新）'!$X:$X,"<>已审核")/10000-SUMIFS('1.3-19春夏调配（更新）'!$AA:$AA,'1.3-19春夏调配（更新）'!$G:$G,运营部分析!$J$1,'1.3-19春夏调配（更新）'!$A:$A,运营部分析!$B5,'1.3-19春夏调配（更新）'!$AC:$AC,"是",'1.3-19春夏调配（更新）'!$X:$X,"<>已审核")/10000 -> 8.6488 | DM5: =IFERROR((CF5)/(E5+CD5-CE5),"") -> 0.001203369434 | DN5: =IFERROR((CC5)/(F5+CA5-CB5),"") -> 0.001280875186
B6: 86 | C6: 长T普棉 | E6: =SUMIFS('1.6-19春夏期货订单（更新）'!$AG:$AG,'1.6-19春夏期货订单（更新）'!$F:$F,运营部分析!$J$1,'1.6-19春夏期货订单（更新）'!$A:$A,运营部分析!$B6)+SUMIFS('1.2-19春夏发货（更新）'!$K:$K,'1.2-19春夏发货（更新）'!$A:$A,运营部分析!$B6,'1.2-19春夏发货（更新）'!$Q:$Q,运营部分析!$J$1,'1.2-19春夏发货（更新）'!$T:$T,"当季补货")+SUMIFS('1.2-19春夏发货（更新）'!$K:$K,'1.2-19春夏发货（更新）'!$A:$A,运营部分析!$B6,'1.2-19春夏发货（更新）'!$Q:$Q,运营部分析!$J$1,'1.2-19春夏发货（更新）'!$T:$T,"往季补货")+SUMIFS('1.3-19春夏调配（更新）'!$P:$P,'1.3-19春夏调配（更新）'!$K:$K,运营部分析!$J$1,'1.3-19春夏调配（更新）'!$A:$A,运营部分析!$B6)-SUMIFS('1.3-19春夏调配（更新）'!$P:$P,'1.3-19春夏调配（更新）'!$G:$G,运营部分析!$J$1,'1.3-19春夏调配（更新）'!$A:$A,运营部分析!$B6,'1.3-19春夏调配（更新）'!$Z:$Z,"是") -> 386 | F6: =SUMIFS('1.6-19春夏期货订单（更新）'!$AN:$AN,'1.6-19春夏期货订单（更新）'!$F:$F,运营部分析!$J$1,'1.6-19春夏期货订单（更新）'!$A:$A,运营部分析!$B6)/10000+SUMIFS('1.2-19春夏发货（更新）'!$U:$U,'1.2-19春夏发货（更新）'!$A:$A,运营部分析!$B6,'1.2-19春夏发货（更新）'!$Q:$Q,运营部分析!$J$1,'1.2-19春夏发货（更新）'!$T:$T,"当季补货")/10000+SUMIFS('1.2-19春夏发货（更新）'!$U:$U,'1.2-19春夏发货（更新）'!$A:$A,运营部分析!$B6,'1.2-19春夏发货（更新）'!$Q:$Q,运营部分析!$J$1,'1.2-19春夏发货（更新）'!$T:$T,"往季补货")/10000+SUMIFS('1.3-19春夏调配（更新）'!$AA:$AA,'1.3-19春夏调配（更新）'!$K:$K,运营部分析!$J$1,'1.3-19春夏调配（更新）'!$A:$A,运营部分析!$B6)/10000-SUMIFS('1.3-19春夏调配（更新）'!$AA:$AA,'1.3-19春夏调配（更新）'!$G:$G,运营部分析!$J$1,'1.3-19春夏调配（更新）'!$A:$A,运营部分析!$B6,'1.3-19春夏调配（更新）'!$Z:$Z,"是")/10000 -> 18.5914 | G6: =(SUMIFS('2.1-18春夏销售（止18年9月30日）'!$I:$I,'2.1-18春夏销售（止18年9月30日）'!$X:$X,"新品",'2.1-18春夏销售（止18年9月30日）'!$A:$A,运营部分析!$B6,'2.1-18春夏销售（止18年9月30日）'!$D:$D,运营部分析!$J$1)+SUMIFS('2.2--18春夏库存（止18年9月30日）'!$M:$M,'2.2--18春夏库存（止18年9月30日）'!$C:$C,运营部分析!$J$1,'2.2--18春夏库存（止18年9月30日）'!$A:$A,运营部分析!$B6)+SUMIFS('2.4-18春夏冬退货（止18年9月30日）'!$Q:$Q,'2.4-18春夏冬退货（止18年9月30日）'!$D:$D,运营部分析!$J$1,'2.4-18春夏冬退货（止18年9月30日）'!$A:$A,运营部分析!$B6)+SUMIFS('2.3-18春夏调配（止18年9月30日）'!$P:$P,'2.3-18春夏调配（止18年9月30日）'!$G:$G,运营部分析!$J$1,'2.3-18春夏调配（止18年9月30日）'!$A:$A,运营部分析!$B6)) -> 273 | H6: =(SUMIFS('2.1-18春夏销售（止18年9月30日）'!$S:$S,'2.1-18春夏销售（止18年9月30日）'!$X:$X,"新品",'2.1-18春夏销售（止18年9月30日）'!$A:$A,运营部分析!$B6,'2.1-18春夏销售（止18年9月30日）'!$D:$D,运营部分析!$J$1)/10000+SUMIFS('2.2--18春夏库存（止18年9月30日）'!$P:$P,'2.2--18春夏库存（止18年9月30日）'!$C:$C,运营部分析!$J$1,'2.2--18春夏库存（止18年9月30日）'!$A:$A,运营部分析!$B6)/10000+SUMIFS('2.4-18春夏冬退货（止18年9月30日）'!$T:$T,'2.4-18春夏冬退货（止18年9月30日）'!$D:$D,运营部分析!$J$1,'2.4-18春夏冬退货（止18年9月30日）'!$A:$A,运营部分析!$B6)/10000+SUMIFS('2.3-18春夏调配（止18年9月30日）'!$Y:$Y,'2.3-18春夏调配（止18年9月30日）'!$G:$G,运营部分析!$J$1,'2.3-18春夏调配（止18年9月30日）'!$A:$A,运营部分析!$B6)/10000) -> 11.0527 | I6: 0.4139194139 | J6: 0.6820686348 | K6: =SUMIFS('1.1-19春夏新旧品销售（更新）'!$I:$I,'1.1-19春夏新旧品销售（更新）'!$D:$D,运营部分析!$J$1,'1.1-19春夏新旧品销售（更新）'!$A:$A,运营部分析!$B6,'1.1-19春夏新旧品销售（更新）'!$AB:$AB,"新品") -> 88 | L6: =SUMIFS('1.1-19春夏新旧品销售（更新）'!$S:$S,'1.1-19春夏新旧品销售（更新）'!$D:$D,运营部分析!$J$1,'1.1-19春夏新旧品销售（更新）'!$A:$A,运营部分析!$B6,'1.1-19春夏新旧品销售（更新）'!$AB:$AB,"新品")/10000 -> 4.2052 | M6: =SUMIFS('2.1-18春夏销售（止18年9月30日）'!$I:$I,'2.1-18春夏销售（止18年9月30日）'!$D:$D,运营部分析!$J$1,'2.1-18春夏销售（止18年9月30日）'!$A:$A,运营部分析!$B6,'2.1-18春夏销售（止18年9月30日）'!$X:$X,"新品",'2.1-18春夏销售（止18年9月30日）'!$T:$T,"同期销售") -> 130 | N6: =SUMIFS('2.1-18春夏销售（止18年9月30日）'!$S:$S,'2.1-18春夏销售（止18年9月30日）'!$D:$D,运营部分析!$J$1,'2.1-18春夏销售（止18年9月30日）'!$A:$A,运营部分析!$B6,'2.1-18春夏销售（止18年9月30日）'!$X:$X,"新品",'2.1-18春夏销售（止18年9月30日）'!$T:$T,"同期销售")/10000 -> 5.267 | O6: -0.3230769231 | P6: -0.2015948358 | Q6: =SUMIFS('2.1-18春夏销售（止18年9月30日）'!$I:$I,'2.1-18春夏销售（止18年9月30日）'!$D:$D,运营部分析!$J$1,'2.1-18春夏销售（止18年9月30日）'!$A:$A,运营部分析!$B6,'2.1-18春夏销售（止18年9月30日）'!$X:$X,"新品") -> 189 | R6: =SUMIFS('2.1-18春夏销售（止18年9月30日）'!$S:$S,'2.1-18春夏销售（止18年9月30日）'!$D:$D,运营部分析!$J$1,'2.1-18春夏销售（止18年9月30日）'!$A:$A,运营部分析!$B6,'2.1-18春夏销售（止18年9月30日）'!$X:$X,"新品")/10000 -> 7.6491 | S6: =SUMIFS('1.5-19春夏新旧品库存（更新）'!$BF:$BF,'1.5-19春夏新旧品库存（更新）'!$B:$B,运营部分析!$J$1,'1.5-19春夏新旧品库存（更新）'!$E:$E,运营部分析!$B6,'1.5-19春夏新旧品库存（更新）'!$BI:$BI,"新品") -> 284 | T6: =SUMIFS('1.5-19春夏新旧品库存（更新）'!$BG:$BG,'1.5-19春夏新旧品库存（更新）'!$B:$B,运营部分析!$J$1,'1.5-19春夏新旧品库存（更新）'!$E:$E,运营部分析!$B6,'1.5-19春夏新旧品库存（更新）'!$BI:$BI,"新品")/10000 -> 13.6936 | U6: =(SUMIFS('2.2--18春夏库存（止18年9月30日）'!$M:$M,'2.2--18春夏库存（止18年9月30日）'!$C:$C,运营部分析!$J$1,'2.2--18春夏库存（止18年9月30日）'!$A:$A,运营部分析!$B6)) -> 68 | V6: =(SUMIFS('2.2--18春夏库存（止18年9月30日）'!$P:$P,'2.2--18春夏库存（止18年9月30日）'!$C:$C,运营部分析!$J$1,'2.2--18春夏库存（止18年9月30日）'!$A:$A,运营部分析!$B6))/10000 -> 2.7652 | W6: 3.176470588 | X6: 3.952119196 | Y6: =IFERROR((K6+CF6)/(E6+CD6-CE6),"") -> 0.2582278481 | Z6: =IFERROR((L6+CC6)/(F6+CA6-CB6),"") -> 0.25723064 | AA6: =SUMIFS('2.3-18春夏调配（止18年9月30日）'!$P:$P,'2.3-18春夏调配（止18年9月30日）'!$G:$G,运营部分析!$J$1,'2.3-18春夏调配（止18年9月30日）'!$A:$A,运营部分析!$B6,'2.3-18春夏调配（止18年9月30日）'!$Z:$Z,"否",'2.3-18春夏调配（止18年9月30日）'!$AA:$AA,"是") -> 4 | AB6: =SUMIFS('2.3-18春夏调配（止18年9月30日）'!$Y:$Y,'2.3-18春夏调配（止18年9月30日）'!$G:$G,运营部分析!$J$1,'2.3-18春夏调配（止18年9月30日）'!$A:$A,运营部分析!$B6,'2.3-18春夏调配（止18年9月30日）'!$Z:$Z,"否",'2.3-18春夏调配（止18年9月30日）'!$AA:$AA,"是")/10000 -> 0.1596 | AC6: =SUMIFS('2.3-18春夏调配（止18年9月30日）'!$P:$P,'2.3-18春夏调配（止18年9月30日）'!$G:$G,运营部分析!$J$1,'2.3-18春夏调配（止18年9月30日）'!$A:$A,运营部分析!$B6,'2.3-18春夏调配（止18年9月30日）'!$Z:$Z,"是",'2.3-18春夏调配（止18年9月30日）'!$AA:$AA,"是") -> 1 | AD6: =SUMIFS('2.3-18春夏调配（止18年9月30日）'!$Y:$Y,'2.3-18春夏调配（止18年9月30日）'!$G:$G,运营部分析!$J$1,'2.3-18春夏调配（止18年9月30日）'!$A:$A,运营部分析!$B6,'2.3-18春夏调配（止18年9月30日）'!$Z:$Z,"是",'2.3-18春夏调配（止18年9月30日）'!$AA:$AA,"是")/10000 -> 0.0399 | AE6: =IFERROR((M6+AA6)/(G6-AC6),"") -> 0.4926470588 | AF6: 0.4927538864 | AI6: -0.4758360098 | AJ6: -0.4779733919 | AK6: =SUMIFS('2.3-18春夏调配（止18年9月30日）'!$P:$P,'2.3-18春夏调配（止18年9月30日）'!$G:$G,运营部分析!$J$1,'2.3-18春夏调配（止18年9月30日）'!$A:$A,运营部分析!$B6,'2.3-18春夏调配（止18年9月30日）'!$Z:$Z,"否") -> 10 | AL6: =SUMIFS('2.3-18春夏调配（止18年9月30日）'!$Y:$Y,'2.3-18春夏调配（止18年9月30日）'!$G:$G,运营部分析!$J$1,'2.3-18春夏调配（止18年9月30日）'!$A:$A,运营部分析!$B6,'2.3-18春夏调配（止18年9月30日）'!$Z:$Z,"否")/10000 -> 0.399 | AM6: =SUMIFS('2.3-18春夏调配（止18年9月30日）'!$P:$P,'2.3-18春夏调配（止18年9月30日）'!$G:$G,运营部分析!$J$1,'2.3-18春夏调配（止18年9月30日）'!$A:$A,运营部分析!$B6,'2.3-18春夏调配（止18年9月30日）'!$Z:$Z,"是") -> 6 | AN6: =SUMIFS('2.3-18春夏调配（止18年9月30日）'!$Y:$Y,'2.3-18春夏调配（止18年9月30日）'!$G:$G,运营部分析!$J$1,'2.3-18春夏调配（止18年9月30日）'!$A:$A,运营部分析!$B6,'2.3-18春夏调配（止18年9月30日）'!$Z:$Z,"是")/10000 -> 0.2394 | AO6: =IFERROR((Q6+AK6)/(G6-AM6),"") -> 0.7453183521 | AP6: 0.74427788 | AQ6: =SUMIFS('1.2-19春夏发货（更新）'!$K:$K,'1.2-19春夏发货（更新）'!$A:$A,运营部分析!$B6,'1.2-19春夏发货（更新）'!Q:Q,运营部分析!$J$1) -> 377 | AR6: 0.9766839378 | AS6: 9 | AT6: =K6+S6+CE6+CF6 -> 387 | AU6: =SUMIFS('1.6-19春夏期货订单（更新）'!$AP:$AP,'1.6-19春夏期货订单（更新）'!$A:$A,运营部分析!$B6,'1.6-19春夏期货订单（更新）'!$F:$F,运营部分析!$J$1) -> 5 | AV6: =SUMIFS('1.1-19春夏新旧品销售（更新）'!$X:$X,'1.1-19春夏新旧品销售（更新）'!$A:$A,运营部分析!$B6,'1.1-19春夏新旧品销售（更新）'!D:D,运营部分析!$J$1,'1.1-19春夏新旧品销售（更新）'!$U:$U,"月",'1.1-19春夏新旧品销售（更新）'!$AH:$AH,"新品") -> 3 | AW6: =SUMIFS('1.5-19春夏新旧品库存（更新）'!$BM:$BM,'1.5-19春夏新旧品库存（更新）'!$E:$E,运营部分析!$B6,'1.5-19春夏新旧品库存（更新）'!$B:$B,运营部分析!$J$1,'1.5-19春夏新旧品库存（更新）'!$BI:$BI,"新品") -> 5 | AX6: 0.6 | AY6: 31.55555556 | AZ6: =SUMIFS('1.1-19春夏新旧品销售（更新）'!$I:$I,'1.1-19春夏新旧品销售（更新）'!$A:$A,运营部分析!$B6,'1.1-19春夏新旧品销售（更新）'!$U:$U,"月",'1.1-19春夏新旧品销售（更新）'!$D:$D,运营部分析!$J$1,'1.1-19春夏新旧品销售（更新）'!$AH:$AH,"新品") -> 9 | BA6: =SUMIFS('1.1-19春夏新旧品销售（更新）'!$J:$J,'1.1-19春夏新旧品销售（更新）'!$A:$A,运营部分析!$B6,'1.1-19春夏新旧品销售（更新）'!$U:$U,"月",'1.1-19春夏新旧品销售（更新）'!$D:$D,运营部分析!$J$1,'1.1-19春夏新旧品销售（更新）'!$AH:$AH,"新品")/10000 -> 0.243 | BB6: =SUMIFS('1.1-19春夏新旧品销售（更新）'!$K:$K,'1.1-19春夏新旧品销售（更新）'!$A:$A,运营部分析!$B6,'1.1-19春夏新旧品销售（更新）'!$U:$U,"月",'1.1-19春夏新旧品销售（更新）'!$D:$D,运营部分析!$J$1,'1.1-19春夏新旧品销售（更新）'!$AH:$AH,"新品")/10000 -> 0.4641 | BC6: =SUMIFS('1.1-19春夏新旧品销售（更新）'!$S:$S,'1.1-19春夏新旧品销售（更新）'!$A:$A,运营部分析!$B6,'1.1-19春夏新旧品销售（更新）'!$U:$U,"月",'1.1-19春夏新旧品销售（更新）'!$D:$D,运营部分析!$J$1,'1.1-19春夏新旧品销售（更新）'!$AH:$AH,"新品")/10000 -> 0.4311 | BD6: 1.076548365 | BE6: 270 | BF6: 0.5636743215 | BG6: =SUMIFS('2.1-18春夏销售（止18年9月30日）'!$J:$J,'2.1-18春夏销售（止18年9月30日）'!$A:$A,运营部分析!$B6,'2.1-18春夏销售（止18年9月30日）'!$D:$D,运营部分析!$J$1,'2.1-18春夏销售（止18年9月30日）'!$U:$U,"月",'2.1-18春夏销售（止18年9月30日）'!$X:$X,"新品")/10000 -> 0.0961 | BH6: =SUMIFS('2.1-18春夏销售（止18年9月30日）'!$S:$S,'2.1-18春夏销售（止18年9月30日）'!$A:$A,运营部分析!$B6,'2.1-18春夏销售（止18年9月30日）'!$D:$D,运营部分析!$J$1,'2.1-18春夏销售（止18年9月30日）'!$U:$U,"月",'2.1-18春夏销售（止18年9月30日）'!$X:$X,"新品")/10000 -> 0.1197 | BI6: 0.8028404344 | BJ6: =SUMIFS('1.1-19春夏新旧品销售（更新）'!$J:$J,'1.1-19春夏新旧品销售（更新）'!$A:$A,运营部分析!$B6,'1.1-19春夏新旧品销售（更新）'!$D:$D,运营部分析!$J$1,'1.1-19春夏新旧品销售（更新）'!$T:$T,"本周",'1.1-19春夏新旧品销售（更新）'!$AH:$AH,"新品")/10000 -> 0.0505 | BK6: =SUMIFS('1.1-19春夏新旧品销售（更新）'!$S:$S,'1.1-19春夏新旧品销售（更新）'!$A:$A,运营部分析!$B6,'1.1-19春夏新旧品销售（更新）'!$D:$D,运营部分析!$J$1,'1.1-19春夏新旧品销售（更新）'!$T:$T,"本周",'1.1-19春夏新旧品销售（更新）'!$AH:$AH,"新品")/10000 -> 0.0938 | BL6: 0.5383795309 | BM6: 0.01272227823 | BN6: 0.007929945961 | BO6: =SUMIFS('1.1-19春夏新旧品销售（更新）'!$I:$I,'1.1-19春夏新旧品销售（更新）'!$A:$A,运营部分析!#REF!,'1.1-19春夏新旧品销售（更新）'!$D:$D,运营部分析!$J$1,'1.1-19春夏新旧品销售（更新）'!$T:$T,"上上周",'1.1-19春夏新旧品销售（更新）'!$AH:$AH,"新品") -> 0 | BP6: =SUMIFS('1.1-19春夏新旧品销售（更新）'!$I:$I,'1.1-19春夏新旧品销售（更新）'!$A:$A,运营部分析!$B5,'1.1-19春夏新旧品销售（更新）'!$D:$D,运营部分析!$J$1,'1.1-19春夏新旧品销售（更新）'!$T:$T,"上周",'1.1-19春夏新旧品销售（更新）'!$AH:$AH,"新品") -> 8 | BQ6: =SUMIFS('1.1-19春夏新旧品销售（更新）'!$I:$I,'1.1-19春夏新旧品销售（更新）'!$A:$A,运营部分析!$B5,'1.1-19春夏新旧品销售（更新）'!$D:$D,运营部分析!$J$1,'1.1-19春夏新旧品销售（更新）'!$T:$T,"本周",'1.1-19春夏新旧品销售（更新）'!$AH:$AH,"新品") -> 9 | BR6: =SUMIFS('1.1-19春夏新旧品销售（更新）'!$I:$I,'1.1-19春夏新旧品销售（更新）'!$A:$A,运营部分析!$B6,'1.1-19春夏新旧品销售（更新）'!$D:$D,运营部分析!$J$1,'1.1-19春夏新旧品销售（更新）'!$U:$U,"月",'1.1-19春夏新旧品销售（更新）'!$AH:$AH,"新品") -> 9 | BS6: 0 | BT6: 0.125 | BU6: 0.02337662338 | BV6: 0.004792332268 | CA6: =SUMIFS('1.3-19春夏调配（更新）'!$AA:$AA,'1.3-19春夏调配（更新）'!$K:$K,运营部分析!$J$1,'1.3-19春夏调配（更新）'!$A:$A,运营部分析!$B6,'1.3-19春夏调配（更新）'!$X:$X,"<>已审核")/10000 -> 0.499 | CB6: =SUMIFS('1.3-19春夏调配（更新）'!$AA:$AA,'1.3-19春夏调配（更新）'!$G:$G,运营部分析!$J$1,'1.3-19春夏调配（更新）'!$A:$A,运营部分析!$B6,'1.3-19春夏调配（更新）'!$Z:$Z,"是",'1.3-19春夏调配（更新）'!$X:$X,"<>已审核")/10000 -> 0.0499 | CC6: =SUMIFS('1.3-19春夏调配（更新）'!$AA:$AA,'1.3-19春夏调配（更新）'!$G:$G,运营部分析!$J$1,'1.3-19春夏调配（更新）'!$A:$A,运营部分析!$B6,'1.3-19春夏调配（更新）'!$Z:$Z,"否",'1.3-19春夏调配（更新）'!$X:$X,"<>已审核")/10000 -> 0.6926 | CD6: =SUMIFS('1.3-19春夏调配（更新）'!$P:$P,'1.3-19春夏调配（更新）'!$K:$K,运营部分析!$J$1,'1.3-19春夏调配（更新）'!$A:$A,运营部分析!$B6,'1.3-19春夏调配（更新）'!$X:$X,"<>已审核") -> 10 | CE6: =SUMIFS('1.3-19春夏调配（更新）'!$P:$P,'1.3-19春夏调配（更新）'!$G:$G,运营部分析!$J$1,'1.3-19春夏调配（更新）'!$A:$A,运营部分析!$B6,'1.3-19春夏调配（更新）'!$Z:$Z,"是",'1.3-19春夏调配（更新）'!$X:$X,"<>已审核") -> 1 | CF6: =SUMIFS('1.3-19春夏调配（更新）'!$P:$P,'1.3-19春夏调配（更新）'!$G:$G,运营部分析!$J$1,'1.3-19春夏调配（更新）'!$A:$A,运营部分析!$B6,'1.3-19春夏调配（更新）'!$Z:$Z,"否",'1.3-19春夏调配（更新）'!$X:$X,"<>已审核") -> 14 | CG6: =SUMIFS('2.1-18春夏销售（止18年9月30日）'!$I:$I,'2.1-18春夏销售（止18年9月30日）'!$D:$D,运营部分析!$J$1,'2.1-18春夏销售（止18年9月30日）'!$V:$V,运营部分析!CG$4,'2.1-18春夏销售（止18年9月30日）'!$A:$A,运营部分析!$B6,'2.1-18春夏销售（止18年9月30日）'!$W:$W,"否",'2.1-18春夏销售（止18年9月30日）'!$X:$X,"新品") -> 0 | CH6: =SUMIFS('2.1-18春夏销售（止18年9月30日）'!$I:$I,'2.1-18春夏销售（止18年9月30日）'!$D:$D,运营部分析!$J$1,'2.1-18春夏销售（止18年9月30日）'!$V:$V,运营部分析!CH$4,'2.1-18春夏销售（止18年9月30日）'!$A:$A,运营部分析!$B6,'2.1-18春夏销售（止18年9月30日）'!$W:$W,"否",'2.1-18春夏销售（止18年9月30日）'!$X:$X,"新品") -> 0 | CI6: =SUMIFS('2.1-18春夏销售（止18年9月30日）'!$I:$I,'2.1-18春夏销售（止18年9月30日）'!$D:$D,运营部分析!$J$1,'2.1-18春夏销售（止18年9月30日）'!$V:$V,运营部分析!CI$4,'2.1-18春夏销售（止18年9月30日）'!$A:$A,运营部分析!$B6,'2.1-18春夏销售（止18年9月30日）'!$W:$W,"否",'2.1-18春夏销售（止18年9月30日）'!$X:$X,"新品") -> 0 | CJ6: =SUMIFS('2.1-18春夏销售（止18年9月30日）'!$I:$I,'2.1-18春夏销售（止18年9月30日）'!$D:$D,运营部分析!$J$1,'2.1-18春夏销售（止18年9月30日）'!$V:$V,运营部分析!CJ$4,'2.1-18春夏销售（止18年9月30日）'!$A:$A,运营部分析!$B6,'2.1-18春夏销售（止18年9月30日）'!$W:$W,"否",'2.1-18春夏销售（止18年9月30日）'!$X:$X,"新品") -> 0 | CK6: =SUMIFS('2.1-18春夏销售（止18年9月30日）'!$I:$I,'2.1-18春夏销售（止18年9月30日）'!$D:$D,运营部分析!$J$1,'2.1-18春夏销售（止18年9月30日）'!$V:$V,运营部分析!CK$4,'2.1-18春夏销售（止18年9月30日）'!$A:$A,运营部分析!$B6,'2.1-18春夏销售（止18年9月30日）'!$W:$W,"否",'2.1-18春夏销售（止18年9月30日）'!$X:$X,"新品") -> 0 | CL6: =SUMIFS('2.1-18春夏销售（止18年9月30日）'!$I:$I,'2.1-18春夏销售（止18年9月30日）'!$D:$D,运营部分析!$J$1,'2.1-18春夏销售（止18年9月30日）'!$V:$V,运营部分析!CL$4,'2.1-18春夏销售（止18年9月30日）'!$A:$A,运营部分析!$B6,'2.1-18春夏销售（止18年9月30日）'!$W:$W,"否",'2.1-18春夏销售（止18年9月30日）'!$X:$X,"新品") -> 0 | CM6: =SUMIFS('2.1-18春夏销售（止18年9月30日）'!$I:$I,'2.1-18春夏销售（止18年9月30日）'!$D:$D,运营部分析!$J$1,'2.1-18春夏销售（止18年9月30日）'!$V:$V,运营部分析!CM$4,'2.1-18春夏销售（止18年9月30日）'!$A:$A,运营部分析!$B6,'2.1-18春夏销售（止18年9月30日）'!$W:$W,"否",'2.1-18春夏销售（止18年9月30日）'!$X:$X,"新品") -> 0 | CN6: =SUMIFS('2.1-18春夏销售（止18年9月30日）'!$I:$I,'2.1-18春夏销售（止18年9月30日）'!$D:$D,运营部分析!$J$1,'2.1-18春夏销售（止18年9月30日）'!$V:$V,运营部分析!CN$4,'2.1-18春夏销售（止18年9月30日）'!$A:$A,运营部分析!$B6,'2.1-18春夏销售（止18年9月30日）'!$W:$W,"否",'2.1-18春夏销售（止18年9月30日）'!$X:$X,"新品") -> 11 | CO6: =SUMIFS('2.1-18春夏销售（止18年9月30日）'!$I:$I,'2.1-18春夏销售（止18年9月30日）'!$D:$D,运营部分析!$J$1,'2.1-18春夏销售（止18年9月30日）'!$V:$V,运营部分析!CO$4,'2.1-18春夏销售（止18年9月30日）'!$A:$A,运营部分析!$B6,'2.1-18春夏销售（止18年9月30日）'!$W:$W,"否",'2.1-18春夏销售（止18年9月30日）'!$X:$X,"新品") -> 5 | CP6: =SUMIFS('2.1-18春夏销售（止18年9月30日）'!$I:$I,'2.1-18春夏销售（止18年9月30日）'!$D:$D,运营部分析!$J$1,'2.1-18春夏销售（止18年9月30日）'!$V:$V,运营部分析!CP$4,'2.1-18春夏销售（止18年9月30日）'!$A:$A,运营部分析!$B6,'2.1-18春夏销售（止18年9月30日）'!$W:$W,"否",'2.1-18春夏销售（止18年9月30日）'!$X:$X,"新品") -> 43 | CQ6: 59 | CR6: 234 | CS6: =IFERROR(IF((K6+CQ6+CF6)/(E6+CD6-CE6)>0.7,"70%",(K6+CQ6+CF6)/(E6+CD6-CE6)),"") -> 0.4075949367 | CT6: =SUMIFS('2.1-18春夏销售（止18年9月30日）'!$S:$S,'2.1-18春夏销售（止18年9月30日）'!$D:$D,运营部分析!$J$1,'2.1-18春夏销售（止18年9月30日）'!$V:$V,运营部分析!CT$4,'2.1-18春夏销售（止18年9月30日）'!$A:$A,运营部分析!$B6,'2.1-18春夏销售（止18年9月30日）'!$W:$W,"否",'2.1-18春夏销售（止18年9月30日）'!$X:$X,"新品")/10000 -> 0 | CU6: =SUMIFS('2.1-18春夏销售（止18年9月30日）'!$S:$S,'2.1-18春夏销售（止18年9月30日）'!$D:$D,运营部分析!$J$1,'2.1-18春夏销售（止18年9月30日）'!$V:$V,运营部分析!CU$4,'2.1-18春夏销售（止18年9月30日）'!$A:$A,运营部分析!$B6,'2.1-18春夏销售（止18年9月30日）'!$W:$W,"否",'2.1-18春夏销售（止18年9月30日）'!$X:$X,"新品")/10000 -> 0 | CV6: =SUMIFS('2.1-18春夏销售（止18年9月30日）'!$S:$S,'2.1-18春夏销售（止18年9月30日）'!$D:$D,运营部分析!$J$1,'2.1-18春夏销售（止18年9月30日）'!$V:$V,运营部分析!CV$4,'2.1-18春夏销售（止18年9月30日）'!$A:$A,运营部分析!$B6,'2.1-18春夏销售（止18年9月30日）'!$W:$W,"否",'2.1-18春夏销售（止18年9月30日）'!$X:$X,"新品")/10000 -> 0 | CW6: =SUMIFS('2.1-18春夏销售（止18年9月30日）'!$S:$S,'2.1-18春夏销售（止18年9月30日）'!$D:$D,运营部分析!$J$1,'2.1-18春夏销售（止18年9月30日）'!$V:$V,运营部分析!CW$4,'2.1-18春夏销售（止18年9月30日）'!$A:$A,运营部分析!$B6,'2.1-18春夏销售（止18年9月30日）'!$W:$W,"否",'2.1-18春夏销售（止18年9月30日）'!$X:$X,"新品")/10000 -> 0 | CX6: =SUMIFS('2.1-18春夏销售（止18年9月30日）'!$S:$S,'2.1-18春夏销售（止18年9月30日）'!$D:$D,运营部分析!$J$1,'2.1-18春夏销售（止18年9月30日）'!$V:$V,运营部分析!CX$4,'2.1-18春夏销售（止18年9月30日）'!$A:$A,运营部分析!$B6,'2.1-18春夏销售（止18年9月30日）'!$W:$W,"否",'2.1-18春夏销售（止18年9月30日）'!$X:$X,"新品")/10000 -> 0 | CY6: =SUMIFS('2.1-18春夏销售（止18年9月30日）'!$S:$S,'2.1-18春夏销售（止18年9月30日）'!$D:$D,运营部分析!$J$1,'2.1-18春夏销售（止18年9月30日）'!$V:$V,运营部分析!CY$4,'2.1-18春夏销售（止18年9月30日）'!$A:$A,运营部分析!$B6,'2.1-18春夏销售（止18年9月30日）'!$W:$W,"否",'2.1-18春夏销售（止18年9月30日）'!$X:$X,"新品")/10000 -> 0 | CZ6: =SUMIFS('2.1-18春夏销售（止18年9月30日）'!$S:$S,'2.1-18春夏销售（止18年9月30日）'!$D:$D,运营部分析!$J$1,'2.1-18春夏销售（止18年9月30日）'!$V:$V,运营部分析!CZ$4,'2.1-18春夏销售（止18年9月30日）'!$A:$A,运营部分析!$B6,'2.1-18春夏销售（止18年9月30日）'!$W:$W,"否",'2.1-18春夏销售（止18年9月30日）'!$X:$X,"新品")/10000 -> 0 | DA6: =SUMIFS('2.1-18春夏销售（止18年9月30日）'!$S:$S,'2.1-18春夏销售（止18年9月30日）'!$D:$D,运营部分析!$J$1,'2.1-18春夏销售（止18年9月30日）'!$V:$V,运营部分析!DA$4,'2.1-18春夏销售（止18年9月30日）'!$A:$A,运营部分析!$B6,'2.1-18春夏销售（止18年9月30日）'!$W:$W,"否",'2.1-18春夏销售（止18年9月30日）'!$X:$X,"新品")/10000 -> 0.4389 | DB6: =SUMIFS('2.1-18春夏销售（止18年9月30日）'!$S:$S,'2.1-18春夏销售（止18年9月30日）'!$D:$D,运营部分析!$J$1,'2.1-18春夏销售（止18年9月30日）'!$V:$V,运营部分析!DB$4,'2.1-18春夏销售（止18年9月30日）'!$A:$A,运营部分析!$B6,'2.1-18春夏销售（止18年9月30日）'!$W:$W,"否",'2.1-18春夏销售（止18年9月30日）'!$X:$X,"新品")/10000 -> 0.1995 | DC6: =SUMIFS('2.1-18春夏销售（止18年9月30日）'!$S:$S,'2.1-18春夏销售（止18年9月30日）'!$D:$D,运营部分析!$J$1,'2.1-18春夏销售（止18年9月30日）'!$V:$V,运营部分析!DC$4,'2.1-18春夏销售（止18年9月30日）'!$A:$A,运营部分析!$B6,'2.1-18春夏销售（止18年9月30日）'!$W:$W,"否",'2.1-18春夏销售（止18年9月30日）'!$X:$X,"新品")/10000 -> 1.7437 | DD6: 2.3821 | DE6: 11.7606 | DF6: =IFERROR(IF((L6+DD6+CC6)/(F6+CA6-CB6)>0.7,"70%",(L6+DD6+CC6)/(F6+CA6-CB6)),"") -> 0.3823376487 | DH6: =SUMIFS('1.1-19春夏新旧品销售（更新）'!$I:$I,'1.1-19春夏新旧品销售（更新）'!$D:$D,运营部分析!$J$1,'1.1-19春夏新旧品销售（更新）'!$A:$A,运营部分析!$B6,'1.1-19春夏新旧品销售（更新）'!$AB:$AB,"新品",'1.1-19春夏新旧品销售（更新）'!$AG:$AG,"是") -> 0 | DI6: =SUMIFS('1.1-19春夏新旧品销售（更新）'!$S:$S,'1.1-19春夏新旧品销售（更新）'!$D:$D,运营部分析!$J$1,'1.1-19春夏新旧品销售（更新）'!$A:$A,运营部分析!$B6,'1.1-19春夏新旧品销售（更新）'!$AB:$AB,"新品",'1.1-19春夏新旧品销售（更新）'!$AG:$AG,"是")/10000 -> 0 | DJ6: =SUMIFS('1.6-19春夏期货订单（更新）'!$AG:$AG,'1.6-19春夏期货订单（更新）'!$F:$F,运营部分析!$J$1,'1.6-19春夏期货订单（更新）'!$A:$A,运营部分析!$B6,'1.6-19春夏期货订单（更新）'!$AQ:$AQ,"是")+SUMIFS('1.2-19春夏发货（更新）'!$K:$K,'1.2-19春夏发货（更新）'!$A:$A,运营部分析!$B6,'1.2-19春夏发货（更新）'!$Q:$Q,运营部分析!$J$1,'1.2-19春夏发货（更新）'!$T:$T,"当季补货",'1.2-19春夏发货（更新）'!$W:$W,"是")+SUMIFS('1.2-19春夏发货（更新）'!$K:$K,'1.2-19春夏发货（更新）'!$A:$A,运营部分析!$B6,'1.2-19春夏发货（更新）'!$Q:$Q,运营部分析!$J$1,'1.2-19春夏发货（更新）'!$T:$T,"往季补货",'1.2-19春夏发货（更新）'!$W:$W,"是")+SUMIFS('1.3-19春夏调配（更新）'!$P:$P,'1.3-19春夏调配（更新）'!$K:$K,运营部分析!$J$1,'1.3-19春夏调配（更新）'!$A:$A,运营部分析!$B6,'1.3-19春夏调配（更新）'!$AC:$AC,"是",'1.3-19春夏调配（更新）'!$X:$X,"<>已审核")-SUMIFS('1.3-19春夏调配（更新）'!$P:$P,'1.3-19春夏调配（更新）'!$G:$G,运营部分析!$J$1,'1.3-19春夏调配（更新）'!$A:$A,运营部分析!$B6,'1.3-19春夏调配（更新）'!$AC:$AC,"是",'1.3-19春夏调配（更新）'!$X:$X,"<>已审核") -> 0 | DK6: =SUMIFS('1.6-19春夏期货订单（更新）'!$AN:$AN,'1.6-19春夏期货订单（更新）'!$F:$F,运营部分析!$J$1,'1.6-19春夏期货订单（更新）'!$A:$A,运营部分析!$B6,'1.6-19春夏期货订单（更新）'!$AQ:$AQ,"是")/10000+SUMIFS('1.2-19春夏发货（更新）'!$U:$U,'1.2-19春夏发货（更新）'!$A:$A,运营部分析!$B6,'1.2-19春夏发货（更新）'!$Q:$Q,运营部分析!$J$1,'1.2-19春夏发货（更新）'!$T:$T,"当季补货",'1.2-19春夏发货（更新）'!$W:$W,"是")/10000+SUMIFS('1.2-19春夏发货（更新）'!$U:$U,'1.2-19春夏发货（更新）'!$A:$A,运营部分析!$B6,'1.2-19春夏发货（更新）'!$Q:$Q,运营部分析!$J$1,'1.2-19春夏发货（更新）'!$T:$T,"往季补货",'1.2-19春夏发货（更新）'!$W:$W,"是")/10000+SUMIFS('1.3-19春夏调配（更新）'!$AA:$AA,'1.3-19春夏调配（更新）'!$K:$K,运营部分析!$J$1,'1.3-19春夏调配（更新）'!$A:$A,运营部分析!$B6,'1.3-19春夏调配（更新）'!$AC:$AC,"是",'1.3-19春夏调配（更新）'!$X:$X,"<>已审核")/10000-SUMIFS('1.3-19春夏调配（更新）'!$AA:$AA,'1.3-19春夏调配（更新）'!$G:$G,运营部分析!$J$1,'1.3-19春夏调配（更新）'!$A:$A,运营部分析!$B6,'1.3-19春夏调配（更新）'!$AC:$AC,"是",'1.3-19春夏调配（更新）'!$X:$X,"<>已审核")/10000 -> 0 | DM6: =IFERROR((CF6)/(E6+CD6-CE6),"") -> 0.03544303797 | DN6: =IFERROR((CC6)/(F6+CA6-CB6),"") -> 0.03637509519
A7: 衬衫 | B7: 11 | C7: 正装长衬 | E7: =SUMIFS('1.6-19春夏期货订单（更新）'!$AG:$AG,'1.6-19春夏期货订单（更新）'!$F:$F,运营部分析!$J$1,'1.6-19春夏期货订单（更新）'!$A:$A,运营部分析!$B7)+SUMIFS('1.2-19春夏发货（更新）'!$K:$K,'1.2-19春夏发货（更新）'!$A:$A,运营部分析!$B7,'1.2-19春夏发货（更新）'!$Q:$Q,运营部分析!$J$1,'1.2-19春夏发货（更新）'!$T:$T,"当季补货")+SUMIFS('1.2-19春夏发货（更新）'!$K:$K,'1.2-19春夏发货（更新）'!$A:$A,运营部分析!$B7,'1.2-19春夏发货（更新）'!$Q:$Q,运营部分析!$J$1,'1.2-19春夏发货（更新）'!$T:$T,"往季补货")+SUMIFS('1.3-19春夏调配（更新）'!$P:$P,'1.3-19春夏调配（更新）'!$K:$K,运营部分析!$J$1,'1.3-19春夏调配（更新）'!$A:$A,运营部分析!$B7)-SUMIFS('1.3-19春夏调配（更新）'!$P:$P,'1.3-19春夏调配（更新）'!$G:$G,运营部分析!$J$1,'1.3-19春夏调配（更新）'!$A:$A,运营部分析!$B7,'1.3-19春夏调配（更新）'!$Z:$Z,"是") -> 785 | F7: =SUMIFS('1.6-19春夏期货订单（更新）'!$AN:$AN,'1.6-19春夏期货订单（更新）'!$F:$F,运营部分析!$J$1,'1.6-19春夏期货订单（更新）'!$A:$A,运营部分析!$B7)/10000+SUMIFS('1.2-19春夏发货（更新）'!$U:$U,'1.2-19春夏发货（更新）'!$A:$A,运营部分析!$B7,'1.2-19春夏发货（更新）'!$Q:$Q,运营部分析!$J$1,'1.2-19春夏发货（更新）'!$T:$T,"当季补货")/10000+SUMIFS('1.2-19春夏发货（更新）'!$U:$U,'1.2-19春夏发货（更新）'!$A:$A,运营部分析!$B7,'1.2-19春夏发货（更新）'!$Q:$Q,运营部分析!$J$1,'1.2-19春夏发货（更新）'!$T:$T,"往季补货")/10000+SUMIFS('1.3-19春夏调配（更新）'!$AA:$AA,'1.3-19春夏调配（更新）'!$K:$K,运营部分析!$J$1,'1.3-19春夏调配（更新）'!$A:$A,运营部分析!$B7)/10000-SUMIFS('1.3-19春夏调配（更新）'!$AA:$AA,'1.3-19春夏调配（更新）'!$G:$G,运营部分析!$J$1,'1.3-19春夏调配（更新）'!$A:$A,运营部分析!$B7,'1.3-19春夏调配（更新）'!$Z:$Z,"是")/10000 -> 27.9075 | G7: =(SUMIFS('2.1-18春夏销售（止18年9月30日）'!$I:$I,'2.1-18春夏销售（止18年9月30日）'!$X:$X,"新品",'2.1-18春夏销售（止18年9月30日）'!$A:$A,运营部分析!$B7,'2.1-18春夏销售（止18年9月30日）'!$D:$D,运营部分析!$J$1)+SUMIFS('2.2--18春夏库存（止18年9月30日）'!$M:$M,'2.2--18春夏库存（止18年9月30日）'!$C:$C,运营部分析!$J$1,'2.2--18春夏库存（止18年9月30日）'!$A:$A,运营部分析!$B7)+SUMIFS('2.4-18春夏冬退货（止18年9月30日）'!$Q:$Q,'2.4-18春夏冬退货（止18年9月30日）'!$D:$D,运营部分析!$J$1,'2.4-18春夏冬退货（止18年9月30日）'!$A:$A,运营部分析!$B7)+SUMIFS('2.3-18春夏调配（止18年9月30日）'!$P:$P,'2.3-18春夏调配（止18年9月30日）'!$G:$G,运营部分析!$J$1,'2.3-18春夏调配（止18年9月30日）'!$A:$A,运营部分析!$B7)) -> 1714 | H7: =(SUMIFS('2.1-18春夏销售（止18年9月30日）'!$S:$S,'2.1-18春夏销售（止18年9月30日）'!$X:$X,"新品",'2.1-18春夏销售（止18年9月30日）'!$A:$A,运营部分析!$B7,'2.1-18春夏销售（止18年9月30日）'!$D:$D,运营部分析!$J$1)/10000+SUMIFS('2.2--18春夏库存（止18年9月30日）'!$P:$P,'2.2--18春夏库存（止18年9月30日）'!$C:$C,运营部分析!$J$1,'2.2--18春夏库存（止18年9月30日）'!$A:$A,运营部分析!$B7)/10000+SUMIFS('2.4-18春夏冬退货（止18年9月30日）'!$T:$T,'2.4-18春夏冬退货（止18年9月30日）'!$D:$D,运营部分析!$J$1,'2.4-18春夏冬退货（止18年9月30日）'!$A:$A,运营部分析!$B7)/10000+SUMIFS('2.3-18春夏调配（止18年9月30日）'!$Y:$Y,'2.3-18春夏调配（止18年9月30日）'!$G:$G,运营部分析!$J$1,'2.3-18春夏调配（止18年9月30日）'!$A:$A,运营部分析!$B7)/10000) -> 56.9036 | I7: -0.5420070012 | J7: -0.5095652999 | K7: =SUMIFS('1.1-19春夏新旧品销售（更新）'!$I:$I,'1.1-19春夏新旧品销售（更新）'!$D:$D,运营部分析!$J$1,'1.1-19春夏新旧品销售（更新）'!$A:$A,运营部分析!$B7,'1.1-19春夏新旧品销售（更新）'!$AB:$AB,"新品") -> 170 | L7: =SUMIFS('1.1-19春夏新旧品销售（更新）'!$S:$S,'1.1-19春夏新旧品销售（更新）'!$D:$D,运营部分析!$J$1,'1.1-19春夏新旧品销售（更新）'!$A:$A,运营部分析!$B7,'1.1-19春夏新旧品销售（更新）'!$AB:$AB,"新品")/10000 -> 5.961 | M7: =SUMIFS('2.1-18春夏销售（止18年9月30日）'!$I:$I,'2.1-18春夏销售（止18年9月30日）'!$D:$D,运营部分析!$J$1,'2.1-18春夏销售（止18年9月30日）'!$A:$A,运营部分析!$B7,'2.1-18春夏销售（止18年9月30日）'!$X:$X,"新品",'2.1-18春夏销售（止18年9月30日）'!$T:$T,"同期销售") -> 457 | N7: =SUMIFS('2.1-18春夏销售（止18年9月30日）'!$S:$S,'2.1-18春夏销售（止18年9月30日）'!$D:$D,运营部分析!$J$1,'2.1-18春夏销售（止18年9月30日）'!$A:$A,运营部分析!$B7,'2.1-18春夏销售（止18年9月30日）'!$X:$X,"新品",'2.1-18春夏销售（止18年9月30日）'!$T:$T,"同期销售")/10000 -> 15.0973 | O7: -0.6280087527 | P7: -0.6051611878 | Q7: =SUMIFS('2.1-18春夏销售（止18年9月30日）'!$I:$I,'2.1-18春夏销售（止18年9月30日）'!$D:$D,运营部分析!$J$1,'2.1-18春夏销售（止18年9月30日）'!$A:$A,运营部分析!$B7,'2.1-18春夏销售（止18年9月30日）'!$X:$X,"新品") -> 737 | R7: =SUMIFS('2.1-18春夏销售（止18年9月30日）'!$S:$S,'2.1-18春夏销售（止18年9月30日）'!$D:$D,运营部分析!$J$1,'2.1-18春夏销售（止18年9月30日）'!$A:$A,运营部分析!$B7,'2.1-18春夏销售（止18年9月30日）'!$X:$X,"新品")/10000 -> 24.5253 | S7: =SUMIFS('1.5-19春夏新旧品库存（更新）'!$BF:$BF,'1.5-19春夏新旧品库存（更新）'!$B:$B,运营部分析!$J$1,'1.5-19春夏新旧品库存（更新）'!$E:$E,运营部分析!$B7,'1.5-19春夏新旧品库存（更新）'!$BI:$BI,"新品") -> 610 | T7: =SUMIFS('1.5-19春夏新旧品库存（更新）'!$BG:$BG,'1.5-19春夏新旧品库存（更新）'!$B:$B,运营部分析!$J$1,'1.5-19春夏新旧品库存（更新）'!$E:$E,运营部分析!$B7,'1.5-19春夏新旧品库存（更新）'!$BI:$BI,"新品")/10000 -> 21.765 | U7: =(SUMIFS('2.2--18春夏库存（止18年9月30日）'!$M:$M,'2.2--18春夏库存（止18年9月30日）'!$C:$C,运营部分析!$J$1,'2.2--18春夏库存（止18年9月30日）'!$A:$A,运营部分析!$B7)) -> 806 | V7: =(SUMIFS('2.2--18春夏库存（止18年9月30日）'!$P:$P,'2.2--18春夏库存（止18年9月30日）'!$C:$C,运营部分析!$J$1,'2.2--18春夏库存（止18年9月30日）'!$A:$A,运营部分析!$B7))/10000 -> 26.8494 | W7: -0.2431761787 | X7: -0.1893673602 | Y7: 0.226342711 | Z7: 0.2231537831 | AA7: =SUMIFS('2.3-18春夏调配（止18年9月30日）'!$P:$P,'2.3-18春夏调配（止18年9月30日）'!$G:$G,运营部分析!$J$1,'2.3-18春夏调配（止18年9月30日）'!$A:$A,运营部分析!$B7,'2.3-18春夏调配（止18年9月30日）'!$Z:$Z,"否",'2.3-18春夏调配（止18年9月30日）'!$AA:$AA,"是") -> 16 | AB7: =SUMIFS('2.3-18春夏调配（止18年9月30日）'!$Y:$Y,'2.3-18春夏调配（止18年9月30日）'!$G:$G,运营部分析!$J$1,'2.3-18春夏调配（止18年9月30日）'!$A:$A,运营部分析!$B7,'2.3-18春夏调配（止18年9月30日）'!$Z:$Z,"否",'2.3-18春夏调配（止18年9月30日）'!$AA:$AA,"是")/10000 -> 0.4594 | AC7: =SUMIFS('2.3-18春夏调配（止18年9月30日）'!$P:$P,'2.3-18春夏调配（止18年9月30日）'!$G:$G,运营部分析!$J$1,'2.3-18春夏调配（止18年9月30日）'!$A:$A,运营部分析!$B7,'2.3-18春夏调配（止18年9月30日）'!$Z:$Z,"是",'2.3-18春夏调配（止18年9月30日）'!$AA:$AA,"是") -> 3 | AD7: =SUMIFS('2.3-18春夏调配（止18年9月30日）'!$Y:$Y,'2.3-18春夏调配（止18年9月30日）'!$G:$G,运营部分析!$J$1,'2.3-18春夏调配（止18年9月30日）'!$A:$A,运营部分析!$B7,'2.3-18春夏调配（止18年9月30日）'!$Z:$Z,"是",'2.3-18春夏调配（止18年9月30日）'!$AA:$AA,"是")/10000 -> 0.0897 | AE7: 0.2764465225 | AF7: 0.273818555 | AG7: =IFERROR(DH7/DJ7,"") ->  | AI7: -0.1812423287 | AJ7: -0.1850304553 | AK7: =SUMIFS('2.3-18春夏调配（止18年9月30日）'!$P:$P,'2.3-18春夏调配（止18年9月30日）'!$G:$G,运营部分析!$J$1,'2.3-18春夏调配（止18年9月30日）'!$A:$A,运营部分析!$B7,'2.3-18春夏调配（止18年9月30日）'!$Z:$Z,"否") -> 168 | AL7: =SUMIFS('2.3-18春夏调配（止18年9月30日）'!$Y:$Y,'2.3-18春夏调配（止18年9月30日）'!$G:$G,运营部分析!$J$1,'2.3-18春夏调配（止18年9月30日）'!$A:$A,运营部分析!$B7,'2.3-18春夏调配（止18年9月30日）'!$Z:$Z,"否")/10000 -> 5.4392 | AM7: =SUMIFS('2.3-18春夏调配（止18年9月30日）'!$P:$P,'2.3-18春夏调配（止18年9月30日）'!$G:$G,运营部分析!$J$1,'2.3-18春夏调配（止18年9月30日）'!$A:$A,运营部分析!$B7,'2.3-18春夏调配（止18年9月30日）'!$Z:$Z,"是") -> 3 | AN7: =SUMIFS('2.3-18春夏调配（止18年9月30日）'!$Y:$Y,'2.3-18春夏调配（止18年9月30日）'!$G:$G,运营部分析!$J$1,'2.3-18春夏调配（止18年9月30日）'!$A:$A,运营部分析!$B7,'2.3-18春夏调配（止18年9月30日）'!$Z:$Z,"是")/10000 -> 0.0897 | AO7: 0.52893045 | AP7: 0.527414946 | AQ7: =SUMIFS('1.2-19春夏发货（更新）'!$K:$K,'1.2-19春夏发货（更新）'!$A:$A,运营部分析!$B7,'1.2-19春夏发货（更新）'!Q:Q,运营部分析!$J$1) -> 788 | AR7: 1.003821656 | AS7: -3 | AT7: 790 | AU7: =SUMIFS('1.6-19春夏期货订单（更新）'!$AP:$AP,'1.6-19春夏期货订单（更新）'!$A:$A,运营部分析!$B7,'1.6-19春夏期货订单（更新）'!$F:$F,运营部分析!$J$1) -> 8 | AV7: =SUMIFS('1.1-19春夏新旧品销售（更新）'!$X:$X,'1.1-19春夏新旧品销售（更新）'!$A:$A,运营部分析!$B7,'1.1-19春夏新旧品销售（更新）'!D:D,运营部分析!$J$1,'1.1-19春夏新旧品销售（更新）'!$U:$U,"月",'1.1-19春夏新旧品销售（更新）'!$AH:$AH,"新品") -> 5 | AW7: =SUMIFS('1.5-19春夏新旧品库存（更新）'!$BM:$BM,'1.5-19春夏新旧品库存（更新）'!$E:$E,运营部分析!$B7,'1.5-19春夏新旧品库存（更新）'!$B:$B,运营部分析!$J$1,'1.5-19春夏新旧品库存（更新）'!$BI:$BI,"新品") -> 8 | AX7: 0.625 | AY7: 25.41666667 | AZ7: =SUMIFS('1.1-19春夏新旧品销售（更新）'!$I:$I,'1.1-19春夏新旧品销售（更新）'!$A:$A,运营部分析!$B7,'1.1-19春夏新旧品销售（更新）'!$U:$U,"月",'1.1-19春夏新旧品销售（更新）'!$D:$D,运营部分析!$J$1,'1.1-19春夏新旧品销售（更新）'!$AH:$AH,"新品") -> 24 | BA7: =SUMIFS('1.1-19春夏新旧品销售（更新）'!$J:$J,'1.1-19春夏新旧品销售（更新）'!$A:$A,运营部分析!$B7,'1.1-19春夏新旧品销售（更新）'!$U:$U,"月",'1.1-19春夏新旧品销售（更新）'!$D:$D,运营部分析!$J$1,'1.1-19春夏新旧品销售（更新）'!$AH:$AH,"新品")/10000 -> 0.5321 | BB7: =SUMIFS('1.1-19春夏新旧品销售（更新）'!$K:$K,'1.1-19春夏新旧品销售（更新）'!$A:$A,运营部分析!$B7,'1.1-19春夏新旧品销售（更新）'!$U:$U,"月",'1.1-19春夏新旧品销售（更新）'!$D:$D,运营部分析!$J$1,'1.1-19春夏新旧品销售（更新）'!$AH:$AH,"新品")/10000 -> 1.0016 | BC7: =SUMIFS('1.1-19春夏新旧品销售（更新）'!$S:$S,'1.1-19春夏新旧品销售（更新）'!$A:$A,运营部分析!$B7,'1.1-19春夏新旧品销售（更新）'!$U:$U,"月",'1.1-19春夏新旧品销售（更新）'!$D:$D,运营部分析!$J$1,'1.1-19春夏新旧品销售（更新）'!$AH:$AH,"新品")/10000 -> 0.8466 | BD7: 1.183085282 | BE7: 221.7083333 | BF7: 0.6285140562 | BG7: =SUMIFS('2.1-18春夏销售（止18年9月30日）'!$J:$J,'2.1-18春夏销售（止18年9月30日）'!$A:$A,运营部分析!$B7,'2.1-18春夏销售（止18年9月30日）'!$D:$D,运营部分析!$J$1,'2.1-18春夏销售（止18年9月30日）'!$U:$U,"月",'2.1-18春夏销售（止18年9月30日）'!$X:$X,"新品")/10000 -> 1.01175 | BH7: =SUMIFS('2.1-18春夏销售（止18年9月30日）'!$S:$S,'2.1-18春夏销售（止18年9月30日）'!$A:$A,运营部分析!$B7,'2.1-18春夏销售（止18年9月30日）'!$D:$D,运营部分析!$J$1,'2.1-18春夏销售（止18年9月30日）'!$U:$U,"月",'2.1-18春夏销售（止18年9月30日）'!$X:$X,"新品")/10000 -> 1.3938 | BI7: 0.7258932415 | BJ7: =SUMIFS('1.1-19春夏新旧品销售（更新）'!$J:$J,'1.1-19春夏新旧品销售（更新）'!$A:$A,运营部分析!$B7,'1.1-19春夏新旧品销售（更新）'!$D:$D,运营部分析!$J$1,'1.1-19春夏新旧品销售（更新）'!$T:$T,"本周",'1.1-19春夏新旧品销售（更新）'!$AH:$AH,"新品")/10000 -> 0.0993 | BK7: =SUMIFS('1.1-19春夏新旧品销售（更新）'!$S:$S,'1.1-19春夏新旧品销售（更新）'!$A:$A,运营部分析!$B7,'1.1-19春夏新旧品销售（更新）'!$D:$D,运营部分析!$J$1,'1.1-19春夏新旧品销售（更新）'!$T:$T,"本周",'1.1-19春夏新旧品销售（更新）'!$AH:$AH,"新品")/10000 -> 0.1446 | BL7: 0.6867219917 | BM7: 0.02022115336 | BN7: 0.007441600645 | BO7: =SUMIFS('1.1-19春夏新旧品销售（更新）'!$I:$I,'1.1-19春夏新旧品销售（更新）'!$A:$A,运营部分析!#REF!,'1.1-19春夏新旧品销售（更新）'!$D:$D,运营部分析!$J$1,'1.1-19春夏新旧品销售（更新）'!$T:$T,"上上周",'1.1-19春夏新旧品销售（更新）'!$AH:$AH,"新品") -> 0 | BP7: =SUMIFS('1.1-19春夏新旧品销售（更新）'!$I:$I,'1.1-19春夏新旧品销售（更新）'!$A:$A,运营部分析!$B6,'1.1-19春夏新旧品销售（更新）'!$D:$D,运营部分析!$J$1,'1.1-19春夏新旧品销售（更新）'!$T:$T,"上周",'1.1-19春夏新旧品销售（更新）'!$AH:$AH,"新品") -> 1 | BQ7: =SUMIFS('1.1-19春夏新旧品销售（更新）'!$I:$I,'1.1-19春夏新旧品销售（更新）'!$A:$A,运营部分析!$B6,'1.1-19春夏新旧品销售（更新）'!$D:$D,运营部分析!$J$1,'1.1-19春夏新旧品销售（更新）'!$T:$T,"本周",'1.1-19春夏新旧品销售（更新）'!$AH:$AH,"新品") -> 2 | BR7: =SUMIFS('1.1-19春夏新旧品销售（更新）'!$I:$I,'1.1-19春夏新旧品销售（更新）'!$A:$A,运营部分析!$B7,'1.1-19春夏新旧品销售（更新）'!$D:$D,运营部分析!$J$1,'1.1-19春夏新旧品销售（更新）'!$U:$U,"月",'1.1-19春夏新旧品销售（更新）'!$AH:$AH,"新品") -> 24 | BS7: 0 | BT7: 1 | BU7: 0.005194805195 | BV7: 0.01277955272 | CA7: =SUMIFS('1.3-19春夏调配（更新）'!$AA:$AA,'1.3-19春夏调配（更新）'!$K:$K,运营部分析!$J$1,'1.3-19春夏调配（更新）'!$A:$A,运营部分析!$B7,'1.3-19春夏调配（更新）'!$X:$X,"<>已审核")/10000 -> 0 | CB7: =SUMIFS('1.3-19春夏调配（更新）'!$AA:$AA,'1.3-19春夏调配（更新）'!$G:$G,运营部分析!$J$1,'1.3-19春夏调配（更新）'!$A:$A,运营部分析!$B7,'1.3-19春夏调配（更新）'!$Z:$Z,"是",'1.3-19春夏调配（更新）'!$X:$X,"<>已审核")/10000 -> 0.1047 | CC7: =SUMIFS('1.3-19春夏调配（更新）'!$AA:$AA,'1.3-19春夏调配（更新）'!$G:$G,运营部分析!$J$1,'1.3-19春夏调配（更新）'!$A:$A,运营部分析!$B7,'1.3-19春夏调配（更新）'!$Z:$Z,"否",'1.3-19春夏调配（更新）'!$X:$X,"<>已审核")/10000 -> 0.2433 | CD7: =SUMIFS('1.3-19春夏调配（更新）'!$P:$P,'1.3-19春夏调配（更新）'!$K:$K,运营部分析!$J$1,'1.3-19春夏调配（更新）'!$A:$A,运营部分析!$B7,'1.3-19春夏调配（更新）'!$X:$X,"<>已审核") -> 0 | CE7: =SUMIFS('1.3-19春夏调配（更新）'!$P:$P,'1.3-19春夏调配（更新）'!$G:$G,运营部分析!$J$1,'1.3-19春夏调配（更新）'!$A:$A,运营部分析!$B7,'1.3-19春夏调配（更新）'!$Z:$Z,"是",'1.3-19春夏调配（更新）'!$X:$X,"<>已审核") -> 3 | CF7: =SUMIFS('1.3-19春夏调配（更新）'!$P:$P,'1.3-19春夏调配（更新）'!$G:$G,运营部分析!$J$1,'1.3-19春夏调配（更新）'!$A:$A,运营部分析!$B7,'1.3-19春夏调配（更新）'!$Z:$Z,"否",'1.3-19春夏调配（更新）'!$X:$X,"<>已审核") -> 7 | CG7: =SUMIFS('2.1-18春夏销售（止18年9月30日）'!$I:$I,'2.1-18春夏销售（止18年9月30日）'!$D:$D,运营部分析!$J$1,'2.1-18春夏销售（止18年9月30日）'!$V:$V,运营部分析!CG$4,'2.1-18春夏销售（止18年9月30日）'!$A:$A,运营部分析!$B7,'2.1-18春夏销售（止18年9月30日）'!$W:$W,"否",'2.1-18春夏销售（止18年9月30日）'!$X:$X,"新品") -> 0 | CH7: =SUMIFS('2.1-18春夏销售（止18年9月30日）'!$I:$I,'2.1-18春夏销售（止18年9月30日）'!$D:$D,运营部分析!$J$1,'2.1-18春夏销售（止18年9月30日）'!$V:$V,运营部分析!CH$4,'2.1-18春夏销售（止18年9月30日）'!$A:$A,运营部分析!$B7,'2.1-18春夏销售（止18年9月30日）'!$W:$W,"否",'2.1-18春夏销售（止18年9月30日）'!$X:$X,"新品") -> 0 | CI7: =SUMIFS('2.1-18春夏销售（止18年9月30日）'!$I:$I,'2.1-18春夏销售（止18年9月30日）'!$D:$D,运营部分析!$J$1,'2.1-18春夏销售（止18年9月30日）'!$V:$V,运营部分析!CI$4,'2.1-18春夏销售（止18年9月30日）'!$A:$A,运营部分析!$B7,'2.1-18春夏销售（止18年9月30日）'!$W:$W,"否",'2.1-18春夏销售（止18年9月30日）'!$X:$X,"新品") -> 0 | CJ7: =SUMIFS('2.1-18春夏销售（止18年9月30日）'!$I:$I,'2.1-18春夏销售（止18年9月30日）'!$D:$D,运营部分析!$J$1,'2.1-18春夏销售（止18年9月30日）'!$V:$V,运营部分析!CJ$4,'2.1-18春夏销售（止18年9月30日）'!$A:$A,运营部分析!$B7,'2.1-18春夏销售（止18年9月30日）'!$W:$W,"否",'2.1-18春夏销售（止18年9月30日）'!$X:$X,"新品") -> 0 | CK7: =SUMIFS('2.1-18春夏销售（止18年9月30日）'!$I:$I,'2.1-18春夏销售（止18年9月30日）'!$D:$D,运营部分析!$J$1,'2.1-18春夏销售（止18年9月30日）'!$V:$V,运营部分析!CK$4,'2.1-18春夏销售（止18年9月30日）'!$A:$A,运营部分析!$B7,'2.1-18春夏销售（止18年9月30日）'!$W:$W,"否",'2.1-18春夏销售（止18年9月30日）'!$X:$X,"新品") -> 0 | CL7: =SUMIFS('2.1-18春夏销售（止18年9月30日）'!$I:$I,'2.1-18春夏销售（止18年9月30日）'!$D:$D,运营部分析!$J$1,'2.1-18春夏销售（止18年9月30日）'!$V:$V,运营部分析!CL$4,'2.1-18春夏销售（止18年9月30日）'!$A:$A,运营部分析!$B7,'2.1-18春夏销售（止18年9月30日）'!$W:$W,"否",'2.1-18春夏销售（止18年9月30日）'!$X:$X,"新品") -> 0 | CM7: =SUMIFS('2.1-18春夏销售（止18年9月30日）'!$I:$I,'2.1-18春夏销售（止18年9月30日）'!$D:$D,运营部分析!$J$1,'2.1-18春夏销售（止18年9月30日）'!$V:$V,运营部分析!CM$4,'2.1-18春夏销售（止18年9月30日）'!$A:$A,运营部分析!$B7,'2.1-18春夏销售（止18年9月30日）'!$W:$W,"否",'2.1-18春夏销售（止18年9月30日）'!$X:$X,"新品") -> 20 | CN7: =SUMIFS('2.1-18春夏销售（止18年9月30日）'!$I:$I,'2.1-18春夏销售（止18年9月30日）'!$D:$D,运营部分析!$J$1,'2.1-18春夏销售（止18年9月30日）'!$V:$V,运营部分析!CN$4,'2.1-18春夏销售（止18年9月30日）'!$A:$A,运营部分析!$B7,'2.1-18春夏销售（止18年9月30日）'!$W:$W,"否",'2.1-18春夏销售（止18年9月30日）'!$X:$X,"新品") -> 157 | CO7: =SUMIFS('2.1-18春夏销售（止18年9月30日）'!$I:$I,'2.1-18春夏销售（止18年9月30日）'!$D:$D,运营部分析!$J$1,'2.1-18春夏销售（止18年9月30日）'!$V:$V,运营部分析!CO$4,'2.1-18春夏销售（止18年9月30日）'!$A:$A,运营部分析!$B7,'2.1-18春夏销售（止18年9月30日）'!$W:$W,"否",'2.1-18春夏销售（止18年9月30日）'!$X:$X,"新品") -> 41 | CP7: =SUMIFS('2.1-18春夏销售（止18年9月30日）'!$I:$I,'2.1-18春夏销售（止18年9月30日）'!$D:$D,运营部分析!$J$1,'2.1-18春夏销售（止18年9月30日）'!$V:$V,运营部分析!CP$4,'2.1-18春夏销售（止18年9月30日）'!$A:$A,运营部分析!$B7,'2.1-18春夏销售（止18年9月30日）'!$W:$W,"否",'2.1-18春夏销售（止18年9月30日）'!$X:$X,"新品") -> 62 | CQ7: 280 | CR7: 327 | CS7: 0.584398977 | CT7: =SUMIFS('2.1-18春夏销售（止18年9月30日）'!$S:$S,'2.1-18春夏销售（止18年9月30日）'!$D:$D,运营部分析!$J$1,'2.1-18春夏销售（止18年9月30日）'!$V:$V,运营部分析!CT$4,'2.1-18春夏销售（止18年9月30日）'!$A:$A,运营部分析!$B7,'2.1-18春夏销售（止18年9月30日）'!$W:$W,"否",'2.1-18春夏销售（止18年9月30日）'!$X:$X,"新品")/10000 -> 0 | CU7: =SUMIFS('2.1-18春夏销售（止18年9月30日）'!$S:$S,'2.1-18春夏销售（止18年9月30日）'!$D:$D,运营部分析!$J$1,'2.1-18春夏销售（止18年9月30日）'!$V:$V,运营部分析!CU$4,'2.1-18春夏销售（止18年9月30日）'!$A:$A,运营部分析!$B7,'2.1-18春夏销售（止18年9月30日）'!$W:$W,"否",'2.1-18春夏销售（止18年9月30日）'!$X:$X,"新品")/10000 -> 0 | CV7: =SUMIFS('2.1-18春夏销售（止18年9月30日）'!$S:$S,'2.1-18春夏销售（止18年9月30日）'!$D:$D,运营部分析!$J$1,'2.1-18春夏销售（止18年9月30日）'!$V:$V,运营部分析!CV$4,'2.1-18春夏销售（止18年9月30日）'!$A:$A,运营部分析!$B7,'2.1-18春夏销售（止18年9月30日）'!$W:$W,"否",'2.1-18春夏销售（止18年9月30日）'!$X:$X,"新品")/10000 -> 0 | CW7: =SUMIFS('2.1-18春夏销售（止18年9月30日）'!$S:$S,'2.1-18春夏销售（止18年9月30日）'!$D:$D,运营部分析!$J$1,'2.1-18春夏销售（止18年9月30日）'!$V:$V,运营部分析!CW$4,'2.1-18春夏销售（止18年9月30日）'!$A:$A,运营部分析!$B7,'2.1-18春夏销售（止18年9月30日）'!$W:$W,"否",'2.1-18春夏销售（止18年9月30日）'!$X:$X,"新品")/10000 -> 0 | CX7: =SUMIFS('2.1-18春夏销售（止18年9月30日）'!$S:$S,'2.1-18春夏销售（止18年9月30日）'!$D:$D,运营部分析!$J$1,'2.1-18春夏销售（止18年9月30日）'!$V:$V,运营部分析!CX$4,'2.1-18春夏销售（止18年9月30日）'!$A:$A,运营部分析!$B7,'2.1-18春夏销售（止18年9月30日）'!$W:$W,"否",'2.1-18春夏销售（止18年9月30日）'!$X:$X,"新品")/10000 -> 0 | CY7: =SUMIFS('2.1-18春夏销售（止18年9月30日）'!$S:$S,'2.1-18春夏销售（止18年9月30日）'!$D:$D,运营部分析!$J$1,'2.1-18春夏销售（止18年9月30日）'!$V:$V,运营部分析!CY$4,'2.1-18春夏销售（止18年9月30日）'!$A:$A,运营部分析!$B7,'2.1-18春夏销售（止18年9月30日）'!$W:$W,"否",'2.1-18春夏销售（止18年9月30日）'!$X:$X,"新品")/10000 -> 0 | CZ7: =SUMIFS('2.1-18春夏销售（止18年9月30日）'!$S:$S,'2.1-18春夏销售（止18年9月30日）'!$D:$D,运营部分析!$J$1,'2.1-18春夏销售（止18年9月30日）'!$V:$V,运营部分析!CZ$4,'2.1-18春夏销售（止18年9月30日）'!$A:$A,运营部分析!$B7,'2.1-18春夏销售（止18年9月30日）'!$W:$W,"否",'2.1-18春夏销售（止18年9月30日）'!$X:$X,"新品")/10000 -> 0.624 | DA7: =SUMIFS('2.1-18春夏销售（止18年9月30日）'!$S:$S,'2.1-18春夏销售（止18年9月30日）'!$D:$D,运营部分析!$J$1,'2.1-18春夏销售（止18年9月30日）'!$V:$V,运营部分析!DA$4,'2.1-18春夏销售（止18年9月30日）'!$A:$A,运营部分析!$B7,'2.1-18春夏销售（止18年9月30日）'!$W:$W,"否",'2.1-18春夏销售（止18年9月30日）'!$X:$X,"新品")/10000 -> 5.3853 | DB7: =SUMIFS('2.1-18春夏销售（止18年9月30日）'!$S:$S,'2.1-18春夏销售（止18年9月30日）'!$D:$D,运营部分析!$J$1,'2.1-18春夏销售（止18年9月30日）'!$V:$V,运营部分析!DB$4,'2.1-18春夏销售（止18年9月30日）'!$A:$A,运营部分析!$B7,'2.1-18春夏销售（止18年9月30日）'!$W:$W,"否",'2.1-18春夏销售（止18年9月30日）'!$X:$X,"新品")/10000 -> 1.3679 | DC7: =SUMIFS('2.1-18春夏销售（止18年9月30日）'!$S:$S,'2.1-18春夏销售（止18年9月30日）'!$D:$D,运营部分析!$J$1,'2.1-18春夏销售（止18年9月30日）'!$V:$V,运营部分析!DC$4,'2.1-18春夏销售（止18年9月30日）'!$A:$A,运营部分析!$B7,'2.1-18春夏销售（止18年9月30日）'!$W:$W,"否",'2.1-18春夏销售（止18年9月30日）'!$X:$X,"新品")/10000 -> 2.0508 | DD7: 9.428 | DE7: 12.1705 | DF7: 0.5622563195 | DH7: =SUMIFS('1.1-19春夏新旧品销售（更新）'!$I:$I,'1.1-19春夏新旧品销售（更新）'!$D:$D,运营部分析!$J$1,'1.1-19春夏新旧品销售（更新）'!$A:$A,运营部分析!$B7,'1.1-19春夏新旧品销售（更新）'!$AB:$AB,"新品",'1.1-19春夏新旧品销售（更新）'!$AG:$AG,"是") -> 0 | DI7: =SUMIFS('1.1-19春夏新旧品销售（更新）'!$S:$S,'1.1-19春夏新旧品销售（更新）'!$D:$D,运营部分析!$J$1,'1.1-19春夏新旧品销售（更新）'!$A:$A,运营部分析!$B7,'1.1-19春夏新旧品销售（更新）'!$AB:$AB,"新品",'1.1-19春夏新旧品销售（更新）'!$AG:$AG,"是")/10000 -> 0 | DJ7: =SUMIFS('1.6-19春夏期货订单（更新）'!$AG:$AG,'1.6-19春夏期货订单（更新）'!$F:$F,运营部分析!$J$1,'1.6-19春夏期货订单（更新）'!$A:$A,运营部分析!$B7,'1.6-19春夏期货订单（更新）'!$AQ:$AQ,"是")+SUMIFS('1.2-19春夏发货（更新）'!$K:$K,'1.2-19春夏发货（更新）'!$A:$A,运营部分析!$B7,'1.2-19春夏发货（更新）'!$Q:$Q,运营部分析!$J$1,'1.2-19春夏发货（更新）'!$T:$T,"当季补货",'1.2-19春夏发货（更新）'!$W:$W,"是")+SUMIFS('1.2-19春夏发货（更新）'!$K:$K,'1.2-19春夏发货（更新）'!$A:$A,运营部分析!$B7,'1.2-19春夏发货（更新）'!$Q:$Q,运营部分析!$J$1,'1.2-19春夏发货（更新）'!$T:$T,"往季补货",'1.2-19春夏发货（更新）'!$W:$W,"是")+SUMIFS('1.3-19春夏调配（更新）'!$P:$P,'1.3-19春夏调配（更新）'!$K:$K,运营部分析!$J$1,'1.3-19春夏调配（更新）'!$A:$A,运营部分析!$B7,'1.3-19春夏调配（更新）'!$AC:$AC,"是",'1.3-19春夏调配（更新）'!$X:$X,"<>已审核")-SUMIFS('1.3-19春夏调配（更新）'!$P:$P,'1.3-19春夏调配（更新）'!$G:$G,运营部分析!$J$1,'1.3-19春夏调配（更新）'!$A:$A,运营部分析!$B7,'1.3-19春夏调配（更新）'!$AC:$AC,"是",'1.3-19春夏调配（更新）'!$X:$X,"<>已审核") -> 0 | DK7: =SUMIFS('1.6-19春夏期货订单（更新）'!$AN:$AN,'1.6-19春夏期货订单（更新）'!$F:$F,运营部分析!$J$1,'1.6-19春夏期货订单（更新）'!$A:$A,运营部分析!$B7,'1.6-19春夏期货订单（更新）'!$AQ:$AQ,"是")/10000+SUMIFS('1.2-19春夏发货（更新）'!$U:$U,'1.2-19春夏发货（更新）'!$A:$A,运营部分析!$B7,'1.2-19春夏发货（更新）'!$Q:$Q,运营部分析!$J$1,'1.2-19春夏发货（更新）'!$T:$T,"当季补货",'1.2-19春夏发货（更新）'!$W:$W,"是")/10000+SUMIFS('1.2-19春夏发货（更新）'!$U:$U,'1.2-19春夏发货（更新）'!$A:$A,运营部分析!$B7,'1.2-19春夏发货（更新）'!$Q:$Q,运营部分析!$J$1,'1.2-19春夏发货（更新）'!$T:$T,"往季补货",'1.2-19春夏发货（更新）'!$W:$W,"是")/10000+SUMIFS('1.3-19春夏调配（更新）'!$AA:$AA,'1.3-19春夏调配（更新）'!$K:$K,运营部分析!$J$1,'1.3-19春夏调配（更新）'!$A:$A,运营部分析!$B7,'1.3-19春夏调配（更新）'!$AC:$AC,"是",'1.3-19春夏调配（更新）'!$X:$X,"<>已审核")/10000-SUMIFS('1.3-19春夏调配（更新）'!$AA:$AA,'1.3-19春夏调配（更新）'!$G:$G,运营部分析!$J$1,'1.3-19春夏调配（更新）'!$A:$A,运营部分析!$B7,'1.3-19春夏调配（更新）'!$AC:$AC,"是",'1.3-19春夏调配（更新）'!$X:$X,"<>已审核")/10000 -> 0 | DM7: 0.00895140665 | DN7: 0.008750917174
B8: 13 | C8: 休闲长衬 | E8: =SUMIFS('1.6-19春夏期货订单（更新）'!$AG:$AG,'1.6-19春夏期货订单（更新）'!$F:$F,运营部分析!$J$1,'1.6-19春夏期货订单（更新）'!$A:$A,运营部分析!$B8)+SUMIFS('1.2-19春夏发货（更新）'!$K:$K,'1.2-19春夏发货（更新）'!$A:$A,运营部分析!$B8,'1.2-19春夏发货（更新）'!$Q:$Q,运营部分析!$J$1,'1.2-19春夏发货（更新）'!$T:$T,"当季补货")+SUMIFS('1.2-19春夏发货（更新）'!$K:$K,'1.2-19春夏发货（更新）'!$A:$A,运营部分析!$B8,'1.2-19春夏发货（更新）'!$Q:$Q,运营部分析!$J$1,'1.2-19春夏发货（更新）'!$T:$T,"往季补货")+SUMIFS('1.3-19春夏调配（更新）'!$P:$P,'1.3-19春夏调配（更新）'!$K:$K,运营部分析!$J$1,'1.3-19春夏调配（更新）'!$A:$A,运营部分析!$B8)-SUMIFS('1.3-19春夏调配（更新）'!$P:$P,'1.3-19春夏调配（更新）'!$G:$G,运营部分析!$J$1,'1.3-19春夏调配（更新）'!$A:$A,运营部分析!$B8,'1.3-19春夏调配（更新）'!$Z:$Z,"是") -> 568 | F8: =SUMIFS('1.6-19春夏期货订单（更新）'!$AN:$AN,'1.6-19春夏期货订单（更新）'!$F:$F,运营部分析!$J$1,'1.6-19春夏期货订单（更新）'!$A:$A,运营部分析!$B8)/10000+SUMIFS('1.2-19春夏发货（更新）'!$U:$U,'1.2-19春夏发货（更新）'!$A:$A,运营部分析!$B8,'1.2-19春夏发货（更新）'!$Q:$Q,运营部分析!$J$1,'1.2-19春夏发货（更新）'!$T:$T,"当季补货")/10000+SUMIFS('1.2-19春夏发货（更新）'!$U:$U,'1.2-19春夏发货（更新）'!$A:$A,运营部分析!$B8,'1.2-19春夏发货（更新）'!$Q:$Q,运营部分析!$J$1,'1.2-19春夏发货（更新）'!$T:$T,"往季补货")/10000+SUMIFS('1.3-19春夏调配（更新）'!$AA:$AA,'1.3-19春夏调配（更新）'!$K:$K,运营部分析!$J$1,'1.3-19春夏调配（更新）'!$A:$A,运营部分析!$B8)/10000-SUMIFS('1.3-19春夏调配（更新）'!$AA:$AA,'1.3-19春夏调配（更新）'!$G:$G,运营部分析!$J$1,'1.3-19春夏调配（更新）'!$A:$A,运营部分析!$B8,'1.3-19春夏调配（更新）'!$Z:$Z,"是")/10000 -> 21.7762 | G8: =(SUMIFS('2.1-18春夏销售（止18年9月30日）'!$I:$I,'2.1-18春夏销售（止18年9月30日）'!$X:$X,"新品",'2.1-18春夏销售（止18年9月30日）'!$A:$A,运营部分析!$B8,'2.1-18春夏销售（止18年9月30日）'!$D:$D,运营部分析!$J$1)+SUMIFS('2.2--18春夏库存（止18年9月30日）'!$M:$M,'2.2--18春夏库存（止18年9月30日）'!$C:$C,运营部分析!$J$1,'2.2--18春夏库存（止18年9月30日）'!$A:$A,运营部分析!$B8)+SUMIFS('2.4-18春夏冬退货（止18年9月30日）'!$Q:$Q,'2.4-18春夏冬退货（止18年9月30日）'!$D:$D,运营部分析!$J$1,'2.4-18春夏冬退货（止18年9月30日）'!$A:$A,运营部分析!$B8)+SUMIFS('2.3-18春夏调配（止18年9月30日）'!$P:$P,'2.3-18春夏调配（止18年9月30日）'!$G:$G,运营部分析!$J$1,'2.3-18春夏调配（止18年9月30日）'!$A:$A,运营部分析!$B8)) -> 582 | H8: =(SUMIFS('2.1-18春夏销售（止18年9月30日）'!$S:$S,'2.1-18春夏销售（止18年9月30日）'!$X:$X,"新品",'2.1-18春夏销售（止18年9月30日）'!$A:$A,运营部分析!$B8,'2.1-18春夏销售（止18年9月30日）'!$D:$D,运营部分析!$J$1)/10000+SUMIFS('2.2--18春夏库存（止18年9月30日）'!$P:$P,'2.2--18春夏库存（止18年9月30日）'!$C:$C,运营部分析!$J$1,'2.2--18春夏库存（止18年9月30日）'!$A:$A,运营部分析!$B8)/10000+SUMIFS('2.4-18春夏冬退货（止18年9月30日）'!$T:$T,'2.4-18春夏冬退货（止18年9月30日）'!$D:$D,运营部分析!$J$1,'2.4-18春夏冬退货（止18年9月30日）'!$A:$A,运营部分析!$B8)/10000+SUMIFS('2.3-18春夏调配（止18年9月30日）'!$Y:$Y,'2.3-18春夏调配（止18年9月30日）'!$G:$G,运营部分析!$J$1,'2.3-18春夏调配（止18年9月30日）'!$A:$A,运营部分析!$B8)/10000) -> 18.8818 | I8: -0.02405498282 | J8: 0.1532904702 | K8: =SUMIFS('1.1-19春夏新旧品销售（更新）'!$I:$I,'1.1-19春夏新旧品销售（更新）'!$D:$D,运营部分析!$J$1,'1.1-19春夏新旧品销售（更新）'!$A:$A,运营部分析!$B8,'1.1-19春夏新旧品销售（更新）'!$AB:$AB,"新品") -> 128 | L8: =SUMIFS('1.1-19春夏新旧品销售（更新）'!$S:$S,'1.1-19春夏新旧品销售（更新）'!$D:$D,运营部分析!$J$1,'1.1-19春夏新旧品销售（更新）'!$A:$A,运营部分析!$B8,'1.1-19春夏新旧品销售（更新）'!$AB:$AB,"新品")/10000 -> 4.8682 | M8: =SUMIFS('2.1-18春夏销售（止18年9月30日）'!$I:$I,'2.1-18春夏销售（止18年9月30日）'!$D:$D,运营部分析!$J$1,'2.1-18春夏销售（止18年9月30日）'!$A:$A,运营部分析!$B8,'2.1-18春夏销售（止18年9月30日）'!$X:$X,"新品",'2.1-18春夏销售（止18年9月30日）'!$T:$T,"同期销售") -> 213 | N8: =SUMIFS('2.1-18春夏销售（止18年9月30日）'!$S:$S,'2.1-18春夏销售（止18年9月30日）'!$D:$D,运营部分析!$J$1,'2.1-18春夏销售（止18年9月30日）'!$A:$A,运营部分析!$B8,'2.1-18春夏销售（止18年9月30日）'!$X:$X,"新品",'2.1-18春夏销售（止18年9月30日）'!$T:$T,"同期销售")/10000 -> 6.7307 | O8: -0.3990610329 | P8: -0.2767171319 | Q8: =SUMIFS('2.1-18春夏销售（止18年9月30日）'!$I:$I,'2.1-18春夏销售（止18年9月30日）'!$D:$D,运营部分析!$J$1,'2.1-18春夏销售（止18年9月30日）'!$A:$A,运营部分析!$B8,'2.1-18春夏销售（止18年9月30日）'!$X:$X,"新品") -> 280 | R8: =SUMIFS('2.1-18春夏销售（止18年9月30日）'!$S:$S,'2.1-18春夏销售（止18年9月30日）'!$D:$D,运营部分析!$J$1,'2.1-18春夏销售（止18年9月30日）'!$A:$A,运营部分析!$B8,'2.1-18春夏销售（止18年9月30日）'!$X:$X,"新品")/10000 -> 8.92 | S8: =SUMIFS('1.5-19春夏新旧品库存（更新）'!$BF:$BF,'1.5-19春夏新旧品库存（更新）'!$B:$B,运营部分析!$J$1,'1.5-19春夏新旧品库存（更新）'!$E:$E,运营部分析!$B8,'1.5-19春夏新旧品库存（更新）'!$BI:$BI,"新品") -> 434 | T8: =SUMIFS('1.5-19春夏新旧品库存（更新）'!$BG:$BG,'1.5-19春夏新旧品库存（更新）'!$B:$B,运营部分析!$J$1,'1.5-19春夏新旧品库存（更新）'!$E:$E,运营部分析!$B8,'1.5-19春夏新旧品库存（更新）'!$BI:$BI,"新品")/10000 -> 16.6866 | U8: =(SUMIFS('2.2--18春夏库存（止18年9月30日）'!$M:$M,'2.2--18春夏库存（止18年9月30日）'!$C:$C,运营部分析!$J$1,'2.2--18春夏库存（止18年9月30日）'!$A:$A,运营部分析!$B8)) -> 294 | V8: =(SUMIFS('2.2--18春夏库存（止18年9月30日）'!$P:$P,'2.2--18春夏库存（止18年9月30日）'!$C:$C,运营部分析!$J$1,'2.2--18春夏库存（止18年9月30日）'!$A:$A,运营部分析!$B8))/10000 -> 9.7026 | W8: 0.4761904762 | X8: 0.719807062 | Y8: 0.2350877193 | Z8: 0.2329336384 | AA8: =SUMIFS('2.3-18春夏调配（止18年9月30日）'!$P:$P,'2.3-18春夏调配（止18年9月30日）'!$G:$G,运营部分析!$J$1,'2.3-18春夏调配（止18年9月30日）'!$A:$A,运营部分析!$B8,'2.3-18春夏调配（止18年9月30日）'!$Z:$Z,"否",'2.3-18春夏调配（止18年9月30日）'!$AA:$AA,"是") -> 2 | AB8: =SUMIFS('2.3-18春夏调配（止18年9月30日）'!$Y:$Y,'2.3-18春夏调配（止18年9月30日）'!$G:$G,运营部分析!$J$1,'2.3-18春夏调配（止18年9月30日）'!$A:$A,运营部分析!$B8,'2.3-18春夏调配（止18年9月30日）'!$Z:$Z,"否",'2.3-18春夏调配（止18年9月30日）'!$AA:$AA,"是")/10000 -> 0.0598 | AC8: =SUMIFS('2.3-18春夏调配（止18年9月30日）'!$P:$P,'2.3-18春夏调配（止18年9月30日）'!$G:$G,运营部分析!$J$1,'2.3-18春夏调配（止18年9月30日）'!$A:$A,运营部分析!$B8,'2.3-18春夏调配（止18年9月30日）'!$Z:$Z,"是",'2.3-18春夏调配（止18年9月30日）'!$AA:$AA,"是") -> 1 | AD8: =SUMIFS('2.3-18春夏调配（止18年9月30日）'!$Y:$Y,'2.3-18春夏调配（止18年9月30日）'!$G:$G,运营部分析!$J$1,'2.3-18春夏调配（止18年9月30日）'!$A:$A,运营部分析!$B8,'2.3-18春夏调配（止18年9月30日）'!$Z:$Z,"是",'2.3-18春夏调配（止18年9月30日）'!$AA:$AA,"是")/10000 -> 0.0299 | AE8: 0.3700516351 | AF8: 0.3602024199 | AI8: -0.3647164423 | AJ8: -0.3533257259 | AK8: =SUMIFS('2.3-18春夏调配（止18年9月30日）'!$P:$P,'2.3-18春夏调配（止18年9月30日）'!$G:$G,运营部分析!$J$1,'2.3-18春夏调配（止18年9月30日）'!$A:$A,运营部分析!$B8,'2.3-18春夏调配（止18年9月30日）'!$Z:$Z,"否") -> 7 | AL8: =SUMIFS('2.3-18春夏调配（止18年9月30日）'!$Y:$Y,'2.3-18春夏调配（止18年9月30日）'!$G:$G,运营部分析!$J$1,'2.3-18春夏调配（止18年9月30日）'!$A:$A,运营部分析!$B8,'2.3-18春夏调配（止18年9月30日）'!$Z:$Z,"否")/10000 -> 0.2293 | AM8: =SUMIFS('2.3-18春夏调配（止18年9月30日）'!$P:$P,'2.3-18春夏调配（止18年9月30日）'!$G:$G,运营部分析!$J$1,'2.3-18春夏调配（止18年9月30日）'!$A:$A,运营部分析!$B8,'2.3-18春夏调配（止18年9月30日）'!$Z:$Z,"是") -> 1 | AN8: =SUMIFS('2.3-18春夏调配（止18年9月30日）'!$Y:$Y,'2.3-18春夏调配（止18年9月30日）'!$G:$G,运营部分析!$J$1,'2.3-18春夏调配（止18年9月30日）'!$A:$A,运营部分析!$B8,'2.3-18春夏调配（止18年9月30日）'!$Z:$Z,"是")/10000 -> 0.0299 | AO8: 0.4939759036 | AP8: 0.4853250866 | AQ8: =SUMIFS('1.2-19春夏发货（更新）'!$K:$K,'1.2-19春夏发货（更新）'!$A:$A,运营部分析!$B8,'1.2-19春夏发货（更新）'!Q:Q,运营部分析!$J$1) -> 566 | AR8: 0.9964788732 | AS8: 2 | AT8: 568 | AU8: =SUMIFS('1.6-19春夏期货订单（更新）'!$AP:$AP,'1.6-19春夏期货订单（更新）'!$A:$A,运营部分析!$B8,'1.6-19春夏期货订单（更新）'!$F:$F,运营部分析!$J$1) -> 6 | AV8: =SUMIFS('1.1-19春夏新旧品销售（更新）'!$X:$X,'1.1-19春夏新旧品销售（更新）'!$A:$A,运营部分析!$B8,'1.1-19春夏新旧品销售（更新）'!D:D,运营部分析!$J$1,'1.1-19春夏新旧品销售（更新）'!$U:$U,"月",'1.1-19春夏新旧品销售（更新）'!$AH:$AH,"新品") -> 4 | AW8: =SUMIFS('1.5-19春夏新旧品库存（更新）'!$BM:$BM,'1.5-19春夏新旧品库存（更新）'!$E:$E,运营部分析!$B8,'1.5-19春夏新旧品库存（更新）'!$B:$B,运营部分析!$J$1,'1.5-19春夏新旧品库存（更新）'!$BI:$BI,"新品") -> 6 | AX8: 0.6666666667 | AY8: 25.52941176 | AZ8: =SUMIFS('1.1-19春夏新旧品销售（更新）'!$I:$I,'1.1-19春夏新旧品销售（更新）'!$A:$A,运营部分析!$B8,'1.1-19春夏新旧品销售（更新）'!$U:$U,"月",'1.1-19春夏新旧品销售（更新）'!$D:$D,运营部分析!$J$1,'1.1-19春夏新旧品销售（更新）'!$AH:$AH,"新品") -> 17 | BA8: =SUMIFS('1.1-19春夏新旧品销售（更新）'!$J:$J,'1.1-19春夏新旧品销售（更新）'!$A:$A,运营部分析!$B8,'1.1-19春夏新旧品销售（更新）'!$U:$U,"月",'1.1-19春夏新旧品销售（更新）'!$D:$D,运营部分析!$J$1,'1.1-19春夏新旧品销售（更新）'!$AH:$AH,"新品")/10000 -> 0.3892 | BB8: =SUMIFS('1.1-19春夏新旧品销售（更新）'!$K:$K,'1.1-19春夏新旧品销售（更新）'!$A:$A,运营部分析!$B8,'1.1-19春夏新旧品销售（更新）'!$U:$U,"月",'1.1-19春夏新旧品销售（更新）'!$D:$D,运营部分析!$J$1,'1.1-19春夏新旧品销售（更新）'!$AH:$AH,"新品")/10000 -> 0.7493 | BC8: =SUMIFS('1.1-19春夏新旧品销售（更新）'!$S:$S,'1.1-19春夏新旧品销售（更新）'!$A:$A,运营部分析!$B8,'1.1-19春夏新旧品销售（更新）'!$U:$U,"月",'1.1-19春夏新旧品销售（更新）'!$D:$D,运营部分析!$J$1,'1.1-19春夏新旧品销售（更新）'!$AH:$AH,"新品")/10000 -> 0.6303 | BD8: 1.188798985 | BE8: 228.9411765 | BF8: 0.6174837379 | BG8: =SUMIFS('2.1-18春夏销售（止18年9月30日）'!$J:$J,'2.1-18春夏销售（止18年9月30日）'!$A:$A,运营部分析!$B8,'2.1-18春夏销售（止18年9月30日）'!$D:$D,运营部分析!$J$1,'2.1-18春夏销售（止18年9月30日）'!$U:$U,"月",'2.1-18春夏销售（止18年9月30日）'!$X:$X,"新品")/10000 -> 0.5747 | BH8: =SUMIFS('2.1-18春夏销售（止18年9月30日）'!$S:$S,'2.1-18春夏销售（止18年9月30日）'!$A:$A,运营部分析!$B8,'2.1-18春夏销售（止18年9月30日）'!$D:$D,运营部分析!$J$1,'2.1-18春夏销售（止18年9月30日）'!$U:$U,"月",'2.1-18春夏销售（止18年9月30日）'!$X:$X,"新品")/10000 -> 0.7078 | BI8: 0.811952529 | BJ8: =SUMIFS('1.1-19春夏新旧品销售（更新）'!$J:$J,'1.1-19春夏新旧品销售（更新）'!$A:$A,运营部分析!$B8,'1.1-19春夏新旧品销售（更新）'!$D:$D,运营部分析!$J$1,'1.1-19春夏新旧品销售（更新）'!$T:$T,"本周",'1.1-19春夏新旧品销售（更新）'!$AH:$AH,"新品")/10000 -> 0.044 | BK8: =SUMIFS('1.1-19春夏新旧品销售（更新）'!$S:$S,'1.1-19春夏新旧品销售（更新）'!$A:$A,运营部分析!$B8,'1.1-19春夏新旧品销售（更新）'!$D:$D,运营部分析!$J$1,'1.1-19春夏新旧品销售（更新）'!$T:$T,"本周",'1.1-19春夏新旧品销售（更新）'!$AH:$AH,"新品")/10000 -> 0.0738 | BL8: 0.5962059621 | BM8: 0.01550297715 | BN8: 0.006450793977 | BO8: =SUMIFS('1.1-19春夏新旧品销售（更新）'!$I:$I,'1.1-19春夏新旧品销售（更新）'!$A:$A,运营部分析!#REF!,'1.1-19春夏新旧品销售（更新）'!$D:$D,运营部分析!$J$1,'1.1-19春夏新旧品销售（更新）'!$T:$T,"上上周",'1.1-19春夏新旧品销售（更新）'!$AH:$AH,"新品") -> 0 | BP8: =SUMIFS('1.1-19春夏新旧品销售（更新）'!$I:$I,'1.1-19春夏新旧品销售（更新）'!$A:$A,运营部分析!$B7,'1.1-19春夏新旧品销售（更新）'!$D:$D,运营部分析!$J$1,'1.1-19春夏新旧品销售（更新）'!$T:$T,"上周",'1.1-19春夏新旧品销售（更新）'!$AH:$AH,"新品") -> 5 | BQ8: =SUMIFS('1.1-19春夏新旧品销售（更新）'!$I:$I,'1.1-19春夏新旧品销售（更新）'!$A:$A,运营部分析!$B7,'1.1-19春夏新旧品销售（更新）'!$D:$D,运营部分析!$J$1,'1.1-19春夏新旧品销售（更新）'!$T:$T,"本周",'1.1-19春夏新旧品销售（更新）'!$AH:$AH,"新品") -> 4 | BR8: =SUMIFS('1.1-19春夏新旧品销售（更新）'!$I:$I,'1.1-19春夏新旧品销售（更新）'!$A:$A,运营部分析!$B8,'1.1-19春夏新旧品销售（更新）'!$D:$D,运营部分析!$J$1,'1.1-19春夏新旧品销售（更新）'!$U:$U,"月",'1.1-19春夏新旧品销售（更新）'!$AH:$AH,"新品") -> 17 | BS8: 0 | BT8: -0.2 | BU8: 0.01038961039 | BV8: 0.009052183174 | CA8: =SUMIFS('1.3-19春夏调配（更新）'!$AA:$AA,'1.3-19春夏调配（更新）'!$K:$K,运营部分析!$J$1,'1.3-19春夏调配（更新）'!$A:$A,运营部分析!$B8,'1.3-19春夏调配（更新）'!$X:$X,"<>已审核")/10000 -> 0.0738 | CB8: =SUMIFS('1.3-19春夏调配（更新）'!$AA:$AA,'1.3-19春夏调配（更新）'!$G:$G,运营部分析!$J$1,'1.3-19春夏调配（更新）'!$A:$A,运营部分析!$B8,'1.3-19春夏调配（更新）'!$Z:$Z,"是",'1.3-19春夏调配（更新）'!$X:$X,"<>已审核")/10000 -> 0 | CC8: =SUMIFS('1.3-19春夏调配（更新）'!$AA:$AA,'1.3-19春夏调配（更新）'!$G:$G,运营部分析!$J$1,'1.3-19春夏调配（更新）'!$A:$A,运营部分析!$B8,'1.3-19春夏调配（更新）'!$Z:$Z,"否",'1.3-19春夏调配（更新）'!$X:$X,"<>已审核")/10000 -> 0.2214 | CD8: =SUMIFS('1.3-19春夏调配（更新）'!$P:$P,'1.3-19春夏调配（更新）'!$K:$K,运营部分析!$J$1,'1.3-19春夏调配（更新）'!$A:$A,运营部分析!$B8,'1.3-19春夏调配（更新）'!$X:$X,"<>已审核") -> 2 | CE8: =SUMIFS('1.3-19春夏调配（更新）'!$P:$P,'1.3-19春夏调配（更新）'!$G:$G,运营部分析!$J$1,'1.3-19春夏调配（更新）'!$A:$A,运营部分析!$B8,'1.3-19春夏调配（更新）'!$Z:$Z,"是",'1.3-19春夏调配（更新）'!$X:$X,"<>已审核") -> 0 | CF8: =SUMIFS('1.3-19春夏调配（更新）'!$P:$P,'1.3-19春夏调配（更新）'!$G:$G,运营部分析!$J$1,'1.3-19春夏调配（更新）'!$A:$A,运营部分析!$B8,'1.3-19春夏调配（更新）'!$Z:$Z,"否",'1.3-19春夏调配（更新）'!$X:$X,"<>已审核") -> 6 | CG8: =SUMIFS('2.1-18春夏销售（止18年9月30日）'!$I:$I,'2.1-18春夏销售（止18年9月30日）'!$D:$D,运营部分析!$J$1,'2.1-18春夏销售（止18年9月30日）'!$V:$V,运营部分析!CG$4,'2.1-18春夏销售（止18年9月30日）'!$A:$A,运营部分析!$B8,'2.1-18春夏销售（止18年9月30日）'!$W:$W,"否",'2.1-18春夏销售（止18年9月30日）'!$X:$X,"新品") -> 0 | CH8: =SUMIFS('2.1-18春夏销售（止18年9月30日）'!$I:$I,'2.1-18春夏销售（止18年9月30日）'!$D:$D,运营部分析!$J$1,'2.1-18春夏销售（止18年9月30日）'!$V:$V,运营部分析!CH$4,'2.1-18春夏销售（止18年9月30日）'!$A:$A,运营部分析!$B8,'2.1-18春夏销售（止18年9月30日）'!$W:$W,"否",'2.1-18春夏销售（止18年9月30日）'!$X:$X,"新品") -> 0 | CI8: =SUMIFS('2.1-18春夏销售（止18年9月30日）'!$I:$I,'2.1-18春夏销售（止18年9月30日）'!$D:$D,运营部分析!$J$1,'2.1-18春夏销售（止18年9月30日）'!$V:$V,运营部分析!CI$4,'2.1-18春夏销售（止18年9月30日）'!$A:$A,运营部分析!$B8,'2.1-18春夏销售（止18年9月30日）'!$W:$W,"否",'2.1-18春夏销售（止18年9月30日）'!$X:$X,"新品") -> 0 | CJ8: =SUMIFS('2.1-18春夏销售（止18年9月30日）'!$I:$I,'2.1-18春夏销售（止18年9月30日）'!$D:$D,运营部分析!$J$1,'2.1-18春夏销售（止18年9月30日）'!$V:$V,运营部分析!CJ$4,'2.1-18春夏销售（止18年9月30日）'!$A:$A,运营部分析!$B8,'2.1-18春夏销售（止18年9月30日）'!$W:$W,"否",'2.1-18春夏销售（止18年9月30日）'!$X:$X,"新品") -> 0 | CK8: =SUMIFS('2.1-18春夏销售（止18年9月30日）'!$I:$I,'2.1-18春夏销售（止18年9月30日）'!$D:$D,运营部分析!$J$1,'2.1-18春夏销售（止18年9月30日）'!$V:$V,运营部分析!CK$4,'2.1-18春夏销售（止18年9月30日）'!$A:$A,运营部分析!$B8,'2.1-18春夏销售（止18年9月30日）'!$W:$W,"否",'2.1-18春夏销售（止18年9月30日）'!$X:$X,"新品") -> 0 | CL8: =SUMIFS('2.1-18春夏销售（止18年9月30日）'!$I:$I,'2.1-18春夏销售（止18年9月30日）'!$D:$D,运营部分析!$J$1,'2.1-18春夏销售（止18年9月30日）'!$V:$V,运营部分析!CL$4,'2.1-18春夏销售（止18年9月30日）'!$A:$A,运营部分析!$B8,'2.1-18春夏销售（止18年9月30日）'!$W:$W,"否",'2.1-18春夏销售（止18年9月30日）'!$X:$X,"新品") -> 0 | CM8: =SUMIFS('2.1-18春夏销售（止18年9月30日）'!$I:$I,'2.1-18春夏销售（止18年9月30日）'!$D:$D,运营部分析!$J$1,'2.1-18春夏销售（止18年9月30日）'!$V:$V,运营部分析!CM$4,'2.1-18春夏销售（止18年9月30日）'!$A:$A,运营部分析!$B8,'2.1-18春夏销售（止18年9月30日）'!$W:$W,"否",'2.1-18春夏销售（止18年9月30日）'!$X:$X,"新品") -> 7 | CN8: =SUMIFS('2.1-18春夏销售（止18年9月30日）'!$I:$I,'2.1-18春夏销售（止18年9月30日）'!$D:$D,运营部分析!$J$1,'2.1-18春夏销售（止18年9月30日）'!$V:$V,运营部分析!CN$4,'2.1-18春夏销售（止18年9月30日）'!$A:$A,运营部分析!$B8,'2.1-18春夏销售（止18年9月30日）'!$W:$W,"否",'2.1-18春夏销售（止18年9月30日）'!$X:$X,"新品") -> 34 | CO8: =SUMIFS('2.1-18春夏销售（止18年9月30日）'!$I:$I,'2.1-18春夏销售（止18年9月30日）'!$D:$D,运营部分析!$J$1,'2.1-18春夏销售（止18年9月30日）'!$V:$V,运营部分析!CO$4,'2.1-18春夏销售（止18年9月30日）'!$A:$A,运营部分析!$B8,'2.1-18春夏销售（止18年9月30日）'!$W:$W,"否",'2.1-18春夏销售（止18年9月30日）'!$X:$X,"新品") -> 15 | CP8: =SUMIFS('2.1-18春夏销售（止18年9月30日）'!$I:$I,'2.1-18春夏销售（止18年9月30日）'!$D:$D,运营部分析!$J$1,'2.1-18春夏销售（止18年9月30日）'!$V:$V,运营部分析!CP$4,'2.1-18春夏销售（止18年9月30日）'!$A:$A,运营部分析!$B8,'2.1-18春夏销售（止18年9月30日）'!$W:$W,"否",'2.1-18春夏销售（止18年9月30日）'!$X:$X,"新品") -> 11 | CQ8: 67 | CR8: 369 | CS8: 0.3526315789 | CT8: =SUMIFS('2.1-18春夏销售（止18年9月30日）'!$S:$S,'2.1-18春夏销售（止18年9月30日）'!$D:$D,运营部分析!$J$1,'2.1-18春夏销售（止18年9月30日）'!$V:$V,运营部分析!CT$4,'2.1-18春夏销售（止18年9月30日）'!$A:$A,运营部分析!$B8,'2.1-18春夏销售（止18年9月30日）'!$W:$W,"否",'2.1-18春夏销售（止18年9月30日）'!$X:$X,"新品")/10000 -> 0 | CU8: =SUMIFS('2.1-18春夏销售（止18年9月30日）'!$S:$S,'2.1-18春夏销售（止18年9月30日）'!$D:$D,运营部分析!$J$1,'2.1-18春夏销售（止18年9月30日）'!$V:$V,运营部分析!CU$4,'2.1-18春夏销售（止18年9月30日）'!$A:$A,运营部分析!$B8,'2.1-18春夏销售（止18年9月30日）'!$W:$W,"否",'2.1-18春夏销售（止18年9月30日）'!$X:$X,"新品")/10000 -> 0 | CV8: =SUMIFS('2.1-18春夏销售（止18年9月30日）'!$S:$S,'2.1-18春夏销售（止18年9月30日）'!$D:$D,运营部分析!$J$1,'2.1-18春夏销售（止18年9月30日）'!$V:$V,运营部分析!CV$4,'2.1-18春夏销售（止18年9月30日）'!$A:$A,运营部分析!$B8,'2.1-18春夏销售（止18年9月30日）'!$W:$W,"否",'2.1-18春夏销售（止18年9月30日）'!$X:$X,"新品")/10000 -> 0 | CW8: =SUMIFS('2.1-18春夏销售（止18年9月30日）'!$S:$S,'2.1-18春夏销售（止18年9月30日）'!$D:$D,运营部分析!$J$1,'2.1-18春夏销售（止18年9月30日）'!$V:$V,运营部分析!CW$4,'2.1-18春夏销售（止18年9月30日）'!$A:$A,运营部分析!$B8,'2.1-18春夏销售（止18年9月30日）'!$W:$W,"否",'2.1-18春夏销售（止18年9月30日）'!$X:$X,"新品")/10000 -> 0 | CX8: =SUMIFS('2.1-18春夏销售（止18年9月30日）'!$S:$S,'2.1-18春夏销售（止18年9月30日）'!$D:$D,运营部分析!$J$1,'2.1-18春夏销售（止18年9月30日）'!$V:$V,运营部分析!CX$4,'2.1-18春夏销售（止18年9月30日）'!$A:$A,运营部分析!$B8,'2.1-18春夏销售（止18年9月30日）'!$W:$W,"否",'2.1-18春夏销售（止18年9月30日）'!$X:$X,"新品")/10000 -> 0 | CY8: =SUMIFS('2.1-18春夏销售（止18年9月30日）'!$S:$S,'2.1-18春夏销售（止18年9月30日）'!$D:$D,运营部分析!$J$1,'2.1-18春夏销售（止18年9月30日）'!$V:$V,运营部分析!CY$4,'2.1-18春夏销售（止18年9月30日）'!$A:$A,运营部分析!$B8,'2.1-18春夏销售（止18年9月30日）'!$W:$W,"否",'2.1-18春夏销售（止18年9月30日）'!$X:$X,"新品")/10000 -> 0 | CZ8: =SUMIFS('2.1-18春夏销售（止18年9月30日）'!$S:$S,'2.1-18春夏销售（止18年9月30日）'!$D:$D,运营部分析!$J$1,'2.1-18春夏销售（止18年9月30日）'!$V:$V,运营部分析!CZ$4,'2.1-18春夏销售（止18年9月30日）'!$A:$A,运营部分析!$B8,'2.1-18春夏销售（止18年9月30日）'!$W:$W,"否",'2.1-18春夏销售（止18年9月30日）'!$X:$X,"新品")/10000 -> 0.2313 | DA8: =SUMIFS('2.1-18春夏销售（止18年9月30日）'!$S:$S,'2.1-18春夏销售（止18年9月30日）'!$D:$D,运营部分析!$J$1,'2.1-18春夏销售（止18年9月30日）'!$V:$V,运营部分析!DA$4,'2.1-18春夏销售（止18年9月30日）'!$A:$A,运营部分析!$B8,'2.1-18春夏销售（止18年9月30日）'!$W:$W,"否",'2.1-18春夏销售（止18年9月30日）'!$X:$X,"新品")/10000 -> 1.1046 | DB8: =SUMIFS('2.1-18春夏销售（止18年9月30日）'!$S:$S,'2.1-18春夏销售（止18年9月30日）'!$D:$D,运营部分析!$J$1,'2.1-18春夏销售（止18年9月30日）'!$V:$V,运营部分析!DB$4,'2.1-18春夏销售（止18年9月30日）'!$A:$A,运营部分析!$B8,'2.1-18春夏销售（止18年9月30日）'!$W:$W,"否",'2.1-18春夏销售（止18年9月30日）'!$X:$X,"新品")/10000 -> 0.4965 | DC8: =SUMIFS('2.1-18春夏销售（止18年9月30日）'!$S:$S,'2.1-18春夏销售（止18年9月30日）'!$D:$D,运营部分析!$J$1,'2.1-18春夏销售（止18年9月30日）'!$V:$V,运营部分析!DC$4,'2.1-18春夏销售（止18年9月30日）'!$A:$A,运营部分析!$B8,'2.1-18春夏销售（止18年9月30日）'!$W:$W,"否",'2.1-18春夏销售（止18年9月30日）'!$X:$X,"新品")/10000 -> 0.3569 | DD8: 2.1893 | DE8: 14.5711 | DF8: 0.3331304348 | DH8: =SUMIFS('1.1-19春夏新旧品销售（更新）'!$I:$I,'1.1-19春夏新旧品销售（更新）'!$D:$D,运营部分析!$J$1,'1.1-19春夏新旧品销售（更新）'!$A:$A,运营部分析!$B8,'1.1-19春夏新旧品销售（更新）'!$AB:$AB,"新品",'1.1-19春夏新旧品销售（更新）'!$AG:$AG,"是") -> 0 | DI8: =SUMIFS('1.1-19春夏新旧品销售（更新）'!$S:$S,'1.1-19春夏新旧品销售（更新）'!$D:$D,运营部分析!$J$1,'1.1-19春夏新旧品销售（更新）'!$A:$A,运营部分析!$B8,'1.1-19春夏新旧品销售（更新）'!$AB:$AB,"新品",'1.1-19春夏新旧品销售（更新）'!$AG:$AG,"是")/10000 -> 0 | DJ8: =SUMIFS('1.6-19春夏期货订单（更新）'!$AG:$AG,'1.6-19春夏期货订单（更新）'!$F:$F,运营部分析!$J$1,'1.6-19春夏期货订单（更新）'!$A:$A,运营部分析!$B8,'1.6-19春夏期货订单（更新）'!$AQ:$AQ,"是")+SUMIFS('1.2-19春夏发货（更新）'!$K:$K,'1.2-19春夏发货（更新）'!$A:$A,运营部分析!$B8,'1.2-19春夏发货（更新）'!$Q:$Q,运营部分析!$J$1,'1.2-19春夏发货（更新）'!$T:$T,"当季补货",'1.2-19春夏发货（更新）'!$W:$W,"是")+SUMIFS('1.2-19春夏发货（更新）'!$K:$K,'1.2-19春夏发货（更新）'!$A:$A,运营部分析!$B8,'1.2-19春夏发货（更新）'!$Q:$Q,运营部分析!$J$1,'1.2-19春夏发货（更新）'!$T:$T,"往季补货",'1.2-19春夏发货（更新）'!$W:$W,"是")+SUMIFS('1.3-19春夏调配（更新）'!$P:$P,'1.3-19春夏调配（更新）'!$K:$K,运营部分析!$J$1,'1.3-19春夏调配（更新）'!$A:$A,运营部分析!$B8,'1.3-19春夏调配（更新）'!$AC:$AC,"是",'1.3-19春夏调配（更新）'!$X:$X,"<>已审核")-SUMIFS('1.3-19春夏调配（更新）'!$P:$P,'1.3-19春夏调配（更新）'!$G:$G,运营部分析!$J$1,'1.3-19春夏调配（更新）'!$A:$A,运营部分析!$B8,'1.3-19春夏调配（更新）'!$AC:$AC,"是",'1.3-19春夏调配（更新）'!$X:$X,"<>已审核") -> 0 | DK8: =SUMIFS('1.6-19春夏期货订单（更新）'!$AN:$AN,'1.6-19春夏期货订单（更新）'!$F:$F,运营部分析!$J$1,'1.6-19春夏期货订单（更新）'!$A:$A,运营部分析!$B8,'1.6-19春夏期货订单（更新）'!$AQ:$AQ,"是")/10000+SUMIFS('1.2-19春夏发货（更新）'!$U:$U,'1.2-19春夏发货（更新）'!$A:$A,运营部分析!$B8,'1.2-19春夏发货（更新）'!$Q:$Q,运营部分析!$J$1,'1.2-19春夏发货（更新）'!$T:$T,"当季补货",'1.2-19春夏发货（更新）'!$W:$W,"是")/10000+SUMIFS('1.2-19春夏发货（更新）'!$U:$U,'1.2-19春夏发货（更新）'!$A:$A,运营部分析!$B8,'1.2-19春夏发货（更新）'!$Q:$Q,运营部分析!$J$1,'1.2-19春夏发货（更新）'!$T:$T,"往季补货",'1.2-19春夏发货（更新）'!$W:$W,"是")/10000+SUMIFS('1.3-19春夏调配（更新）'!$AA:$AA,'1.3-19春夏调配（更新）'!$K:$K,运营部分析!$J$1,'1.3-19春夏调配（更新）'!$A:$A,运营部分析!$B8,'1.3-19春夏调配（更新）'!$AC:$AC,"是",'1.3-19春夏调配（更新）'!$X:$X,"<>已审核")/10000-SUMIFS('1.3-19春夏调配（更新）'!$AA:$AA,'1.3-19春夏调配（更新）'!$G:$G,运营部分析!$J$1,'1.3-19春夏调配（更新）'!$A:$A,运营部分析!$B8,'1.3-19春夏调配（更新）'!$AC:$AC,"是",'1.3-19春夏调配（更新）'!$X:$X,"<>已审核")/10000 -> 0 | DM8: 0.01052631579 | DN8: 0.01013272311
B9: 89 | C9: 针织长衬 | E9: =SUMIFS('1.6-19春夏期货订单（更新）'!$AG:$AG,'1.6-19春夏期货订单（更新）'!$F:$F,运营部分析!$J$1,'1.6-19春夏期货订单（更新）'!$A:$A,运营部分析!$B9)+SUMIFS('1.2-19春夏发货（更新）'!$K:$K,'1.2-19春夏发货（更新）'!$A:$A,运营部分析!$B9,'1.2-19春夏发货（更新）'!$Q:$Q,运营部分析!$J$1,'1.2-19春夏发货（更新）'!$T:$T,"当季补货")+SUMIFS('1.2-19春夏发货（更新）'!$K:$K,'1.2-19春夏发货（更新）'!$A:$A,运营部分析!$B9,'1.2-19春夏发货（更新）'!$Q:$Q,运营部分析!$J$1,'1.2-19春夏发货（更新）'!$T:$T,"往季补货")+SUMIFS('1.3-19春夏调配（更新）'!$P:$P,'1.3-19春夏调配（更新）'!$K:$K,运营部分析!$J$1,'1.3-19春夏调配（更新）'!$A:$A,运营部分析!$B9)-SUMIFS('1.3-19春夏调配（更新）'!$P:$P,'1.3-19春夏调配（更新）'!$G:$G,运营部分析!$J$1,'1.3-19春夏调配（更新）'!$A:$A,运营部分析!$B9,'1.3-19春夏调配（更新）'!$Z:$Z,"是") -> 0 | F9: =SUMIFS('1.6-19春夏期货订单（更新）'!$AN:$AN,'1.6-19春夏期货订单（更新）'!$F:$F,运营部分析!$J$1,'1.6-19春夏期货订单（更新）'!$A:$A,运营部分析!$B9)/10000+SUMIFS('1.2-19春夏发货（更新）'!$U:$U,'1.2-19春夏发货（更新）'!$A:$A,运营部分析!$B9,'1.2-19春夏发货（更新）'!$Q:$Q,运营部分析!$J$1,'1.2-19春夏发货（更新）'!$T:$T,"当季补货")/10000+SUMIFS('1.2-19春夏发货（更新）'!$U:$U,'1.2-19春夏发货（更新）'!$A:$A,运营部分析!$B9,'1.2-19春夏发货（更新）'!$Q:$Q,运营部分析!$J$1,'1.2-19春夏发货（更新）'!$T:$T,"往季补货")/10000+SUMIFS('1.3-19春夏调配（更新）'!$AA:$AA,'1.3-19春夏调配（更新）'!$K:$K,运营部分析!$J$1,'1.3-19春夏调配（更新）'!$A:$A,运营部分析!$B9)/10000-SUMIFS('1.3-19春夏调配（更新）'!$AA:$AA,'1.3-19春夏调配（更新）'!$G:$G,运营部分析!$J$1,'1.3-19春夏调配（更新）'!$A:$A,运营部分析!$B9,'1.3-19春夏调配（更新）'!$Z:$Z,"是")/10000 -> 0 | G9: =(SUMIFS('2.1-18春夏销售（止18年9月30日）'!$I:$I,'2.1-18春夏销售（止18年9月30日）'!$X:$X,"新品",'2.1-18春夏销售（止18年9月30日）'!$A:$A,运营部分析!$B9,'2.1-18春夏销售（止18年9月30日）'!$D:$D,运营部分析!$J$1)+SUMIFS('2.2--18春夏库存（止18年9月30日）'!$M:$M,'2.2--18春夏库存（止18年9月30日）'!$C:$C,运营部分析!$J$1,'2.2--18春夏库存（止18年9月30日）'!$A:$A,运营部分析!$B9)+SUMIFS('2.4-18春夏冬退货（止18年9月30日）'!$Q:$Q,'2.4-18春夏冬退货（止18年9月30日）'!$D:$D,运营部分析!$J$1,'2.4-18春夏冬退货（止18年9月30日）'!$A:$A,运营部分析!$B9)+SUMIFS('2.3-18春夏调配（止18年9月30日）'!$P:$P,'2.3-18春夏调配（止18年9月30日）'!$G:$G,运营部分析!$J$1,'2.3-18春夏调配（止18年9月30日）'!$A:$A,运营部分析!$B9)) -> 0 | H9: =(SUMIFS('2.1-18春夏销售（止18年9月30日）'!$S:$S,'2.1-18春夏销售（止18年9月30日）'!$X:$X,"新品",'2.1-18春夏销售（止18年9月30日）'!$A:$A,运营部分析!$B9,'2.1-18春夏销售（止18年9月30日）'!$D:$D,运营部分析!$J$1)/10000+SUMIFS('2.2--18春夏库存（止18年9月30日）'!$P:$P,'2.2--18春夏库存（止18年9月30日）'!$C:$C,运营部分析!$J$1,'2.2--18春夏库存（止18年9月30日）'!$A:$A,运营部分析!$B9)/10000+SUMIFS('2.4-18春夏冬退货（止18年9月30日）'!$T:$T,'2.4-18春夏冬退货（止18年9月30日）'!$D:$D,运营部分析!$J$1,'2.4-18春夏冬退货（止18年9月30日）'!$A:$A,运营部分析!$B9)/10000+SUMIFS('2.3-18春夏调配（止18年9月30日）'!$Y:$Y,'2.3-18春夏调配（止18年9月30日）'!$G:$G,运营部分析!$J$1,'2.3-18春夏调配（止18年9月30日）'!$A:$A,运营部分析!$B9)/10000) -> 0 | I9: 0 | J9: 0 | K9: =SUMIFS('1.1-19春夏新旧品销售（更新）'!$I:$I,'1.1-19春夏新旧品销售（更新）'!$D:$D,运营部分析!$J$1,'1.1-19春夏新旧品销售（更新）'!$A:$A,运营部分析!$B9,'1.1-19春夏新旧品销售（更新）'!$AB:$AB,"新品") -> 0 | L9: =SUMIFS('1.1-19春夏新旧品销售（更新）'!$S:$S,'1.1-19春夏新旧品销售（更新）'!$D:$D,运营部分析!$J$1,'1.1-19春夏新旧品销售（更新）'!$A:$A,运营部分析!$B9,'1.1-19春夏新旧品销售（更新）'!$AB:$AB,"新品")/10000 -> 0 | M9: =SUMIFS('2.1-18春夏销售（止18年9月30日）'!$I:$I,'2.1-18春夏销售（止18年9月30日）'!$D:$D,运营部分析!$J$1,'2.1-18春夏销售（止18年9月30日）'!$A:$A,运营部分析!$B9,'2.1-18春夏销售（止18年9月30日）'!$X:$X,"新品",'2.1-18春夏销售（止18年9月30日）'!$T:$T,"同期销售") -> 0 | N9: =SUMIFS('2.1-18春夏销售（止18年9月30日）'!$S:$S,'2.1-18春夏销售（止18年9月30日）'!$D:$D,运营部分析!$J$1,'2.1-18春夏销售（止18年9月30日）'!$A:$A,运营部分析!$B9,'2.1-18春夏销售（止18年9月30日）'!$X:$X,"新品",'2.1-18春夏销售（止18年9月30日）'!$T:$T,"同期销售")/10000 -> 0 | O9: 0 | P9: 0 | Q9: =SUMIFS('2.1-18春夏销售（止18年9月30日）'!$I:$I,'2.1-18春夏销售（止18年9月30日）'!$D:$D,运营部分析!$J$1,'2.1-18春夏销售（止18年9月30日）'!$A:$A,运营部分析!$B9,'2.1-18春夏销售（止18年9月30日）'!$X:$X,"新品") -> 0 | R9: =SUMIFS('2.1-18春夏销售（止18年9月30日）'!$S:$S,'2.1-18春夏销售（止18年9月30日）'!$D:$D,运营部分析!$J$1,'2.1-18春夏销售（止18年9月30日）'!$A:$A,运营部分析!$B9,'2.1-18春夏销售（止18年9月30日）'!$X:$X,"新品")/10000 -> 0 | S9: =SUMIFS('1.5-19春夏新旧品库存（更新）'!$BF:$BF,'1.5-19春夏新旧品库存（更新）'!$B:$B,运营部分析!$J$1,'1.5-19春夏新旧品库存（更新）'!$E:$E,运营部分析!$B9,'1.5-19春夏新旧品库存（更新）'!$BI:$BI,"新品") -> 0 | T9: =SUMIFS('1.5-19春夏新旧品库存（更新）'!$BG:$BG,'1.5-19春夏新旧品库存（更新）'!$B:$B,运营部分析!$J$1,'1.5-19春夏新旧品库存（更新）'!$E:$E,运营部分析!$B9,'1.5-19春夏新旧品库存（更新）'!$BI:$BI,"新品")/10000 -> 0 | U9: =(SUMIFS('2.2--18春夏库存（止18年9月30日）'!$M:$M,'2.2--18春夏库存（止18年9月30日）'!$C:$C,运营部分析!$J$1,'2.2--18春夏库存（止18年9月30日）'!$A:$A,运营部分析!$B9)) -> 0 | V9: =(SUMIFS('2.2--18春夏库存（止18年9月30日）'!$P:$P,'2.2--18春夏库存（止18年9月30日）'!$C:$C,运营部分析!$J$1,'2.2--18春夏库存（止18年9月30日）'!$A:$A,运营部分析!$B9))/10000 -> 0 | W9: 0 | X9: 0 | AA9: =SUMIFS('2.3-18春夏调配（止18年9月30日）'!$P:$P,'2.3-18春夏调配（止18年9月30日）'!$G:$G,运营部分析!$J$1,'2.3-18春夏调配（止18年9月30日）'!$A:$A,运营部分析!$B9,'2.3-18春夏调配（止18年9月30日）'!$Z:$Z,"否",'2.3-18春夏调配（止18年9月30日）'!$AA:$AA,"是") -> 0 | AB9: =SUMIFS('2.3-18春夏调配（止18年9月30日）'!$Y:$Y,'2.3-18春夏调配（止18年9月30日）'!$G:$G,运营部分析!$J$1,'2.3-18春夏调配（止18年9月30日）'!$A:$A,运营部分析!$B9,'2.3-18春夏调配（止18年9月30日）'!$Z:$Z,"否",'2.3-18春夏调配（止18年9月30日）'!$AA:$AA,"是")/10000 -> 0 | AC9: =SUMIFS('2.3-18春夏调配（止18年9月30日）'!$P:$P,'2.3-18春夏调配（止18年9月30日）'!$G:$G,运营部分析!$J$1,'2.3-18春夏调配（止18年9月30日）'!$A:$A,运营部分析!$B9,'2.3-18春夏调配（止18年9月30日）'!$Z:$Z,"是",'2.3-18春夏调配（止18年9月30日）'!$AA:$AA,"是") -> 0 | AD9: =SUMIFS('2.3-18春夏调配（止18年9月30日）'!$Y:$Y,'2.3-18春夏调配（止18年9月30日）'!$G:$G,运营部分析!$J$1,'2.3-18春夏调配（止18年9月30日）'!$A:$A,运营部分析!$B9,'2.3-18春夏调配（止18年9月30日）'!$Z:$Z,"是",'2.3-18春夏调配（止18年9月30日）'!$AA:$AA,"是")/10000 -> 0 | AK9: =SUMIFS('2.3-18春夏调配（止18年9月30日）'!$P:$P,'2.3-18春夏调配（止18年9月30日）'!$G:$G,运营部分析!$J$1,'2.3-18春夏调配（止18年9月30日）'!$A:$A,运营部分析!$B9,'2.3-18春夏调配（止18年9月30日）'!$Z:$Z,"否") -> 0 | AL9: =SUMIFS('2.3-18春夏调配（止18年9月30日）'!$Y:$Y,'2.3-18春夏调配（止18年9月30日）'!$G:$G,运营部分析!$J$1,'2.3-18春夏调配（止18年9月30日）'!$A:$A,运营部分析!$B9,'2.3-18春夏调配（止18年9月30日）'!$Z:$Z,"否")/10000 -> 0 | AM9: =SUMIFS('2.3-18春夏调配（止18年9月30日）'!$P:$P,'2.3-18春夏调配（止18年9月30日）'!$G:$G,运营部分析!$J$1,'2.3-18春夏调配（止18年9月30日）'!$A:$A,运营部分析!$B9,'2.3-18春夏调配（止18年9月30日）'!$Z:$Z,"是") -> 0 | AN9: =SUMIFS('2.3-18春夏调配（止18年9月30日）'!$Y:$Y,'2.3-18春夏调配（止18年9月30日）'!$G:$G,运营部分析!$J$1,'2.3-18春夏调配（止18年9月30日）'!$A:$A,运营部分析!$B9,'2.3-18春夏调配（止18年9月30日）'!$Z:$Z,"是")/10000 -> 0 | AQ9: =SUMIFS('1.2-19春夏发货（更新）'!$K:$K,'1.2-19春夏发货（更新）'!$A:$A,运营部分析!$B9,'1.2-19春夏发货（更新）'!Q:Q,运营部分析!$J$1) -> 0 | AS9: 0 | AT9: 0 | AU9: =SUMIFS('1.6-19春夏期货订单（更新）'!$AP:$AP,'1.6-19春夏期货订单（更新）'!$A:$A,运营部分析!$B9,'1.6-19春夏期货订单（更新）'!$F:$F,运营部分析!$J$1) -> 0 | AV9: =SUMIFS('1.1-19春夏新旧品销售（更新）'!$X:$X,'1.1-19春夏新旧品销售（更新）'!$A:$A,运营部分析!$B9,'1.1-19春夏新旧品销售（更新）'!D:D,运营部分析!$J$1,'1.1-19春夏新旧品销售（更新）'!$U:$U,"月",'1.1-19春夏新旧品销售（更新）'!$AH:$AH,"新品") -> 0 | AW9: =SUMIFS('1.5-19春夏新旧品库存（更新）'!$BM:$BM,'1.5-19春夏新旧品库存（更新）'!$E:$E,运营部分析!$B9,'1.5-19春夏新旧品库存（更新）'!$B:$B,运营部分析!$J$1,'1.5-19春夏新旧品库存（更新）'!$BI:$BI,"新品") -> 0 | AX9: 0 | AY9: 0 | AZ9: =SUMIFS('1.1-19春夏新旧品销售（更新）'!$I:$I,'1.1-19春夏新旧品销售（更新）'!$A:$A,运营部分析!$B9,'1.1-19春夏新旧品销售（更新）'!$U:$U,"月",'1.1-19春夏新旧品销售（更新）'!$D:$D,运营部分析!$J$1,'1.1-19春夏新旧品销售（更新）'!$AH:$AH,"新品") -> 0 | BA9: =SUMIFS('1.1-19春夏新旧品销售（更新）'!$J:$J,'1.1-19春夏新旧品销售（更新）'!$A:$A,运营部分析!$B9,'1.1-19春夏新旧品销售（更新）'!$U:$U,"月",'1.1-19春夏新旧品销售（更新）'!$D:$D,运营部分析!$J$1,'1.1-19春夏新旧品销售（更新）'!$AH:$AH,"新品")/10000 -> 0 | BB9: =SUMIFS('1.1-19春夏新旧品销售（更新）'!$K:$K,'1.1-19春夏新旧品销售（更新）'!$A:$A,运营部分析!$B9,'1.1-19春夏新旧品销售（更新）'!$U:$U,"月",'1.1-19春夏新旧品销售（更新）'!$D:$D,运营部分析!$J$1,'1.1-19春夏新旧品销售（更新）'!$AH:$AH,"新品")/10000 -> 0 | BC9: =SUMIFS('1.1-19春夏新旧品销售（更新）'!$S:$S,'1.1-19春夏新旧品销售（更新）'!$A:$A,运营部分析!$B9,'1.1-19春夏新旧品销售（更新）'!$U:$U,"月",'1.1-19春夏新旧品销售（更新）'!$D:$D,运营部分析!$J$1,'1.1-19春夏新旧品销售（更新）'!$AH:$AH,"新品")/10000 -> 0 | BE9: 0 | BF9: 0 | BG9: =SUMIFS('2.1-18春夏销售（止18年9月30日）'!$J:$J,'2.1-18春夏销售（止18年9月30日）'!$A:$A,运营部分析!$B9,'2.1-18春夏销售（止18年9月30日）'!$D:$D,运营部分析!$J$1,'2.1-18春夏销售（止18年9月30日）'!$U:$U,"月",'2.1-18春夏销售（止18年9月30日）'!$X:$X,"新品")/10000 -> 0 | BH9: =SUMIFS('2.1-18春夏销售（止18年9月30日）'!$S:$S,'2.1-18春夏销售（止18年9月30日）'!$A:$A,运营部分析!$B9,'2.1-18春夏销售（止18年9月30日）'!$D:$D,运营部分析!$J$1,'2.1-18春夏销售（止18年9月30日）'!$U:$U,"月",'2.1-18春夏销售（止18年9月30日）'!$X:$X,"新品")/10000 -> 0 | BI9: 0 | BJ9: =SUMIFS('1.1-19春夏新旧品销售（更新）'!$J:$J,'1.1-19春夏新旧品销售（更新）'!$A:$A,运营部分析!$B9,'1.1-19春夏新旧品销售（更新）'!$D:$D,运营部分析!$J$1,'1.1-19春夏新旧品销售（更新）'!$T:$T,"本周",'1.1-19春夏新旧品销售（更新）'!$AH:$AH,"新品")/10000 -> 0 | BK9: =SUMIFS('1.1-19春夏新旧品销售（更新）'!$S:$S,'1.1-19春夏新旧品销售（更新）'!$A:$A,运营部分析!$B9,'1.1-19春夏新旧品销售（更新）'!$D:$D,运营部分析!$J$1,'1.1-19春夏新旧品销售（更新）'!$T:$T,"本周",'1.1-19春夏新旧品销售（更新）'!$AH:$AH,"新品")/10000 -> 0 | BL9: 0 | BM9: 0 | BN9: 0 | BO9: =SUMIFS('1.1-19春夏新旧品销售（更新）'!$I:$I,'1.1-19春夏新旧品销售（更新）'!$A:$A,运营部分析!#REF!,'1.1-19春夏新旧品销售（更新）'!$D:$D,运营部分析!$J$1,'1.1-19春夏新旧品销售（更新）'!$T:$T,"上上周",'1.1-19春夏新旧品销售（更新）'!$AH:$AH,"新品") -> 0 | BP9: =SUMIFS('1.1-19春夏新旧品销售（更新）'!$I:$I,'1.1-19春夏新旧品销售（更新）'!$A:$A,运营部分析!$B8,'1.1-19春夏新旧品销售（更新）'!$D:$D,运营部分析!$J$1,'1.1-19春夏新旧品销售（更新）'!$T:$T,"上周",'1.1-19春夏新旧品销售（更新）'!$AH:$AH,"新品") -> 3 | BQ9: =SUMIFS('1.1-19春夏新旧品销售（更新）'!$I:$I,'1.1-19春夏新旧品销售（更新）'!$A:$A,运营部分析!$B8,'1.1-19春夏新旧品销售（更新）'!$D:$D,运营部分析!$J$1,'1.1-19春夏新旧品销售（更新）'!$T:$T,"本周",'1.1-19春夏新旧品销售（更新）'!$AH:$AH,"新品") -> 2 | BR9: =SUMIFS('1.1-19春夏新旧品销售（更新）'!$I:$I,'1.1-19春夏新旧品销售（更新）'!$A:$A,运营部分析!$B9,'1.1-19春夏新旧品销售（更新）'!$D:$D,运营部分析!$J$1,'1.1-19春夏新旧品销售（更新）'!$U:$U,"月",'1.1-19春夏新旧品销售（更新）'!$AH:$AH,"新品") -> 0 | BS9: 0 | BT9: -0.3333333333 | BU9: 0.005194805195 | BV9: 0 | CA9: =SUMIFS('1.3-19春夏调配（更新）'!$AA:$AA,'1.3-19春夏调配（更新）'!$K:$K,运营部分析!$J$1,'1.3-19春夏调配（更新）'!$A:$A,运营部分析!$B9,'1.3-19春夏调配（更新）'!$X:$X,"<>已审核")/10000 -> 0 | CB9: =SUMIFS('1.3-19春夏调配（更新）'!$AA:$AA,'1.3-19春夏调配（更新）'!$G:$G,运营部分析!$J$1,'1.3-19春夏调配（更新）'!$A:$A,运营部分析!$B9,'1.3-19春夏调配（更新）'!$Z:$Z,"是",'1.3-19春夏调配（更新）'!$X:$X,"<>已审核")/10000 -> 0 | CC9: =SUMIFS('1.3-19春夏调配（更新）'!$AA:$AA,'1.3-19春夏调配（更新）'!$G:$G,运营部分析!$J$1,'1.3-19春夏调配（更新）'!$A:$A,运营部分析!$B9,'1.3-19春夏调配（更新）'!$Z:$Z,"否",'1.3-19春夏调配（更新）'!$X:$X,"<>已审核")/10000 -> 0 | CD9: =SUMIFS('1.3-19春夏调配（更新）'!$P:$P,'1.3-19春夏调配（更新）'!$K:$K,运营部分析!$J$1,'1.3-19春夏调配（更新）'!$A:$A,运营部分析!$B9,'1.3-19春夏调配（更新）'!$X:$X,"<>已审核") -> 0 | CE9: =SUMIFS('1.3-19春夏调配（更新）'!$P:$P,'1.3-19春夏调配（更新）'!$G:$G,运营部分析!$J$1,'1.3-19春夏调配（更新）'!$A:$A,运营部分析!$B9,'1.3-19春夏调配（更新）'!$Z:$Z,"是",'1.3-19春夏调配（更新）'!$X:$X,"<>已审核") -> 0 | CF9: =SUMIFS('1.3-19春夏调配（更新）'!$P:$P,'1.3-19春夏调配（更新）'!$G:$G,运营部分析!$J$1,'1.3-19春夏调配（更新）'!$A:$A,运营部分析!$B9,'1.3-19春夏调配（更新）'!$Z:$Z,"否",'1.3-19春夏调配（更新）'!$X:$X,"<>已审核") -> 0 | CG9: =SUMIFS('2.1-18春夏销售（止18年9月30日）'!$I:$I,'2.1-18春夏销售（止18年9月30日）'!$D:$D,运营部分析!$J$1,'2.1-18春夏销售（止18年9月30日）'!$V:$V,运营部分析!CG$4,'2.1-18春夏销售（止18年9月30日）'!$A:$A,运营部分析!$B9,'2.1-18春夏销售（止18年9月30日）'!$W:$W,"否",'2.1-18春夏销售（止18年9月30日）'!$X:$X,"新品") -> 0 | CH9: =SUMIFS('2.1-18春夏销售（止18年9月30日）'!$I:$I,'2.1-18春夏销售（止18年9月30日）'!$D:$D,运营部分析!$J$1,'2.1-18春夏销售（止18年9月30日）'!$V:$V,运营部分析!CH$4,'2.1-18春夏销售（止18年9月30日）'!$A:$A,运营部分析!$B9,'2.1-18春夏销售（止18年9月30日）'!$W:$W,"否",'2.1-18春夏销售（止18年9月30日）'!$X:$X,"新品") -> 0 | CI9: =SUMIFS('2.1-18春夏销售（止18年9月30日）'!$I:$I,'2.1-18春夏销售（止18年9月30日）'!$D:$D,运营部分析!$J$1,'2.1-18春夏销售（止18年9月30日）'!$V:$V,运营部分析!CI$4,'2.1-18春夏销售（止18年9月30日）'!$A:$A,运营部分析!$B9,'2.1-18春夏销售（止18年9月30日）'!$W:$W,"否",'2.1-18春夏销售（止18年9月30日）'!$X:$X,"新品") -> 0 | CJ9: =SUMIFS('2.1-18春夏销售（止18年9月30日）'!$I:$I,'2.1-18春夏销售（止18年9月30日）'!$D:$D,运营部分析!$J$1,'2.1-18春夏销售（止18年9月30日）'!$V:$V,运营部分析!CJ$4,'2.1-18春夏销售（止18年9月30日）'!$A:$A,运营部分析!$B9,'2.1-18春夏销售（止18年9月30日）'!$W:$W,"否",'2.1-18春夏销售（止18年9月30日）'!$X:$X,"新品") -> 0 | CK9: =SUMIFS('2.1-18春夏销售（止18年9月30日）'!$I:$I,'2.1-18春夏销售（止18年9月30日）'!$D:$D,运营部分析!$J$1,'2.1-18春夏销售（止18年9月30日）'!$V:$V,运营部分析!CK$4,'2.1-18春夏销售（止18年9月30日）'!$A:$A,运营部分析!$B9,'2.1-18春夏销售（止18年9月30日）'!$W:$W,"否",'2.1-18春夏销售（止18年9月30日）'!$X:$X,"新品") -> 0 | CL9: =SUMIFS('2.1-18春夏销售（止18年9月30日）'!$I:$I,'2.1-18春夏销售（止18年9月30日）'!$D:$D,运营部分析!$J$1,'2.1-18春夏销售（止18年9月30日）'!$V:$V,运营部分析!CL$4,'2.1-18春夏销售（止18年9月30日）'!$A:$A,运营部分析!$B9,'2.1-18春夏销售（止18年9月30日）'!$W:$W,"否",'2.1-18春夏销售（止18年9月30日）'!$X:$X,"新品") -> 0 | CM9: =SUMIFS('2.1-18春夏销售（止18年9月30日）'!$I:$I,'2.1-18春夏销售（止18年9月30日）'!$D:$D,运营部分析!$J$1,'2.1-18春夏销售（止18年9月30日）'!$V:$V,运营部分析!CM$4,'2.1-18春夏销售（止18年9月30日）'!$A:$A,运营部分析!$B9,'2.1-18春夏销售（止18年9月30日）'!$W:$W,"否",'2.1-18春夏销售（止18年9月30日）'!$X:$X,"新品") -> 0 | CN9: =SUMIFS('2.1-18春夏销售（止18年9月30日）'!$I:$I,'2.1-18春夏销售（止18年9月30日）'!$D:$D,运营部分析!$J$1,'2.1-18春夏销售（止18年9月30日）'!$V:$V,运营部分析!CN$4,'2.1-18春夏销售（止18年9月30日）'!$A:$A,运营部分析!$B9,'2.1-18春夏销售（止18年9月30日）'!$W:$W,"否",'2.1-18春夏销售（止18年9月30日）'!$X:$X,"新品") -> 0 | CO9: =SUMIFS('2.1-18春夏销售（止18年9月30日）'!$I:$I,'2.1-18春夏销售（止18年9月30日）'!$D:$D,运营部分析!$J$1,'2.1-18春夏销售（止18年9月30日）'!$V:$V,运营部分析!CO$4,'2.1-18春夏销售（止18年9月30日）'!$A:$A,运营部分析!$B9,'2.1-18春夏销售（止18年9月30日）'!$W:$W,"否",'2.1-18春夏销售（止18年9月30日）'!$X:$X,"新品") -> 0 | CP9: =SUMIFS('2.1-18春夏销售（止18年9月30日）'!$I:$I,'2.1-18春夏销售（止18年9月30日）'!$D:$D,运营部分析!$J$1,'2.1-18春夏销售（止18年9月30日）'!$V:$V,运营部分析!CP$4,'2.1-18春夏销售（止18年9月30日）'!$A:$A,运营部分析!$B9,'2.1-18春夏销售（止18年9月30日）'!$W:$W,"否",'2.1-18春夏销售（止18年9月30日）'!$X:$X,"新品") -> 0 | CQ9: 0 | CR9: 0 | CT9: =SUMIFS('2.1-18春夏销售（止18年9月30日）'!$S:$S,'2.1-18春夏销售（止18年9月30日）'!$D:$D,运营部分析!$J$1,'2.1-18春夏销售（止18年9月30日）'!$V:$V,运营部分析!CT$4,'2.1-18春夏销售（止18年9月30日）'!$A:$A,运营部分析!$B9,'2.1-18春夏销售（止18年9月30日）'!$W:$W,"否",'2.1-18春夏销售（止18年9月30日）'!$X:$X,"新品")/10000 -> 0 | CU9: =SUMIFS('2.1-18春夏销售（止18年9月30日）'!$S:$S,'2.1-18春夏销售（止18年9月30日）'!$D:$D,运营部分析!$J$1,'2.1-18春夏销售（止18年9月30日）'!$V:$V,运营部分析!CU$4,'2.1-18春夏销售（止18年9月30日）'!$A:$A,运营部分析!$B9,'2.1-18春夏销售（止18年9月30日）'!$W:$W,"否",'2.1-18春夏销售（止18年9月30日）'!$X:$X,"新品")/10000 -> 0 | CV9: =SUMIFS('2.1-18春夏销售（止18年9月30日）'!$S:$S,'2.1-18春夏销售（止18年9月30日）'!$D:$D,运营部分析!$J$1,'2.1-18春夏销售（止18年9月30日）'!$V:$V,运营部分析!CV$4,'2.1-18春夏销售（止18年9月30日）'!$A:$A,运营部分析!$B9,'2.1-18春夏销售（止18年9月30日）'!$W:$W,"否",'2.1-18春夏销售（止18年9月30日）'!$X:$X,"新品")/10000 -> 0 | CW9: =SUMIFS('2.1-18春夏销售（止18年9月30日）'!$S:$S,'2.1-18春夏销售（止18年9月30日）'!$D:$D,运营部分析!$J$1,'2.1-18春夏销售（止18年9月30日）'!$V:$V,运营部分析!CW$4,'2.1-18春夏销售（止18年9月30日）'!$A:$A,运营部分析!$B9,'2.1-18春夏销售（止18年9月30日）'!$W:$W,"否",'2.1-18春夏销售（止18年9月30日）'!$X:$X,"新品")/10000 -> 0 | CX9: =SUMIFS('2.1-18春夏销售（止18年9月30日）'!$S:$S,'2.1-18春夏销售（止18年9月30日）'!$D:$D,运营部分析!$J$1,'2.1-18春夏销售（止18年9月30日）'!$V:$V,运营部分析!CX$4,'2.1-18春夏销售（止18年9月30日）'!$A:$A,运营部分析!$B9,'2.1-18春夏销售（止18年9月30日）'!$W:$W,"否",'2.1-18春夏销售（止18年9月30日）'!$X:$X,"新品")/10000 -> 0 | CY9: =SUMIFS('2.1-18春夏销售（止18年9月30日）'!$S:$S,'2.1-18春夏销售（止18年9月30日）'!$D:$D,运营部分析!$J$1,'2.1-18春夏销售（止18年9月30日）'!$V:$V,运营部分析!CY$4,'2.1-18春夏销售（止18年9月30日）'!$A:$A,运营部分析!$B9,'2.1-18春夏销售（止18年9月30日）'!$W:$W,"否",'2.1-18春夏销售（止18年9月30日）'!$X:$X,"新品")/10000 -> 0 | CZ9: =SUMIFS('2.1-18春夏销售（止18年9月30日）'!$S:$S,'2.1-18春夏销售（止18年9月30日）'!$D:$D,运营部分析!$J$1,'2.1-18春夏销售（止18年9月30日）'!$V:$V,运营部分析!CZ$4,'2.1-18春夏销售（止18年9月30日）'!$A:$A,运营部分析!$B9,'2.1-18春夏销售（止18年9月30日）'!$W:$W,"否",'2.1-18春夏销售（止18年9月30日）'!$X:$X,"新品")/10000 -> 0 | DA9: =SUMIFS('2.1-18春夏销售（止18年9月30日）'!$S:$S,'2.1-18春夏销售（止18年9月30日）'!$D:$D,运营部分析!$J$1,'2.1-18春夏销售（止18年9月30日）'!$V:$V,运营部分析!DA$4,'2.1-18春夏销售（止18年9月30日）'!$A:$A,运营部分析!$B9,'2.1-18春夏销售（止18年9月30日）'!$W:$W,"否",'2.1-18春夏销售（止18年9月30日）'!$X:$X,"新品")/10000 -> 0 | DB9: =SUMIFS('2.1-18春夏销售（止18年9月30日）'!$S:$S,'2.1-18春夏销售（止18年9月30日）'!$D:$D,运营部分析!$J$1,'2.1-18春夏销售（止18年9月30日）'!$V:$V,运营部分析!DB$4,'2.1-18春夏销售（止18年9月30日）'!$A:$A,运营部分析!$B9,'2.1-18春夏销售（止18年9月30日）'!$W:$W,"否",'2.1-18春夏销售（止18年9月30日）'!$X:$X,"新品")/10000 -> 0 | DC9: =SUMIFS('2.1-18春夏销售（止18年9月30日）'!$S:$S,'2.1-18春夏销售（止18年9月30日）'!$D:$D,运营部分析!$J$1,'2.1-18春夏销售（止18年9月30日）'!$V:$V,运营部分析!DC$4,'2.1-18春夏销售（止18年9月30日）'!$A:$A,运营部分析!$B9,'2.1-18春夏销售（止18年9月30日）'!$W:$W,"否",'2.1-18春夏销售（止18年9月30日）'!$X:$X,"新品")/10000 -> 0 | DD9: 0 | DE9: 0 | DH9: =SUMIFS('1.1-19春夏新旧品销售（更新）'!$I:$I,'1.1-19春夏新旧品销售（更新）'!$D:$D,运营部分析!$J$1,'1.1-19春夏新旧品销售（更新）'!$A:$A,运营部分析!$B9,'1.1-19春夏新旧品销售（更新）'!$AB:$AB,"新品",'1.1-19春夏新旧品销售（更新）'!$AG:$AG,"是") -> 0 | DI9: =SUMIFS('1.1-19春夏新旧品销售（更新）'!$S:$S,'1.1-19春夏新旧品销售（更新）'!$D:$D,运营部分析!$J$1,'1.1-19春夏新旧品销售（更新）'!$A:$A,运营部分析!$B9,'1.1-19春夏新旧品销售（更新）'!$AB:$AB,"新品",'1.1-19春夏新旧品销售（更新）'!$AG:$AG,"是")/10000 -> 0 | DJ9: =SUMIFS('1.6-19春夏期货订单（更新）'!$AG:$AG,'1.6-19春夏期货订单（更新）'!$F:$F,运营部分析!$J$1,'1.6-19春夏期货订单（更新）'!$A:$A,运营部分析!$B9,'1.6-19春夏期货订单（更新）'!$AQ:$AQ,"是")+SUMIFS('1.2-19春夏发货（更新）'!$K:$K,'1.2-19春夏发货（更新）'!$A:$A,运营部分析!$B9,'1.2-19春夏发货（更新）'!$Q:$Q,运营部分析!$J$1,'1.2-19春夏发货（更新）'!$T:$T,"当季补货",'1.2-19春夏发货（更新）'!$W:$W,"是")+SUMIFS('1.2-19春夏发货（更新）'!$K:$K,'1.2-19春夏发货（更新）'!$A:$A,运营部分析!$B9,'1.2-19春夏发货（更新）'!$Q:$Q,运营部分析!$J$1,'1.2-19春夏发货（更新）'!$T:$T,"往季补货",'1.2-19春夏发货（更新）'!$W:$W,"是")+SUMIFS('1.3-19春夏调配（更新）'!$P:$P,'1.3-19春夏调配（更新）'!$K:$K,运营部分析!$J$1,'1.3-19春夏调配（更新）'!$A:$A,运营部分析!$B9,'1.3-19春夏调配（更新）'!$AC:$AC,"是",'1.3-19春夏调配（更新）'!$X:$X,"<>已审核")-SUMIFS('1.3-19春夏调配（更新）'!$P:$P,'1.3-19春夏调配（更新）'!$G:$G,运营部分析!$J$1,'1.3-19春夏调配（更新）'!$A:$A,运营部分析!$B9,'1.3-19春夏调配（更新）'!$AC:$AC,"是",'1.3-19春夏调配（更新）'!$X:$X,"<>已审核") -> 0 | DK9: =SUMIFS('1.6-19春夏期货订单（更新）'!$AN:$AN,'1.6-19春夏期货订单（更新）'!$F:$F,运营部分析!$J$1,'1.6-19春夏期货订单（更新）'!$A:$A,运营部分析!$B9,'1.6-19春夏期货订单（更新）'!$AQ:$AQ,"是")/10000+SUMIFS('1.2-19春夏发货（更新）'!$U:$U,'1.2-19春夏发货（更新）'!$A:$A,运营部分析!$B9,'1.2-19春夏发货（更新）'!$Q:$Q,运营部分析!$J$1,'1.2-19春夏发货（更新）'!$T:$T,"当季补货",'1.2-19春夏发货（更新）'!$W:$W,"是")/10000+SUMIFS('1.2-19春夏发货（更新）'!$U:$U,'1.2-19春夏发货（更新）'!$A:$A,运营部分析!$B9,'1.2-19春夏发货（更新）'!$Q:$Q,运营部分析!$J$1,'1.2-19春夏发货（更新）'!$T:$T,"往季补货",'1.2-19春夏发货（更新）'!$W:$W,"是")/10000+SUMIFS('1.3-19春夏调配（更新）'!$AA:$AA,'1.3-19春夏调配（更新）'!$K:$K,运营部分析!$J$1,'1.3-19春夏调配（更新）'!$A:$A,运营部分析!$B9,'1.3-19春夏调配（更新）'!$AC:$AC,"是",'1.3-19春夏调配（更新）'!$X:$X,"<>已审核")/10000-SUMIFS('1.3-19春夏调配（更新）'!$AA:$AA,'1.3-19春夏调配（更新）'!$G:$G,运营部分析!$J$1,'1.3-19春夏调配（更新）'!$A:$A,运营部分析!$B9,'1.3-19春夏调配（更新）'!$AC:$AC,"是",'1.3-19春夏调配（更新）'!$X:$X,"<>已审核")/10000 -> 0
A10: 毛衫 | B10: 92 | C10: 毛衫 | E10: =SUMIFS('1.6-19春夏期货订单（更新）'!$AG:$AG,'1.6-19春夏期货订单（更新）'!$F:$F,运营部分析!$J$1,'1.6-19春夏期货订单（更新）'!$A:$A,运营部分析!$B10)+SUMIFS('1.2-19春夏发货（更新）'!$K:$K,'1.2-19春夏发货（更新）'!$A:$A,运营部分析!$B10,'1.2-19春夏发货（更新）'!$Q:$Q,运营部分析!$J$1,'1.2-19春夏发货（更新）'!$T:$T,"当季补货")+SUMIFS('1.2-19春夏发货（更新）'!$K:$K,'1.2-19春夏发货（更新）'!$A:$A,运营部分析!$B10,'1.2-19春夏发货（更新）'!$Q:$Q,运营部分析!$J$1,'1.2-19春夏发货（更新）'!$T:$T,"往季补货")+SUMIFS('1.3-19春夏调配（更新）'!$P:$P,'1.3-19春夏调配（更新）'!$K:$K,运营部分析!$J$1,'1.3-19春夏调配（更新）'!$A:$A,运营部分析!$B10)-SUMIFS('1.3-19春夏调配（更新）'!$P:$P,'1.3-19春夏调配（更新）'!$G:$G,运营部分析!$J$1,'1.3-19春夏调配（更新）'!$A:$A,运营部分析!$B10,'1.3-19春夏调配（更新）'!$Z:$Z,"是") -> 156 | F10: =SUMIFS('1.6-19春夏期货订单（更新）'!$AN:$AN,'1.6-19春夏期货订单（更新）'!$F:$F,运营部分析!$J$1,'1.6-19春夏期货订单（更新）'!$A:$A,运营部分析!$B10)/10000+SUMIFS('1.2-19春夏发货（更新）'!$U:$U,'1.2-19春夏发货（更新）'!$A:$A,运营部分析!$B10,'1.2-19春夏发货（更新）'!$Q:$Q,运营部分析!$J$1,'1.2-19春夏发货（更新）'!$T:$T,"当季补货")/10000+SUMIFS('1.2-19春夏发货（更新）'!$U:$U,'1.2-19春夏发货（更新）'!$A:$A,运营部分析!$B10,'1.2-19春夏发货（更新）'!$Q:$Q,运营部分析!$J$1,'1.2-19春夏发货（更新）'!$T:$T,"往季补货")/10000+SUMIFS('1.3-19春夏调配（更新）'!$AA:$AA,'1.3-19春夏调配（更新）'!$K:$K,运营部分析!$J$1,'1.3-19春夏调配（更新）'!$A:$A,运营部分析!$B10)/10000-SUMIFS('1.3-19春夏调配（更新）'!$AA:$AA,'1.3-19春夏调配（更新）'!$G:$G,运营部分析!$J$1,'1.3-19春夏调配（更新）'!$A:$A,运营部分析!$B10,'1.3-19春夏调配（更新）'!$Z:$Z,"是")/10000 -> 8.3364 | G10: =(SUMIFS('2.1-18春夏销售（止18年9月30日）'!$I:$I,'2.1-18春夏销售（止18年9月30日）'!$X:$X,"新品",'2.1-18春夏销售（止18年9月30日）'!$A:$A,运营部分析!$B10,'2.1-18春夏销售（止18年9月30日）'!$D:$D,运营部分析!$J$1)+SUMIFS('2.2--18春夏库存（止18年9月30日）'!$M:$M,'2.2--18春夏库存（止18年9月30日）'!$C:$C,运营部分析!$J$1,'2.2--18春夏库存（止18年9月30日）'!$A:$A,运营部分析!$B10)+SUMIFS('2.4-18春夏冬退货（止18年9月30日）'!$Q:$Q,'2.4-18春夏冬退货（止18年9月30日）'!$D:$D,运营部分析!$J$1,'2.4-18春夏冬退货（止18年9月30日）'!$A:$A,运营部分析!$B10)+SUMIFS('2.3-18春夏调配（止18年9月30日）'!$P:$P,'2.3-18春夏调配（止18年9月30日）'!$G:$G,运营部分析!$J$1,'2.3-18春夏调配（止18年9月30日）'!$A:$A,运营部分析!$B10)) -> 14 | H10: =(SUMIFS('2.1-18春夏销售（止18年9月30日）'!$S:$S,'2.1-18春夏销售（止18年9月30日）'!$X:$X,"新品",'2.1-18春夏销售（止18年9月30日）'!$A:$A,运营部分析!$B10,'2.1-18春夏销售（止18年9月30日）'!$D:$D,运营部分析!$J$1)/10000+SUMIFS('2.2--18春夏库存（止18年9月30日）'!$P:$P,'2.2--18春夏库存（止18年9月30日）'!$C:$C,运营部分析!$J$1,'2.2--18春夏库存（止18年9月30日）'!$A:$A,运营部分析!$B10)/10000+SUMIFS('2.4-18春夏冬退货（止18年9月30日）'!$T:$T,'2.4-18春夏冬退货（止18年9月30日）'!$D:$D,运营部分析!$J$1,'2.4-18春夏冬退货（止18年9月30日）'!$A:$A,运营部分析!$B10)/10000+SUMIFS('2.3-18春夏调配（止18年9月30日）'!$Y:$Y,'2.3-18春夏调配（止18年9月30日）'!$G:$G,运营部分析!$J$1,'2.3-18春夏调配（止18年9月30日）'!$A:$A,运营部分析!$B10)/10000) -> 0.8386 | I10: 10.14285714 | J10: 8.940853804 | K10: =SUMIFS('1.1-19春夏新旧品销售（更新）'!$I:$I,'1.1-19春夏新旧品销售（更新）'!$D:$D,运营部分析!$J$1,'1.1-19春夏新旧品销售（更新）'!$A:$A,运营部分析!$B10,'1.1-19春夏新旧品销售（更新）'!$AB:$AB,"新品") -> 46 | L10: =SUMIFS('1.1-19春夏新旧品销售（更新）'!$S:$S,'1.1-19春夏新旧品销售（更新）'!$D:$D,运营部分析!$J$1,'1.1-19春夏新旧品销售（更新）'!$A:$A,运营部分析!$B10,'1.1-19春夏新旧品销售（更新）'!$AB:$AB,"新品")/10000 -> 2.4434 | M10: =SUMIFS('2.1-18春夏销售（止18年9月30日）'!$I:$I,'2.1-18春夏销售（止18年9月30日）'!$D:$D,运营部分析!$J$1,'2.1-18春夏销售（止18年9月30日）'!$A:$A,运营部分析!$B10,'2.1-18春夏销售（止18年9月30日）'!$X:$X,"新品",'2.1-18春夏销售（止18年9月30日）'!$T:$T,"同期销售") -> 4 | N10: =SUMIFS('2.1-18春夏销售（止18年9月30日）'!$S:$S,'2.1-18春夏销售（止18年9月30日）'!$D:$D,运营部分析!$J$1,'2.1-18春夏销售（止18年9月30日）'!$A:$A,运营部分析!$B10,'2.1-18春夏销售（止18年9月30日）'!$X:$X,"新品",'2.1-18春夏销售（止18年9月30日）'!$T:$T,"同期销售")/10000 -> 0.2396 | O10: 10.5 | P10: 9.197829716 | Q10: =SUMIFS('2.1-18春夏销售（止18年9月30日）'!$I:$I,'2.1-18春夏销售（止18年9月30日）'!$D:$D,运营部分析!$J$1,'2.1-18春夏销售（止18年9月30日）'!$A:$A,运营部分析!$B10,'2.1-18春夏销售（止18年9月30日）'!$X:$X,"新品") -> 4 | R10: =SUMIFS('2.1-18春夏销售（止18年9月30日）'!$S:$S,'2.1-18春夏销售（止18年9月30日）'!$D:$D,运营部分析!$J$1,'2.1-18春夏销售（止18年9月30日）'!$A:$A,运营部分析!$B10,'2.1-18春夏销售（止18年9月30日）'!$X:$X,"新品")/10000 -> 0.2396 | S10: =SUMIFS('1.5-19春夏新旧品库存（更新）'!$BF:$BF,'1.5-19春夏新旧品库存（更新）'!$B:$B,运营部分析!$J$1,'1.5-19春夏新旧品库存（更新）'!$E:$E,运营部分析!$B10,'1.5-19春夏新旧品库存（更新）'!$BI:$BI,"新品") -> 106 | T10: =SUMIFS('1.5-19春夏新旧品库存（更新）'!$BG:$BG,'1.5-19春夏新旧品库存（更新）'!$B:$B,运营部分析!$J$1,'1.5-19春夏新旧品库存（更新）'!$E:$E,运营部分析!$B10,'1.5-19春夏新旧品库存（更新）'!$BI:$BI,"新品")/10000 -> 5.6854 | U10: =(SUMIFS('2.2--18春夏库存（止18年9月30日）'!$M:$M,'2.2--18春夏库存（止18年9月30日）'!$C:$C,运营部分析!$J$1,'2.2--18春夏库存（止18年9月30日）'!$A:$A,运营部分析!$B10)) -> 10 | V10: =(SUMIFS('2.2--18春夏库存（止18年9月30日）'!$P:$P,'2.2--18春夏库存（止18年9月30日）'!$C:$C,运营部分析!$J$1,'2.2--18春夏库存（止18年9月30日）'!$A:$A,运营部分析!$B10))/10000 -> 0.599 | W10: 9.6 | X10: 8.49148581 | Y10: 0.3225806452 | Z10: 0.3200724419 | AA10: =SUMIFS('2.3-18春夏调配（止18年9月30日）'!$P:$P,'2.3-18春夏调配（止18年9月30日）'!$G:$G,运营部分析!$J$1,'2.3-18春夏调配（止18年9月30日）'!$A:$A,运营部分析!$B10,'2.3-18春夏调配（止18年9月30日）'!$Z:$Z,"否",'2.3-18春夏调配（止18年9月30日）'!$AA:$AA,"是") -> 0 | AB10: =SUMIFS('2.3-18春夏调配（止18年9月30日）'!$Y:$Y,'2.3-18春夏调配（止18年9月30日）'!$G:$G,运营部分析!$J$1,'2.3-18春夏调配（止18年9月30日）'!$A:$A,运营部分析!$B10,'2.3-18春夏调配（止18年9月30日）'!$Z:$Z,"否",'2.3-18春夏调配（止18年9月30日）'!$AA:$AA,"是")/10000 -> 0 | AC10: =SUMIFS('2.3-18春夏调配（止18年9月30日）'!$P:$P,'2.3-18春夏调配（止18年9月30日）'!$G:$G,运营部分析!$J$1,'2.3-18春夏调配（止18年9月30日）'!$A:$A,运营部分析!$B10,'2.3-18春夏调配（止18年9月30日）'!$Z:$Z,"是",'2.3-18春夏调配（止18年9月30日）'!$AA:$AA,"是") -> 0 | AD10: =SUMIFS('2.3-18春夏调配（止18年9月30日）'!$Y:$Y,'2.3-18春夏调配（止18年9月30日）'!$G:$G,运营部分析!$J$1,'2.3-18春夏调配（止18年9月30日）'!$A:$A,运营部分析!$B10,'2.3-18春夏调配（止18年9月30日）'!$Z:$Z,"是",'2.3-18春夏调配（止18年9月30日）'!$AA:$AA,"是")/10000 -> 0 | AE10: 0.2857142857 | AF10: 0.2857142857 | AI10: 0.1290322581 | AJ10: 0.1202535466 | AK10: =SUMIFS('2.3-18春夏调配（止18年9月30日）'!$P:$P,'2.3-18春夏调配（止18年9月30日）'!$G:$G,运营部分析!$J$1,'2.3-18春夏调配（止18年9月30日）'!$A:$A,运营部分析!$B10,'2.3-18春夏调配（止18年9月30日）'!$Z:$Z,"否") -> 0 | AL10: =SUMIFS('2.3-18春夏调配（止18年9月30日）'!$Y:$Y,'2.3-18春夏调配（止18年9月30日）'!$G:$G,运营部分析!$J$1,'2.3-18春夏调配（止18年9月30日）'!$A:$A,运营部分析!$B10,'2.3-18春夏调配（止18年9月30日）'!$Z:$Z,"否")/10000 -> 0 | AM10: =SUMIFS('2.3-18春夏调配（止18年9月30日）'!$P:$P,'2.3-18春夏调配（止18年9月30日）'!$G:$G,运营部分析!$J$1,'2.3-18春夏调配（止18年9月30日）'!$A:$A,运营部分析!$B10,'2.3-18春夏调配（止18年9月30日）'!$Z:$Z,"是") -> 0 | AN10: =SUMIFS('2.3-18春夏调配（止18年9月30日）'!$Y:$Y,'2.3-18春夏调配（止18年9月30日）'!$G:$G,运营部分析!$J$1,'2.3-18春夏调配（止18年9月30日）'!$A:$A,运营部分析!$B10,'2.3-18春夏调配（止18年9月30日）'!$Z:$Z,"是")/10000 -> 0 | AO10: 0.2857142857 | AP10: 0.2857142857 | AQ10: =SUMIFS('1.2-19春夏发货（更新）'!$K:$K,'1.2-19春夏发货（更新）'!$A:$A,运营部分析!$B10,'1.2-19春夏发货（更新）'!Q:Q,运营部分析!$J$1) -> 157 | AR10: 1.006410256 | AS10: -1 | AT10: 157 | AU10: =SUMIFS('1.6-19春夏期货订单（更新）'!$AP:$AP,'1.6-19春夏期货订单（更新）'!$A:$A,运营部分析!$B10,'1.6-19春夏期货订单（更新）'!$F:$F,运营部分析!$J$1) -> 3 | AV10: =SUMIFS('1.1-19春夏新旧品销售（更新）'!$X:$X,'1.1-19春夏新旧品销售（更新）'!$A:$A,运营部分析!$B10,'1.1-19春夏新旧品销售（更新）'!D:D,运营部分析!$J$1,'1.1-19春夏新旧品销售（更新）'!$U:$U,"月",'1.1-19春夏新旧品销售（更新）'!$AH:$AH,"新品") -> 2 | AW10: =SUMIFS('1.5-19春夏新旧品库存（更新）'!$BM:$BM,'1.5-19春夏新旧品库存（更新）'!$E:$E,运营部分析!$B10,'1.5-19春夏新旧品库存（更新）'!$B:$B,运营部分析!$J$1,'1.5-19春夏新旧品库存（更新）'!$BI:$BI,"新品") -> 4 | AX10: 0.5 | AY10: 35.33333333 | AZ10: =SUMIFS('1.1-19春夏新旧品销售（更新）'!$I:$I,'1.1-19春夏新旧品销售（更新）'!$A:$A,运营部分析!$B10,'1.1-19春夏新旧品销售（更新）'!$U:$U,"月",'1.1-19春夏新旧品销售（更新）'!$D:$D,运营部分析!$J$1,'1.1-19春夏新旧品销售（更新）'!$AH:$AH,"新品") -> 3 | BA10: =SUMIFS('1.1-19春夏新旧品销售（更新）'!$J:$J,'1.1-19春夏新旧品销售（更新）'!$A:$A,运营部分析!$B10,'1.1-19春夏新旧品销售（更新）'!$U:$U,"月",'1.1-19春夏新旧品销售（更新）'!$D:$D,运营部分析!$J$1,'1.1-19春夏新旧品销售（更新）'!$AH:$AH,"新品")/10000 -> 0.0854 | BB10: =SUMIFS('1.1-19春夏新旧品销售（更新）'!$K:$K,'1.1-19春夏新旧品销售（更新）'!$A:$A,运营部分析!$B10,'1.1-19春夏新旧品销售（更新）'!$U:$U,"月",'1.1-19春夏新旧品销售（更新）'!$D:$D,运营部分析!$J$1,'1.1-19春夏新旧品销售（更新）'!$AH:$AH,"新品")/10000 -> 0.1707 | BC10: =SUMIFS('1.1-19春夏新旧品销售（更新）'!$S:$S,'1.1-19春夏新旧品销售（更新）'!$A:$A,运营部分析!$B10,'1.1-19春夏新旧品销售（更新）'!$U:$U,"月",'1.1-19春夏新旧品销售（更新）'!$D:$D,运营部分析!$J$1,'1.1-19春夏新旧品销售（更新）'!$AH:$AH,"新品")/10000 -> 0.1617 | BD10: 1.055658627 | BE10: 284.6666667 | BF10: 0.5281385281 | BG10: =SUMIFS('2.1-18春夏销售（止18年9月30日）'!$J:$J,'2.1-18春夏销售（止18年9月30日）'!$A:$A,运营部分析!$B10,'2.1-18春夏销售（止18年9月30日）'!$D:$D,运营部分析!$J$1,'2.1-18春夏销售（止18年9月30日）'!$U:$U,"月",'2.1-18春夏销售（止18年9月30日）'!$X:$X,"新品")/10000 -> 0 | BH10: =SUMIFS('2.1-18春夏销售（止18年9月30日）'!$S:$S,'2.1-18春夏销售（止18年9月30日）'!$A:$A,运营部分析!$B10,'2.1-18春夏销售（止18年9月30日）'!$D:$D,运营部分析!$J$1,'2.1-18春夏销售（止18年9月30日）'!$U:$U,"月",'2.1-18春夏销售（止18年9月30日）'!$X:$X,"新品")/10000 -> 0 | BI10: 0 | BJ10: =SUMIFS('1.1-19春夏新旧品销售（更新）'!$J:$J,'1.1-19春夏新旧品销售（更新）'!$A:$A,运营部分析!$B10,'1.1-19春夏新旧品销售（更新）'!$D:$D,运营部分析!$J$1,'1.1-19春夏新旧品销售（更新）'!$T:$T,"本周",'1.1-19春夏新旧品销售（更新）'!$AH:$AH,"新品")/10000 -> 0.0569 | BK10: =SUMIFS('1.1-19春夏新旧品销售（更新）'!$S:$S,'1.1-19春夏新旧品销售（更新）'!$A:$A,运营部分析!$B10,'1.1-19春夏新旧品销售（更新）'!$D:$D,运营部分析!$J$1,'1.1-19春夏新旧品销售（更新）'!$T:$T,"本周",'1.1-19春夏新旧品销售（更新）'!$AH:$AH,"新品")/10000 -> 0.1078 | BL10: 0.5278293135 | BM10: 0.005282120162 | BN10: 0.003684676072 | BO10: =SUMIFS('1.1-19春夏新旧品销售（更新）'!$I:$I,'1.1-19春夏新旧品销售（更新）'!$A:$A,运营部分析!#REF!,'1.1-19春夏新旧品销售（更新）'!$D:$D,运营部分析!$J$1,'1.1-19春夏新旧品销售（更新）'!$T:$T,"上上周",'1.1-19春夏新旧品销售（更新）'!$AH:$AH,"新品") -> 0 | BP10: =SUMIFS('1.1-19春夏新旧品销售（更新）'!$I:$I,'1.1-19春夏新旧品销售（更新）'!$A:$A,运营部分析!$B9,'1.1-19春夏新旧品销售（更新）'!$D:$D,运营部分析!$J$1,'1.1-19春夏新旧品销售（更新）'!$T:$T,"上周",'1.1-19春夏新旧品销售（更新）'!$AH:$AH,"新品") -> 0 | BQ10: =SUMIFS('1.1-19春夏新旧品销售（更新）'!$I:$I,'1.1-19春夏新旧品销售（更新）'!$A:$A,运营部分析!$B9,'1.1-19春夏新旧品销售（更新）'!$D:$D,运营部分析!$J$1,'1.1-19春夏新旧品销售（更新）'!$T:$T,"本周",'1.1-19春夏新旧品销售（更新）'!$AH:$AH,"新品") -> 0 | BR10: =SUMIFS('1.1-19春夏新旧品销售（更新）'!$I:$I,'1.1-19春夏新旧品销售（更新）'!$A:$A,运营部分析!$B10,'1.1-19春夏新旧品销售（更新）'!$D:$D,运营部分析!$J$1,'1.1-19春夏新旧品销售（更新）'!$U:$U,"月",'1.1-19春夏新旧品销售（更新）'!$AH:$AH,"新品") -> 3 | BS10: 0 | BT10: 0 | BU10: 0 | BV10: 0.001597444089 | CA10: =SUMIFS('1.3-19春夏调配（更新）'!$AA:$AA,'1.3-19春夏调配（更新）'!$K:$K,运营部分析!$J$1,'1.3-19春夏调配（更新）'!$A:$A,运营部分析!$B10,'1.3-19春夏调配（更新）'!$X:$X,"<>已审核")/10000 -> 0 | CB10: =SUMIFS('1.3-19春夏调配（更新）'!$AA:$AA,'1.3-19春夏调配（更新）'!$G:$G,运营部分析!$J$1,'1.3-19春夏调配（更新）'!$A:$A,运营部分析!$B10,'1.3-19春夏调配（更新）'!$Z:$Z,"是",'1.3-19春夏调配（更新）'!$X:$X,"<>已审核")/10000 -> 0.0539 | CC10: =SUMIFS('1.3-19春夏调配（更新）'!$AA:$AA,'1.3-19春夏调配（更新）'!$G:$G,运营部分析!$J$1,'1.3-19春夏调配（更新）'!$A:$A,运营部分析!$B10,'1.3-19春夏调配（更新）'!$Z:$Z,"否",'1.3-19春夏调配（更新）'!$X:$X,"<>已审核")/10000 -> 0.2076 | CD10: =SUMIFS('1.3-19春夏调配（更新）'!$P:$P,'1.3-19春夏调配（更新）'!$K:$K,运营部分析!$J$1,'1.3-19春夏调配（更新）'!$A:$A,运营部分析!$B10,'1.3-19春夏调配（更新）'!$X:$X,"<>已审核") -> 0 | CE10: =SUMIFS('1.3-19春夏调配（更新）'!$P:$P,'1.3-19春夏调配（更新）'!$G:$G,运营部分析!$J$1,'1.3-19春夏调配（更新）'!$A:$A,运营部分析!$B10,'1.3-19春夏调配（更新）'!$Z:$Z,"是",'1.3-19春夏调配（更新）'!$X:$X,"<>已审核") -> 1 | CF10: =SUMIFS('1.3-19春夏调配（更新）'!$P:$P,'1.3-19春夏调配（更新）'!$G:$G,运营部分析!$J$1,'1.3-19春夏调配（更新）'!$A:$A,运营部分析!$B10,'1.3-19春夏调配（更新）'!$Z:$Z,"否",'1.3-19春夏调配（更新）'!$X:$X,"<>已审核") -> 4 | CG10: =SUMIFS('2.1-18春夏销售（止18年9月30日）'!$I:$I,'2.1-18春夏销售（止18年9月30日）'!$D:$D,运营部分析!$J$1,'2.1-18春夏销售（止18年9月30日）'!$V:$V,运营部分析!CG$4,'2.1-18春夏销售（止18年9月30日）'!$A:$A,运营部分析!$B10,'2.1-18春夏销售（止18年9月30日）'!$W:$W,"否",'2.1-18春夏销售（止18年9月30日）'!$X:$X,"新品") -> 0 | CH10: =SUMIFS('2.1-18春夏销售（止18年9月30日）'!$I:$I,'2.1-18春夏销售（止18年9月30日）'!$D:$D,运营部分析!$J$1,'2.1-18春夏销售（止18年9月30日）'!$V:$V,运营部分析!CH$4,'2.1-18春夏销售（止18年9月30日）'!$A:$A,运营部分析!$B10,'2.1-18春夏销售（止18年9月30日）'!$W:$W,"否",'2.1-18春夏销售（止18年9月30日）'!$X:$X,"新品") -> 0 | CI10: =SUMIFS('2.1-18春夏销售（止18年9月30日）'!$I:$I,'2.1-18春夏销售（止18年9月30日）'!$D:$D,运营部分析!$J$1,'2.1-18春夏销售（止18年9月30日）'!$V:$V,运营部分析!CI$4,'2.1-18春夏销售（止18年9月30日）'!$A:$A,运营部分析!$B10,'2.1-18春夏销售（止18年9月30日）'!$W:$W,"否",'2.1-18春夏销售（止18年9月30日）'!$X:$X,"新品") -> 0 | CJ10: =SUMIFS('2.1-18春夏销售（止18年9月30日）'!$I:$I,'2.1-18春夏销售（止18年9月30日）'!$D:$D,运营部分析!$J$1,'2.1-18春夏销售（止18年9月30日）'!$V:$V,运营部分析!CJ$4,'2.1-18春夏销售（止18年9月30日）'!$A:$A,运营部分析!$B10,'2.1-18春夏销售（止18年9月30日）'!$W:$W,"否",'2.1-18春夏销售（止18年9月30日）'!$X:$X,"新品") -> 0 | CK10: =SUMIFS('2.1-18春夏销售（止18年9月30日）'!$I:$I,'2.1-18春夏销售（止18年9月30日）'!$D:$D,运营部分析!$J$1,'2.1-18春夏销售（止18年9月30日）'!$V:$V,运营部分析!CK$4,'2.1-18春夏销售（止18年9月30日）'!$A:$A,运营部分析!$B10,'2.1-18春夏销售（止18年9月30日）'!$W:$W,"否",'2.1-18春夏销售（止18年9月30日）'!$X:$X,"新品") -> 0 | CL10: =SUMIFS('2.1-18春夏销售（止18年9月30日）'!$I:$I,'2.1-18春夏销售（止18年9月30日）'!$D:$D,运营部分析!$J$1,'2.1-18春夏销售（止18年9月30日）'!$V:$V,运营部分析!CL$4,'2.1-18春夏销售（止18年9月30日）'!$A:$A,运营部分析!$B10,'2.1-18春夏销售（止18年9月30日）'!$W:$W,"否",'2.1-18春夏销售（止18年9月30日）'!$X:$X,"新品") -> 0 | CM10: =SUMIFS('2.1-18春夏销售（止18年9月30日）'!$I:$I,'2.1-18春夏销售（止18年9月30日）'!$D:$D,运营部分析!$J$1,'2.1-18春夏销售（止18年9月30日）'!$V:$V,运营部分析!CM$4,'2.1-18春夏销售（止18年9月30日）'!$A:$A,运营部分析!$B10,'2.1-18春夏销售（止18年9月30日）'!$W:$W,"否",'2.1-18春夏销售（止18年9月30日）'!$X:$X,"新品") -> 0 | CN10: =SUMIFS('2.1-18春夏销售（止18年9月30日）'!$I:$I,'2.1-18春夏销售（止18年9月30日）'!$D:$D,运营部分析!$J$1,'2.1-18春夏销售（止18年9月30日）'!$V:$V,运营部分析!CN$4,'2.1-18春夏销售（止18年9月30日）'!$A:$A,运营部分析!$B10,'2.1-18春夏销售（止18年9月30日）'!$W:$W,"否",'2.1-18春夏销售（止18年9月30日）'!$X:$X,"新品") -> 0 | CO10: =SUMIFS('2.1-18春夏销售（止18年9月30日）'!$I:$I,'2.1-18春夏销售（止18年9月30日）'!$D:$D,运营部分析!$J$1,'2.1-18春夏销售（止18年9月30日）'!$V:$V,运营部分析!CO$4,'2.1-18春夏销售（止18年9月30日）'!$A:$A,运营部分析!$B10,'2.1-18春夏销售（止18年9月30日）'!$W:$W,"否",'2.1-18春夏销售（止18年9月30日）'!$X:$X,"新品") -> 0 | CP10: =SUMIFS('2.1-18春夏销售（止18年9月30日）'!$I:$I,'2.1-18春夏销售（止18年9月30日）'!$D:$D,运营部分析!$J$1,'2.1-18春夏销售（止18年9月30日）'!$V:$V,运营部分析!CP$4,'2.1-18春夏销售（止18年9月30日）'!$A:$A,运营部分析!$B10,'2.1-18春夏销售（止18年9月30日）'!$W:$W,"否",'2.1-18春夏销售（止18年9月30日）'!$X:$X,"新品") -> 0 | CQ10: 0 | CR10: 105 | CS10: 0.3225806452 | CT10: =SUMIFS('2.1-18春夏销售（止18年9月30日）'!$S:$S,'2.1-18春夏销售（止18年9月30日）'!$D:$D,运营部分析!$J$1,'2.1-18春夏销售（止18年9月30日）'!$V:$V,运营部分析!CT$4,'2.1-18春夏销售（止18年9月30日）'!$A:$A,运营部分析!$B10,'2.1-18春夏销售（止18年9月30日）'!$W:$W,"否",'2.1-18春夏销售（止18年9月30日）'!$X:$X,"新品")/10000 -> 0 | CU10: =SUMIFS('2.1-18春夏销售（止18年9月30日）'!$S:$S,'2.1-18春夏销售（止18年9月30日）'!$D:$D,运营部分析!$J$1,'2.1-18春夏销售（止18年9月30日）'!$V:$V,运营部分析!CU$4,'2.1-18春夏销售（止18年9月30日）'!$A:$A,运营部分析!$B10,'2.1-18春夏销售（止18年9月30日）'!$W:$W,"否",'2.1-18春夏销售（止18年9月30日）'!$X:$X,"新品")/10000 -> 0 | CV10: =SUMIFS('2.1-18春夏销售（止18年9月30日）'!$S:$S,'2.1-18春夏销售（止18年9月30日）'!$D:$D,运营部分析!$J$1,'2.1-18春夏销售（止18年9月30日）'!$V:$V,运营部分析!CV$4,'2.1-18春夏销售（止18年9月30日）'!$A:$A,运营部分析!$B10,'2.1-18春夏销售（止18年9月30日）'!$W:$W,"否",'2.1-18春夏销售（止18年9月30日）'!$X:$X,"新品")/10000 -> 0 | CW10: =SUMIFS('2.1-18春夏销售（止18年9月30日）'!$S:$S,'2.1-18春夏销售（止18年9月30日）'!$D:$D,运营部分析!$J$1,'2.1-18春夏销售（止18年9月30日）'!$V:$V,运营部分析!CW$4,'2.1-18春夏销售（止18年9月30日）'!$A:$A,运营部分析!$B10,'2.1-18春夏销售（止18年9月30日）'!$W:$W,"否",'2.1-18春夏销售（止18年9月30日）'!$X:$X,"新品")/10000 -> 0 | CX10: =SUMIFS('2.1-18春夏销售（止18年9月30日）'!$S:$S,'2.1-18春夏销售（止18年9月30日）'!$D:$D,运营部分析!$J$1,'2.1-18春夏销售（止18年9月30日）'!$V:$V,运营部分析!CX$4,'2.1-18春夏销售（止18年9月30日）'!$A:$A,运营部分析!$B10,'2.1-18春夏销售（止18年9月30日）'!$W:$W,"否",'2.1-18春夏销售（止18年9月30日）'!$X:$X,"新品")/10000 -> 0 | CY10: =SUMIFS('2.1-18春夏销售（止18年9月30日）'!$S:$S,'2.1-18春夏销售（止18年9月30日）'!$D:$D,运营部分析!$J$1,'2.1-18春夏销售（止18年9月30日）'!$V:$V,运营部分析!CY$4,'2.1-18春夏销售（止18年9月30日）'!$A:$A,运营部分析!$B10,'2.1-18春夏销售（止18年9月30日）'!$W:$W,"否",'2.1-18春夏销售（止18年9月30日）'!$X:$X,"新品")/10000 -> 0 | CZ10: =SUMIFS('2.1-18春夏销售（止18年9月30日）'!$S:$S,'2.1-18春夏销售（止18年9月30日）'!$D:$D,运营部分析!$J$1,'2.1-18春夏销售（止18年9月30日）'!$V:$V,运营部分析!CZ$4,'2.1-18春夏销售（止18年9月30日）'!$A:$A,运营部分析!$B10,'2.1-18春夏销售（止18年9月30日）'!$W:$W,"否",'2.1-18春夏销售（止18年9月30日）'!$X:$X,"新品")/10000 -> 0 | DA10: =SUMIFS('2.1-18春夏销售（止18年9月30日）'!$S:$S,'2.1-18春夏销售（止18年9月30日）'!$D:$D,运营部分析!$J$1,'2.1-18春夏销售（止18年9月30日）'!$V:$V,运营部分析!DA$4,'2.1-18春夏销售（止18年9月30日）'!$A:$A,运营部分析!$B10,'2.1-18春夏销售（止18年9月30日）'!$W:$W,"否",'2.1-18春夏销售（止18年9月30日）'!$X:$X,"新品")/10000 -> 0 | DB10: =SUMIFS('2.1-18春夏销售（止18年9月30日）'!$S:$S,'2.1-18春夏销售（止18年9月30日）'!$D:$D,运营部分析!$J$1,'2.1-18春夏销售（止18年9月30日）'!$V:$V,运营部分析!DB$4,'2.1-18春夏销售（止18年9月30日）'!$A:$A,运营部分析!$B10,'2.1-18春夏销售（止18年9月30日）'!$W:$W,"否",'2.1-18春夏销售（止18年9月30日）'!$X:$X,"新品")/10000 -> 0 | DC10: =SUMIFS('2.1-18春夏销售（止18年9月30日）'!$S:$S,'2.1-18春夏销售（止18年9月30日）'!$D:$D,运营部分析!$J$1,'2.1-18春夏销售（止18年9月30日）'!$V:$V,运营部分析!DC$4,'2.1-18春夏销售（止18年9月30日）'!$A:$A,运营部分析!$B10,'2.1-18春夏销售（止18年9月30日）'!$W:$W,"否",'2.1-18春夏销售（止18年9月30日）'!$X:$X,"新品")/10000 -> 0 | DD10: 0 | DE10: 5.6315 | DF10: 0.3200724419 | DH10: =SUMIFS('1.1-19春夏新旧品销售（更新）'!$I:$I,'1.1-19春夏新旧品销售（更新）'!$D:$D,运营部分析!$J$1,'1.1-19春夏新旧品销售（更新）'!$A:$A,运营部分析!$B10,'1.1-19春夏新旧品销售（更新）'!$AB:$AB,"新品",'1.1-19春夏新旧品销售（更新）'!$AG:$AG,"是") -> 0 | DI10: =SUMIFS('1.1-19春夏新旧品销售（更新）'!$S:$S,'1.1-19春夏新旧品销售（更新）'!$D:$D,运营部分析!$J$1,'1.1-19春夏新旧品销售（更新）'!$A:$A,运营部分析!$B10,'1.1-19春夏新旧品销售（更新）'!$AB:$AB,"新品",'1.1-19春夏新旧品销售（更新）'!$AG:$AG,"是")/10000 -> 0 | DJ10: =SUMIFS('1.6-19春夏期货订单（更新）'!$AG:$AG,'1.6-19春夏期货订单（更新）'!$F:$F,运营部分析!$J$1,'1.6-19春夏期货订单（更新）'!$A:$A,运营部分析!$B10,'1.6-19春夏期货订单（更新）'!$AQ:$AQ,"是")+SUMIFS('1.2-19春夏发货（更新）'!$K:$K,'1.2-19春夏发货（更新）'!$A:$A,运营部分析!$B10,'1.2-19春夏发货（更新）'!$Q:$Q,运营部分析!$J$1,'1.2-19春夏发货（更新）'!$T:$T,"当季补货",'1.2-19春夏发货（更新）'!$W:$W,"是")+SUMIFS('1.2-19春夏发货（更新）'!$K:$K,'1.2-19春夏发货（更新）'!$A:$A,运营部分析!$B10,'1.2-19春夏发货（更新）'!$Q:$Q,运营部分析!$J$1,'1.2-19春夏发货（更新）'!$T:$T,"往季补货",'1.2-19春夏发货（更新）'!$W:$W,"是")+SUMIFS('1.3-19春夏调配（更新）'!$P:$P,'1.3-19春夏调配（更新）'!$K:$K,运营部分析!$J$1,'1.3-19春夏调配（更新）'!$A:$A,运营部分析!$B10,'1.3-19春夏调配（更新）'!$AC:$AC,"是",'1.3-19春夏调配（更新）'!$X:$X,"<>已审核")-SUMIFS('1.3-19春夏调配（更新）'!$P:$P,'1.3-19春夏调配（更新）'!$G:$G,运营部分析!$J$1,'1.3-19春夏调配（更新）'!$A:$A,运营部分析!$B10,'1.3-19春夏调配（更新）'!$AC:$AC,"是",'1.3-19春夏调配（更新）'!$X:$X,"<>已审核") -> 0 | DK10: =SUMIFS('1.6-19春夏期货订单（更新）'!$AN:$AN,'1.6-19春夏期货订单（更新）'!$F:$F,运营部分析!$J$1,'1.6-19春夏期货订单（更新）'!$A:$A,运营部分析!$B10,'1.6-19春夏期货订单（更新）'!$AQ:$AQ,"是")/10000+SUMIFS('1.2-19春夏发货（更新）'!$U:$U,'1.2-19春夏发货（更新）'!$A:$A,运营部分析!$B10,'1.2-19春夏发货（更新）'!$Q:$Q,运营部分析!$J$1,'1.2-19春夏发货（更新）'!$T:$T,"当季补货",'1.2-19春夏发货（更新）'!$W:$W,"是")/10000+SUMIFS('1.2-19春夏发货（更新）'!$U:$U,'1.2-19春夏发货（更新）'!$A:$A,运营部分析!$B10,'1.2-19春夏发货（更新）'!$Q:$Q,运营部分析!$J$1,'1.2-19春夏发货（更新）'!$T:$T,"往季补货",'1.2-19春夏发货（更新）'!$W:$W,"是")/10000+SUMIFS('1.3-19春夏调配（更新）'!$AA:$AA,'1.3-19春夏调配（更新）'!$K:$K,运营部分析!$J$1,'1.3-19春夏调配（更新）'!$A:$A,运营部分析!$B10,'1.3-19春夏调配（更新）'!$AC:$AC,"是",'1.3-19春夏调配（更新）'!$X:$X,"<>已审核")/10000-SUMIFS('1.3-19春夏调配（更新）'!$AA:$AA,'1.3-19春夏调配（更新）'!$G:$G,运营部分析!$J$1,'1.3-19春夏调配（更新）'!$A:$A,运营部分析!$B10,'1.3-19春夏调配（更新）'!$AC:$AC,"是",'1.3-19春夏调配（更新）'!$X:$X,"<>已审核")/10000 -> 0 | DM10: 0.02580645161 | DN10: 0.02506489586
A11: 茄克 | B11: 22 | C11: 单茄克 | E11: =SUMIFS('1.6-19春夏期货订单（更新）'!$AG:$AG,'1.6-19春夏期货订单（更新）'!$F:$F,运营部分析!$J$1,'1.6-19春夏期货订单（更新）'!$A:$A,运营部分析!$B11)+SUMIFS('1.2-19春夏发货（更新）'!$K:$K,'1.2-19春夏发货（更新）'!$A:$A,运营部分析!$B11,'1.2-19春夏发货（更新）'!$Q:$Q,运营部分析!$J$1,'1.2-19春夏发货（更新）'!$T:$T,"当季补货")+SUMIFS('1.2-19春夏发货（更新）'!$K:$K,'1.2-19春夏发货（更新）'!$A:$A,运营部分析!$B11,'1.2-19春夏发货（更新）'!$Q:$Q,运营部分析!$J$1,'1.2-19春夏发货（更新）'!$T:$T,"往季补货")+SUMIFS('1.3-19春夏调配（更新）'!$P:$P,'1.3-19春夏调配（更新）'!$K:$K,运营部分析!$J$1,'1.3-19春夏调配（更新）'!$A:$A,运营部分析!$B11)-SUMIFS('1.3-19春夏调配（更新）'!$P:$P,'1.3-19春夏调配（更新）'!$G:$G,运营部分析!$J$1,'1.3-19春夏调配（更新）'!$A:$A,运营部分析!$B11,'1.3-19春夏调配（更新）'!$Z:$Z,"是") -> 1418 | F11: =SUMIFS('1.6-19春夏期货订单（更新）'!$AN:$AN,'1.6-19春夏期货订单（更新）'!$F:$F,运营部分析!$J$1,'1.6-19春夏期货订单（更新）'!$A:$A,运营部分析!$B11)/10000+SUMIFS('1.2-19春夏发货（更新）'!$U:$U,'1.2-19春夏发货（更新）'!$A:$A,运营部分析!$B11,'1.2-19春夏发货（更新）'!$Q:$Q,运营部分析!$J$1,'1.2-19春夏发货（更新）'!$T:$T,"当季补货")/10000+SUMIFS('1.2-19春夏发货（更新）'!$U:$U,'1.2-19春夏发货（更新）'!$A:$A,运营部分析!$B11,'1.2-19春夏发货（更新）'!$Q:$Q,运营部分析!$J$1,'1.2-19春夏发货（更新）'!$T:$T,"往季补货")/10000+SUMIFS('1.3-19春夏调配（更新）'!$AA:$AA,'1.3-19春夏调配（更新）'!$K:$K,运营部分析!$J$1,'1.3-19春夏调配（更新）'!$A:$A,运营部分析!$B11)/10000-SUMIFS('1.3-19春夏调配（更新）'!$AA:$AA,'1.3-19春夏调配（更新）'!$G:$G,运营部分析!$J$1,'1.3-19春夏调配（更新）'!$A:$A,运营部分析!$B11,'1.3-19春夏调配（更新）'!$Z:$Z,"是")/10000 -> 102.5702 | G11: =(SUMIFS('2.1-18春夏销售（止18年9月30日）'!$I:$I,'2.1-18春夏销售（止18年9月30日）'!$X:$X,"新品",'2.1-18春夏销售（止18年9月30日）'!$A:$A,运营部分析!$B11,'2.1-18春夏销售（止18年9月30日）'!$D:$D,运营部分析!$J$1)+SUMIFS('2.2--18春夏库存（止18年9月30日）'!$M:$M,'2.2--18春夏库存（止18年9月30日）'!$C:$C,运营部分析!$J$1,'2.2--18春夏库存（止18年9月30日）'!$A:$A,运营部分析!$B11)+SUMIFS('2.4-18春夏冬退货（止18年9月30日）'!$Q:$Q,'2.4-18春夏冬退货（止18年9月30日）'!$D:$D,运营部分析!$J$1,'2.4-18春夏冬退货（止18年9月30日）'!$A:$A,运营部分析!$B11)+SUMIFS('2.3-18春夏调配（止18年9月30日）'!$P:$P,'2.3-18春夏调配（止18年9月30日）'!$G:$G,运营部分析!$J$1,'2.3-18春夏调配（止18年9月30日）'!$A:$A,运营部分析!$B11)) -> 1427 | H11: =(SUMIFS('2.1-18春夏销售（止18年9月30日）'!$S:$S,'2.1-18春夏销售（止18年9月30日）'!$X:$X,"新品",'2.1-18春夏销售（止18年9月30日）'!$A:$A,运营部分析!$B11,'2.1-18春夏销售（止18年9月30日）'!$D:$D,运营部分析!$J$1)/10000+SUMIFS('2.2--18春夏库存（止18年9月30日）'!$P:$P,'2.2--18春夏库存（止18年9月30日）'!$C:$C,运营部分析!$J$1,'2.2--18春夏库存（止18年9月30日）'!$A:$A,运营部分析!$B11)/10000+SUMIFS('2.4-18春夏冬退货（止18年9月30日）'!$T:$T,'2.4-18春夏冬退货（止18年9月30日）'!$D:$D,运营部分析!$J$1,'2.4-18春夏冬退货（止18年9月30日）'!$A:$A,运营部分析!$B11)/10000+SUMIFS('2.3-18春夏调配（止18年9月30日）'!$Y:$Y,'2.3-18春夏调配（止18年9月30日）'!$G:$G,运营部分析!$J$1,'2.3-18春夏调配（止18年9月30日）'!$A:$A,运营部分析!$B11)/10000) -> 90.6293 | I11: -0.006306937631 | J11: 0.1317554036 | K11: =SUMIFS('1.1-19春夏新旧品销售（更新）'!$I:$I,'1.1-19春夏新旧品销售（更新）'!$D:$D,运营部分析!$J$1,'1.1-19春夏新旧品销售（更新）'!$A:$A,运营部分析!$B11,'1.1-19春夏新旧品销售（更新）'!$AB:$AB,"新品") -> 473 | L11: =SUMIFS('1.1-19春夏新旧品销售（更新）'!$S:$S,'1.1-19春夏新旧品销售（更新）'!$D:$D,运营部分析!$J$1,'1.1-19春夏新旧品销售（更新）'!$A:$A,运营部分析!$B11,'1.1-19春夏新旧品销售（更新）'!$AB:$AB,"新品")/10000 -> 33.6707 | M11: =SUMIFS('2.1-18春夏销售（止18年9月30日）'!$I:$I,'2.1-18春夏销售（止18年9月30日）'!$D:$D,运营部分析!$J$1,'2.1-18春夏销售（止18年9月30日）'!$A:$A,运营部分析!$B11,'2.1-18春夏销售（止18年9月30日）'!$X:$X,"新品",'2.1-18春夏销售（止18年9月30日）'!$T:$T,"同期销售") -> 596 | N11: =SUMIFS('2.1-18春夏销售（止18年9月30日）'!$S:$S,'2.1-18春夏销售（止18年9月30日）'!$D:$D,运营部分析!$J$1,'2.1-18春夏销售（止18年9月30日）'!$A:$A,运营部分析!$B11,'2.1-18春夏销售（止18年9月30日）'!$X:$X,"新品",'2.1-18春夏销售（止18年9月30日）'!$T:$T,"同期销售")/10000 -> 38.0044 | O11: -0.2063758389 | P11: -0.1140315332 | Q11: =SUMIFS('2.1-18春夏销售（止18年9月30日）'!$I:$I,'2.1-18春夏销售（止18年9月30日）'!$D:$D,运营部分析!$J$1,'2.1-18春夏销售（止18年9月30日）'!$A:$A,运营部分析!$B11,'2.1-18春夏销售（止18年9月30日）'!$X:$X,"新品") -> 849 | R11: =SUMIFS('2.1-18春夏销售（止18年9月30日）'!$S:$S,'2.1-18春夏销售（止18年9月30日）'!$D:$D,运营部分析!$J$1,'2.1-18春夏销售（止18年9月30日）'!$A:$A,运营部分析!$B11,'2.1-18春夏销售（止18年9月30日）'!$X:$X,"新品")/10000 -> 53.8591 | S11: =SUMIFS('1.5-19春夏新旧品库存（更新）'!$BF:$BF,'1.5-19春夏新旧品库存（更新）'!$B:$B,运营部分析!$J$1,'1.5-19春夏新旧品库存（更新）'!$E:$E,运营部分析!$B11,'1.5-19春夏新旧品库存（更新）'!$BI:$BI,"新品") -> 914 | T11: =SUMIFS('1.5-19春夏新旧品库存（更新）'!$BG:$BG,'1.5-19春夏新旧品库存（更新）'!$B:$B,运营部分析!$J$1,'1.5-19春夏新旧品库存（更新）'!$E:$E,运营部分析!$B11,'1.5-19春夏新旧品库存（更新）'!$BI:$BI,"新品")/10000 -> 66.6786 | U11: =(SUMIFS('2.2--18春夏库存（止18年9月30日）'!$M:$M,'2.2--18春夏库存（止18年9月30日）'!$C:$C,运营部分析!$J$1,'2.2--18春夏库存（止18年9月30日）'!$A:$A,运营部分析!$B11)) -> 537 | V11: =(SUMIFS('2.2--18春夏库存（止18年9月30日）'!$P:$P,'2.2--18春夏库存（止18年9月30日）'!$C:$C,运营部分析!$J$1,'2.2--18春夏库存（止18年9月30日）'!$A:$A,运营部分析!$B11))/10000 -> 34.3423 | W11: 0.7020484171 | X11: 0.9415880707 | Y11: 0.3423913043 | Z11: 0.3369377893 | AA11: =SUMIFS('2.3-18春夏调配（止18年9月30日）'!$P:$P,'2.3-18春夏调配（止18年9月30日）'!$G:$G,运营部分析!$J$1,'2.3-18春夏调配（止18年9月30日）'!$A:$A,运营部分析!$B11,'2.3-18春夏调配（止18年9月30日）'!$Z:$Z,"否",'2.3-18春夏调配（止18年9月30日）'!$AA:$AA,"是") -> 3 | AB11: =SUMIFS('2.3-18春夏调配（止18年9月30日）'!$Y:$Y,'2.3-18春夏调配（止18年9月30日）'!$G:$G,运营部分析!$J$1,'2.3-18春夏调配（止18年9月30日）'!$A:$A,运营部分析!$B11,'2.3-18春夏调配（止18年9月30日）'!$Z:$Z,"否",'2.3-18春夏调配（止18年9月30日）'!$AA:$AA,"是")/10000 -> 0.1957 | AC11: =SUMIFS('2.3-18春夏调配（止18年9月30日）'!$P:$P,'2.3-18春夏调配（止18年9月30日）'!$G:$G,运营部分析!$J$1,'2.3-18春夏调配（止18年9月30日）'!$A:$A,运营部分析!$B11,'2.3-18春夏调配（止18年9月30日）'!$Z:$Z,"是",'2.3-18春夏调配（止18年9月30日）'!$AA:$AA,"是") -> 5 | AD11: =SUMIFS('2.3-18春夏调配（止18年9月30日）'!$Y:$Y,'2.3-18春夏调配（止18年9月30日）'!$G:$G,运营部分析!$J$1,'2.3-18春夏调配（止18年9月30日）'!$A:$A,运营部分析!$B11,'2.3-18春夏调配（止18年9月30日）'!$Z:$Z,"是",'2.3-18春夏调配（止18年9月30日）'!$AA:$AA,"是")/10000 -> 0.2995 | AE11: 0.4212376934 | AF11: 0.4228958771 | AI11: -0.1871779052 | AJ11: -0.2032606427 | AK11: =SUMIFS('2.3-18春夏调配（止18年9月30日）'!$P:$P,'2.3-18春夏调配（止18年9月30日）'!$G:$G,运营部分析!$J$1,'2.3-18春夏调配（止18年9月30日）'!$A:$A,运营部分析!$B11,'2.3-18春夏调配（止18年9月30日）'!$Z:$Z,"否") -> 35 | AL11: =SUMIFS('2.3-18春夏调配（止18年9月30日）'!$Y:$Y,'2.3-18春夏调配（止18年9月30日）'!$G:$G,运营部分析!$J$1,'2.3-18春夏调配（止18年9月30日）'!$A:$A,运营部分析!$B11,'2.3-18春夏调配（止18年9月30日）'!$Z:$Z,"否")/10000 -> 2.0685 | AM11: =SUMIFS('2.3-18春夏调配（止18年9月30日）'!$P:$P,'2.3-18春夏调配（止18年9月30日）'!$G:$G,运营部分析!$J$1,'2.3-18春夏调配（止18年9月30日）'!$A:$A,运营部分析!$B11,'2.3-18春夏调配（止18年9月30日）'!$Z:$Z,"是") -> 6 | AN11: =SUMIFS('2.3-18春夏调配（止18年9月30日）'!$Y:$Y,'2.3-18春夏调配（止18年9月30日）'!$G:$G,运营部分析!$J$1,'2.3-18春夏调配（止18年9月30日）'!$A:$A,运营部分析!$B11,'2.3-18春夏调配（止18年9月30日）'!$Z:$Z,"是")/10000 -> 0.3594 | AO11: 0.6220971147 | AP11: 0.6195597868 | AQ11: =SUMIFS('1.2-19春夏发货（更新）'!$K:$K,'1.2-19春夏发货（更新）'!$A:$A,运营部分析!$B11,'1.2-19春夏发货（更新）'!Q:Q,运营部分析!$J$1) -> 1364 | AR11: 0.9619181946 | AS11: 54 | AT11: 1420 | AU11: =SUMIFS('1.6-19春夏期货订单（更新）'!$AP:$AP,'1.6-19春夏期货订单（更新）'!$A:$A,运营部分析!$B11,'1.6-19春夏期货订单（更新）'!$F:$F,运营部分析!$J$1) -> 19 | AV11: =SUMIFS('1.1-19春夏新旧品销售（更新）'!$X:$X,'1.1-19春夏新旧品销售（更新）'!$A:$A,运营部分析!$B11,'1.1-19春夏新旧品销售（更新）'!D:D,运营部分析!$J$1,'1.1-19春夏新旧品销售（更新）'!$U:$U,"月",'1.1-19春夏新旧品销售（更新）'!$AH:$AH,"新品") -> 18 | AW11: =SUMIFS('1.5-19春夏新旧品库存（更新）'!$BM:$BM,'1.5-19春夏新旧品库存（更新）'!$E:$E,运营部分析!$B11,'1.5-19春夏新旧品库存（更新）'!$B:$B,运营部分析!$J$1,'1.5-19春夏新旧品库存（更新）'!$BI:$BI,"新品") -> 19 | AX11: 0.9473684211 | AY11: 8.873786408 | AZ11: =SUMIFS('1.1-19春夏新旧品销售（更新）'!$I:$I,'1.1-19春夏新旧品销售（更新）'!$A:$A,运营部分析!$B11,'1.1-19春夏新旧品销售（更新）'!$U:$U,"月",'1.1-19春夏新旧品销售（更新）'!$D:$D,运营部分析!$J$1,'1.1-19春夏新旧品销售（更新）'!$AH:$AH,"新品") -> 103 | BA11: =SUMIFS('1.1-19春夏新旧品销售（更新）'!$J:$J,'1.1-19春夏新旧品销售（更新）'!$A:$A,运营部分析!$B11,'1.1-19春夏新旧品销售（更新）'!$U:$U,"月",'1.1-19春夏新旧品销售（更新）'!$D:$D,运营部分析!$J$1,'1.1-19春夏新旧品销售（更新）'!$AH:$AH,"新品")/10000 -> 4.5562 | BB11: =SUMIFS('1.1-19春夏新旧品销售（更新）'!$K:$K,'1.1-19春夏新旧品销售（更新）'!$A:$A,运营部分析!$B11,'1.1-19春夏新旧品销售（更新）'!$U:$U,"月",'1.1-19春夏新旧品销售（更新）'!$D:$D,运营部分析!$J$1,'1.1-19春夏新旧品销售（更新）'!$AH:$AH,"新品")/10000 -> 7.6477 | BC11: =SUMIFS('1.1-19春夏新旧品销售（更新）'!$S:$S,'1.1-19春夏新旧品销售（更新）'!$A:$A,运营部分析!$B11,'1.1-19春夏新旧品销售（更新）'!$U:$U,"月",'1.1-19春夏新旧品销售（更新）'!$D:$D,运营部分析!$J$1,'1.1-19春夏新旧品销售（更新）'!$AH:$AH,"新品")/10000 -> 7.0517 | BD11: 1.084518627 | BE11: 442.3495146 | BF11: 0.6461137031 | BG11: =SUMIFS('2.1-18春夏销售（止18年9月30日）'!$J:$J,'2.1-18春夏销售（止18年9月30日）'!$A:$A,运营部分析!$B11,'2.1-18春夏销售（止18年9月30日）'!$D:$D,运营部分析!$J$1,'2.1-18春夏销售（止18年9月30日）'!$U:$U,"月",'2.1-18春夏销售（止18年9月30日）'!$X:$X,"新品")/10000 -> 2.5655 | BH11: =SUMIFS('2.1-18春夏销售（止18年9月30日）'!$S:$S,'2.1-18春夏销售（止18年9月30日）'!$A:$A,运营部分析!$B11,'2.1-18春夏销售（止18年9月30日）'!$D:$D,运营部分析!$J$1,'2.1-18春夏销售（止18年9月30日）'!$U:$U,"月",'2.1-18春夏销售（止18年9月30日）'!$X:$X,"新品")/10000 -> 3.3827 | BI11: 0.7584178319 | BJ11: =SUMIFS('1.1-19春夏新旧品销售（更新）'!$J:$J,'1.1-19春夏新旧品销售（更新）'!$A:$A,运营部分析!$B11,'1.1-19春夏新旧品销售（更新）'!$D:$D,运营部分析!$J$1,'1.1-19春夏新旧品销售（更新）'!$T:$T,"本周",'1.1-19春夏新旧品销售（更新）'!$AH:$AH,"新品")/10000 -> 0.6904 | BK11: =SUMIFS('1.1-19春夏新旧品销售（更新）'!$S:$S,'1.1-19春夏新旧品销售（更新）'!$A:$A,运营部分析!$B11,'1.1-19春夏新旧品销售（更新）'!$D:$D,运营部分析!$J$1,'1.1-19春夏新旧品销售（更新）'!$T:$T,"本周",'1.1-19春夏新旧品销售（更新）'!$AH:$AH,"新品")/10000 -> 0.9187 | BL11: 0.7514966801 | BM11: 0.06194891783 | BN11: 0.007103337422 | BO11: =SUMIFS('1.1-19春夏新旧品销售（更新）'!$I:$I,'1.1-19春夏新旧品销售（更新）'!$A:$A,运营部分析!#REF!,'1.1-19春夏新旧品销售（更新）'!$D:$D,运营部分析!$J$1,'1.1-19春夏新旧品销售（更新）'!$T:$T,"上上周",'1.1-19春夏新旧品销售（更新）'!$AH:$AH,"新品") -> 0 | BP11: =SUMIFS('1.1-19春夏新旧品销售（更新）'!$I:$I,'1.1-19春夏新旧品销售（更新）'!$A:$A,运营部分析!$B10,'1.1-19春夏新旧品销售（更新）'!$D:$D,运营部分析!$J$1,'1.1-19春夏新旧品销售（更新）'!$T:$T,"上周",'1.1-19春夏新旧品销售（更新）'!$AH:$AH,"新品") -> 0 | BQ11: =SUMIFS('1.1-19春夏新旧品销售（更新）'!$I:$I,'1.1-19春夏新旧品销售（更新）'!$A:$A,运营部分析!$B10,'1.1-19春夏新旧品销售（更新）'!$D:$D,运营部分析!$J$1,'1.1-19春夏新旧品销售（更新）'!$T:$T,"本周",'1.1-19春夏新旧品销售（更新）'!$AH:$AH,"新品") -> 2 | BR11: =SUMIFS('1.1-19春夏新旧品销售（更新）'!$I:$I,'1.1-19春夏新旧品销售（更新）'!$A:$A,运营部分析!$B11,'1.1-19春夏新旧品销售（更新）'!$D:$D,运营部分析!$J$1,'1.1-19春夏新旧品销售（更新）'!$U:$U,"月",'1.1-19春夏新旧品销售（更新）'!$AH:$AH,"新品") -> 103 | BS11: 0 | BT11: 0 | BU11: 0.005194805195 | BV11: 0.0548455804 | CA11: =SUMIFS('1.3-19春夏调配（更新）'!$AA:$AA,'1.3-19春夏调配（更新）'!$K:$K,运营部分析!$J$1,'1.3-19春夏调配（更新）'!$A:$A,运营部分析!$B11,'1.3-19春夏调配（更新）'!$X:$X,"<>已审核")/10000 -> 4.1004 | CB11: =SUMIFS('1.3-19春夏调配（更新）'!$AA:$AA,'1.3-19春夏调配（更新）'!$G:$G,运营部分析!$J$1,'1.3-19春夏调配（更新）'!$A:$A,运营部分析!$B11,'1.3-19春夏调配（更新）'!$Z:$Z,"是",'1.3-19春夏调配（更新）'!$X:$X,"<>已审核")/10000 -> 0.1358 | CC11: =SUMIFS('1.3-19春夏调配（更新）'!$AA:$AA,'1.3-19春夏调配（更新）'!$G:$G,运营部分析!$J$1,'1.3-19春夏调配（更新）'!$A:$A,运营部分析!$B11,'1.3-19春夏调配（更新）'!$Z:$Z,"否",'1.3-19春夏调配（更新）'!$X:$X,"<>已审核")/10000 -> 2.2249 | CD11: =SUMIFS('1.3-19春夏调配（更新）'!$P:$P,'1.3-19春夏调配（更新）'!$K:$K,运营部分析!$J$1,'1.3-19春夏调配（更新）'!$A:$A,运营部分析!$B11,'1.3-19春夏调配（更新）'!$X:$X,"<>已审核") -> 56 | CE11: =SUMIFS('1.3-19春夏调配（更新）'!$P:$P,'1.3-19春夏调配（更新）'!$G:$G,运营部分析!$J$1,'1.3-19春夏调配（更新）'!$A:$A,运营部分析!$B11,'1.3-19春夏调配（更新）'!$Z:$Z,"是",'1.3-19春夏调配（更新）'!$X:$X,"<>已审核") -> 2 | CF11: =SUMIFS('1.3-19春夏调配（更新）'!$P:$P,'1.3-19春夏调配（更新）'!$G:$G,运营部分析!$J$1,'1.3-19春夏调配（更新）'!$A:$A,运营部分析!$B11,'1.3-19春夏调配（更新）'!$Z:$Z,"否",'1.3-19春夏调配（更新）'!$X:$X,"<>已审核") -> 31 | CG11: =SUMIFS('2.1-18春夏销售（止18年9月30日）'!$I:$I,'2.1-18春夏销售（止18年9月30日）'!$D:$D,运营部分析!$J$1,'2.1-18春夏销售（止18年9月30日）'!$V:$V,运营部分析!CG$4,'2.1-18春夏销售（止18年9月30日）'!$A:$A,运营部分析!$B11,'2.1-18春夏销售（止18年9月30日）'!$W:$W,"否",'2.1-18春夏销售（止18年9月30日）'!$X:$X,"新品") -> 0 | CH11: =SUMIFS('2.1-18春夏销售（止18年9月30日）'!$I:$I,'2.1-18春夏销售（止18年9月30日）'!$D:$D,运营部分析!$J$1,'2.1-18春夏销售（止18年9月30日）'!$V:$V,运营部分析!CH$4,'2.1-18春夏销售（止18年9月30日）'!$A:$A,运营部分析!$B11,'2.1-18春夏销售（止18年9月30日）'!$W:$W,"否",'2.1-18春夏销售（止18年9月30日）'!$X:$X,"新品") -> 0 | CI11: =SUMIFS('2.1-18春夏销售（止18年9月30日）'!$I:$I,'2.1-18春夏销售（止18年9月30日）'!$D:$D,运营部分析!$J$1,'2.1-18春夏销售（止18年9月30日）'!$V:$V,运营部分析!CI$4,'2.1-18春夏销售（止18年9月30日）'!$A:$A,运营部分析!$B11,'2.1-18春夏销售（止18年9月30日）'!$W:$W,"否",'2.1-18春夏销售（止18年9月30日）'!$X:$X,"新品") -> 0 | CJ11: =SUMIFS('2.1-18春夏销售（止18年9月30日）'!$I:$I,'2.1-18春夏销售（止18年9月30日）'!$D:$D,运营部分析!$J$1,'2.1-18春夏销售（止18年9月30日）'!$V:$V,运营部分析!CJ$4,'2.1-18春夏销售（止18年9月30日）'!$A:$A,运营部分析!$B11,'2.1-18春夏销售（止18年9月30日）'!$W:$W,"否",'2.1-18春夏销售（止18年9月30日）'!$X:$X,"新品") -> 0 | CK11: =SUMIFS('2.1-18春夏销售（止18年9月30日）'!$I:$I,'2.1-18春夏销售（止18年9月30日）'!$D:$D,运营部分析!$J$1,'2.1-18春夏销售（止18年9月30日）'!$V:$V,运营部分析!CK$4,'2.1-18春夏销售（止18年9月30日）'!$A:$A,运营部分析!$B11,'2.1-18春夏销售（止18年9月30日）'!$W:$W,"否",'2.1-18春夏销售（止18年9月30日）'!$X:$X,"新品") -> 0 | CL11: =SUMIFS('2.1-18春夏销售（止18年9月30日）'!$I:$I,'2.1-18春夏销售（止18年9月30日）'!$D:$D,运营部分析!$J$1,'2.1-18春夏销售（止18年9月30日）'!$V:$V,运营部分析!CL$4,'2.1-18春夏销售（止18年9月30日）'!$A:$A,运营部分析!$B11,'2.1-18春夏销售（止18年9月30日）'!$W:$W,"否",'2.1-18春夏销售（止18年9月30日）'!$X:$X,"新品") -> 0 | CM11: =SUMIFS('2.1-18春夏销售（止18年9月30日）'!$I:$I,'2.1-18春夏销售（止18年9月30日）'!$D:$D,运营部分析!$J$1,'2.1-18春夏销售（止18年9月30日）'!$V:$V,运营部分析!CM$4,'2.1-18春夏销售（止18年9月30日）'!$A:$A,运营部分析!$B11,'2.1-18春夏销售（止18年9月30日）'!$W:$W,"否",'2.1-18春夏销售（止18年9月30日）'!$X:$X,"新品") -> 23 | CN11: =SUMIFS('2.1-18春夏销售（止18年9月30日）'!$I:$I,'2.1-18春夏销售（止18年9月30日）'!$D:$D,运营部分析!$J$1,'2.1-18春夏销售（止18年9月30日）'!$V:$V,运营部分析!CN$4,'2.1-18春夏销售（止18年9月30日）'!$A:$A,运营部分析!$B11,'2.1-18春夏销售（止18年9月30日）'!$W:$W,"否",'2.1-18春夏销售（止18年9月30日）'!$X:$X,"新品") -> 137 | CO11: =SUMIFS('2.1-18春夏销售（止18年9月30日）'!$I:$I,'2.1-18春夏销售（止18年9月30日）'!$D:$D,运营部分析!$J$1,'2.1-18春夏销售（止18年9月30日）'!$V:$V,运营部分析!CO$4,'2.1-18春夏销售（止18年9月30日）'!$A:$A,运营部分析!$B11,'2.1-18春夏销售（止18年9月30日）'!$W:$W,"否",'2.1-18春夏销售（止18年9月30日）'!$X:$X,"新品") -> 36 | CP11: =SUMIFS('2.1-18春夏销售（止18年9月30日）'!$I:$I,'2.1-18春夏销售（止18年9月30日）'!$D:$D,运营部分析!$J$1,'2.1-18春夏销售（止18年9月30日）'!$V:$V,运营部分析!CP$4,'2.1-18春夏销售（止18年9月30日）'!$A:$A,运营部分析!$B11,'2.1-18春夏销售（止18年9月30日）'!$W:$W,"否",'2.1-18春夏销售（止18年9月30日）'!$X:$X,"新品") -> 57 | CQ11: 253 | CR11: 715 | CS11: 0.5142663043 | CT11: =SUMIFS('2.1-18春夏销售（止18年9月30日）'!$S:$S,'2.1-18春夏销售（止18年9月30日）'!$D:$D,运营部分析!$J$1,'2.1-18春夏销售（止18年9月30日）'!$V:$V,运营部分析!CT$4,'2.1-18春夏销售（止18年9月30日）'!$A:$A,运营部分析!$B11,'2.1-18春夏销售（止18年9月30日）'!$W:$W,"否",'2.1-18春夏销售（止18年9月30日）'!$X:$X,"新品")/10000 -> 0 | CU11: =SUMIFS('2.1-18春夏销售（止18年9月30日）'!$S:$S,'2.1-18春夏销售（止18年9月30日）'!$D:$D,运营部分析!$J$1,'2.1-18春夏销售（止18年9月30日）'!$V:$V,运营部分析!CU$4,'2.1-18春夏销售（止18年9月30日）'!$A:$A,运营部分析!$B11,'2.1-18春夏销售（止18年9月30日）'!$W:$W,"否",'2.1-18春夏销售（止18年9月30日）'!$X:$X,"新品")/10000 -> 0 | CV11: =SUMIFS('2.1-18春夏销售（止18年9月30日）'!$S:$S,'2.1-18春夏销售（止18年9月30日）'!$D:$D,运营部分析!$J$1,'2.1-18春夏销售（止18年9月30日）'!$V:$V,运营部分析!CV$4,'2.1-18春夏销售（止18年9月30日）'!$A:$A,运营部分析!$B11,'2.1-18春夏销售（止18年9月30日）'!$W:$W,"否",'2.1-18春夏销售（止18年9月30日）'!$X:$X,"新品")/10000 -> 0 | CW11: =SUMIFS('2.1-18春夏销售（止18年9月30日）'!$S:$S,'2.1-18春夏销售（止18年9月30日）'!$D:$D,运营部分析!$J$1,'2.1-18春夏销售（止18年9月30日）'!$V:$V,运营部分析!CW$4,'2.1-18春夏销售（止18年9月30日）'!$A:$A,运营部分析!$B11,'2.1-18春夏销售（止18年9月30日）'!$W:$W,"否",'2.1-18春夏销售（止18年9月30日）'!$X:$X,"新品")/10000 -> 0 | CX11: =SUMIFS('2.1-18春夏销售（止18年9月30日）'!$S:$S,'2.1-18春夏销售（止18年9月30日）'!$D:$D,运营部分析!$J$1,'2.1-18春夏销售（止18年9月30日）'!$V:$V,运营部分析!CX$4,'2.1-18春夏销售（止18年9月30日）'!$A:$A,运营部分析!$B11,'2.1-18春夏销售（止18年9月30日）'!$W:$W,"否",'2.1-18春夏销售（止18年9月30日）'!$X:$X,"新品")/10000 -> 0 | CY11: =SUMIFS('2.1-18春夏销售（止18年9月30日）'!$S:$S,'2.1-18春夏销售（止18年9月30日）'!$D:$D,运营部分析!$J$1,'2.1-18春夏销售（止18年9月30日）'!$V:$V,运营部分析!CY$4,'2.1-18春夏销售（止18年9月30日）'!$A:$A,运营部分析!$B11,'2.1-18春夏销售（止18年9月30日）'!$W:$W,"否",'2.1-18春夏销售（止18年9月30日）'!$X:$X,"新品")/10000 -> 0 | CZ11: =SUMIFS('2.1-18春夏销售（止18年9月30日）'!$S:$S,'2.1-18春夏销售（止18年9月30日）'!$D:$D,运营部分析!$J$1,'2.1-18春夏销售（止18年9月30日）'!$V:$V,运营部分析!CZ$4,'2.1-18春夏销售（止18年9月30日）'!$A:$A,运营部分析!$B11,'2.1-18春夏销售（止18年9月30日）'!$W:$W,"否",'2.1-18春夏销售（止18年9月30日）'!$X:$X,"新品")/10000 -> 1.4677 | DA11: =SUMIFS('2.1-18春夏销售（止18年9月30日）'!$S:$S,'2.1-18春夏销售（止18年9月30日）'!$D:$D,运营部分析!$J$1,'2.1-18春夏销售（止18年9月30日）'!$V:$V,运营部分析!DA$4,'2.1-18春夏销售（止18年9月30日）'!$A:$A,运营部分析!$B11,'2.1-18春夏销售（止18年9月30日）'!$W:$W,"否",'2.1-18春夏销售（止18年9月30日）'!$X:$X,"新品")/10000 -> 8.3783 | DB11: =SUMIFS('2.1-18春夏销售（止18年9月30日）'!$S:$S,'2.1-18春夏销售（止18年9月30日）'!$D:$D,运营部分析!$J$1,'2.1-18春夏销售（止18年9月30日）'!$V:$V,运营部分析!DB$4,'2.1-18春夏销售（止18年9月30日）'!$A:$A,运营部分析!$B11,'2.1-18春夏销售（止18年9月30日）'!$W:$W,"否",'2.1-18春夏销售（止18年9月30日）'!$X:$X,"新品")/10000 -> 2.3264 | DC11: =SUMIFS('2.1-18春夏销售（止18年9月30日）'!$S:$S,'2.1-18春夏销售（止18年9月30日）'!$D:$D,运营部分析!$J$1,'2.1-18春夏销售（止18年9月30日）'!$V:$V,运营部分析!DC$4,'2.1-18春夏销售（止18年9月30日）'!$A:$A,运营部分析!$B11,'2.1-18春夏销售（止18年9月30日）'!$W:$W,"否",'2.1-18春夏销售（止18年9月30日）'!$X:$X,"新品")/10000 -> 3.6823 | DD11: 15.8547 | DE11: 54.7845 | DF11: 0.4857595828 | DH11: =SUMIFS('1.1-19春夏新旧品销售（更新）'!$I:$I,'1.1-19春夏新旧品销售（更新）'!$D:$D,运营部分析!$J$1,'1.1-19春夏新旧品销售（更新）'!$A:$A,运营部分析!$B11,'1.1-19春夏新旧品销售（更新）'!$AB:$AB,"新品",'1.1-19春夏新旧品销售（更新）'!$AG:$AG,"是") -> 0 | DI11: =SUMIFS('1.1-19春夏新旧品销售（更新）'!$S:$S,'1.1-19春夏新旧品销售（更新）'!$D:$D,运营部分析!$J$1,'1.1-19春夏新旧品销售（更新）'!$A:$A,运营部分析!$B11,'1.1-19春夏新旧品销售（更新）'!$AB:$AB,"新品",'1.1-19春夏新旧品销售（更新）'!$AG:$AG,"是")/10000 -> 0 | DJ11: =SUMIFS('1.6-19春夏期货订单（更新）'!$AG:$AG,'1.6-19春夏期货订单（更新）'!$F:$F,运营部分析!$J$1,'1.6-19春夏期货订单（更新）'!$A:$A,运营部分析!$B11,'1.6-19春夏期货订单（更新）'!$AQ:$AQ,"是")+SUMIFS('1.2-19春夏发货（更新）'!$K:$K,'1.2-19春夏发货（更新）'!$A:$A,运营部分析!$B11,'1.2-19春夏发货（更新）'!$Q:$Q,运营部分析!$J$1,'1.2-19春夏发货（更新）'!$T:$T,"当季补货",'1.2-19春夏发货（更新）'!$W:$W,"是")+SUMIFS('1.2-19春夏发货（更新）'!$K:$K,'1.2-19春夏发货（更新）'!$A:$A,运营部分析!$B11,'1.2-19春夏发货（更新）'!$Q:$Q,运营部分析!$J$1,'1.2-19春夏发货（更新）'!$T:$T,"往季补货",'1.2-19春夏发货（更新）'!$W:$W,"是")+SUMIFS('1.3-19春夏调配（更新）'!$P:$P,'1.3-19春夏调配（更新）'!$K:$K,运营部分析!$J$1,'1.3-19春夏调配（更新）'!$A:$A,运营部分析!$B11,'1.3-19春夏调配（更新）'!$AC:$AC,"是",'1.3-19春夏调配（更新）'!$X:$X,"<>已审核")-SUMIFS('1.3-19春夏调配（更新）'!$P:$P,'1.3-19春夏调配（更新）'!$G:$G,运营部分析!$J$1,'1.3-19春夏调配（更新）'!$A:$A,运营部分析!$B11,'1.3-19春夏调配（更新）'!$AC:$AC,"是",'1.3-19春夏调配（更新）'!$X:$X,"<>已审核") -> 0 | DK11: =SUMIFS('1.6-19春夏期货订单（更新）'!$AN:$AN,'1.6-19春夏期货订单（更新）'!$F:$F,运营部分析!$J$1,'1.6-19春夏期货订单（更新）'!$A:$A,运营部分析!$B11,'1.6-19春夏期货订单（更新）'!$AQ:$AQ,"是")/10000+SUMIFS('1.2-19春夏发货（更新）'!$U:$U,'1.2-19春夏发货（更新）'!$A:$A,运营部分析!$B11,'1.2-19春夏发货（更新）'!$Q:$Q,运营部分析!$J$1,'1.2-19春夏发货（更新）'!$T:$T,"当季补货",'1.2-19春夏发货（更新）'!$W:$W,"是")/10000+SUMIFS('1.2-19春夏发货（更新）'!$U:$U,'1.2-19春夏发货（更新）'!$A:$A,运营部分析!$B11,'1.2-19春夏发货（更新）'!$Q:$Q,运营部分析!$J$1,'1.2-19春夏发货（更新）'!$T:$T,"往季补货",'1.2-19春夏发货（更新）'!$W:$W,"是")/10000+SUMIFS('1.3-19春夏调配（更新）'!$AA:$AA,'1.3-19春夏调配（更新）'!$K:$K,运营部分析!$J$1,'1.3-19春夏调配（更新）'!$A:$A,运营部分析!$B11,'1.3-19春夏调配（更新）'!$AC:$AC,"是",'1.3-19春夏调配（更新）'!$X:$X,"<>已审核")/10000-SUMIFS('1.3-19春夏调配（更新）'!$AA:$AA,'1.3-19春夏调配（更新）'!$G:$G,运营部分析!$J$1,'1.3-19春夏调配（更新）'!$A:$A,运营部分析!$B11,'1.3-19春夏调配（更新）'!$AC:$AC,"是",'1.3-19春夏调配（更新）'!$X:$X,"<>已审核")/10000 -> 0 | DM11: 0.02105978261 | DN11: 0.02088425566
B12: 28 | C12: 风衣 | E12: =SUMIFS('1.6-19春夏期货订单（更新）'!$AG:$AG,'1.6-19春夏期货订单（更新）'!$F:$F,运营部分析!$J$1,'1.6-19春夏期货订单（更新）'!$A:$A,运营部分析!$B12)+SUMIFS('1.2-19春夏发货（更新）'!$K:$K,'1.2-19春夏发货（更新）'!$A:$A,运营部分析!$B12,'1.2-19春夏发货（更新）'!$Q:$Q,运营部分析!$J$1,'1.2-19春夏发货（更新）'!$T:$T,"当季补货")+SUMIFS('1.2-19春夏发货（更新）'!$K:$K,'1.2-19春夏发货（更新）'!$A:$A,运营部分析!$B12,'1.2-19春夏发货（更新）'!$Q:$Q,运营部分析!$J$1,'1.2-19春夏发货（更新）'!$T:$T,"往季补货")+SUMIFS('1.3-19春夏调配（更新）'!$P:$P,'1.3-19春夏调配（更新）'!$K:$K,运营部分析!$J$1,'1.3-19春夏调配（更新）'!$A:$A,运营部分析!$B12)-SUMIFS('1.3-19春夏调配（更新）'!$P:$P,'1.3-19春夏调配（更新）'!$G:$G,运营部分析!$J$1,'1.3-19春夏调配（更新）'!$A:$A,运营部分析!$B12,'1.3-19春夏调配（更新）'!$Z:$Z,"是") -> 294 | F12: =SUMIFS('1.6-19春夏期货订单（更新）'!$AN:$AN,'1.6-19春夏期货订单（更新）'!$F:$F,运营部分析!$J$1,'1.6-19春夏期货订单（更新）'!$A:$A,运营部分析!$B12)/10000+SUMIFS('1.2-19春夏发货（更新）'!$U:$U,'1.2-19春夏发货（更新）'!$A:$A,运营部分析!$B12,'1.2-19春夏发货（更新）'!$Q:$Q,运营部分析!$J$1,'1.2-19春夏发货（更新）'!$T:$T,"当季补货")/10000+SUMIFS('1.2-19春夏发货（更新）'!$U:$U,'1.2-19春夏发货（更新）'!$A:$A,运营部分析!$B12,'1.2-19春夏发货（更新）'!$Q:$Q,运营部分析!$J$1,'1.2-19春夏发货（更新）'!$T:$T,"往季补货")/10000+SUMIFS('1.3-19春夏调配（更新）'!$AA:$AA,'1.3-19春夏调配（更新）'!$K:$K,运营部分析!$J$1,'1.3-19春夏调配（更新）'!$A:$A,运营部分析!$B12)/10000-SUMIFS('1.3-19春夏调配（更新）'!$AA:$AA,'1.3-19春夏调配（更新）'!$G:$G,运营部分析!$J$1,'1.3-19春夏调配（更新）'!$A:$A,运营部分析!$B12,'1.3-19春夏调配（更新）'!$Z:$Z,"是")/10000 -> 23.3206 | G12: =(SUMIFS('2.1-18春夏销售（止18年9月30日）'!$I:$I,'2.1-18春夏销售（止18年9月30日）'!$X:$X,"新品",'2.1-18春夏销售（止18年9月30日）'!$A:$A,运营部分析!$B12,'2.1-18春夏销售（止18年9月30日）'!$D:$D,运营部分析!$J$1)+SUMIFS('2.2--18春夏库存（止18年9月30日）'!$M:$M,'2.2--18春夏库存（止18年9月30日）'!$C:$C,运营部分析!$J$1,'2.2--18春夏库存（止18年9月30日）'!$A:$A,运营部分析!$B12)+SUMIFS('2.4-18春夏冬退货（止18年9月30日）'!$Q:$Q,'2.4-18春夏冬退货（止18年9月30日）'!$D:$D,运营部分析!$J$1,'2.4-18春夏冬退货（止18年9月30日）'!$A:$A,运营部分析!$B12)+SUMIFS('2.3-18春夏调配（止18年9月30日）'!$P:$P,'2.3-18春夏调配（止18年9月30日）'!$G:$G,运营部分析!$J$1,'2.3-18春夏调配（止18年9月30日）'!$A:$A,运营部分析!$B12)) -> 312 | H12: =(SUMIFS('2.1-18春夏销售（止18年9月30日）'!$S:$S,'2.1-18春夏销售（止18年9月30日）'!$X:$X,"新品",'2.1-18春夏销售（止18年9月30日）'!$A:$A,运营部分析!$B12,'2.1-18春夏销售（止18年9月30日）'!$D:$D,运营部分析!$J$1)/10000+SUMIFS('2.2--18春夏库存（止18年9月30日）'!$P:$P,'2.2--18春夏库存（止18年9月30日）'!$C:$C,运营部分析!$J$1,'2.2--18春夏库存（止18年9月30日）'!$A:$A,运营部分析!$B12)/10000+SUMIFS('2.4-18春夏冬退货（止18年9月30日）'!$T:$T,'2.4-18春夏冬退货（止18年9月30日）'!$D:$D,运营部分析!$J$1,'2.4-18春夏冬退货（止18年9月30日）'!$A:$A,运营部分析!$B12)/10000+SUMIFS('2.3-18春夏调配（止18年9月30日）'!$Y:$Y,'2.3-18春夏调配（止18年9月30日）'!$G:$G,运营部分析!$J$1,'2.3-18春夏调配（止18年9月30日）'!$A:$A,运营部分析!$B12)/10000) -> 23.6808 | I12: -0.05769230769 | J12: -0.01521063478 | K12: =SUMIFS('1.1-19春夏新旧品销售（更新）'!$I:$I,'1.1-19春夏新旧品销售（更新）'!$D:$D,运营部分析!$J$1,'1.1-19春夏新旧品销售（更新）'!$A:$A,运营部分析!$B12,'1.1-19春夏新旧品销售（更新）'!$AB:$AB,"新品") -> 103 | L12: =SUMIFS('1.1-19春夏新旧品销售（更新）'!$S:$S,'1.1-19春夏新旧品销售（更新）'!$D:$D,运营部分析!$J$1,'1.1-19春夏新旧品销售（更新）'!$A:$A,运营部分析!$B12,'1.1-19春夏新旧品销售（更新）'!$AB:$AB,"新品")/10000 -> 7.8997 | M12: =SUMIFS('2.1-18春夏销售（止18年9月30日）'!$I:$I,'2.1-18春夏销售（止18年9月30日）'!$D:$D,运营部分析!$J$1,'2.1-18春夏销售（止18年9月30日）'!$A:$A,运营部分析!$B12,'2.1-18春夏销售（止18年9月30日）'!$X:$X,"新品",'2.1-18春夏销售（止18年9月30日）'!$T:$T,"同期销售") -> 79 | N12: =SUMIFS('2.1-18春夏销售（止18年9月30日）'!$S:$S,'2.1-18春夏销售（止18年9月30日）'!$D:$D,运营部分析!$J$1,'2.1-18春夏销售（止18年9月30日）'!$A:$A,运营部分析!$B12,'2.1-18春夏销售（止18年9月30日）'!$X:$X,"新品",'2.1-18春夏销售（止18年9月30日）'!$T:$T,"同期销售")/10000 -> 5.9961 | O12: 0.3037974684 | P12: 0.3174730241 | Q12: =SUMIFS('2.1-18春夏销售（止18年9月30日）'!$I:$I,'2.1-18春夏销售（止18年9月30日）'!$D:$D,运营部分析!$J$1,'2.1-18春夏销售（止18年9月30日）'!$A:$A,运营部分析!$B12,'2.1-18春夏销售（止18年9月30日）'!$X:$X,"新品") -> 94 | R12: =SUMIFS('2.1-18春夏销售（止18年9月30日）'!$S:$S,'2.1-18春夏销售（止18年9月30日）'!$D:$D,运营部分析!$J$1,'2.1-18春夏销售（止18年9月30日）'!$A:$A,运营部分析!$B12,'2.1-18春夏销售（止18年9月30日）'!$X:$X,"新品")/10000 -> 7.1346 | S12: =SUMIFS('1.5-19春夏新旧品库存（更新）'!$BF:$BF,'1.5-19春夏新旧品库存（更新）'!$B:$B,运营部分析!$J$1,'1.5-19春夏新旧品库存（更新）'!$E:$E,运营部分析!$B12,'1.5-19春夏新旧品库存（更新）'!$BI:$BI,"新品") -> 173 | T12: =SUMIFS('1.5-19春夏新旧品库存（更新）'!$BG:$BG,'1.5-19春夏新旧品库存（更新）'!$B:$B,运营部分析!$J$1,'1.5-19春夏新旧品库存（更新）'!$E:$E,运营部分析!$B12,'1.5-19春夏新旧品库存（更新）'!$BI:$BI,"新品")/10000 -> 14.1567 | U12: =(SUMIFS('2.2--18春夏库存（止18年9月30日）'!$M:$M,'2.2--18春夏库存（止18年9月30日）'!$C:$C,运营部分析!$J$1,'2.2--18春夏库存（止18年9月30日）'!$A:$A,运营部分析!$B12)) -> 197 | V12: =(SUMIFS('2.2--18春夏库存（止18年9月30日）'!$P:$P,'2.2--18春夏库存（止18年9月30日）'!$C:$C,运营部分析!$J$1,'2.2--18春夏库存（止18年9月30日）'!$A:$A,运营部分析!$B12))/10000 -> 14.9523 | W12: -0.1218274112 | X12: -0.05320920527 | Y12: 0.4074074074 | Z12: 0.3874422361 | AA12: =SUMIFS('2.3-18春夏调配（止18年9月30日）'!$P:$P,'2.3-18春夏调配（止18年9月30日）'!$G:$G,运营部分析!$J$1,'2.3-18春夏调配（止18年9月30日）'!$A:$A,运营部分析!$B12,'2.3-18春夏调配（止18年9月30日）'!$Z:$Z,"否",'2.3-18春夏调配（止18年9月30日）'!$AA:$AA,"是") -> 8 | AB12: =SUMIFS('2.3-18春夏调配（止18年9月30日）'!$Y:$Y,'2.3-18春夏调配（止18年9月30日）'!$G:$G,运营部分析!$J$1,'2.3-18春夏调配（止18年9月30日）'!$A:$A,运营部分析!$B12,'2.3-18春夏调配（止18年9月30日）'!$Z:$Z,"否",'2.3-18春夏调配（止18年9月30日）'!$AA:$AA,"是")/10000 -> 0.6072 | AC12: =SUMIFS('2.3-18春夏调配（止18年9月30日）'!$P:$P,'2.3-18春夏调配（止18年9月30日）'!$G:$G,运营部分析!$J$1,'2.3-18春夏调配（止18年9月30日）'!$A:$A,运营部分析!$B12,'2.3-18春夏调配（止18年9月30日）'!$Z:$Z,"是",'2.3-18春夏调配（止18年9月30日）'!$AA:$AA,"是") -> 3 | AD12: =SUMIFS('2.3-18春夏调配（止18年9月30日）'!$Y:$Y,'2.3-18春夏调配（止18年9月30日）'!$G:$G,运营部分析!$J$1,'2.3-18春夏调配（止18年9月30日）'!$A:$A,运营部分析!$B12,'2.3-18春夏调配（止18年9月30日）'!$Z:$Z,"是",'2.3-18春夏调配（止18年9月30日）'!$AA:$AA,"是")/10000 -> 0.2277 | AE12: 0.2815533981 | AF12: 0.2815533981 | AI12: 0.4469987229 | AJ12: 0.3760879419 | AK12: =SUMIFS('2.3-18春夏调配（止18年9月30日）'!$P:$P,'2.3-18春夏调配（止18年9月30日）'!$G:$G,运营部分析!$J$1,'2.3-18春夏调配（止18年9月30日）'!$A:$A,运营部分析!$B12,'2.3-18春夏调配（止18年9月30日）'!$Z:$Z,"否") -> 18 | AL12: =SUMIFS('2.3-18春夏调配（止18年9月30日）'!$Y:$Y,'2.3-18春夏调配（止18年9月30日）'!$G:$G,运营部分析!$J$1,'2.3-18春夏调配（止18年9月30日）'!$A:$A,运营部分析!$B12,'2.3-18春夏调配（止18年9月30日）'!$Z:$Z,"否")/10000 -> 1.3662 | AM12: =SUMIFS('2.3-18春夏调配（止18年9月30日）'!$P:$P,'2.3-18春夏调配（止18年9月30日）'!$G:$G,运营部分析!$J$1,'2.3-18春夏调配（止18年9月30日）'!$A:$A,运营部分析!$B12,'2.3-18春夏调配（止18年9月30日）'!$Z:$Z,"是") -> 3 | AN12: =SUMIFS('2.3-18春夏调配（止18年9月30日）'!$Y:$Y,'2.3-18春夏调配（止18年9月30日）'!$G:$G,运营部分析!$J$1,'2.3-18春夏调配（止18年9月30日）'!$A:$A,运营部分析!$B12,'2.3-18春夏调配（止18年9月30日）'!$Z:$Z,"是")/10000 -> 0.2277 | AO12: 0.3624595469 | AP12: 0.3624595469 | AQ12: =SUMIFS('1.2-19春夏发货（更新）'!$K:$K,'1.2-19春夏发货（更新）'!$A:$A,运营部分析!$B12,'1.2-19春夏发货（更新）'!Q:Q,运营部分析!$J$1) -> 291 | AR12: 0.9897959184 | AS12: 3 | AT12: 299 | AU12: =SUMIFS('1.6-19春夏期货订单（更新）'!$AP:$AP,'1.6-19春夏期货订单（更新）'!$A:$A,运营部分析!$B12,'1.6-19春夏期货订单（更新）'!$F:$F,运营部分析!$J$1) -> 5 | AV12: =SUMIFS('1.1-19春夏新旧品销售（更新）'!$X:$X,'1.1-19春夏新旧品销售（更新）'!$A:$A,运营部分析!$B12,'1.1-19春夏新旧品销售（更新）'!D:D,运营部分析!$J$1,'1.1-19春夏新旧品销售（更新）'!$U:$U,"月",'1.1-19春夏新旧品销售（更新）'!$AH:$AH,"新品") -> 3 | AW12: =SUMIFS('1.5-19春夏新旧品库存（更新）'!$BM:$BM,'1.5-19春夏新旧品库存（更新）'!$E:$E,运营部分析!$B12,'1.5-19春夏新旧品库存（更新）'!$B:$B,运营部分析!$J$1,'1.5-19春夏新旧品库存（更新）'!$BI:$BI,"新品") -> 5 | AX12: 0.6 | AY12: 13.30769231 | AZ12: =SUMIFS('1.1-19春夏新旧品销售（更新）'!$I:$I,'1.1-19春夏新旧品销售（更新）'!$A:$A,运营部分析!$B12,'1.1-19春夏新旧品销售（更新）'!$U:$U,"月",'1.1-19春夏新旧品销售（更新）'!$D:$D,运营部分析!$J$1,'1.1-19春夏新旧品销售（更新）'!$AH:$AH,"新品") -> 13 | BA12: =SUMIFS('1.1-19春夏新旧品销售（更新）'!$J:$J,'1.1-19春夏新旧品销售（更新）'!$A:$A,运营部分析!$B12,'1.1-19春夏新旧品销售（更新）'!$U:$U,"月",'1.1-19春夏新旧品销售（更新）'!$D:$D,运营部分析!$J$1,'1.1-19春夏新旧品销售（更新）'!$AH:$AH,"新品")/10000 -> 0.588 | BB12: =SUMIFS('1.1-19春夏新旧品销售（更新）'!$K:$K,'1.1-19春夏新旧品销售（更新）'!$A:$A,运营部分析!$B12,'1.1-19春夏新旧品销售（更新）'!$U:$U,"月",'1.1-19春夏新旧品销售（更新）'!$D:$D,运营部分析!$J$1,'1.1-19春夏新旧品销售（更新）'!$AH:$AH,"新品")/10000 -> 1.0797 | BC12: =SUMIFS('1.1-19春夏新旧品销售（更新）'!$S:$S,'1.1-19春夏新旧品销售（更新）'!$A:$A,运营部分析!$B12,'1.1-19春夏新旧品销售（更新）'!$U:$U,"月",'1.1-19春夏新旧品销售（更新）'!$D:$D,运营部分析!$J$1,'1.1-19春夏新旧品销售（更新）'!$AH:$AH,"新品")/10000 -> 0.9727 | BD12: 1.110003084 | BE12: 452.3076923 | BF12: 0.60450293 | BG12: =SUMIFS('2.1-18春夏销售（止18年9月30日）'!$J:$J,'2.1-18春夏销售（止18年9月30日）'!$A:$A,运营部分析!$B12,'2.1-18春夏销售（止18年9月30日）'!$D:$D,运营部分析!$J$1,'2.1-18春夏销售（止18年9月30日）'!$U:$U,"月",'2.1-18春夏销售（止18年9月30日）'!$X:$X,"新品")/10000 -> 0.2696 | BH12: =SUMIFS('2.1-18春夏销售（止18年9月30日）'!$S:$S,'2.1-18春夏销售（止18年9月30日）'!$A:$A,运营部分析!$B12,'2.1-18春夏销售（止18年9月30日）'!$D:$D,运营部分析!$J$1,'2.1-18春夏销售（止18年9月30日）'!$U:$U,"月",'2.1-18春夏销售（止18年9月30日）'!$X:$X,"新品")/10000 -> 0.3036 | BI12: 0.8880105402 | BJ12: =SUMIFS('1.1-19春夏新旧品销售（更新）'!$J:$J,'1.1-19春夏新旧品销售（更新）'!$A:$A,运营部分析!$B12,'1.1-19春夏新旧品销售（更新）'!$D:$D,运营部分析!$J$1,'1.1-19春夏新旧品销售（更新）'!$T:$T,"本周",'1.1-19春夏新旧品销售（更新）'!$AH:$AH,"新品")/10000 -> 0.1905 | BK12: =SUMIFS('1.1-19春夏新旧品销售（更新）'!$S:$S,'1.1-19春夏新旧品销售（更新）'!$A:$A,运营部分析!$B12,'1.1-19春夏新旧品销售（更新）'!$D:$D,运营部分析!$J$1,'1.1-19春夏新旧品销售（更新）'!$T:$T,"本周",'1.1-19春夏新旧品销售（更新）'!$AH:$AH,"新品")/10000 -> 0.2796 | BL12: 0.6813304721 | BM12: 0.01315252937 | BN12: 0.006230271651 | BO12: =SUMIFS('1.1-19春夏新旧品销售（更新）'!$I:$I,'1.1-19春夏新旧品销售（更新）'!$A:$A,运营部分析!#REF!,'1.1-19春夏新旧品销售（更新）'!$D:$D,运营部分析!$J$1,'1.1-19春夏新旧品销售（更新）'!$T:$T,"上上周",'1.1-19春夏新旧品销售（更新）'!$AH:$AH,"新品") -> 0 | BP12: =SUMIFS('1.1-19春夏新旧品销售（更新）'!$I:$I,'1.1-19春夏新旧品销售（更新）'!$A:$A,运营部分析!$B11,'1.1-19春夏新旧品销售（更新）'!$D:$D,运营部分析!$J$1,'1.1-19春夏新旧品销售（更新）'!$T:$T,"上周",'1.1-19春夏新旧品销售（更新）'!$AH:$AH,"新品") -> 12 | BQ12: =SUMIFS('1.1-19春夏新旧品销售（更新）'!$I:$I,'1.1-19春夏新旧品销售（更新）'!$A:$A,运营部分析!$B11,'1.1-19春夏新旧品销售（更新）'!$D:$D,运营部分析!$J$1,'1.1-19春夏新旧品销售（更新）'!$T:$T,"本周",'1.1-19春夏新旧品销售（更新）'!$AH:$AH,"新品") -> 13 | BR12: =SUMIFS('1.1-19春夏新旧品销售（更新）'!$I:$I,'1.1-19春夏新旧品销售（更新）'!$A:$A,运营部分析!$B12,'1.1-19春夏新旧品销售（更新）'!$D:$D,运营部分析!$J$1,'1.1-19春夏新旧品销售（更新）'!$U:$U,"月",'1.1-19春夏新旧品销售（更新）'!$AH:$AH,"新品") -> 13 | BS12: 0 | BT12: 0.08333333333 | BU12: 0.03376623377 | BV12: 0.006922257721 | CA12: =SUMIFS('1.3-19春夏调配（更新）'!$AA:$AA,'1.3-19春夏调配（更新）'!$K:$K,运营部分析!$J$1,'1.3-19春夏调配（更新）'!$A:$A,运营部分析!$B12,'1.3-19春夏调配（更新）'!$X:$X,"<>已审核")/10000 -> 0.6872 | CB12: =SUMIFS('1.3-19春夏调配（更新）'!$AA:$AA,'1.3-19春夏调配（更新）'!$G:$G,运营部分析!$J$1,'1.3-19春夏调配（更新）'!$A:$A,运营部分析!$B12,'1.3-19春夏调配（更新）'!$Z:$Z,"是",'1.3-19春夏调配（更新）'!$X:$X,"<>已审核")/10000 -> 0.3555 | CC12: =SUMIFS('1.3-19春夏调配（更新）'!$AA:$AA,'1.3-19春夏调配（更新）'!$G:$G,运营部分析!$J$1,'1.3-19春夏调配（更新）'!$A:$A,运营部分析!$B12,'1.3-19春夏调配（更新）'!$Z:$Z,"否",'1.3-19春夏调配（更新）'!$X:$X,"<>已审核")/10000 -> 1.2642 | CD12: =SUMIFS('1.3-19春夏调配（更新）'!$P:$P,'1.3-19春夏调配（更新）'!$K:$K,运营部分析!$J$1,'1.3-19春夏调配（更新）'!$A:$A,运营部分析!$B12,'1.3-19春夏调配（更新）'!$X:$X,"<>已审核") -> 8 | CE12: =SUMIFS('1.3-19春夏调配（更新）'!$P:$P,'1.3-19春夏调配（更新）'!$G:$G,运营部分析!$J$1,'1.3-19春夏调配（更新）'!$A:$A,运营部分析!$B12,'1.3-19春夏调配（更新）'!$Z:$Z,"是",'1.3-19春夏调配（更新）'!$X:$X,"<>已审核") -> 5 | CF12: =SUMIFS('1.3-19春夏调配（更新）'!$P:$P,'1.3-19春夏调配（更新）'!$G:$G,运营部分析!$J$1,'1.3-19春夏调配（更新）'!$A:$A,运营部分析!$B12,'1.3-19春夏调配（更新）'!$Z:$Z,"否",'1.3-19春夏调配（更新）'!$X:$X,"<>已审核") -> 18 | CG12: =SUMIFS('2.1-18春夏销售（止18年9月30日）'!$I:$I,'2.1-18春夏销售（止18年9月30日）'!$D:$D,运营部分析!$J$1,'2.1-18春夏销售（止18年9月30日）'!$V:$V,运营部分析!CG$4,'2.1-18春夏销售（止18年9月30日）'!$A:$A,运营部分析!$B12,'2.1-18春夏销售（止18年9月30日）'!$W:$W,"否",'2.1-18春夏销售（止18年9月30日）'!$X:$X,"新品") -> 0 | CH12: =SUMIFS('2.1-18春夏销售（止18年9月30日）'!$I:$I,'2.1-18春夏销售（止18年9月30日）'!$D:$D,运营部分析!$J$1,'2.1-18春夏销售（止18年9月30日）'!$V:$V,运营部分析!CH$4,'2.1-18春夏销售（止18年9月30日）'!$A:$A,运营部分析!$B12,'2.1-18春夏销售（止18年9月30日）'!$W:$W,"否",'2.1-18春夏销售（止18年9月30日）'!$X:$X,"新品") -> 0 | CI12: =SUMIFS('2.1-18春夏销售（止18年9月30日）'!$I:$I,'2.1-18春夏销售（止18年9月30日）'!$D:$D,运营部分析!$J$1,'2.1-18春夏销售（止18年9月30日）'!$V:$V,运营部分析!CI$4,'2.1-18春夏销售（止18年9月30日）'!$A:$A,运营部分析!$B12,'2.1-18春夏销售（止18年9月30日）'!$W:$W,"否",'2.1-18春夏销售（止18年9月30日）'!$X:$X,"新品") -> 0 | CJ12: =SUMIFS('2.1-18春夏销售（止18年9月30日）'!$I:$I,'2.1-18春夏销售（止18年9月30日）'!$D:$D,运营部分析!$J$1,'2.1-18春夏销售（止18年9月30日）'!$V:$V,运营部分析!CJ$4,'2.1-18春夏销售（止18年9月30日）'!$A:$A,运营部分析!$B12,'2.1-18春夏销售（止18年9月30日）'!$W:$W,"否",'2.1-18春夏销售（止18年9月30日）'!$X:$X,"新品") -> 0 | CK12: =SUMIFS('2.1-18春夏销售（止18年9月30日）'!$I:$I,'2.1-18春夏销售（止18年9月30日）'!$D:$D,运营部分析!$J$1,'2.1-18春夏销售（止18年9月30日）'!$V:$V,运营部分析!CK$4,'2.1-18春夏销售（止18年9月30日）'!$A:$A,运营部分析!$B12,'2.1-18春夏销售（止18年9月30日）'!$W:$W,"否",'2.1-18春夏销售（止18年9月30日）'!$X:$X,"新品") -> 0 | CL12: =SUMIFS('2.1-18春夏销售（止18年9月30日）'!$I:$I,'2.1-18春夏销售（止18年9月30日）'!$D:$D,运营部分析!$J$1,'2.1-18春夏销售（止18年9月30日）'!$V:$V,运营部分析!CL$4,'2.1-18春夏销售（止18年9月30日）'!$A:$A,运营部分析!$B12,'2.1-18春夏销售（止18年9月30日）'!$W:$W,"否",'2.1-18春夏销售（止18年9月30日）'!$X:$X,"新品") -> 0 | CM12: =SUMIFS('2.1-18春夏销售（止18年9月30日）'!$I:$I,'2.1-18春夏销售（止18年9月30日）'!$D:$D,运营部分析!$J$1,'2.1-18春夏销售（止18年9月30日）'!$V:$V,运营部分析!CM$4,'2.1-18春夏销售（止18年9月30日）'!$A:$A,运营部分析!$B12,'2.1-18春夏销售（止18年9月30日）'!$W:$W,"否",'2.1-18春夏销售（止18年9月30日）'!$X:$X,"新品") -> 1 | CN12: =SUMIFS('2.1-18春夏销售（止18年9月30日）'!$I:$I,'2.1-18春夏销售（止18年9月30日）'!$D:$D,运营部分析!$J$1,'2.1-18春夏销售（止18年9月30日）'!$V:$V,运营部分析!CN$4,'2.1-18春夏销售（止18年9月30日）'!$A:$A,运营部分析!$B12,'2.1-18春夏销售（止18年9月30日）'!$W:$W,"否",'2.1-18春夏销售（止18年9月30日）'!$X:$X,"新品") -> 3 | CO12: =SUMIFS('2.1-18春夏销售（止18年9月30日）'!$I:$I,'2.1-18春夏销售（止18年9月30日）'!$D:$D,运营部分析!$J$1,'2.1-18春夏销售（止18年9月30日）'!$V:$V,运营部分析!CO$4,'2.1-18春夏销售（止18年9月30日）'!$A:$A,运营部分析!$B12,'2.1-18春夏销售（止18年9月30日）'!$W:$W,"否",'2.1-18春夏销售（止18年9月30日）'!$X:$X,"新品") -> 3 | CP12: =SUMIFS('2.1-18春夏销售（止18年9月30日）'!$I:$I,'2.1-18春夏销售（止18年9月30日）'!$D:$D,运营部分析!$J$1,'2.1-18春夏销售（止18年9月30日）'!$V:$V,运营部分析!CP$4,'2.1-18春夏销售（止18年9月30日）'!$A:$A,运营部分析!$B12,'2.1-18春夏销售（止18年9月30日）'!$W:$W,"否",'2.1-18春夏销售（止18年9月30日）'!$X:$X,"新品") -> 8 | CQ12: 15 | CR12: 161 | CS12: 0.4579124579 | CT12: =SUMIFS('2.1-18春夏销售（止18年9月30日）'!$S:$S,'2.1-18春夏销售（止18年9月30日）'!$D:$D,运营部分析!$J$1,'2.1-18春夏销售（止18年9月30日）'!$V:$V,运营部分析!CT$4,'2.1-18春夏销售（止18年9月30日）'!$A:$A,运营部分析!$B12,'2.1-18春夏销售（止18年9月30日）'!$W:$W,"否",'2.1-18春夏销售（止18年9月30日）'!$X:$X,"新品")/10000 -> 0 | CU12: =SUMIFS('2.1-18春夏销售（止18年9月30日）'!$S:$S,'2.1-18春夏销售（止18年9月30日）'!$D:$D,运营部分析!$J$1,'2.1-18春夏销售（止18年9月30日）'!$V:$V,运营部分析!CU$4,'2.1-18春夏销售（止18年9月30日）'!$A:$A,运营部分析!$B12,'2.1-18春夏销售（止18年9月30日）'!$W:$W,"否",'2.1-18春夏销售（止18年9月30日）'!$X:$X,"新品")/10000 -> 0 | CV12: =SUMIFS('2.1-18春夏销售（止18年9月30日）'!$S:$S,'2.1-18春夏销售（止18年9月30日）'!$D:$D,运营部分析!$J$1,'2.1-18春夏销售（止18年9月30日）'!$V:$V,运营部分析!CV$4,'2.1-18春夏销售（止18年9月30日）'!$A:$A,运营部分析!$B12,'2.1-18春夏销售（止18年9月30日）'!$W:$W,"否",'2.1-18春夏销售（止18年9月30日）'!$X:$X,"新品")/10000 -> 0 | CW12: =SUMIFS('2.1-18春夏销售（止18年9月30日）'!$S:$S,'2.1-18春夏销售（止18年9月30日）'!$D:$D,运营部分析!$J$1,'2.1-18春夏销售（止18年9月30日）'!$V:$V,运营部分析!CW$4,'2.1-18春夏销售（止18年9月30日）'!$A:$A,运营部分析!$B12,'2.1-18春夏销售（止18年9月30日）'!$W:$W,"否",'2.1-18春夏销售（止18年9月30日）'!$X:$X,"新品")/10000 -> 0 | CX12: =SUMIFS('2.1-18春夏销售（止18年9月30日）'!$S:$S,'2.1-18春夏销售（止18年9月30日）'!$D:$D,运营部分析!$J$1,'2.1-18春夏销售（止18年9月30日）'!$V:$V,运营部分析!CX$4,'2.1-18春夏销售（止18年9月30日）'!$A:$A,运营部分析!$B12,'2.1-18春夏销售（止18年9月30日）'!$W:$W,"否",'2.1-18春夏销售（止18年9月30日）'!$X:$X,"新品")/10000 -> 0 | CY12: =SUMIFS('2.1-18春夏销售（止18年9月30日）'!$S:$S,'2.1-18春夏销售（止18年9月30日）'!$D:$D,运营部分析!$J$1,'2.1-18春夏销售（止18年9月30日）'!$V:$V,运营部分析!CY$4,'2.1-18春夏销售（止18年9月30日）'!$A:$A,运营部分析!$B12,'2.1-18春夏销售（止18年9月30日）'!$W:$W,"否",'2.1-18春夏销售（止18年9月30日）'!$X:$X,"新品")/10000 -> 0 | CZ12: =SUMIFS('2.1-18春夏销售（止18年9月30日）'!$S:$S,'2.1-18春夏销售（止18年9月30日）'!$D:$D,运营部分析!$J$1,'2.1-18春夏销售（止18年9月30日）'!$V:$V,运营部分析!CZ$4,'2.1-18春夏销售（止18年9月30日）'!$A:$A,运营部分析!$B12,'2.1-18春夏销售（止18年9月30日）'!$W:$W,"否",'2.1-18春夏销售（止18年9月30日）'!$X:$X,"新品")/10000 -> 0.0759 | DA12: =SUMIFS('2.1-18春夏销售（止18年9月30日）'!$S:$S,'2.1-18春夏销售（止18年9月30日）'!$D:$D,运营部分析!$J$1,'2.1-18春夏销售（止18年9月30日）'!$V:$V,运营部分析!DA$4,'2.1-18春夏销售（止18年9月30日）'!$A:$A,运营部分析!$B12,'2.1-18春夏销售（止18年9月30日）'!$W:$W,"否",'2.1-18春夏销售（止18年9月30日）'!$X:$X,"新品")/10000 -> 0.2277 | DB12: =SUMIFS('2.1-18春夏销售（止18年9月30日）'!$S:$S,'2.1-18春夏销售（止18年9月30日）'!$D:$D,运营部分析!$J$1,'2.1-18春夏销售（止18年9月30日）'!$V:$V,运营部分析!DB$4,'2.1-18春夏销售（止18年9月30日）'!$A:$A,运营部分析!$B12,'2.1-18春夏销售（止18年9月30日）'!$W:$W,"否",'2.1-18春夏销售（止18年9月30日）'!$X:$X,"新品")/10000 -> 0.2277 | DC12: =SUMIFS('2.1-18春夏销售（止18年9月30日）'!$S:$S,'2.1-18春夏销售（止18年9月30日）'!$D:$D,运营部分析!$J$1,'2.1-18春夏销售（止18年9月30日）'!$V:$V,运营部分析!DC$4,'2.1-18春夏销售（止18年9月30日）'!$A:$A,运营部分析!$B12,'2.1-18春夏销售（止18年9月30日）'!$W:$W,"否",'2.1-18春夏销售（止18年9月30日）'!$X:$X,"新品")/10000 -> 0.6072 | DD12: 1.1385 | DE12: 13.3499 | DF12: 0.4355770898 | DH12: =SUMIFS('1.1-19春夏新旧品销售（更新）'!$I:$I,'1.1-19春夏新旧品销售（更新）'!$D:$D,运营部分析!$J$1,'1.1-19春夏新旧品销售（更新）'!$A:$A,运营部分析!$B12,'1.1-19春夏新旧品销售（更新）'!$AB:$AB,"新品",'1.1-19春夏新旧品销售（更新）'!$AG:$AG,"是") -> 0 | DI12: =SUMIFS('1.1-19春夏新旧品销售（更新）'!$S:$S,'1.1-19春夏新旧品销售（更新）'!$D:$D,运营部分析!$J$1,'1.1-19春夏新旧品销售（更新）'!$A:$A,运营部分析!$B12,'1.1-19春夏新旧品销售（更新）'!$AB:$AB,"新品",'1.1-19春夏新旧品销售（更新）'!$AG:$AG,"是")/10000 -> 0 | DJ12: =SUMIFS('1.6-19春夏期货订单（更新）'!$AG:$AG,'1.6-19春夏期货订单（更新）'!$F:$F,运营部分析!$J$1,'1.6-19春夏期货订单（更新）'!$A:$A,运营部分析!$B12,'1.6-19春夏期货订单（更新）'!$AQ:$AQ,"是")+SUMIFS('1.2-19春夏发货（更新）'!$K:$K,'1.2-19春夏发货（更新）'!$A:$A,运营部分析!$B12,'1.2-19春夏发货（更新）'!$Q:$Q,运营部分析!$J$1,'1.2-19春夏发货（更新）'!$T:$T,"当季补货",'1.2-19春夏发货（更新）'!$W:$W,"是")+SUMIFS('1.2-19春夏发货（更新）'!$K:$K,'1.2-19春夏发货（更新）'!$A:$A,运营部分析!$B12,'1.2-19春夏发货（更新）'!$Q:$Q,运营部分析!$J$1,'1.2-19春夏发货（更新）'!$T:$T,"往季补货",'1.2-19春夏发货（更新）'!$W:$W,"是")+SUMIFS('1.3-19春夏调配（更新）'!$P:$P,'1.3-19春夏调配（更新）'!$K:$K,运营部分析!$J$1,'1.3-19春夏调配（更新）'!$A:$A,运营部分析!$B12,'1.3-19春夏调配（更新）'!$AC:$AC,"是",'1.3-19春夏调配（更新）'!$X:$X,"<>已审核")-SUMIFS('1.3-19春夏调配（更新）'!$P:$P,'1.3-19春夏调配（更新）'!$G:$G,运营部分析!$J$1,'1.3-19春夏调配（更新）'!$A:$A,运营部分析!$B12,'1.3-19春夏调配（更新）'!$AC:$AC,"是",'1.3-19春夏调配（更新）'!$X:$X,"<>已审核") -> 0 | DK12: =SUMIFS('1.6-19春夏期货订单（更新）'!$AN:$AN,'1.6-19春夏期货订单（更新）'!$F:$F,运营部分析!$J$1,'1.6-19春夏期货订单（更新）'!$A:$A,运营部分析!$B12,'1.6-19春夏期货订单（更新）'!$AQ:$AQ,"是")/10000+SUMIFS('1.2-19春夏发货（更新）'!$U:$U,'1.2-19春夏发货（更新）'!$A:$A,运营部分析!$B12,'1.2-19春夏发货（更新）'!$Q:$Q,运营部分析!$J$1,'1.2-19春夏发货（更新）'!$T:$T,"当季补货",'1.2-19春夏发货（更新）'!$W:$W,"是")/10000+SUMIFS('1.2-19春夏发货（更新）'!$U:$U,'1.2-19春夏发货（更新）'!$A:$A,运营部分析!$B12,'1.2-19春夏发货（更新）'!$Q:$Q,运营部分析!$J$1,'1.2-19春夏发货（更新）'!$T:$T,"往季补货",'1.2-19春夏发货（更新）'!$W:$W,"是")/10000+SUMIFS('1.3-19春夏调配（更新）'!$AA:$AA,'1.3-19春夏调配（更新）'!$K:$K,运营部分析!$J$1,'1.3-19春夏调配（更新）'!$A:$A,运营部分析!$B12,'1.3-19春夏调配（更新）'!$AC:$AC,"是",'1.3-19春夏调配（更新）'!$X:$X,"<>已审核")/10000-SUMIFS('1.3-19春夏调配（更新）'!$AA:$AA,'1.3-19春夏调配（更新）'!$G:$G,运营部分析!$J$1,'1.3-19春夏调配（更新）'!$A:$A,运营部分析!$B12,'1.3-19春夏调配（更新）'!$AC:$AC,"是",'1.3-19春夏调配（更新）'!$X:$X,"<>已审核")/10000 -> 0 | DM12: 0.06060606061 | DN12: 0.05344934742
B13: 35 | C13: 派克 | E13: =SUMIFS('1.6-19春夏期货订单（更新）'!$AG:$AG,'1.6-19春夏期货订单（更新）'!$F:$F,运营部分析!$J$1,'1.6-19春夏期货订单（更新）'!$A:$A,运营部分析!$B13)+SUMIFS('1.2-19春夏发货（更新）'!$K:$K,'1.2-19春夏发货（更新）'!$A:$A,运营部分析!$B13,'1.2-19春夏发货（更新）'!$Q:$Q,运营部分析!$J$1,'1.2-19春夏发货（更新）'!$T:$T,"当季补货")+SUMIFS('1.2-19春夏发货（更新）'!$K:$K,'1.2-19春夏发货（更新）'!$A:$A,运营部分析!$B13,'1.2-19春夏发货（更新）'!$Q:$Q,运营部分析!$J$1,'1.2-19春夏发货（更新）'!$T:$T,"往季补货")+SUMIFS('1.3-19春夏调配（更新）'!$P:$P,'1.3-19春夏调配（更新）'!$K:$K,运营部分析!$J$1,'1.3-19春夏调配（更新）'!$A:$A,运营部分析!$B13)-SUMIFS('1.3-19春夏调配（更新）'!$P:$P,'1.3-19春夏调配（更新）'!$G:$G,运营部分析!$J$1,'1.3-19春夏调配（更新）'!$A:$A,运营部分析!$B13,'1.3-19春夏调配（更新）'!$Z:$Z,"是") -> 0 | F13: =SUMIFS('1.6-19春夏期货订单（更新）'!$AN:$AN,'1.6-19春夏期货订单（更新）'!$F:$F,运营部分析!$J$1,'1.6-19春夏期货订单（更新）'!$A:$A,运营部分析!$B13)/10000+SUMIFS('1.2-19春夏发货（更新）'!$U:$U,'1.2-19春夏发货（更新）'!$A:$A,运营部分析!$B13,'1.2-19春夏发货（更新）'!$Q:$Q,运营部分析!$J$1,'1.2-19春夏发货（更新）'!$T:$T,"当季补货")/10000+SUMIFS('1.2-19春夏发货（更新）'!$U:$U,'1.2-19春夏发货（更新）'!$A:$A,运营部分析!$B13,'1.2-19春夏发货（更新）'!$Q:$Q,运营部分析!$J$1,'1.2-19春夏发货（更新）'!$T:$T,"往季补货")/10000+SUMIFS('1.3-19春夏调配（更新）'!$AA:$AA,'1.3-19春夏调配（更新）'!$K:$K,运营部分析!$J$1,'1.3-19春夏调配（更新）'!$A:$A,运营部分析!$B13)/10000-SUMIFS('1.3-19春夏调配（更新）'!$AA:$AA,'1.3-19春夏调配（更新）'!$G:$G,运营部分析!$J$1,'1.3-19春夏调配（更新）'!$A:$A,运营部分析!$B13,'1.3-19春夏调配（更新）'!$Z:$Z,"是")/10000 -> 0 | G13: =(SUMIFS('2.1-18春夏销售（止18年9月30日）'!$I:$I,'2.1-18春夏销售（止18年9月30日）'!$X:$X,"新品",'2.1-18春夏销售（止18年9月30日）'!$A:$A,运营部分析!$B13,'2.1-18春夏销售（止18年9月30日）'!$D:$D,运营部分析!$J$1)+SUMIFS('2.2--18春夏库存（止18年9月30日）'!$M:$M,'2.2--18春夏库存（止18年9月30日）'!$C:$C,运营部分析!$J$1,'2.2--18春夏库存（止18年9月30日）'!$A:$A,运营部分析!$B13)+SUMIFS('2.4-18春夏冬退货（止18年9月30日）'!$Q:$Q,'2.4-18春夏冬退货（止18年9月30日）'!$D:$D,运营部分析!$J$1,'2.4-18春夏冬退货（止18年9月30日）'!$A:$A,运营部分析!$B13)+SUMIFS('2.3-18春夏调配（止18年9月30日）'!$P:$P,'2.3-18春夏调配（止18年9月30日）'!$G:$G,运营部分析!$J$1,'2.3-18春夏调配（止18年9月30日）'!$A:$A,运营部分析!$B13)) -> 447 | H13: =(SUMIFS('2.1-18春夏销售（止18年9月30日）'!$S:$S,'2.1-18春夏销售（止18年9月30日）'!$X:$X,"新品",'2.1-18春夏销售（止18年9月30日）'!$A:$A,运营部分析!$B13,'2.1-18春夏销售（止18年9月30日）'!$D:$D,运营部分析!$J$1)/10000+SUMIFS('2.2--18春夏库存（止18年9月30日）'!$P:$P,'2.2--18春夏库存（止18年9月30日）'!$C:$C,运营部分析!$J$1,'2.2--18春夏库存（止18年9月30日）'!$A:$A,运营部分析!$B13)/10000+SUMIFS('2.4-18春夏冬退货（止18年9月30日）'!$T:$T,'2.4-18春夏冬退货（止18年9月30日）'!$D:$D,运营部分析!$J$1,'2.4-18春夏冬退货（止18年9月30日）'!$A:$A,运营部分析!$B13)/10000+SUMIFS('2.3-18春夏调配（止18年9月30日）'!$Y:$Y,'2.3-18春夏调配（止18年9月30日）'!$G:$G,运营部分析!$J$1,'2.3-18春夏调配（止18年9月30日）'!$A:$A,运营部分析!$B13)/10000) -> 30.0453 | I13: -1 | J13: -1 | K13: =SUMIFS('1.1-19春夏新旧品销售（更新）'!$I:$I,'1.1-19春夏新旧品销售（更新）'!$D:$D,运营部分析!$J$1,'1.1-19春夏新旧品销售（更新）'!$A:$A,运营部分析!$B13,'1.1-19春夏新旧品销售（更新）'!$AB:$AB,"新品") -> 0 | L13: =SUMIFS('1.1-19春夏新旧品销售（更新）'!$S:$S,'1.1-19春夏新旧品销售（更新）'!$D:$D,运营部分析!$J$1,'1.1-19春夏新旧品销售（更新）'!$A:$A,运营部分析!$B13,'1.1-19春夏新旧品销售（更新）'!$AB:$AB,"新品")/10000 -> 0 | M13: =SUMIFS('2.1-18春夏销售（止18年9月30日）'!$I:$I,'2.1-18春夏销售（止18年9月30日）'!$D:$D,运营部分析!$J$1,'2.1-18春夏销售（止18年9月30日）'!$A:$A,运营部分析!$B13,'2.1-18春夏销售（止18年9月30日）'!$X:$X,"新品",'2.1-18春夏销售（止18年9月30日）'!$T:$T,"同期销售") -> 138 | N13: =SUMIFS('2.1-18春夏销售（止18年9月30日）'!$S:$S,'2.1-18春夏销售（止18年9月30日）'!$D:$D,运营部分析!$J$1,'2.1-18春夏销售（止18年9月30日）'!$A:$A,运营部分析!$B13,'2.1-18春夏销售（止18年9月30日）'!$X:$X,"新品",'2.1-18春夏销售（止18年9月30日）'!$T:$T,"同期销售")/10000 -> 9.2542 | O13: -1 | P13: -1 | Q13: =SUMIFS('2.1-18春夏销售（止18年9月30日）'!$I:$I,'2.1-18春夏销售（止18年9月30日）'!$D:$D,运营部分析!$J$1,'2.1-18春夏销售（止18年9月30日）'!$A:$A,运营部分析!$B13,'2.1-18春夏销售（止18年9月30日）'!$X:$X,"新品") -> 191 | R13: =SUMIFS('2.1-18春夏销售（止18年9月30日）'!$S:$S,'2.1-18春夏销售（止18年9月30日）'!$D:$D,运营部分析!$J$1,'2.1-18春夏销售（止18年9月30日）'!$A:$A,运营部分析!$B13,'2.1-18春夏销售（止18年9月30日）'!$X:$X,"新品")/10000 -> 12.8469 | S13: =SUMIFS('1.5-19春夏新旧品库存（更新）'!$BF:$BF,'1.5-19春夏新旧品库存（更新）'!$B:$B,运营部分析!$J$1,'1.5-19春夏新旧品库存（更新）'!$E:$E,运营部分析!$B13,'1.5-19春夏新旧品库存（更新）'!$BI:$BI,"新品") -> 0 | T13: =SUMIFS('1.5-19春夏新旧品库存（更新）'!$BG:$BG,'1.5-19春夏新旧品库存（更新）'!$B:$B,运营部分析!$J$1,'1.5-19春夏新旧品库存（更新）'!$E:$E,运营部分析!$B13,'1.5-19春夏新旧品库存（更新）'!$BI:$BI,"新品")/10000 -> 0 | U13: =(SUMIFS('2.2--18春夏库存（止18年9月30日）'!$M:$M,'2.2--18春夏库存（止18年9月30日）'!$C:$C,运营部分析!$J$1,'2.2--18春夏库存（止18年9月30日）'!$A:$A,运营部分析!$B13)) -> 230 | V13: =(SUMIFS('2.2--18春夏库存（止18年9月30日）'!$P:$P,'2.2--18春夏库存（止18年9月30日）'!$C:$C,运营部分析!$J$1,'2.2--18春夏库存（止18年9月30日）'!$A:$A,运营部分析!$B13))/10000 -> 15.477 | W13: -1 | X13: -1 | AA13: =SUMIFS('2.3-18春夏调配（止18年9月30日）'!$P:$P,'2.3-18春夏调配（止18年9月30日）'!$G:$G,运营部分析!$J$1,'2.3-18春夏调配（止18年9月30日）'!$A:$A,运营部分析!$B13,'2.3-18春夏调配（止18年9月30日）'!$Z:$Z,"否",'2.3-18春夏调配（止18年9月30日）'!$AA:$AA,"是") -> 16 | AB13: =SUMIFS('2.3-18春夏调配（止18年9月30日）'!$Y:$Y,'2.3-18春夏调配（止18年9月30日）'!$G:$G,运营部分析!$J$1,'2.3-18春夏调配（止18年9月30日）'!$A:$A,运营部分析!$B13,'2.3-18春夏调配（止18年9月30日）'!$Z:$Z,"否",'2.3-18春夏调配（止18年9月30日）'!$AA:$AA,"是")/10000 -> 1.0584 | AC13: =SUMIFS('2.3-18春夏调配（止18年9月30日）'!$P:$P,'2.3-18春夏调配（止18年9月30日）'!$G:$G,运营部分析!$J$1,'2.3-18春夏调配（止18年9月30日）'!$A:$A,运营部分析!$B13,'2.3-18春夏调配（止18年9月30日）'!$Z:$Z,"是",'2.3-18春夏调配（止18年9月30日）'!$AA:$AA,"是") -> 5 | AD13: =SUMIFS('2.3-18春夏调配（止18年9月30日）'!$Y:$Y,'2.3-18春夏调配（止18年9月30日）'!$G:$G,运营部分析!$J$1,'2.3-18春夏调配（止18年9月30日）'!$A:$A,运营部分析!$B13,'2.3-18春夏调配（止18年9月30日）'!$Z:$Z,"是",'2.3-18春夏调配（止18年9月30日）'!$AA:$AA,"是")/10000 -> 0.3295 | AE13: 0.3484162896 | AF13: 0.3470409681 | AK13: =SUMIFS('2.3-18春夏调配（止18年9月30日）'!$P:$P,'2.3-18春夏调配（止18年9月30日）'!$G:$G,运营部分析!$J$1,'2.3-18春夏调配（止18年9月30日）'!$A:$A,运营部分析!$B13,'2.3-18春夏调配（止18年9月30日）'!$Z:$Z,"否") -> 17 | AL13: =SUMIFS('2.3-18春夏调配（止18年9月30日）'!$Y:$Y,'2.3-18春夏调配（止18年9月30日）'!$G:$G,运营部分析!$J$1,'2.3-18春夏调配（止18年9月30日）'!$A:$A,运营部分析!$B13,'2.3-18春夏调配（止18年9月30日）'!$Z:$Z,"否")/10000 -> 1.1243 | AM13: =SUMIFS('2.3-18春夏调配（止18年9月30日）'!$P:$P,'2.3-18春夏调配（止18年9月30日）'!$G:$G,运营部分析!$J$1,'2.3-18春夏调配（止18年9月30日）'!$A:$A,运营部分析!$B13,'2.3-18春夏调配（止18年9月30日）'!$Z:$Z,"是") -> 9 | AN13: =SUMIFS('2.3-18春夏调配（止18年9月30日）'!$Y:$Y,'2.3-18春夏调配（止18年9月30日）'!$G:$G,运营部分析!$J$1,'2.3-18春夏调配（止18年9月30日）'!$A:$A,运营部分析!$B13,'2.3-18春夏调配（止18年9月30日）'!$Z:$Z,"是")/10000 -> 0.5971 | AO13: 0.4748858447 | AP13: 0.4744330723 | AQ13: =SUMIFS('1.2-19春夏发货（更新）'!$K:$K,'1.2-19春夏发货（更新）'!$A:$A,运营部分析!$B13,'1.2-19春夏发货（更新）'!Q:Q,运营部分析!$J$1) -> 0 | AS13: 0 | AT13: 0 | AU13: =SUMIFS('1.6-19春夏期货订单（更新）'!$AP:$AP,'1.6-19春夏期货订单（更新）'!$A:$A,运营部分析!$B13,'1.6-19春夏期货订单（更新）'!$F:$F,运营部分析!$J$1) -> 0 | AV13: =SUMIFS('1.1-19春夏新旧品销售（更新）'!$X:$X,'1.1-19春夏新旧品销售（更新）'!$A:$A,运营部分析!$B13,'1.1-19春夏新旧品销售（更新）'!D:D,运营部分析!$J$1,'1.1-19春夏新旧品销售（更新）'!$U:$U,"月",'1.1-19春夏新旧品销售（更新）'!$AH:$AH,"新品") -> 0 | AW13: =SUMIFS('1.5-19春夏新旧品库存（更新）'!$BM:$BM,'1.5-19春夏新旧品库存（更新）'!$E:$E,运营部分析!$B13,'1.5-19春夏新旧品库存（更新）'!$B:$B,运营部分析!$J$1,'1.5-19春夏新旧品库存（更新）'!$BI:$BI,"新品") -> 0 | AX13: 0 | AY13: 0 | AZ13: =SUMIFS('1.1-19春夏新旧品销售（更新）'!$I:$I,'1.1-19春夏新旧品销售（更新）'!$A:$A,运营部分析!$B13,'1.1-19春夏新旧品销售（更新）'!$U:$U,"月",'1.1-19春夏新旧品销售（更新）'!$D:$D,运营部分析!$J$1,'1.1-19春夏新旧品销售（更新）'!$AH:$AH,"新品") -> 0 | BA13: =SUMIFS('1.1-19春夏新旧品销售（更新）'!$J:$J,'1.1-19春夏新旧品销售（更新）'!$A:$A,运营部分析!$B13,'1.1-19春夏新旧品销售（更新）'!$U:$U,"月",'1.1-19春夏新旧品销售（更新）'!$D:$D,运营部分析!$J$1,'1.1-19春夏新旧品销售（更新）'!$AH:$AH,"新品")/10000 -> 0 | BB13: =SUMIFS('1.1-19春夏新旧品销售（更新）'!$K:$K,'1.1-19春夏新旧品销售（更新）'!$A:$A,运营部分析!$B13,'1.1-19春夏新旧品销售（更新）'!$U:$U,"月",'1.1-19春夏新旧品销售（更新）'!$D:$D,运营部分析!$J$1,'1.1-19春夏新旧品销售（更新）'!$AH:$AH,"新品")/10000 -> 0 | BC13: =SUMIFS('1.1-19春夏新旧品销售（更新）'!$S:$S,'1.1-19春夏新旧品销售（更新）'!$A:$A,运营部分析!$B13,'1.1-19春夏新旧品销售（更新）'!$U:$U,"月",'1.1-19春夏新旧品销售（更新）'!$D:$D,运营部分析!$J$1,'1.1-19春夏新旧品销售（更新）'!$AH:$AH,"新品")/10000 -> 0 | BE13: 0 | BF13: 0 | BG13: =SUMIFS('2.1-18春夏销售（止18年9月30日）'!$J:$J,'2.1-18春夏销售（止18年9月30日）'!$A:$A,运营部分析!$B13,'2.1-18春夏销售（止18年9月30日）'!$D:$D,运营部分析!$J$1,'2.1-18春夏销售（止18年9月30日）'!$U:$U,"月",'2.1-18春夏销售（止18年9月30日）'!$X:$X,"新品")/10000 -> 0.9521 | BH13: =SUMIFS('2.1-18春夏销售（止18年9月30日）'!$S:$S,'2.1-18春夏销售（止18年9月30日）'!$A:$A,运营部分析!$B13,'2.1-18春夏销售（止18年9月30日）'!$D:$D,运营部分析!$J$1,'2.1-18春夏销售（止18年9月30日）'!$U:$U,"月",'2.1-18春夏销售（止18年9月30日）'!$X:$X,"新品")/10000 -> 1.1283 | BI13: 0.8438358593 | BJ13: =SUMIFS('1.1-19春夏新旧品销售（更新）'!$J:$J,'1.1-19春夏新旧品销售（更新）'!$A:$A,运营部分析!$B13,'1.1-19春夏新旧品销售（更新）'!$D:$D,运营部分析!$J$1,'1.1-19春夏新旧品销售（更新）'!$T:$T,"本周",'1.1-19春夏新旧品销售（更新）'!$AH:$AH,"新品")/10000 -> 0 | BK13: =SUMIFS('1.1-19春夏新旧品销售（更新）'!$S:$S,'1.1-19春夏新旧品销售（更新）'!$A:$A,运营部分析!$B13,'1.1-19春夏新旧品销售（更新）'!$D:$D,运营部分析!$J$1,'1.1-19春夏新旧品销售（更新）'!$T:$T,"本周",'1.1-19春夏新旧品销售（更新）'!$AH:$AH,"新品")/10000 -> 0 | BL13: 0 | BM13: 0 | BN13: 0 | BO13: =SUMIFS('1.1-19春夏新旧品销售（更新）'!$I:$I,'1.1-19春夏新旧品销售（更新）'!$A:$A,运营部分析!#REF!,'1.1-19春夏新旧品销售（更新）'!$D:$D,运营部分析!$J$1,'1.1-19春夏新旧品销售（更新）'!$T:$T,"上上周",'1.1-19春夏新旧品销售（更新）'!$AH:$AH,"新品") -> 0 | BP13: =SUMIFS('1.1-19春夏新旧品销售（更新）'!$I:$I,'1.1-19春夏新旧品销售（更新）'!$A:$A,运营部分析!$B12,'1.1-19春夏新旧品销售（更新）'!$D:$D,运营部分析!$J$1,'1.1-19春夏新旧品销售（更新）'!$T:$T,"上周",'1.1-19春夏新旧品销售（更新）'!$AH:$AH,"新品") -> 1 | BQ13: =SUMIFS('1.1-19春夏新旧品销售（更新）'!$I:$I,'1.1-19春夏新旧品销售（更新）'!$A:$A,运营部分析!$B12,'1.1-19春夏新旧品销售（更新）'!$D:$D,运营部分析!$J$1,'1.1-19春夏新旧品销售（更新）'!$T:$T,"本周",'1.1-19春夏新旧品销售（更新）'!$AH:$AH,"新品") -> 4 | BR13: =SUMIFS('1.1-19春夏新旧品销售（更新）'!$I:$I,'1.1-19春夏新旧品销售（更新）'!$A:$A,运营部分析!$B13,'1.1-19春夏新旧品销售（更新）'!$D:$D,运营部分析!$J$1,'1.1-19春夏新旧品销售（更新）'!$U:$U,"月",'1.1-19春夏新旧品销售（更新）'!$AH:$AH,"新品") -> 0 | BS13: 0 | BT13: 3 | BU13: 0.01038961039 | BV13: 0 | CA13: =SUMIFS('1.3-19春夏调配（更新）'!$AA:$AA,'1.3-19春夏调配（更新）'!$K:$K,运营部分析!$J$1,'1.3-19春夏调配（更新）'!$A:$A,运营部分析!$B13,'1.3-19春夏调配（更新）'!$X:$X,"<>已审核")/10000 -> 0 | CB13: =SUMIFS('1.3-19春夏调配（更新）'!$AA:$AA,'1.3-19春夏调配（更新）'!$G:$G,运营部分析!$J$1,'1.3-19春夏调配（更新）'!$A:$A,运营部分析!$B13,'1.3-19春夏调配（更新）'!$Z:$Z,"是",'1.3-19春夏调配（更新）'!$X:$X,"<>已审核")/10000 -> 0 | CC13: =SUMIFS('1.3-19春夏调配（更新）'!$AA:$AA,'1.3-19春夏调配（更新）'!$G:$G,运营部分析!$J$1,'1.3-19春夏调配（更新）'!$A:$A,运营部分析!$B13,'1.3-19春夏调配（更新）'!$Z:$Z,"否",'1.3-19春夏调配（更新）'!$X:$X,"<>已审核")/10000 -> 0 | CD13: =SUMIFS('1.3-19春夏调配（更新）'!$P:$P,'1.3-19春夏调配（更新）'!$K:$K,运营部分析!$J$1,'1.3-19春夏调配（更新）'!$A:$A,运营部分析!$B13,'1.3-19春夏调配（更新）'!$X:$X,"<>已审核") -> 0 | CE13: =SUMIFS('1.3-19春夏调配（更新）'!$P:$P,'1.3-19春夏调配（更新）'!$G:$G,运营部分析!$J$1,'1.3-19春夏调配（更新）'!$A:$A,运营部分析!$B13,'1.3-19春夏调配（更新）'!$Z:$Z,"是",'1.3-19春夏调配（更新）'!$X:$X,"<>已审核") -> 0 | CF13: =SUMIFS('1.3-19春夏调配（更新）'!$P:$P,'1.3-19春夏调配（更新）'!$G:$G,运营部分析!$J$1,'1.3-19春夏调配（更新）'!$A:$A,运营部分析!$B13,'1.3-19春夏调配（更新）'!$Z:$Z,"否",'1.3-19春夏调配（更新）'!$X:$X,"<>已审核") -> 0 | CG13: =SUMIFS('2.1-18春夏销售（止18年9月30日）'!$I:$I,'2.1-18春夏销售（止18年9月30日）'!$D:$D,运营部分析!$J$1,'2.1-18春夏销售（止18年9月30日）'!$V:$V,运营部分析!CG$4,'2.1-18春夏销售（止18年9月30日）'!$A:$A,运营部分析!$B13,'2.1-18春夏销售（止18年9月30日）'!$W:$W,"否",'2.1-18春夏销售（止18年9月30日）'!$X:$X,"新品") -> 0 | CH13: =SUMIFS('2.1-18春夏销售（止18年9月30日）'!$I:$I,'2.1-18春夏销售（止18年9月30日）'!$D:$D,运营部分析!$J$1,'2.1-18春夏销售（止18年9月30日）'!$V:$V,运营部分析!CH$4,'2.1-18春夏销售（止18年9月30日）'!$A:$A,运营部分析!$B13,'2.1-18春夏销售（止18年9月30日）'!$W:$W,"否",'2.1-18春夏销售（止18年9月30日）'!$X:$X,"新品") -> 0 | CI13: =SUMIFS('2.1-18春夏销售（止18年9月30日）'!$I:$I,'2.1-18春夏销售（止18年9月30日）'!$D:$D,运营部分析!$J$1,'2.1-18春夏销售（止18年9月30日）'!$V:$V,运营部分析!CI$4,'2.1-18春夏销售（止18年9月30日）'!$A:$A,运营部分析!$B13,'2.1-18春夏销售（止18年9月30日）'!$W:$W,"否",'2.1-18春夏销售（止18年9月30日）'!$X:$X,"新品") -> 0 | CJ13: =SUMIFS('2.1-18春夏销售（止18年9月30日）'!$I:$I,'2.1-18春夏销售（止18年9月30日）'!$D:$D,运营部分析!$J$1,'2.1-18春夏销售（止18年9月30日）'!$V:$V,运营部分析!CJ$4,'2.1-18春夏销售（止18年9月30日）'!$A:$A,运营部分析!$B13,'2.1-18春夏销售（止18年9月30日）'!$W:$W,"否",'2.1-18春夏销售（止18年9月30日）'!$X:$X,"新品") -> 0 | CK13: =SUMIFS('2.1-18春夏销售（止18年9月30日）'!$I:$I,'2.1-18春夏销售（止18年9月30日）'!$D:$D,运营部分析!$J$1,'2.1-18春夏销售（止18年9月30日）'!$V:$V,运营部分析!CK$4,'2.1-18春夏销售（止18年9月30日）'!$A:$A,运营部分析!$B13,'2.1-18春夏销售（止18年9月30日）'!$W:$W,"否",'2.1-18春夏销售（止18年9月30日）'!$X:$X,"新品") -> 0 | CL13: =SUMIFS('2.1-18春夏销售（止18年9月30日）'!$I:$I,'2.1-18春夏销售（止18年9月30日）'!$D:$D,运营部分析!$J$1,'2.1-18春夏销售（止18年9月30日）'!$V:$V,运营部分析!CL$4,'2.1-18春夏销售（止18年9月30日）'!$A:$A,运营部分析!$B13,'2.1-18春夏销售（止18年9月30日）'!$W:$W,"否",'2.1-18春夏销售（止18年9月30日）'!$X:$X,"新品") -> 0 | CM13: =SUMIFS('2.1-18春夏销售（止18年9月30日）'!$I:$I,'2.1-18春夏销售（止18年9月30日）'!$D:$D,运营部分析!$J$1,'2.1-18春夏销售（止18年9月30日）'!$V:$V,运营部分析!CM$4,'2.1-18春夏销售（止18年9月30日）'!$A:$A,运营部分析!$B13,'2.1-18春夏销售（止18年9月30日）'!$W:$W,"否",'2.1-18春夏销售（止18年9月30日）'!$X:$X,"新品") -> 8 | CN13: =SUMIFS('2.1-18春夏销售（止18年9月30日）'!$I:$I,'2.1-18春夏销售（止18年9月30日）'!$D:$D,运营部分析!$J$1,'2.1-18春夏销售（止18年9月30日）'!$V:$V,运营部分析!CN$4,'2.1-18春夏销售（止18年9月30日）'!$A:$A,运营部分析!$B13,'2.1-18春夏销售（止18年9月30日）'!$W:$W,"否",'2.1-18春夏销售（止18年9月30日）'!$X:$X,"新品") -> 27 | CO13: =SUMIFS('2.1-18春夏销售（止18年9月30日）'!$I:$I,'2.1-18春夏销售（止18年9月30日）'!$D:$D,运营部分析!$J$1,'2.1-18春夏销售（止18年9月30日）'!$V:$V,运营部分析!CO$4,'2.1-18春夏销售（止18年9月30日）'!$A:$A,运营部分析!$B13,'2.1-18春夏销售（止18年9月30日）'!$W:$W,"否",'2.1-18春夏销售（止18年9月30日）'!$X:$X,"新品") -> 6 | CP13: =SUMIFS('2.1-18春夏销售（止18年9月30日）'!$I:$I,'2.1-18春夏销售（止18年9月30日）'!$D:$D,运营部分析!$J$1,'2.1-18春夏销售（止18年9月30日）'!$V:$V,运营部分析!CP$4,'2.1-18春夏销售（止18年9月30日）'!$A:$A,运营部分析!$B13,'2.1-18春夏销售（止18年9月30日）'!$W:$W,"否",'2.1-18春夏销售（止18年9月30日）'!$X:$X,"新品") -> 12 | CQ13: 53 | CR13: 0 | CT13: =SUMIFS('2.1-18春夏销售（止18年9月30日）'!$S:$S,'2.1-18春夏销售（止18年9月30日）'!$D:$D,运营部分析!$J$1,'2.1-18春夏销售（止18年9月30日）'!$V:$V,运营部分析!CT$4,'2.1-18春夏销售（止18年9月30日）'!$A:$A,运营部分析!$B13,'2.1-18春夏销售（止18年9月30日）'!$W:$W,"否",'2.1-18春夏销售（止18年9月30日）'!$X:$X,"新品")/10000 -> 0 | CU13: =SUMIFS('2.1-18春夏销售（止18年9月30日）'!$S:$S,'2.1-18春夏销售（止18年9月30日）'!$D:$D,运营部分析!$J$1,'2.1-18春夏销售（止18年9月30日）'!$V:$V,运营部分析!CU$4,'2.1-18春夏销售（止18年9月30日）'!$A:$A,运营部分析!$B13,'2.1-18春夏销售（止18年9月30日）'!$W:$W,"否",'2.1-18春夏销售（止18年9月30日）'!$X:$X,"新品")/10000 -> 0 | CV13: =SUMIFS('2.1-18春夏销售（止18年9月30日）'!$S:$S,'2.1-18春夏销售（止18年9月30日）'!$D:$D,运营部分析!$J$1,'2.1-18春夏销售（止18年9月30日）'!$V:$V,运营部分析!CV$4,'2.1-18春夏销售（止18年9月30日）'!$A:$A,运营部分析!$B13,'2.1-18春夏销售（止18年9月30日）'!$W:$W,"否",'2.1-18春夏销售（止18年9月30日）'!$X:$X,"新品")/10000 -> 0 | CW13: =SUMIFS('2.1-18春夏销售（止18年9月30日）'!$S:$S,'2.1-18春夏销售（止18年9月30日）'!$D:$D,运营部分析!$J$1,'2.1-18春夏销售（止18年9月30日）'!$V:$V,运营部分析!CW$4,'2.1-18春夏销售（止18年9月30日）'!$A:$A,运营部分析!$B13,'2.1-18春夏销售（止18年9月30日）'!$W:$W,"否",'2.1-18春夏销售（止18年9月30日）'!$X:$X,"新品")/10000 -> 0 | CX13: =SUMIFS('2.1-18春夏销售（止18年9月30日）'!$S:$S,'2.1-18春夏销售（止18年9月30日）'!$D:$D,运营部分析!$J$1,'2.1-18春夏销售（止18年9月30日）'!$V:$V,运营部分析!CX$4,'2.1-18春夏销售（止18年9月30日）'!$A:$A,运营部分析!$B13,'2.1-18春夏销售（止18年9月30日）'!$W:$W,"否",'2.1-18春夏销售（止18年9月30日）'!$X:$X,"新品")/10000 -> 0 | CY13: =SUMIFS('2.1-18春夏销售（止18年9月30日）'!$S:$S,'2.1-18春夏销售（止18年9月30日）'!$D:$D,运营部分析!$J$1,'2.1-18春夏销售（止18年9月30日）'!$V:$V,运营部分析!CY$4,'2.1-18春夏销售（止18年9月30日）'!$A:$A,运营部分析!$B13,'2.1-18春夏销售（止18年9月30日）'!$W:$W,"否",'2.1-18春夏销售（止18年9月30日）'!$X:$X,"新品")/10000 -> 0 | CZ13: =SUMIFS('2.1-18春夏销售（止18年9月30日）'!$S:$S,'2.1-18春夏销售（止18年9月30日）'!$D:$D,运营部分析!$J$1,'2.1-18春夏销售（止18年9月30日）'!$V:$V,运营部分析!CZ$4,'2.1-18春夏销售（止18年9月30日）'!$A:$A,运营部分析!$B13,'2.1-18春夏销售（止18年9月30日）'!$W:$W,"否",'2.1-18春夏销售（止18年9月30日）'!$X:$X,"新品")/10000 -> 0.5352 | DA13: =SUMIFS('2.1-18春夏销售（止18年9月30日）'!$S:$S,'2.1-18春夏销售（止18年9月30日）'!$D:$D,运营部分析!$J$1,'2.1-18春夏销售（止18年9月30日）'!$V:$V,运营部分析!DA$4,'2.1-18春夏销售（止18年9月30日）'!$A:$A,运营部分析!$B13,'2.1-18春夏销售（止18年9月30日）'!$W:$W,"否",'2.1-18春夏销售（止18年9月30日）'!$X:$X,"新品")/10000 -> 1.8313 | DB13: =SUMIFS('2.1-18春夏销售（止18年9月30日）'!$S:$S,'2.1-18春夏销售（止18年9月30日）'!$D:$D,运营部分析!$J$1,'2.1-18春夏销售（止18年9月30日）'!$V:$V,运营部分析!DB$4,'2.1-18春夏销售（止18年9月30日）'!$A:$A,运营部分析!$B13,'2.1-18春夏销售（止18年9月30日）'!$W:$W,"否",'2.1-18春夏销售（止18年9月30日）'!$X:$X,"新品")/10000 -> 0.4034 | DC13: =SUMIFS('2.1-18春夏销售（止18年9月30日）'!$S:$S,'2.1-18春夏销售（止18年9月30日）'!$D:$D,运营部分析!$J$1,'2.1-18春夏销售（止18年9月30日）'!$V:$V,运营部分析!DC$4,'2.1-18春夏销售（止18年9月30日）'!$A:$A,运营部分析!$B13,'2.1-18春夏销售（止18年9月30日）'!$W:$W,"否",'2.1-18春夏销售（止18年9月30日）'!$X:$X,"新品")/10000 -> 0.8228 | DD13: 3.5927 | DH13: =SUMIFS('1.1-19春夏新旧品销售（更新）'!$I:$I,'1.1-19春夏新旧品销售（更新）'!$D:$D,运营部分析!$J$1,'1.1-19春夏新旧品销售（更新）'!$A:$A,运营部分析!$B13,'1.1-19春夏新旧品销售（更新）'!$AB:$AB,"新品",'1.1-19春夏新旧品销售（更新）'!$AG:$AG,"是") -> 0 | DI13: =SUMIFS('1.1-19春夏新旧品销售（更新）'!$S:$S,'1.1-19春夏新旧品销售（更新）'!$D:$D,运营部分析!$J$1,'1.1-19春夏新旧品销售（更新）'!$A:$A,运营部分析!$B13,'1.1-19春夏新旧品销售（更新）'!$AB:$AB,"新品",'1.1-19春夏新旧品销售（更新）'!$AG:$AG,"是")/10000 -> 0 | DJ13: =SUMIFS('1.6-19春夏期货订单（更新）'!$AG:$AG,'1.6-19春夏期货订单（更新）'!$F:$F,运营部分析!$J$1,'1.6-19春夏期货订单（更新）'!$A:$A,运营部分析!$B13,'1.6-19春夏期货订单（更新）'!$AQ:$AQ,"是")+SUMIFS('1.2-19春夏发货（更新）'!$K:$K,'1.2-19春夏发货（更新）'!$A:$A,运营部分析!$B13,'1.2-19春夏发货（更新）'!$Q:$Q,运营部分析!$J$1,'1.2-19春夏发货（更新）'!$T:$T,"当季补货",'1.2-19春夏发货（更新）'!$W:$W,"是")+SUMIFS('1.2-19春夏发货（更新）'!$K:$K,'1.2-19春夏发货（更新）'!$A:$A,运营部分析!$B13,'1.2-19春夏发货（更新）'!$Q:$Q,运营部分析!$J$1,'1.2-19春夏发货（更新）'!$T:$T,"往季补货",'1.2-19春夏发货（更新）'!$W:$W,"是")+SUMIFS('1.3-19春夏调配（更新）'!$P:$P,'1.3-19春夏调配（更新）'!$K:$K,运营部分析!$J$1,'1.3-19春夏调配（更新）'!$A:$A,运营部分析!$B13,'1.3-19春夏调配（更新）'!$AC:$AC,"是",'1.3-19春夏调配（更新）'!$X:$X,"<>已审核")-SUMIFS('1.3-19春夏调配（更新）'!$P:$P,'1.3-19春夏调配（更新）'!$G:$G,运营部分析!$J$1,'1.3-19春夏调配（更新）'!$A:$A,运营部分析!$B13,'1.3-19春夏调配（更新）'!$AC:$AC,"是",'1.3-19春夏调配（更新）'!$X:$X,"<>已审核") -> 0 | DK13: =SUMIFS('1.6-19春夏期货订单（更新）'!$AN:$AN,'1.6-19春夏期货订单（更新）'!$F:$F,运营部分析!$J$1,'1.6-19春夏期货订单（更新）'!$A:$A,运营部分析!$B13,'1.6-19春夏期货订单（更新）'!$AQ:$AQ,"是")/10000+SUMIFS('1.2-19春夏发货（更新）'!$U:$U,'1.2-19春夏发货（更新）'!$A:$A,运营部分析!$B13,'1.2-19春夏发货（更新）'!$Q:$Q,运营部分析!$J$1,'1.2-19春夏发货（更新）'!$T:$T,"当季补货",'1.2-19春夏发货（更新）'!$W:$W,"是")/10000+SUMIFS('1.2-19春夏发货（更新）'!$U:$U,'1.2-19春夏发货（更新）'!$A:$A,运营部分析!$B13,'1.2-19春夏发货（更新）'!$Q:$Q,运营部分析!$J$1,'1.2-19春夏发货（更新）'!$T:$T,"往季补货",'1.2-19春夏发货（更新）'!$W:$W,"是")/10000+SUMIFS('1.3-19春夏调配（更新）'!$AA:$AA,'1.3-19春夏调配（更新）'!$K:$K,运营部分析!$J$1,'1.3-19春夏调配（更新）'!$A:$A,运营部分析!$B13,'1.3-19春夏调配（更新）'!$AC:$AC,"是",'1.3-19春夏调配（更新）'!$X:$X,"<>已审核")/10000-SUMIFS('1.3-19春夏调配（更新）'!$AA:$AA,'1.3-19春夏调配（更新）'!$G:$G,运营部分析!$J$1,'1.3-19春夏调配（更新）'!$A:$A,运营部分析!$B13,'1.3-19春夏调配（更新）'!$AC:$AC,"是",'1.3-19春夏调配（更新）'!$X:$X,"<>已审核")/10000 -> 0
A14: 西服 | B14: 19 | C14: 单西 | E14: =SUMIFS('1.6-19春夏期货订单（更新）'!$AG:$AG,'1.6-19春夏期货订单（更新）'!$F:$F,运营部分析!$J$1,'1.6-19春夏期货订单（更新）'!$A:$A,运营部分析!$B14)+SUMIFS('1.2-19春夏发货（更新）'!$K:$K,'1.2-19春夏发货（更新）'!$A:$A,运营部分析!$B14,'1.2-19春夏发货（更新）'!$Q:$Q,运营部分析!$J$1,'1.2-19春夏发货（更新）'!$T:$T,"当季补货")+SUMIFS('1.2-19春夏发货（更新）'!$K:$K,'1.2-19春夏发货（更新）'!$A:$A,运营部分析!$B14,'1.2-19春夏发货（更新）'!$Q:$Q,运营部分析!$J$1,'1.2-19春夏发货（更新）'!$T:$T,"往季补货")+SUMIFS('1.3-19春夏调配（更新）'!$P:$P,'1.3-19春夏调配（更新）'!$K:$K,运营部分析!$J$1,'1.3-19春夏调配（更新）'!$A:$A,运营部分析!$B14)-SUMIFS('1.3-19春夏调配（更新）'!$P:$P,'1.3-19春夏调配（更新）'!$G:$G,运营部分析!$J$1,'1.3-19春夏调配（更新）'!$A:$A,运营部分析!$B14,'1.3-19春夏调配（更新）'!$Z:$Z,"是") -> 170 | F14: =SUMIFS('1.6-19春夏期货订单（更新）'!$AN:$AN,'1.6-19春夏期货订单（更新）'!$F:$F,运营部分析!$J$1,'1.6-19春夏期货订单（更新）'!$A:$A,运营部分析!$B14)/10000+SUMIFS('1.2-19春夏发货（更新）'!$U:$U,'1.2-19春夏发货（更新）'!$A:$A,运营部分析!$B14,'1.2-19春夏发货（更新）'!$Q:$Q,运营部分析!$J$1,'1.2-19春夏发货（更新）'!$T:$T,"当季补货")/10000+SUMIFS('1.2-19春夏发货（更新）'!$U:$U,'1.2-19春夏发货（更新）'!$A:$A,运营部分析!$B14,'1.2-19春夏发货（更新）'!$Q:$Q,运营部分析!$J$1,'1.2-19春夏发货（更新）'!$T:$T,"往季补货")/10000+SUMIFS('1.3-19春夏调配（更新）'!$AA:$AA,'1.3-19春夏调配（更新）'!$K:$K,运营部分析!$J$1,'1.3-19春夏调配（更新）'!$A:$A,运营部分析!$B14)/10000-SUMIFS('1.3-19春夏调配（更新）'!$AA:$AA,'1.3-19春夏调配（更新）'!$G:$G,运营部分析!$J$1,'1.3-19春夏调配（更新）'!$A:$A,运营部分析!$B14,'1.3-19春夏调配（更新）'!$Z:$Z,"是")/10000 -> 14.773 | G14: =(SUMIFS('2.1-18春夏销售（止18年9月30日）'!$I:$I,'2.1-18春夏销售（止18年9月30日）'!$X:$X,"新品",'2.1-18春夏销售（止18年9月30日）'!$A:$A,运营部分析!$B14,'2.1-18春夏销售（止18年9月30日）'!$D:$D,运营部分析!$J$1)+SUMIFS('2.2--18春夏库存（止18年9月30日）'!$M:$M,'2.2--18春夏库存（止18年9月30日）'!$C:$C,运营部分析!$J$1,'2.2--18春夏库存（止18年9月30日）'!$A:$A,运营部分析!$B14)+SUMIFS('2.4-18春夏冬退货（止18年9月30日）'!$Q:$Q,'2.4-18春夏冬退货（止18年9月30日）'!$D:$D,运营部分析!$J$1,'2.4-18春夏冬退货（止18年9月30日）'!$A:$A,运营部分析!$B14)+SUMIFS('2.3-18春夏调配（止18年9月30日）'!$P:$P,'2.3-18春夏调配（止18年9月30日）'!$G:$G,运营部分析!$J$1,'2.3-18春夏调配（止18年9月30日）'!$A:$A,运营部分析!$B14)) -> 301 | H14: =(SUMIFS('2.1-18春夏销售（止18年9月30日）'!$S:$S,'2.1-18春夏销售（止18年9月30日）'!$X:$X,"新品",'2.1-18春夏销售（止18年9月30日）'!$A:$A,运营部分析!$B14,'2.1-18春夏销售（止18年9月30日）'!$D:$D,运营部分析!$J$1)/10000+SUMIFS('2.2--18春夏库存（止18年9月30日）'!$P:$P,'2.2--18春夏库存（止18年9月30日）'!$C:$C,运营部分析!$J$1,'2.2--18春夏库存（止18年9月30日）'!$A:$A,运营部分析!$B14)/10000+SUMIFS('2.4-18春夏冬退货（止18年9月30日）'!$T:$T,'2.4-18春夏冬退货（止18年9月30日）'!$D:$D,运营部分析!$J$1,'2.4-18春夏冬退货（止18年9月30日）'!$A:$A,运营部分析!$B14)/10000+SUMIFS('2.3-18春夏调配（止18年9月30日）'!$Y:$Y,'2.3-18春夏调配（止18年9月30日）'!$G:$G,运营部分析!$J$1,'2.3-18春夏调配（止18年9月30日）'!$A:$A,运营部分析!$B14)/10000) -> 24.1039 | I14: -0.4352159468 | J14: -0.3871116292 | K14: =SUMIFS('1.1-19春夏新旧品销售（更新）'!$I:$I,'1.1-19春夏新旧品销售（更新）'!$D:$D,运营部分析!$J$1,'1.1-19春夏新旧品销售（更新）'!$A:$A,运营部分析!$B14,'1.1-19春夏新旧品销售（更新）'!$AB:$AB,"新品") -> 49 | L14: =SUMIFS('1.1-19春夏新旧品销售（更新）'!$S:$S,'1.1-19春夏新旧品销售（更新）'!$D:$D,运营部分析!$J$1,'1.1-19春夏新旧品销售（更新）'!$A:$A,运营部分析!$B14,'1.1-19春夏新旧品销售（更新）'!$AB:$AB,"新品")/10000 -> 4.2851 | M14: =SUMIFS('2.1-18春夏销售（止18年9月30日）'!$I:$I,'2.1-18春夏销售（止18年9月30日）'!$D:$D,运营部分析!$J$1,'2.1-18春夏销售（止18年9月30日）'!$A:$A,运营部分析!$B14,'2.1-18春夏销售（止18年9月30日）'!$X:$X,"新品",'2.1-18春夏销售（止18年9月30日）'!$T:$T,"同期销售") -> 97 | N14: =SUMIFS('2.1-18春夏销售（止18年9月30日）'!$S:$S,'2.1-18春夏销售（止18年9月30日）'!$D:$D,运营部分析!$J$1,'2.1-18春夏销售（止18年9月30日）'!$A:$A,运营部分析!$B14,'2.1-18春夏销售（止18年9月30日）'!$X:$X,"新品",'2.1-18春夏销售（止18年9月30日）'!$T:$T,"同期销售")/10000 -> 7.7503 | O14: -0.4948453608 | P14: -0.4471052733 | Q14: =SUMIFS('2.1-18春夏销售（止18年9月30日）'!$I:$I,'2.1-18春夏销售（止18年9月30日）'!$D:$D,运营部分析!$J$1,'2.1-18春夏销售（止18年9月30日）'!$A:$A,运营部分析!$B14,'2.1-18春夏销售（止18年9月30日）'!$X:$X,"新品") -> 127 | R14: =SUMIFS('2.1-18春夏销售（止18年9月30日）'!$S:$S,'2.1-18春夏销售（止18年9月30日）'!$D:$D,运营部分析!$J$1,'2.1-18春夏销售（止18年9月30日）'!$A:$A,运营部分析!$B14,'2.1-18春夏销售（止18年9月30日）'!$X:$X,"新品")/10000 -> 10.1533 | S14: =SUMIFS('1.5-19春夏新旧品库存（更新）'!$BF:$BF,'1.5-19春夏新旧品库存（更新）'!$B:$B,运营部分析!$J$1,'1.5-19春夏新旧品库存（更新）'!$E:$E,运营部分析!$B14,'1.5-19春夏新旧品库存（更新）'!$BI:$BI,"新品") -> 120 | T14: =SUMIFS('1.5-19春夏新旧品库存（更新）'!$BG:$BG,'1.5-19春夏新旧品库存（更新）'!$B:$B,运营部分析!$J$1,'1.5-19春夏新旧品库存（更新）'!$E:$E,运营部分析!$B14,'1.5-19春夏新旧品库存（更新）'!$BI:$BI,"新品")/10000 -> 10.398 | U14: =(SUMIFS('2.2--18春夏库存（止18年9月30日）'!$M:$M,'2.2--18春夏库存（止18年9月30日）'!$C:$C,运营部分析!$J$1,'2.2--18春夏库存（止18年9月30日）'!$A:$A,运营部分析!$B14)) -> 170 | V14: =(SUMIFS('2.2--18春夏库存（止18年9月30日）'!$P:$P,'2.2--18春夏库存（止18年9月30日）'!$C:$C,运营部分析!$J$1,'2.2--18春夏库存（止18年9月30日）'!$A:$A,运营部分析!$B14))/10000 -> 13.613 | W14: -0.2941176471 | X14: -0.2361713068 | Y14: 0.2994011976 | Z14: 0.3016554853 | AA14: =SUMIFS('2.3-18春夏调配（止18年9月30日）'!$P:$P,'2.3-18春夏调配（止18年9月30日）'!$G:$G,运营部分析!$J$1,'2.3-18春夏调配（止18年9月30日）'!$A:$A,运营部分析!$B14,'2.3-18春夏调配（止18年9月30日）'!$Z:$Z,"否",'2.3-18春夏调配（止18年9月30日）'!$AA:$AA,"是") -> 3 | AB14: =SUMIFS('2.3-18春夏调配（止18年9月30日）'!$Y:$Y,'2.3-18春夏调配（止18年9月30日）'!$G:$G,运营部分析!$J$1,'2.3-18春夏调配（止18年9月30日）'!$A:$A,运营部分析!$B14,'2.3-18春夏调配（止18年9月30日）'!$Z:$Z,"否",'2.3-18春夏调配（止18年9月30日）'!$AA:$AA,"是")/10000 -> 0.2577 | AC14: =SUMIFS('2.3-18春夏调配（止18年9月30日）'!$P:$P,'2.3-18春夏调配（止18年9月30日）'!$G:$G,运营部分析!$J$1,'2.3-18春夏调配（止18年9月30日）'!$A:$A,运营部分析!$B14,'2.3-18春夏调配（止18年9月30日）'!$Z:$Z,"是",'2.3-18春夏调配（止18年9月30日）'!$AA:$AA,"是") -> 0 | AD14: =SUMIFS('2.3-18春夏调配（止18年9月30日）'!$Y:$Y,'2.3-18春夏调配（止18年9月30日）'!$G:$G,运营部分析!$J$1,'2.3-18春夏调配（止18年9月30日）'!$A:$A,运营部分析!$B14,'2.3-18春夏调配（止18年9月30日）'!$Z:$Z,"是",'2.3-18春夏调配（止18年9月30日）'!$AA:$AA,"是")/10000 -> 0 | AE14: 0.3322259136 | AF14: 0.3322283946 | AI14: -0.09880239521 | AJ14: -0.0920237697 | AK14: =SUMIFS('2.3-18春夏调配（止18年9月30日）'!$P:$P,'2.3-18春夏调配（止18年9月30日）'!$G:$G,运营部分析!$J$1,'2.3-18春夏调配（止18年9月30日）'!$A:$A,运营部分析!$B14,'2.3-18春夏调配（止18年9月30日）'!$Z:$Z,"否") -> 3 | AL14: =SUMIFS('2.3-18春夏调配（止18年9月30日）'!$Y:$Y,'2.3-18春夏调配（止18年9月30日）'!$G:$G,运营部分析!$J$1,'2.3-18春夏调配（止18年9月30日）'!$A:$A,运营部分析!$B14,'2.3-18春夏调配（止18年9月30日）'!$Z:$Z,"否")/10000 -> 0.2577 | AM14: =SUMIFS('2.3-18春夏调配（止18年9月30日）'!$P:$P,'2.3-18春夏调配（止18年9月30日）'!$G:$G,运营部分析!$J$1,'2.3-18春夏调配（止18年9月30日）'!$A:$A,运营部分析!$B14,'2.3-18春夏调配（止18年9月30日）'!$Z:$Z,"是") -> 1 | AN14: =SUMIFS('2.3-18春夏调配（止18年9月30日）'!$Y:$Y,'2.3-18春夏调配（止18年9月30日）'!$G:$G,运营部分析!$J$1,'2.3-18春夏调配（止18年9月30日）'!$A:$A,运营部分析!$B14,'2.3-18春夏调配（止18年9月30日）'!$Z:$Z,"是")/10000 -> 0.0799 | AO14: 0.4333333333 | AP14: 0.4333583084 | AQ14: =SUMIFS('1.2-19春夏发货（更新）'!$K:$K,'1.2-19春夏发货（更新）'!$A:$A,运营部分析!$B14,'1.2-19春夏发货（更新）'!Q:Q,运营部分析!$J$1) -> 173 | AR14: 1.017647059 | AS14: -3 | AT14: 173 | AU14: =SUMIFS('1.6-19春夏期货订单（更新）'!$AP:$AP,'1.6-19春夏期货订单（更新）'!$A:$A,运营部分析!$B14,'1.6-19春夏期货订单（更新）'!$F:$F,运营部分析!$J$1) -> 3 | AV14: =SUMIFS('1.1-19春夏新旧品销售（更新）'!$X:$X,'1.1-19春夏新旧品销售（更新）'!$A:$A,运营部分析!$B14,'1.1-19春夏新旧品销售（更新）'!D:D,运营部分析!$J$1,'1.1-19春夏新旧品销售（更新）'!$U:$U,"月",'1.1-19春夏新旧品销售（更新）'!$AH:$AH,"新品") -> 3 | AW14: =SUMIFS('1.5-19春夏新旧品库存（更新）'!$BM:$BM,'1.5-19春夏新旧品库存（更新）'!$E:$E,运营部分析!$B14,'1.5-19春夏新旧品库存（更新）'!$B:$B,运营部分析!$J$1,'1.5-19春夏新旧品库存（更新）'!$BI:$BI,"新品") -> 4 | AX14: 0.75 | AY14: 13.33333333 | AZ14: =SUMIFS('1.1-19春夏新旧品销售（更新）'!$I:$I,'1.1-19春夏新旧品销售（更新）'!$A:$A,运营部分析!$B14,'1.1-19春夏新旧品销售（更新）'!$U:$U,"月",'1.1-19春夏新旧品销售（更新）'!$D:$D,运营部分析!$J$1,'1.1-19春夏新旧品销售（更新）'!$AH:$AH,"新品") -> 9 | BA14: =SUMIFS('1.1-19春夏新旧品销售（更新）'!$J:$J,'1.1-19春夏新旧品销售（更新）'!$A:$A,运营部分析!$B14,'1.1-19春夏新旧品销售（更新）'!$U:$U,"月",'1.1-19春夏新旧品销售（更新）'!$D:$D,运营部分析!$J$1,'1.1-19春夏新旧品销售（更新）'!$AH:$AH,"新品")/10000 -> 0.5273 | BB14: =SUMIFS('1.1-19春夏新旧品销售（更新）'!$K:$K,'1.1-19春夏新旧品销售（更新）'!$A:$A,运营部分析!$B14,'1.1-19春夏新旧品销售（更新）'!$U:$U,"月",'1.1-19春夏新旧品销售（更新）'!$D:$D,运营部分析!$J$1,'1.1-19春夏新旧品销售（更新）'!$AH:$AH,"新品")/10000 -> 0.8621 | BC14: =SUMIFS('1.1-19春夏新旧品销售（更新）'!$S:$S,'1.1-19春夏新旧品销售（更新）'!$A:$A,运营部分析!$B14,'1.1-19春夏新旧品销售（更新）'!$U:$U,"月",'1.1-19春夏新旧品销售（更新）'!$D:$D,运营部分析!$J$1,'1.1-19春夏新旧品销售（更新）'!$AH:$AH,"新品")/10000 -> 0.7991 | BD14: 1.078838694 | BE14: 585.8888889 | BF14: 0.6598673508 | BG14: =SUMIFS('2.1-18春夏销售（止18年9月30日）'!$J:$J,'2.1-18春夏销售（止18年9月30日）'!$A:$A,运营部分析!$B14,'2.1-18春夏销售（止18年9月30日）'!$D:$D,运营部分析!$J$1,'2.1-18春夏销售（止18年9月30日）'!$U:$U,"月",'2.1-18春夏销售（止18年9月30日）'!$X:$X,"新品")/10000 -> 0.2517 | BH14: =SUMIFS('2.1-18春夏销售（止18年9月30日）'!$S:$S,'2.1-18春夏销售（止18年9月30日）'!$A:$A,运营部分析!$B14,'2.1-18春夏销售（止18年9月30日）'!$D:$D,运营部分析!$J$1,'2.1-18春夏销售（止18年9月30日）'!$U:$U,"月",'2.1-18春夏销售（止18年9月30日）'!$X:$X,"新品")/10000 -> 0.3196 | BI14: 0.7875469337 | BJ14: =SUMIFS('1.1-19春夏新旧品销售（更新）'!$J:$J,'1.1-19春夏新旧品销售（更新）'!$A:$A,运营部分析!$B14,'1.1-19春夏新旧品销售（更新）'!$D:$D,运营部分析!$J$1,'1.1-19春夏新旧品销售（更新）'!$T:$T,"本周",'1.1-19春夏新旧品销售（更新）'!$AH:$AH,"新品")/10000 -> 0.121 | BK14: =SUMIFS('1.1-19春夏新旧品销售（更新）'!$S:$S,'1.1-19春夏新旧品销售（更新）'!$A:$A,运营部分析!$B14,'1.1-19春夏新旧品销售（更新）'!$D:$D,运营部分析!$J$1,'1.1-19春夏新旧品销售（更新）'!$T:$T,"本周",'1.1-19春夏新旧品销售（更新）'!$AH:$AH,"新品")/10000 -> 0.1798 | BL14: 0.6729699666 | BM14: 0.009660443494 | BN14: 0.004868111226 | BO14: =SUMIFS('1.1-19春夏新旧品销售（更新）'!$I:$I,'1.1-19春夏新旧品销售（更新）'!$A:$A,运营部分析!#REF!,'1.1-19春夏新旧品销售（更新）'!$D:$D,运营部分析!$J$1,'1.1-19春夏新旧品销售（更新）'!$T:$T,"上上周",'1.1-19春夏新旧品销售（更新）'!$AH:$AH,"新品") -> 0 | BP14: =SUMIFS('1.1-19春夏新旧品销售（更新）'!$I:$I,'1.1-19春夏新旧品销售（更新）'!$A:$A,运营部分析!$B13,'1.1-19春夏新旧品销售（更新）'!$D:$D,运营部分析!$J$1,'1.1-19春夏新旧品销售（更新）'!$T:$T,"上周",'1.1-19春夏新旧品销售（更新）'!$AH:$AH,"新品") -> 0 | BQ14: =SUMIFS('1.1-19春夏新旧品销售（更新）'!$I:$I,'1.1-19春夏新旧品销售（更新）'!$A:$A,运营部分析!$B13,'1.1-19春夏新旧品销售（更新）'!$D:$D,运营部分析!$J$1,'1.1-19春夏新旧品销售（更新）'!$T:$T,"本周",'1.1-19春夏新旧品销售（更新）'!$AH:$AH,"新品") -> 0 | BR14: =SUMIFS('1.1-19春夏新旧品销售（更新）'!$I:$I,'1.1-19春夏新旧品销售（更新）'!$A:$A,运营部分析!$B14,'1.1-19春夏新旧品销售（更新）'!$D:$D,运营部分析!$J$1,'1.1-19春夏新旧品销售（更新）'!$U:$U,"月",'1.1-19春夏新旧品销售（更新）'!$AH:$AH,"新品") -> 9 | BS14: 0 | BT14: 0 | BU14: 0 | BV14: 0.004792332268 | CA14: =SUMIFS('1.3-19春夏调配（更新）'!$AA:$AA,'1.3-19春夏调配（更新）'!$K:$K,运营部分析!$J$1,'1.3-19春夏调配（更新）'!$A:$A,运营部分析!$B14,'1.3-19春夏调配（更新）'!$X:$X,"<>已审核")/10000 -> 0 | CB14: =SUMIFS('1.3-19春夏调配（更新）'!$AA:$AA,'1.3-19春夏调配（更新）'!$G:$G,运营部分析!$J$1,'1.3-19春夏调配（更新）'!$A:$A,运营部分析!$B14,'1.3-19春夏调配（更新）'!$Z:$Z,"是",'1.3-19春夏调配（更新）'!$X:$X,"<>已审核")/10000 -> 0.2697 | CC14: =SUMIFS('1.3-19春夏调配（更新）'!$AA:$AA,'1.3-19春夏调配（更新）'!$G:$G,运营部分析!$J$1,'1.3-19春夏调配（更新）'!$A:$A,运营部分析!$B14,'1.3-19春夏调配（更新）'!$Z:$Z,"否",'1.3-19春夏调配（更新）'!$X:$X,"<>已审核")/10000 -> 0.0899 | CD14: =SUMIFS('1.3-19春夏调配（更新）'!$P:$P,'1.3-19春夏调配（更新）'!$K:$K,运营部分析!$J$1,'1.3-19春夏调配（更新）'!$A:$A,运营部分析!$B14,'1.3-19春夏调配（更新）'!$X:$X,"<>已审核") -> 0 | CE14: =SUMIFS('1.3-19春夏调配（更新）'!$P:$P,'1.3-19春夏调配（更新）'!$G:$G,运营部分析!$J$1,'1.3-19春夏调配（更新）'!$A:$A,运营部分析!$B14,'1.3-19春夏调配（更新）'!$Z:$Z,"是",'1.3-19春夏调配（更新）'!$X:$X,"<>已审核") -> 3 | CF14: =SUMIFS('1.3-19春夏调配（更新）'!$P:$P,'1.3-19春夏调配（更新）'!$G:$G,运营部分析!$J$1,'1.3-19春夏调配（更新）'!$A:$A,运营部分析!$B14,'1.3-19春夏调配（更新）'!$Z:$Z,"否",'1.3-19春夏调配（更新）'!$X:$X,"<>已审核") -> 1 | CG14: =SUMIFS('2.1-18春夏销售（止18年9月30日）'!$I:$I,'2.1-18春夏销售（止18年9月30日）'!$D:$D,运营部分析!$J$1,'2.1-18春夏销售（止18年9月30日）'!$V:$V,运营部分析!CG$4,'2.1-18春夏销售（止18年9月30日）'!$A:$A,运营部分析!$B14,'2.1-18春夏销售（止18年9月30日）'!$W:$W,"否",'2.1-18春夏销售（止18年9月30日）'!$X:$X,"新品") -> 0 | CH14: =SUMIFS('2.1-18春夏销售（止18年9月30日）'!$I:$I,'2.1-18春夏销售（止18年9月30日）'!$D:$D,运营部分析!$J$1,'2.1-18春夏销售（止18年9月30日）'!$V:$V,运营部分析!CH$4,'2.1-18春夏销售（止18年9月30日）'!$A:$A,运营部分析!$B14,'2.1-18春夏销售（止18年9月30日）'!$W:$W,"否",'2.1-18春夏销售（止18年9月30日）'!$X:$X,"新品") -> 0 | CI14: =SUMIFS('2.1-18春夏销售（止18年9月30日）'!$I:$I,'2.1-18春夏销售（止18年9月30日）'!$D:$D,运营部分析!$J$1,'2.1-18春夏销售（止18年9月30日）'!$V:$V,运营部分析!CI$4,'2.1-18春夏销售（止18年9月30日）'!$A:$A,运营部分析!$B14,'2.1-18春夏销售（止18年9月30日）'!$W:$W,"否",'2.1-18春夏销售（止18年9月30日）'!$X:$X,"新品") -> 0 | CJ14: =SUMIFS('2.1-18春夏销售（止18年9月30日）'!$I:$I,'2.1-18春夏销售（止18年9月30日）'!$D:$D,运营部分析!$J$1,'2.1-18春夏销售（止18年9月30日）'!$V:$V,运营部分析!CJ$4,'2.1-18春夏销售（止18年9月30日）'!$A:$A,运营部分析!$B14,'2.1-18春夏销售（止18年9月30日）'!$W:$W,"否",'2.1-18春夏销售（止18年9月30日）'!$X:$X,"新品") -> 0 | CK14: =SUMIFS('2.1-18春夏销售（止18年9月30日）'!$I:$I,'2.1-18春夏销售（止18年9月30日）'!$D:$D,运营部分析!$J$1,'2.1-18春夏销售（止18年9月30日）'!$V:$V,运营部分析!CK$4,'2.1-18春夏销售（止18年9月30日）'!$A:$A,运营部分析!$B14,'2.1-18春夏销售（止18年9月30日）'!$W:$W,"否",'2.1-18春夏销售（止18年9月30日）'!$X:$X,"新品") -> 0 | CL14: =SUMIFS('2.1-18春夏销售（止18年9月30日）'!$I:$I,'2.1-18春夏销售（止18年9月30日）'!$D:$D,运营部分析!$J$1,'2.1-18春夏销售（止18年9月30日）'!$V:$V,运营部分析!CL$4,'2.1-18春夏销售（止18年9月30日）'!$A:$A,运营部分析!$B14,'2.1-18春夏销售（止18年9月30日）'!$W:$W,"否",'2.1-18春夏销售（止18年9月30日）'!$X:$X,"新品") -> 0 | CM14: =SUMIFS('2.1-18春夏销售（止18年9月30日）'!$I:$I,'2.1-18春夏销售（止18年9月30日）'!$D:$D,运营部分析!$J$1,'2.1-18春夏销售（止18年9月30日）'!$V:$V,运营部分析!CM$4,'2.1-18春夏销售（止18年9月30日）'!$A:$A,运营部分析!$B14,'2.1-18春夏销售（止18年9月30日）'!$W:$W,"否",'2.1-18春夏销售（止18年9月30日）'!$X:$X,"新品") -> 2 | CN14: =SUMIFS('2.1-18春夏销售（止18年9月30日）'!$I:$I,'2.1-18春夏销售（止18年9月30日）'!$D:$D,运营部分析!$J$1,'2.1-18春夏销售（止18年9月30日）'!$V:$V,运营部分析!CN$4,'2.1-18春夏销售（止18年9月30日）'!$A:$A,运营部分析!$B14,'2.1-18春夏销售（止18年9月30日）'!$W:$W,"否",'2.1-18春夏销售（止18年9月30日）'!$X:$X,"新品") -> 10 | CO14: =SUMIFS('2.1-18春夏销售（止18年9月30日）'!$I:$I,'2.1-18春夏销售（止18年9月30日）'!$D:$D,运营部分析!$J$1,'2.1-18春夏销售（止18年9月30日）'!$V:$V,运营部分析!CO$4,'2.1-18春夏销售（止18年9月30日）'!$A:$A,运营部分析!$B14,'2.1-18春夏销售（止18年9月30日）'!$W:$W,"否",'2.1-18春夏销售（止18年9月30日）'!$X:$X,"新品") -> 6 | CP14: =SUMIFS('2.1-18春夏销售（止18年9月30日）'!$I:$I,'2.1-18春夏销售（止18年9月30日）'!$D:$D,运营部分析!$J$1,'2.1-18春夏销售（止18年9月30日）'!$V:$V,运营部分析!CP$4,'2.1-18春夏销售（止18年9月30日）'!$A:$A,运营部分析!$B14,'2.1-18春夏销售（止18年9月30日）'!$W:$W,"否",'2.1-18春夏销售（止18年9月30日）'!$X:$X,"新品") -> 12 | CQ14: 30 | CR14: 87 | CS14: 0.4790419162 | CT14: =SUMIFS('2.1-18春夏销售（止18年9月30日）'!$S:$S,'2.1-18春夏销售（止18年9月30日）'!$D:$D,运营部分析!$J$1,'2.1-18春夏销售（止18年9月30日）'!$V:$V,运营部分析!CT$4,'2.1-18春夏销售（止18年9月30日）'!$A:$A,运营部分析!$B14,'2.1-18春夏销售（止18年9月30日）'!$W:$W,"否",'2.1-18春夏销售（止18年9月30日）'!$X:$X,"新品")/10000 -> 0 | CU14: =SUMIFS('2.1-18春夏销售（止18年9月30日）'!$S:$S,'2.1-18春夏销售（止18年9月30日）'!$D:$D,运营部分析!$J$1,'2.1-18春夏销售（止18年9月30日）'!$V:$V,运营部分析!CU$4,'2.1-18春夏销售（止18年9月30日）'!$A:$A,运营部分析!$B14,'2.1-18春夏销售（止18年9月30日）'!$W:$W,"否",'2.1-18春夏销售（止18年9月30日）'!$X:$X,"新品")/10000 -> 0 | CV14: =SUMIFS('2.1-18春夏销售（止18年9月30日）'!$S:$S,'2.1-18春夏销售（止18年9月30日）'!$D:$D,运营部分析!$J$1,'2.1-18春夏销售（止18年9月30日）'!$V:$V,运营部分析!CV$4,'2.1-18春夏销售（止18年9月30日）'!$A:$A,运营部分析!$B14,'2.1-18春夏销售（止18年9月30日）'!$W:$W,"否",'2.1-18春夏销售（止18年9月30日）'!$X:$X,"新品")/10000 -> 0 | CW14: =SUMIFS('2.1-18春夏销售（止18年9月30日）'!$S:$S,'2.1-18春夏销售（止18年9月30日）'!$D:$D,运营部分析!$J$1,'2.1-18春夏销售（止18年9月30日）'!$V:$V,运营部分析!CW$4,'2.1-18春夏销售（止18年9月30日）'!$A:$A,运营部分析!$B14,'2.1-18春夏销售（止18年9月30日）'!$W:$W,"否",'2.1-18春夏销售（止18年9月30日）'!$X:$X,"新品")/10000 -> 0 | CX14: =SUMIFS('2.1-18春夏销售（止18年9月30日）'!$S:$S,'2.1-18春夏销售（止18年9月30日）'!$D:$D,运营部分析!$J$1,'2.1-18春夏销售（止18年9月30日）'!$V:$V,运营部分析!CX$4,'2.1-18春夏销售（止18年9月30日）'!$A:$A,运营部分析!$B14,'2.1-18春夏销售（止18年9月30日）'!$W:$W,"否",'2.1-18春夏销售（止18年9月30日）'!$X:$X,"新品")/10000 -> 0 | CY14: =SUMIFS('2.1-18春夏销售（止18年9月30日）'!$S:$S,'2.1-18春夏销售（止18年9月30日）'!$D:$D,运营部分析!$J$1,'2.1-18春夏销售（止18年9月30日）'!$V:$V,运营部分析!CY$4,'2.1-18春夏销售（止18年9月30日）'!$A:$A,运营部分析!$B14,'2.1-18春夏销售（止18年9月30日）'!$W:$W,"否",'2.1-18春夏销售（止18年9月30日）'!$X:$X,"新品")/10000 -> 0 | CZ14: =SUMIFS('2.1-18春夏销售（止18年9月30日）'!$S:$S,'2.1-18春夏销售（止18年9月30日）'!$D:$D,运营部分析!$J$1,'2.1-18春夏销售（止18年9月30日）'!$V:$V,运营部分析!CZ$4,'2.1-18春夏销售（止18年9月30日）'!$A:$A,运营部分析!$B14,'2.1-18春夏销售（止18年9月30日）'!$W:$W,"否",'2.1-18春夏销售（止18年9月30日）'!$X:$X,"新品")/10000 -> 0.1598 | DA14: =SUMIFS('2.1-18春夏销售（止18年9月30日）'!$S:$S,'2.1-18春夏销售（止18年9月30日）'!$D:$D,运营部分析!$J$1,'2.1-18春夏销售（止18年9月30日）'!$V:$V,运营部分析!DA$4,'2.1-18春夏销售（止18年9月30日）'!$A:$A,运营部分析!$B14,'2.1-18春夏销售（止18年9月30日）'!$W:$W,"否",'2.1-18春夏销售（止18年9月30日）'!$X:$X,"新品")/10000 -> 0.799 | DB14: =SUMIFS('2.1-18春夏销售（止18年9月30日）'!$S:$S,'2.1-18春夏销售（止18年9月30日）'!$D:$D,运营部分析!$J$1,'2.1-18春夏销售（止18年9月30日）'!$V:$V,运营部分析!DB$4,'2.1-18春夏销售（止18年9月30日）'!$A:$A,运营部分析!$B14,'2.1-18春夏销售（止18年9月30日）'!$W:$W,"否",'2.1-18春夏销售（止18年9月30日）'!$X:$X,"新品")/10000 -> 0.4854 | DC14: =SUMIFS('2.1-18春夏销售（止18年9月30日）'!$S:$S,'2.1-18春夏销售（止18年9月30日）'!$D:$D,运营部分析!$J$1,'2.1-18春夏销售（止18年9月30日）'!$V:$V,运营部分析!DC$4,'2.1-18春夏销售（止18年9月30日）'!$A:$A,运营部分析!$B14,'2.1-18春夏销售（止18年9月30日）'!$W:$W,"否",'2.1-18春夏销售（止18年9月30日）'!$X:$X,"新品")/10000 -> 0.9588 | DD14: 2.403 | DE14: 7.7253 | DF14: 0.4673419153 | DH14: =SUMIFS('1.1-19春夏新旧品销售（更新）'!$I:$I,'1.1-19春夏新旧品销售（更新）'!$D:$D,运营部分析!$J$1,'1.1-19春夏新旧品销售（更新）'!$A:$A,运营部分析!$B14,'1.1-19春夏新旧品销售（更新）'!$AB:$AB,"新品",'1.1-19春夏新旧品销售（更新）'!$AG:$AG,"是") -> 0 | DI14: =SUMIFS('1.1-19春夏新旧品销售（更新）'!$S:$S,'1.1-19春夏新旧品销售（更新）'!$D:$D,运营部分析!$J$1,'1.1-19春夏新旧品销售（更新）'!$A:$A,运营部分析!$B14,'1.1-19春夏新旧品销售（更新）'!$AB:$AB,"新品",'1.1-19春夏新旧品销售（更新）'!$AG:$AG,"是")/10000 -> 0 | DJ14: =SUMIFS('1.6-19春夏期货订单（更新）'!$AG:$AG,'1.6-19春夏期货订单（更新）'!$F:$F,运营部分析!$J$1,'1.6-19春夏期货订单（更新）'!$A:$A,运营部分析!$B14,'1.6-19春夏期货订单（更新）'!$AQ:$AQ,"是")+SUMIFS('1.2-19春夏发货（更新）'!$K:$K,'1.2-19春夏发货（更新）'!$A:$A,运营部分析!$B14,'1.2-19春夏发货（更新）'!$Q:$Q,运营部分析!$J$1,'1.2-19春夏发货（更新）'!$T:$T,"当季补货",'1.2-19春夏发货（更新）'!$W:$W,"是")+SUMIFS('1.2-19春夏发货（更新）'!$K:$K,'1.2-19春夏发货（更新）'!$A:$A,运营部分析!$B14,'1.2-19春夏发货（更新）'!$Q:$Q,运营部分析!$J$1,'1.2-19春夏发货（更新）'!$T:$T,"往季补货",'1.2-19春夏发货（更新）'!$W:$W,"是")+SUMIFS('1.3-19春夏调配（更新）'!$P:$P,'1.3-19春夏调配（更新）'!$K:$K,运营部分析!$J$1,'1.3-19春夏调配（更新）'!$A:$A,运营部分析!$B14,'1.3-19春夏调配（更新）'!$AC:$AC,"是",'1.3-19春夏调配（更新）'!$X:$X,"<>已审核")-SUMIFS('1.3-19春夏调配（更新）'!$P:$P,'1.3-19春夏调配（更新）'!$G:$G,运营部分析!$J$1,'1.3-19春夏调配（更新）'!$A:$A,运营部分析!$B14,'1.3-19春夏调配（更新）'!$AC:$AC,"是",'1.3-19春夏调配（更新）'!$X:$X,"<>已审核") -> 0 | DK14: =SUMIFS('1.6-19春夏期货订单（更新）'!$AN:$AN,'1.6-19春夏期货订单（更新）'!$F:$F,运营部分析!$J$1,'1.6-19春夏期货订单（更新）'!$A:$A,运营部分析!$B14,'1.6-19春夏期货订单（更新）'!$AQ:$AQ,"是")/10000+SUMIFS('1.2-19春夏发货（更新）'!$U:$U,'1.2-19春夏发货（更新）'!$A:$A,运营部分析!$B14,'1.2-19春夏发货（更新）'!$Q:$Q,运营部分析!$J$1,'1.2-19春夏发货（更新）'!$T:$T,"当季补货",'1.2-19春夏发货（更新）'!$W:$W,"是")/10000+SUMIFS('1.2-19春夏发货（更新）'!$U:$U,'1.2-19春夏发货（更新）'!$A:$A,运营部分析!$B14,'1.2-19春夏发货（更新）'!$Q:$Q,运营部分析!$J$1,'1.2-19春夏发货（更新）'!$T:$T,"往季补货",'1.2-19春夏发货（更新）'!$W:$W,"是")/10000+SUMIFS('1.3-19春夏调配（更新）'!$AA:$AA,'1.3-19春夏调配（更新）'!$K:$K,运营部分析!$J$1,'1.3-19春夏调配（更新）'!$A:$A,运营部分析!$B14,'1.3-19春夏调配（更新）'!$AC:$AC,"是",'1.3-19春夏调配（更新）'!$X:$X,"<>已审核")/10000-SUMIFS('1.3-19春夏调配（更新）'!$AA:$AA,'1.3-19春夏调配（更新）'!$G:$G,运营部分析!$J$1,'1.3-19春夏调配（更新）'!$A:$A,运营部分析!$B14,'1.3-19春夏调配（更新）'!$AC:$AC,"是",'1.3-19春夏调配（更新）'!$X:$X,"<>已审核")/10000 -> 0 | DM14: 0.005988023952 | DN14: 0.006198589287
B15: 20 | C15: 套西 | E15: =SUMIFS('1.6-19春夏期货订单（更新）'!$AG:$AG,'1.6-19春夏期货订单（更新）'!$F:$F,运营部分析!$J$1,'1.6-19春夏期货订单（更新）'!$A:$A,运营部分析!$B15)+SUMIFS('1.2-19春夏发货（更新）'!$K:$K,'1.2-19春夏发货（更新）'!$A:$A,运营部分析!$B15,'1.2-19春夏发货（更新）'!$Q:$Q,运营部分析!$J$1,'1.2-19春夏发货（更新）'!$T:$T,"当季补货")+SUMIFS('1.2-19春夏发货（更新）'!$K:$K,'1.2-19春夏发货（更新）'!$A:$A,运营部分析!$B15,'1.2-19春夏发货（更新）'!$Q:$Q,运营部分析!$J$1,'1.2-19春夏发货（更新）'!$T:$T,"往季补货")+SUMIFS('1.3-19春夏调配（更新）'!$P:$P,'1.3-19春夏调配（更新）'!$K:$K,运营部分析!$J$1,'1.3-19春夏调配（更新）'!$A:$A,运营部分析!$B15)-SUMIFS('1.3-19春夏调配（更新）'!$P:$P,'1.3-19春夏调配（更新）'!$G:$G,运营部分析!$J$1,'1.3-19春夏调配（更新）'!$A:$A,运营部分析!$B15,'1.3-19春夏调配（更新）'!$Z:$Z,"是") -> 306 | F15: =SUMIFS('1.6-19春夏期货订单（更新）'!$AN:$AN,'1.6-19春夏期货订单（更新）'!$F:$F,运营部分析!$J$1,'1.6-19春夏期货订单（更新）'!$A:$A,运营部分析!$B15)/10000+SUMIFS('1.2-19春夏发货（更新）'!$U:$U,'1.2-19春夏发货（更新）'!$A:$A,运营部分析!$B15,'1.2-19春夏发货（更新）'!$Q:$Q,运营部分析!$J$1,'1.2-19春夏发货（更新）'!$T:$T,"当季补货")/10000+SUMIFS('1.2-19春夏发货（更新）'!$U:$U,'1.2-19春夏发货（更新）'!$A:$A,运营部分析!$B15,'1.2-19春夏发货（更新）'!$Q:$Q,运营部分析!$J$1,'1.2-19春夏发货（更新）'!$T:$T,"往季补货")/10000+SUMIFS('1.3-19春夏调配（更新）'!$AA:$AA,'1.3-19春夏调配（更新）'!$K:$K,运营部分析!$J$1,'1.3-19春夏调配（更新）'!$A:$A,运营部分析!$B15)/10000-SUMIFS('1.3-19春夏调配（更新）'!$AA:$AA,'1.3-19春夏调配（更新）'!$G:$G,运营部分析!$J$1,'1.3-19春夏调配（更新）'!$A:$A,运营部分析!$B15,'1.3-19春夏调配（更新）'!$Z:$Z,"是")/10000 -> 38.7694 | G15: =(SUMIFS('2.1-18春夏销售（止18年9月30日）'!$I:$I,'2.1-18春夏销售（止18年9月30日）'!$X:$X,"新品",'2.1-18春夏销售（止18年9月30日）'!$A:$A,运营部分析!$B15,'2.1-18春夏销售（止18年9月30日）'!$D:$D,运营部分析!$J$1)+SUMIFS('2.2--18春夏库存（止18年9月30日）'!$M:$M,'2.2--18春夏库存（止18年9月30日）'!$C:$C,运营部分析!$J$1,'2.2--18春夏库存（止18年9月30日）'!$A:$A,运营部分析!$B15)+SUMIFS('2.4-18春夏冬退货（止18年9月30日）'!$Q:$Q,'2.4-18春夏冬退货（止18年9月30日）'!$D:$D,运营部分析!$J$1,'2.4-18春夏冬退货（止18年9月30日）'!$A:$A,运营部分析!$B15)+SUMIFS('2.3-18春夏调配（止18年9月30日）'!$P:$P,'2.3-18春夏调配（止18年9月30日）'!$G:$G,运营部分析!$J$1,'2.3-18春夏调配（止18年9月30日）'!$A:$A,运营部分析!$B15)) -> 558 | H15: =(SUMIFS('2.1-18春夏销售（止18年9月30日）'!$S:$S,'2.1-18春夏销售（止18年9月30日）'!$X:$X,"新品",'2.1-18春夏销售（止18年9月30日）'!$A:$A,运营部分析!$B15,'2.1-18春夏销售（止18年9月30日）'!$D:$D,运营部分析!$J$1)/10000+SUMIFS('2.2--18春夏库存（止18年9月30日）'!$P:$P,'2.2--18春夏库存（止18年9月30日）'!$C:$C,运营部分析!$J$1,'2.2--18春夏库存（止18年9月30日）'!$A:$A,运营部分析!$B15)/10000+SUMIFS('2.4-18春夏冬退货（止18年9月30日）'!$T:$T,'2.4-18春夏冬退货（止18年9月30日）'!$D:$D,运营部分析!$J$1,'2.4-18春夏冬退货（止18年9月30日）'!$A:$A,运营部分析!$B15)/10000+SUMIFS('2.3-18春夏调配（止18年9月30日）'!$Y:$Y,'2.3-18春夏调配（止18年9月30日）'!$G:$G,运营部分析!$J$1,'2.3-18春夏调配（止18年9月30日）'!$A:$A,运营部分析!$B15)/10000) -> 67.1942 | I15: -0.4516129032 | J15: -0.4230246063 | K15: =SUMIFS('1.1-19春夏新旧品销售（更新）'!$I:$I,'1.1-19春夏新旧品销售（更新）'!$D:$D,运营部分析!$J$1,'1.1-19春夏新旧品销售（更新）'!$A:$A,运营部分析!$B15,'1.1-19春夏新旧品销售（更新）'!$AB:$AB,"新品") -> 101 | L15: =SUMIFS('1.1-19春夏新旧品销售（更新）'!$S:$S,'1.1-19春夏新旧品销售（更新）'!$D:$D,运营部分析!$J$1,'1.1-19春夏新旧品销售（更新）'!$A:$A,运营部分析!$B15,'1.1-19春夏新旧品销售（更新）'!$AB:$AB,"新品")/10000 -> 12.1499 | M15: =SUMIFS('2.1-18春夏销售（止18年9月30日）'!$I:$I,'2.1-18春夏销售（止18年9月30日）'!$D:$D,运营部分析!$J$1,'2.1-18春夏销售（止18年9月30日）'!$A:$A,运营部分析!$B15,'2.1-18春夏销售（止18年9月30日）'!$X:$X,"新品",'2.1-18春夏销售（止18年9月30日）'!$T:$T,"同期销售") -> 184 | N15: =SUMIFS('2.1-18春夏销售（止18年9月30日）'!$S:$S,'2.1-18春夏销售（止18年9月30日）'!$D:$D,运营部分析!$J$1,'2.1-18春夏销售（止18年9月30日）'!$A:$A,运营部分析!$B15,'2.1-18春夏销售（止18年9月30日）'!$X:$X,"新品",'2.1-18春夏销售（止18年9月30日）'!$T:$T,"同期销售")/10000 -> 22.7016 | O15: -0.4510869565 | P15: -0.4647998379 | Q15: =SUMIFS('2.1-18春夏销售（止18年9月30日）'!$I:$I,'2.1-18春夏销售（止18年9月30日）'!$D:$D,运营部分析!$J$1,'2.1-18春夏销售（止18年9月30日）'!$A:$A,运营部分析!$B15,'2.1-18春夏销售（止18年9月30日）'!$X:$X,"新品") -> 263 | R15: =SUMIFS('2.1-18春夏销售（止18年9月30日）'!$S:$S,'2.1-18春夏销售（止18年9月30日）'!$D:$D,运营部分析!$J$1,'2.1-18春夏销售（止18年9月30日）'!$A:$A,运营部分析!$B15,'2.1-18春夏销售（止18年9月30日）'!$X:$X,"新品")/10000 -> 32.1237 | S15: =SUMIFS('1.5-19春夏新旧品库存（更新）'!$BF:$BF,'1.5-19春夏新旧品库存（更新）'!$B:$B,运营部分析!$J$1,'1.5-19春夏新旧品库存（更新）'!$E:$E,运营部分析!$B15,'1.5-19春夏新旧品库存（更新）'!$BI:$BI,"新品") -> 203 | T15: =SUMIFS('1.5-19春夏新旧品库存（更新）'!$BG:$BG,'1.5-19春夏新旧品库存（更新）'!$B:$B,运营部分析!$J$1,'1.5-19春夏新旧品库存（更新）'!$E:$E,运营部分析!$B15,'1.5-19春夏新旧品库存（更新）'!$BI:$BI,"新品")/10000 -> 26.3797 | U15: =(SUMIFS('2.2--18春夏库存（止18年9月30日）'!$M:$M,'2.2--18春夏库存（止18年9月30日）'!$C:$C,运营部分析!$J$1,'2.2--18春夏库存（止18年9月30日）'!$A:$A,运营部分析!$B15)) -> 276 | V15: =(SUMIFS('2.2--18春夏库存（止18年9月30日）'!$P:$P,'2.2--18春夏库存（止18年9月30日）'!$C:$C,运营部分析!$J$1,'2.2--18春夏库存（止18年9月30日）'!$A:$A,运营部分析!$B15))/10000 -> 32.8324 | W15: -0.2644927536 | X15: -0.1965345208 | Y15: 0.3238095238 | Z15: 0.3079112137 | AA15: =SUMIFS('2.3-18春夏调配（止18年9月30日）'!$P:$P,'2.3-18春夏调配（止18年9月30日）'!$G:$G,运营部分析!$J$1,'2.3-18春夏调配（止18年9月30日）'!$A:$A,运营部分析!$B15,'2.3-18春夏调配（止18年9月30日）'!$Z:$Z,"否",'2.3-18春夏调配（止18年9月30日）'!$AA:$AA,"是") -> 13 | AB15: =SUMIFS('2.3-18春夏调配（止18年9月30日）'!$Y:$Y,'2.3-18春夏调配（止18年9月30日）'!$G:$G,运营部分析!$J$1,'2.3-18春夏调配（止18年9月30日）'!$A:$A,运营部分析!$B15,'2.3-18春夏调配（止18年9月30日）'!$Z:$Z,"否",'2.3-18春夏调配（止18年9月30日）'!$AA:$AA,"是")/10000 -> 1.5487 | AC15: =SUMIFS('2.3-18春夏调配（止18年9月30日）'!$P:$P,'2.3-18春夏调配（止18年9月30日）'!$G:$G,运营部分析!$J$1,'2.3-18春夏调配（止18年9月30日）'!$A:$A,运营部分析!$B15,'2.3-18春夏调配（止18年9月30日）'!$Z:$Z,"是",'2.3-18春夏调配（止18年9月30日）'!$AA:$AA,"是") -> 3 | AD15: =SUMIFS('2.3-18春夏调配（止18年9月30日）'!$Y:$Y,'2.3-18春夏调配（止18年9月30日）'!$G:$G,运营部分析!$J$1,'2.3-18春夏调配（止18年9月30日）'!$A:$A,运营部分析!$B15,'2.3-18春夏调配（止18年9月30日）'!$Z:$Z,"是",'2.3-18春夏调配（止18年9月30日）'!$AA:$AA,"是")/10000 -> 0.3597 | AE15: 0.354954955 | AF15: 0.3628410477 | AI15: -0.08774474257 | AJ15: -0.1513881472 | AK15: =SUMIFS('2.3-18春夏调配（止18年9月30日）'!$P:$P,'2.3-18春夏调配（止18年9月30日）'!$G:$G,运营部分析!$J$1,'2.3-18春夏调配（止18年9月30日）'!$A:$A,运营部分析!$B15,'2.3-18春夏调配（止18年9月30日）'!$Z:$Z,"否") -> 16 | AL15: =SUMIFS('2.3-18春夏调配（止18年9月30日）'!$Y:$Y,'2.3-18春夏调配（止18年9月30日）'!$G:$G,运营部分析!$J$1,'2.3-18春夏调配（止18年9月30日）'!$A:$A,运营部分析!$B15,'2.3-18春夏调配（止18年9月30日）'!$Z:$Z,"否")/10000 -> 1.8784 | AM15: =SUMIFS('2.3-18春夏调配（止18年9月30日）'!$P:$P,'2.3-18春夏调配（止18年9月30日）'!$G:$G,运营部分析!$J$1,'2.3-18春夏调配（止18年9月30日）'!$A:$A,运营部分析!$B15,'2.3-18春夏调配（止18年9月30日）'!$Z:$Z,"是") -> 3 | AN15: =SUMIFS('2.3-18春夏调配（止18年9月30日）'!$Y:$Y,'2.3-18春夏调配（止18年9月30日）'!$G:$G,运营部分析!$J$1,'2.3-18春夏调配（止18年9月30日）'!$A:$A,运营部分析!$B15,'2.3-18春夏调配（止18年9月30日）'!$Z:$Z,"是")/10000 -> 0.3597 | AO15: 0.5027027027 | AP15: 0.5087507201 | AQ15: =SUMIFS('1.2-19春夏发货（更新）'!$K:$K,'1.2-19春夏发货（更新）'!$A:$A,运营部分析!$B15,'1.2-19春夏发货（更新）'!Q:Q,运营部分析!$J$1) -> 297 | AR15: 0.9705882353 | AS15: 9 | AT15: 305 | AU15: =SUMIFS('1.6-19春夏期货订单（更新）'!$AP:$AP,'1.6-19春夏期货订单（更新）'!$A:$A,运营部分析!$B15,'1.6-19春夏期货订单（更新）'!$F:$F,运营部分析!$J$1) -> 4 | AV15: =SUMIFS('1.1-19春夏新旧品销售（更新）'!$X:$X,'1.1-19春夏新旧品销售（更新）'!$A:$A,运营部分析!$B15,'1.1-19春夏新旧品销售（更新）'!D:D,运营部分析!$J$1,'1.1-19春夏新旧品销售（更新）'!$U:$U,"月",'1.1-19春夏新旧品销售（更新）'!$AH:$AH,"新品") -> 1 | AW15: =SUMIFS('1.5-19春夏新旧品库存（更新）'!$BM:$BM,'1.5-19春夏新旧品库存（更新）'!$E:$E,运营部分析!$B15,'1.5-19春夏新旧品库存（更新）'!$B:$B,运营部分析!$J$1,'1.5-19春夏新旧品库存（更新）'!$BI:$BI,"新品") -> 4 | AX15: 0.25 | AY15: 40.6 | AZ15: =SUMIFS('1.1-19春夏新旧品销售（更新）'!$I:$I,'1.1-19春夏新旧品销售（更新）'!$A:$A,运营部分析!$B15,'1.1-19春夏新旧品销售（更新）'!$U:$U,"月",'1.1-19春夏新旧品销售（更新）'!$D:$D,运营部分析!$J$1,'1.1-19春夏新旧品销售（更新）'!$AH:$AH,"新品") -> 5 | BA15: =SUMIFS('1.1-19春夏新旧品销售（更新）'!$J:$J,'1.1-19春夏新旧品销售（更新）'!$A:$A,运营部分析!$B15,'1.1-19春夏新旧品销售（更新）'!$U:$U,"月",'1.1-19春夏新旧品销售（更新）'!$D:$D,运营部分析!$J$1,'1.1-19春夏新旧品销售（更新）'!$AH:$AH,"新品")/10000 -> 0.4382 | BB15: =SUMIFS('1.1-19春夏新旧品销售（更新）'!$K:$K,'1.1-19春夏新旧品销售（更新）'!$A:$A,运营部分析!$B15,'1.1-19春夏新旧品销售（更新）'!$U:$U,"月",'1.1-19春夏新旧品销售（更新）'!$D:$D,运营部分析!$J$1,'1.1-19春夏新旧品销售（更新）'!$AH:$AH,"新品")/10000 -> 0.6995 | BC15: =SUMIFS('1.1-19春夏新旧品销售（更新）'!$S:$S,'1.1-19春夏新旧品销售（更新）'!$A:$A,运营部分析!$B15,'1.1-19春夏新旧品销售（更新）'!$U:$U,"月",'1.1-19春夏新旧品销售（更新）'!$D:$D,运营部分析!$J$1,'1.1-19春夏新旧品销售（更新）'!$AH:$AH,"新品")/10000 -> 0.5995 | BD15: 1.166805671 | BE15: 876.4 | BF15: 0.730942452 | BG15: =SUMIFS('2.1-18春夏销售（止18年9月30日）'!$J:$J,'2.1-18春夏销售（止18年9月30日）'!$A:$A,运营部分析!$B15,'2.1-18春夏销售（止18年9月30日）'!$D:$D,运营部分析!$J$1,'2.1-18春夏销售（止18年9月30日）'!$U:$U,"月",'2.1-18春夏销售（止18年9月30日）'!$X:$X,"新品")/10000 -> 1.4419 | BH15: =SUMIFS('2.1-18春夏销售（止18年9月30日）'!$S:$S,'2.1-18春夏销售（止18年9月30日）'!$A:$A,运营部分析!$B15,'2.1-18春夏销售（止18年9月30日）'!$D:$D,运营部分析!$J$1,'2.1-18春夏销售（止18年9月30日）'!$U:$U,"月",'2.1-18春夏销售（止18年9月30日）'!$X:$X,"新品")/10000 -> 1.5387 | BI15: 0.9370897511 | BJ15: =SUMIFS('1.1-19春夏新旧品销售（更新）'!$J:$J,'1.1-19春夏新旧品销售（更新）'!$A:$A,运营部分析!$B15,'1.1-19春夏新旧品销售（更新）'!$D:$D,运营部分析!$J$1,'1.1-19春夏新旧品销售（更新）'!$T:$T,"本周",'1.1-19春夏新旧品销售（更新）'!$AH:$AH,"新品")/10000 -> 0 | BK15: =SUMIFS('1.1-19春夏新旧品销售（更新）'!$S:$S,'1.1-19春夏新旧品销售（更新）'!$A:$A,运营部分析!$B15,'1.1-19春夏新旧品销售（更新）'!$D:$D,运营部分析!$J$1,'1.1-19春夏新旧品销售（更新）'!$T:$T,"本周",'1.1-19春夏新旧品销售（更新）'!$AH:$AH,"新品")/10000 -> 0 | BL15: 0 | BM15: 0.02450852099 | BN15: 0.02184611417 | BO15: =SUMIFS('1.1-19春夏新旧品销售（更新）'!$I:$I,'1.1-19春夏新旧品销售（更新）'!$A:$A,运营部分析!#REF!,'1.1-19春夏新旧品销售（更新）'!$D:$D,运营部分析!$J$1,'1.1-19春夏新旧品销售（更新）'!$T:$T,"上上周",'1.1-19春夏新旧品销售（更新）'!$AH:$AH,"新品") -> 0 | BP15: =SUMIFS('1.1-19春夏新旧品销售（更新）'!$I:$I,'1.1-19春夏新旧品销售（更新）'!$A:$A,运营部分析!$B14,'1.1-19春夏新旧品销售（更新）'!$D:$D,运营部分析!$J$1,'1.1-19春夏新旧品销售（更新）'!$T:$T,"上周",'1.1-19春夏新旧品销售（更新）'!$AH:$AH,"新品") -> 1 | BQ15: =SUMIFS('1.1-19春夏新旧品销售（更新）'!$I:$I,'1.1-19春夏新旧品销售（更新）'!$A:$A,运营部分析!$B14,'1.1-19春夏新旧品销售（更新）'!$D:$D,运营部分析!$J$1,'1.1-19春夏新旧品销售（更新）'!$T:$T,"本周",'1.1-19春夏新旧品销售（更新）'!$AH:$AH,"新品") -> 2 | BR15: =SUMIFS('1.1-19春夏新旧品销售（更新）'!$I:$I,'1.1-19春夏新旧品销售（更新）'!$A:$A,运营部分析!$B15,'1.1-19春夏新旧品销售（更新）'!$D:$D,运营部分析!$J$1,'1.1-19春夏新旧品销售（更新）'!$U:$U,"月",'1.1-19春夏新旧品销售（更新）'!$AH:$AH,"新品") -> 5 | BS15: 0 | BT15: 1 | BU15: 0.005194805195 | BV15: 0.002662406816 | CA15: =SUMIFS('1.3-19春夏调配（更新）'!$AA:$AA,'1.3-19春夏调配（更新）'!$K:$K,运营部分析!$J$1,'1.3-19春夏调配（更新）'!$A:$A,运营部分析!$B15,'1.3-19春夏调配（更新）'!$X:$X,"<>已审核")/10000 -> 1.0791 | CB15: =SUMIFS('1.3-19春夏调配（更新）'!$AA:$AA,'1.3-19春夏调配（更新）'!$G:$G,运营部分析!$J$1,'1.3-19春夏调配（更新）'!$A:$A,运营部分析!$B15,'1.3-19春夏调配（更新）'!$Z:$Z,"是",'1.3-19春夏调配（更新）'!$X:$X,"<>已审核")/10000 -> 0 | CC15: =SUMIFS('1.3-19春夏调配（更新）'!$AA:$AA,'1.3-19春夏调配（更新）'!$G:$G,运营部分析!$J$1,'1.3-19春夏调配（更新）'!$A:$A,运营部分析!$B15,'1.3-19春夏调配（更新）'!$Z:$Z,"否",'1.3-19春夏调配（更新）'!$X:$X,"<>已审核")/10000 -> 0.1199 | CD15: =SUMIFS('1.3-19春夏调配（更新）'!$P:$P,'1.3-19春夏调配（更新）'!$K:$K,运营部分析!$J$1,'1.3-19春夏调配（更新）'!$A:$A,运营部分析!$B15,'1.3-19春夏调配（更新）'!$X:$X,"<>已审核") -> 9 | CE15: =SUMIFS('1.3-19春夏调配（更新）'!$P:$P,'1.3-19春夏调配（更新）'!$G:$G,运营部分析!$J$1,'1.3-19春夏调配（更新）'!$A:$A,运营部分析!$B15,'1.3-19春夏调配（更新）'!$Z:$Z,"是",'1.3-19春夏调配（更新）'!$X:$X,"<>已审核") -> 0 | CF15: =SUMIFS('1.3-19春夏调配（更新）'!$P:$P,'1.3-19春夏调配（更新）'!$G:$G,运营部分析!$J$1,'1.3-19春夏调配（更新）'!$A:$A,运营部分析!$B15,'1.3-19春夏调配（更新）'!$Z:$Z,"否",'1.3-19春夏调配（更新）'!$X:$X,"<>已审核") -> 1 | CG15: =SUMIFS('2.1-18春夏销售（止18年9月30日）'!$I:$I,'2.1-18春夏销售（止18年9月30日）'!$D:$D,运营部分析!$J$1,'2.1-18春夏销售（止18年9月30日）'!$V:$V,运营部分析!CG$4,'2.1-18春夏销售（止18年9月30日）'!$A:$A,运营部分析!$B15,'2.1-18春夏销售（止18年9月30日）'!$W:$W,"否",'2.1-18春夏销售（止18年9月30日）'!$X:$X,"新品") -> 0 | CH15: =SUMIFS('2.1-18春夏销售（止18年9月30日）'!$I:$I,'2.1-18春夏销售（止18年9月30日）'!$D:$D,运营部分析!$J$1,'2.1-18春夏销售（止18年9月30日）'!$V:$V,运营部分析!CH$4,'2.1-18春夏销售（止18年9月30日）'!$A:$A,运营部分析!$B15,'2.1-18春夏销售（止18年9月30日）'!$W:$W,"否",'2.1-18春夏销售（止18年9月30日）'!$X:$X,"新品") -> 0 | CI15: =SUMIFS('2.1-18春夏销售（止18年9月30日）'!$I:$I,'2.1-18春夏销售（止18年9月30日）'!$D:$D,运营部分析!$J$1,'2.1-18春夏销售（止18年9月30日）'!$V:$V,运营部分析!CI$4,'2.1-18春夏销售（止18年9月30日）'!$A:$A,运营部分析!$B15,'2.1-18春夏销售（止18年9月30日）'!$W:$W,"否",'2.1-18春夏销售（止18年9月30日）'!$X:$X,"新品") -> 0 | CJ15: =SUMIFS('2.1-18春夏销售（止18年9月30日）'!$I:$I,'2.1-18春夏销售（止18年9月30日）'!$D:$D,运营部分析!$J$1,'2.1-18春夏销售（止18年9月30日）'!$V:$V,运营部分析!CJ$4,'2.1-18春夏销售（止18年9月30日）'!$A:$A,运营部分析!$B15,'2.1-18春夏销售（止18年9月30日）'!$W:$W,"否",'2.1-18春夏销售（止18年9月30日）'!$X:$X,"新品") -> 0 | CK15: =SUMIFS('2.1-18春夏销售（止18年9月30日）'!$I:$I,'2.1-18春夏销售（止18年9月30日）'!$D:$D,运营部分析!$J$1,'2.1-18春夏销售（止18年9月30日）'!$V:$V,运营部分析!CK$4,'2.1-18春夏销售（止18年9月30日）'!$A:$A,运营部分析!$B15,'2.1-18春夏销售（止18年9月30日）'!$W:$W,"否",'2.1-18春夏销售（止18年9月30日）'!$X:$X,"新品") -> 0 | CL15: =SUMIFS('2.1-18春夏销售（止18年9月30日）'!$I:$I,'2.1-18春夏销售（止18年9月30日）'!$D:$D,运营部分析!$J$1,'2.1-18春夏销售（止18年9月30日）'!$V:$V,运营部分析!CL$4,'2.1-18春夏销售（止18年9月30日）'!$A:$A,运营部分析!$B15,'2.1-18春夏销售（止18年9月30日）'!$W:$W,"否",'2.1-18春夏销售（止18年9月30日）'!$X:$X,"新品") -> 0 | CM15: =SUMIFS('2.1-18春夏销售（止18年9月30日）'!$I:$I,'2.1-18春夏销售（止18年9月30日）'!$D:$D,运营部分析!$J$1,'2.1-18春夏销售（止18年9月30日）'!$V:$V,运营部分析!CM$4,'2.1-18春夏销售（止18年9月30日）'!$A:$A,运营部分析!$B15,'2.1-18春夏销售（止18年9月30日）'!$W:$W,"否",'2.1-18春夏销售（止18年9月30日）'!$X:$X,"新品") -> 8 | CN15: =SUMIFS('2.1-18春夏销售（止18年9月30日）'!$I:$I,'2.1-18春夏销售（止18年9月30日）'!$D:$D,运营部分析!$J$1,'2.1-18春夏销售（止18年9月30日）'!$V:$V,运营部分析!CN$4,'2.1-18春夏销售（止18年9月30日）'!$A:$A,运营部分析!$B15,'2.1-18春夏销售（止18年9月30日）'!$W:$W,"否",'2.1-18春夏销售（止18年9月30日）'!$X:$X,"新品") -> 40 | CO15: =SUMIFS('2.1-18春夏销售（止18年9月30日）'!$I:$I,'2.1-18春夏销售（止18年9月30日）'!$D:$D,运营部分析!$J$1,'2.1-18春夏销售（止18年9月30日）'!$V:$V,运营部分析!CO$4,'2.1-18春夏销售（止18年9月30日）'!$A:$A,运营部分析!$B15,'2.1-18春夏销售（止18年9月30日）'!$W:$W,"否",'2.1-18春夏销售（止18年9月30日）'!$X:$X,"新品") -> 19 | CP15: =SUMIFS('2.1-18春夏销售（止18年9月30日）'!$I:$I,'2.1-18春夏销售（止18年9月30日）'!$D:$D,运营部分析!$J$1,'2.1-18春夏销售（止18年9月30日）'!$V:$V,运营部分析!CP$4,'2.1-18春夏销售（止18年9月30日）'!$A:$A,运营部分析!$B15,'2.1-18春夏销售（止18年9月30日）'!$W:$W,"否",'2.1-18春夏销售（止18年9月30日）'!$X:$X,"新品") -> 12 | CQ15: 79 | CR15: 133 | CS15: 0.5746031746 | CT15: =SUMIFS('2.1-18春夏销售（止18年9月30日）'!$S:$S,'2.1-18春夏销售（止18年9月30日）'!$D:$D,运营部分析!$J$1,'2.1-18春夏销售（止18年9月30日）'!$V:$V,运营部分析!CT$4,'2.1-18春夏销售（止18年9月30日）'!$A:$A,运营部分析!$B15,'2.1-18春夏销售（止18年9月30日）'!$W:$W,"否",'2.1-18春夏销售（止18年9月30日）'!$X:$X,"新品")/10000 -> 0 | CU15: =SUMIFS('2.1-18春夏销售（止18年9月30日）'!$S:$S,'2.1-18春夏销售（止18年9月30日）'!$D:$D,运营部分析!$J$1,'2.1-18春夏销售（止18年9月30日）'!$V:$V,运营部分析!CU$4,'2.1-18春夏销售（止18年9月30日）'!$A:$A,运营部分析!$B15,'2.1-18春夏销售（止18年9月30日）'!$W:$W,"否",'2.1-18春夏销售（止18年9月30日）'!$X:$X,"新品")/10000 -> 0 | CV15: =SUMIFS('2.1-18春夏销售（止18年9月30日）'!$S:$S,'2.1-18春夏销售（止18年9月30日）'!$D:$D,运营部分析!$J$1,'2.1-18春夏销售（止18年9月30日）'!$V:$V,运营部分析!CV$4,'2.1-18春夏销售（止18年9月30日）'!$A:$A,运营部分析!$B15,'2.1-18春夏销售（止18年9月30日）'!$W:$W,"否",'2.1-18春夏销售（止18年9月30日）'!$X:$X,"新品")/10000 -> 0 | CW15: =SUMIFS('2.1-18春夏销售（止18年9月30日）'!$S:$S,'2.1-18春夏销售（止18年9月30日）'!$D:$D,运营部分析!$J$1,'2.1-18春夏销售（止18年9月30日）'!$V:$V,运营部分析!CW$4,'2.1-18春夏销售（止18年9月30日）'!$A:$A,运营部分析!$B15,'2.1-18春夏销售（止18年9月30日）'!$W:$W,"否",'2.1-18春夏销售（止18年9月30日）'!$X:$X,"新品")/10000 -> 0 | CX15: =SUMIFS('2.1-18春夏销售（止18年9月30日）'!$S:$S,'2.1-18春夏销售（止18年9月30日）'!$D:$D,运营部分析!$J$1,'2.1-18春夏销售（止18年9月30日）'!$V:$V,运营部分析!CX$4,'2.1-18春夏销售（止18年9月30日）'!$A:$A,运营部分析!$B15,'2.1-18春夏销售（止18年9月30日）'!$W:$W,"否",'2.1-18春夏销售（止18年9月30日）'!$X:$X,"新品")/10000 -> 0 | CY15: =SUMIFS('2.1-18春夏销售（止18年9月30日）'!$S:$S,'2.1-18春夏销售（止18年9月30日）'!$D:$D,运营部分析!$J$1,'2.1-18春夏销售（止18年9月30日）'!$V:$V,运营部分析!CY$4,'2.1-18春夏销售（止18年9月30日）'!$A:$A,运营部分析!$B15,'2.1-18春夏销售（止18年9月30日）'!$W:$W,"否",'2.1-18春夏销售（止18年9月30日）'!$X:$X,"新品")/10000 -> 0 | CZ15: =SUMIFS('2.1-18春夏销售（止18年9月30日）'!$S:$S,'2.1-18春夏销售（止18年9月30日）'!$D:$D,运营部分析!$J$1,'2.1-18春夏销售（止18年9月30日）'!$V:$V,运营部分析!CZ$4,'2.1-18春夏销售（止18年9月30日）'!$A:$A,运营部分析!$B15,'2.1-18春夏销售（止18年9月30日）'!$W:$W,"否",'2.1-18春夏销售（止18年9月30日）'!$X:$X,"新品")/10000 -> 0.9792 | DA15: =SUMIFS('2.1-18春夏销售（止18年9月30日）'!$S:$S,'2.1-18春夏销售（止18年9月30日）'!$D:$D,运营部分析!$J$1,'2.1-18春夏销售（止18年9月30日）'!$V:$V,运营部分析!DA$4,'2.1-18春夏销售（止18年9月30日）'!$A:$A,运营部分析!$B15,'2.1-18春夏销售（止18年9月30日）'!$W:$W,"否",'2.1-18春夏销售（止18年9月30日）'!$X:$X,"新品")/10000 -> 4.746 | DB15: =SUMIFS('2.1-18春夏销售（止18年9月30日）'!$S:$S,'2.1-18春夏销售（止18年9月30日）'!$D:$D,运营部分析!$J$1,'2.1-18春夏销售（止18年9月30日）'!$V:$V,运营部分析!DB$4,'2.1-18春夏销售（止18年9月30日）'!$A:$A,运营部分析!$B15,'2.1-18春夏销售（止18年9月30日）'!$W:$W,"否",'2.1-18春夏销售（止18年9月30日）'!$X:$X,"新品")/10000 -> 2.1981 | DC15: =SUMIFS('2.1-18春夏销售（止18年9月30日）'!$S:$S,'2.1-18春夏销售（止18年9月30日）'!$D:$D,运营部分析!$J$1,'2.1-18春夏销售（止18年9月30日）'!$V:$V,运营部分析!DC$4,'2.1-18春夏销售（止18年9月30日）'!$A:$A,运营部分析!$B15,'2.1-18春夏销售（止18年9月30日）'!$W:$W,"否",'2.1-18春夏销售（止18年9月30日）'!$X:$X,"新品")/10000 -> 1.4988 | DD15: 9.4221 | DE15: 18.1566 | DF15: 0.5443592607 | DH15: =SUMIFS('1.1-19春夏新旧品销售（更新）'!$I:$I,'1.1-19春夏新旧品销售（更新）'!$D:$D,运营部分析!$J$1,'1.1-19春夏新旧品销售（更新）'!$A:$A,运营部分析!$B15,'1.1-19春夏新旧品销售（更新）'!$AB:$AB,"新品",'1.1-19春夏新旧品销售（更新）'!$AG:$AG,"是") -> 0 | DI15: =SUMIFS('1.1-19春夏新旧品销售（更新）'!$S:$S,'1.1-19春夏新旧品销售（更新）'!$D:$D,运营部分析!$J$1,'1.1-19春夏新旧品销售（更新）'!$A:$A,运营部分析!$B15,'1.1-19春夏新旧品销售（更新）'!$AB:$AB,"新品",'1.1-19春夏新旧品销售（更新）'!$AG:$AG,"是")/10000 -> 0 | DJ15: =SUMIFS('1.6-19春夏期货订单（更新）'!$AG:$AG,'1.6-19春夏期货订单（更新）'!$F:$F,运营部分析!$J$1,'1.6-19春夏期货订单（更新）'!$A:$A,运营部分析!$B15,'1.6-19春夏期货订单（更新）'!$AQ:$AQ,"是")+SUMIFS('1.2-19春夏发货（更新）'!$K:$K,'1.2-19春夏发货（更新）'!$A:$A,运营部分析!$B15,'1.2-19春夏发货（更新）'!$Q:$Q,运营部分析!$J$1,'1.2-19春夏发货（更新）'!$T:$T,"当季补货",'1.2-19春夏发货（更新）'!$W:$W,"是")+SUMIFS('1.2-19春夏发货（更新）'!$K:$K,'1.2-19春夏发货（更新）'!$A:$A,运营部分析!$B15,'1.2-19春夏发货（更新）'!$Q:$Q,运营部分析!$J$1,'1.2-19春夏发货（更新）'!$T:$T,"往季补货",'1.2-19春夏发货（更新）'!$W:$W,"是")+SUMIFS('1.3-19春夏调配（更新）'!$P:$P,'1.3-19春夏调配（更新）'!$K:$K,运营部分析!$J$1,'1.3-19春夏调配（更新）'!$A:$A,运营部分析!$B15,'1.3-19春夏调配（更新）'!$AC:$AC,"是",'1.3-19春夏调配（更新）'!$X:$X,"<>已审核")-SUMIFS('1.3-19春夏调配（更新）'!$P:$P,'1.3-19春夏调配（更新）'!$G:$G,运营部分析!$J$1,'1.3-19春夏调配（更新）'!$A:$A,运营部分析!$B15,'1.3-19春夏调配（更新）'!$AC:$AC,"是",'1.3-19春夏调配（更新）'!$X:$X,"<>已审核") -> 0 | DK15: =SUMIFS('1.6-19春夏期货订单（更新）'!$AN:$AN,'1.6-19春夏期货订单（更新）'!$F:$F,运营部分析!$J$1,'1.6-19春夏期货订单（更新）'!$A:$A,运营部分析!$B15,'1.6-19春夏期货订单（更新）'!$AQ:$AQ,"是")/10000+SUMIFS('1.2-19春夏发货（更新）'!$U:$U,'1.2-19春夏发货（更新）'!$A:$A,运营部分析!$B15,'1.2-19春夏发货（更新）'!$Q:$Q,运营部分析!$J$1,'1.2-19春夏发货（更新）'!$T:$T,"当季补货",'1.2-19春夏发货（更新）'!$W:$W,"是")/10000+SUMIFS('1.2-19春夏发货（更新）'!$U:$U,'1.2-19春夏发货（更新）'!$A:$A,运营部分析!$B15,'1.2-19春夏发货（更新）'!$Q:$Q,运营部分析!$J$1,'1.2-19春夏发货（更新）'!$T:$T,"往季补货",'1.2-19春夏发货（更新）'!$W:$W,"是")/10000+SUMIFS('1.3-19春夏调配（更新）'!$AA:$AA,'1.3-19春夏调配（更新）'!$K:$K,运营部分析!$J$1,'1.3-19春夏调配（更新）'!$A:$A,运营部分析!$B15,'1.3-19春夏调配（更新）'!$AC:$AC,"是",'1.3-19春夏调配（更新）'!$X:$X,"<>已审核")/10000-SUMIFS('1.3-19春夏调配（更新）'!$AA:$AA,'1.3-19春夏调配（更新）'!$G:$G,运营部分析!$J$1,'1.3-19春夏调配（更新）'!$A:$A,运营部分析!$B15,'1.3-19春夏调配（更新）'!$AC:$AC,"是",'1.3-19春夏调配（更新）'!$X:$X,"<>已审核")/10000 -> 0 | DM15: 0.003174603175 | DN15: 0.003008896194
B16: 21 | C16: 便西 | E16: =SUMIFS('1.6-19春夏期货订单（更新）'!$AG:$AG,'1.6-19春夏期货订单（更新）'!$F:$F,运营部分析!$J$1,'1.6-19春夏期货订单（更新）'!$A:$A,运营部分析!$B16)+SUMIFS('1.2-19春夏发货（更新）'!$K:$K,'1.2-19春夏发货（更新）'!$A:$A,运营部分析!$B16,'1.2-19春夏发货（更新）'!$Q:$Q,运营部分析!$J$1,'1.2-19春夏发货（更新）'!$T:$T,"当季补货")+SUMIFS('1.2-19春夏发货（更新）'!$K:$K,'1.2-19春夏发货（更新）'!$A:$A,运营部分析!$B16,'1.2-19春夏发货（更新）'!$Q:$Q,运营部分析!$J$1,'1.2-19春夏发货（更新）'!$T:$T,"往季补货")+SUMIFS('1.3-19春夏调配（更新）'!$P:$P,'1.3-19春夏调配（更新）'!$K:$K,运营部分析!$J$1,'1.3-19春夏调配（更新）'!$A:$A,运营部分析!$B16)-SUMIFS('1.3-19春夏调配（更新）'!$P:$P,'1.3-19春夏调配（更新）'!$G:$G,运营部分析!$J$1,'1.3-19春夏调配（更新）'!$A:$A,运营部分析!$B16,'1.3-19春夏调配（更新）'!$Z:$Z,"是") -> 221 | F16: =SUMIFS('1.6-19春夏期货订单（更新）'!$AN:$AN,'1.6-19春夏期货订单（更新）'!$F:$F,运营部分析!$J$1,'1.6-19春夏期货订单（更新）'!$A:$A,运营部分析!$B16)/10000+SUMIFS('1.2-19春夏发货（更新）'!$U:$U,'1.2-19春夏发货（更新）'!$A:$A,运营部分析!$B16,'1.2-19春夏发货（更新）'!$Q:$Q,运营部分析!$J$1,'1.2-19春夏发货（更新）'!$T:$T,"当季补货")/10000+SUMIFS('1.2-19春夏发货（更新）'!$U:$U,'1.2-19春夏发货（更新）'!$A:$A,运营部分析!$B16,'1.2-19春夏发货（更新）'!$Q:$Q,运营部分析!$J$1,'1.2-19春夏发货（更新）'!$T:$T,"往季补货")/10000+SUMIFS('1.3-19春夏调配（更新）'!$AA:$AA,'1.3-19春夏调配（更新）'!$K:$K,运营部分析!$J$1,'1.3-19春夏调配（更新）'!$A:$A,运营部分析!$B16)/10000-SUMIFS('1.3-19春夏调配（更新）'!$AA:$AA,'1.3-19春夏调配（更新）'!$G:$G,运营部分析!$J$1,'1.3-19春夏调配（更新）'!$A:$A,运营部分析!$B16,'1.3-19春夏调配（更新）'!$Z:$Z,"是")/10000 -> 18.2819 | G16: =(SUMIFS('2.1-18春夏销售（止18年9月30日）'!$I:$I,'2.1-18春夏销售（止18年9月30日）'!$X:$X,"新品",'2.1-18春夏销售（止18年9月30日）'!$A:$A,运营部分析!$B16,'2.1-18春夏销售（止18年9月30日）'!$D:$D,运营部分析!$J$1)+SUMIFS('2.2--18春夏库存（止18年9月30日）'!$M:$M,'2.2--18春夏库存（止18年9月30日）'!$C:$C,运营部分析!$J$1,'2.2--18春夏库存（止18年9月30日）'!$A:$A,运营部分析!$B16)+SUMIFS('2.4-18春夏冬退货（止18年9月30日）'!$Q:$Q,'2.4-18春夏冬退货（止18年9月30日）'!$D:$D,运营部分析!$J$1,'2.4-18春夏冬退货（止18年9月30日）'!$A:$A,运营部分析!$B16)+SUMIFS('2.3-18春夏调配（止18年9月30日）'!$P:$P,'2.3-18春夏调配（止18年9月30日）'!$G:$G,运营部分析!$J$1,'2.3-18春夏调配（止18年9月30日）'!$A:$A,运营部分析!$B16)) -> 45 | H16: =(SUMIFS('2.1-18春夏销售（止18年9月30日）'!$S:$S,'2.1-18春夏销售（止18年9月30日）'!$X:$X,"新品",'2.1-18春夏销售（止18年9月30日）'!$A:$A,运营部分析!$B16,'2.1-18春夏销售（止18年9月30日）'!$D:$D,运营部分析!$J$1)/10000+SUMIFS('2.2--18春夏库存（止18年9月30日）'!$P:$P,'2.2--18春夏库存（止18年9月30日）'!$C:$C,运营部分析!$J$1,'2.2--18春夏库存（止18年9月30日）'!$A:$A,运营部分析!$B16)/10000+SUMIFS('2.4-18春夏冬退货（止18年9月30日）'!$T:$T,'2.4-18春夏冬退货（止18年9月30日）'!$D:$D,运营部分析!$J$1,'2.4-18春夏冬退货（止18年9月30日）'!$A:$A,运营部分析!$B16)/10000+SUMIFS('2.3-18春夏调配（止18年9月30日）'!$Y:$Y,'2.3-18春夏调配（止18年9月30日）'!$G:$G,运营部分析!$J$1,'2.3-18春夏调配（止18年9月30日）'!$A:$A,运营部分析!$B16)/10000) -> 3.6095 | I16: 3.911111111 | J16: 4.064939742 | K16: =SUMIFS('1.1-19春夏新旧品销售（更新）'!$I:$I,'1.1-19春夏新旧品销售（更新）'!$D:$D,运营部分析!$J$1,'1.1-19春夏新旧品销售（更新）'!$A:$A,运营部分析!$B16,'1.1-19春夏新旧品销售（更新）'!$AB:$AB,"新品") -> 67 | L16: =SUMIFS('1.1-19春夏新旧品销售（更新）'!$S:$S,'1.1-19春夏新旧品销售（更新）'!$D:$D,运营部分析!$J$1,'1.1-19春夏新旧品销售（更新）'!$A:$A,运营部分析!$B16,'1.1-19春夏新旧品销售（更新）'!$AB:$AB,"新品")/10000 -> 5.4433 | M16: =SUMIFS('2.1-18春夏销售（止18年9月30日）'!$I:$I,'2.1-18春夏销售（止18年9月30日）'!$D:$D,运营部分析!$J$1,'2.1-18春夏销售（止18年9月30日）'!$A:$A,运营部分析!$B16,'2.1-18春夏销售（止18年9月30日）'!$X:$X,"新品",'2.1-18春夏销售（止18年9月30日）'!$T:$T,"同期销售") -> 20 | N16: =SUMIFS('2.1-18春夏销售（止18年9月30日）'!$S:$S,'2.1-18春夏销售（止18年9月30日）'!$D:$D,运营部分析!$J$1,'2.1-18春夏销售（止18年9月30日）'!$A:$A,运营部分析!$B16,'2.1-18春夏销售（止18年9月30日）'!$X:$X,"新品",'2.1-18春夏销售（止18年9月30日）'!$T:$T,"同期销售")/10000 -> 1.62 | O16: 2.35 | P16: 2.360061728 | Q16: =SUMIFS('2.1-18春夏销售（止18年9月30日）'!$I:$I,'2.1-18春夏销售（止18年9月30日）'!$D:$D,运营部分析!$J$1,'2.1-18春夏销售（止18年9月30日）'!$A:$A,运营部分析!$B16,'2.1-18春夏销售（止18年9月30日）'!$X:$X,"新品") -> 28 | R16: =SUMIFS('2.1-18春夏销售（止18年9月30日）'!$S:$S,'2.1-18春夏销售（止18年9月30日）'!$D:$D,运营部分析!$J$1,'2.1-18春夏销售（止18年9月30日）'!$A:$A,运营部分析!$B16,'2.1-18春夏销售（止18年9月30日）'!$X:$X,"新品")/10000 -> 2.2672 | S16: =SUMIFS('1.5-19春夏新旧品库存（更新）'!$BF:$BF,'1.5-19春夏新旧品库存（更新）'!$B:$B,运营部分析!$J$1,'1.5-19春夏新旧品库存（更新）'!$E:$E,运营部分析!$B16,'1.5-19春夏新旧品库存（更新）'!$BI:$BI,"新品") -> 148 | T16: =SUMIFS('1.5-19春夏新旧品库存（更新）'!$BG:$BG,'1.5-19春夏新旧品库存（更新）'!$B:$B,运营部分析!$J$1,'1.5-19春夏新旧品库存（更新）'!$E:$E,运营部分析!$B16,'1.5-19春夏新旧品库存（更新）'!$BI:$BI,"新品")/10000 -> 12.3092 | U16: =(SUMIFS('2.2--18春夏库存（止18年9月30日）'!$M:$M,'2.2--18春夏库存（止18年9月30日）'!$C:$C,运营部分析!$J$1,'2.2--18春夏库存（止18年9月30日）'!$A:$A,运营部分析!$B16)) -> 16 | V16: =(SUMIFS('2.2--18春夏库存（止18年9月30日）'!$P:$P,'2.2--18春夏库存（止18年9月30日）'!$C:$C,运营部分析!$J$1,'2.2--18春夏库存（止18年9月30日）'!$A:$A,运营部分析!$B16))/10000 -> 1.2624 | W16: 8.25 | X16: 8.750633714 | Y16: 0.3303167421 | Z16: 0.3267001789 | AA16: =SUMIFS('2.3-18春夏调配（止18年9月30日）'!$P:$P,'2.3-18春夏调配（止18年9月30日）'!$G:$G,运营部分析!$J$1,'2.3-18春夏调配（止18年9月30日）'!$A:$A,运营部分析!$B16,'2.3-18春夏调配（止18年9月30日）'!$Z:$Z,"否",'2.3-18春夏调配（止18年9月30日）'!$AA:$AA,"是") -> 0 | AB16: =SUMIFS('2.3-18春夏调配（止18年9月30日）'!$Y:$Y,'2.3-18春夏调配（止18年9月30日）'!$G:$G,运营部分析!$J$1,'2.3-18春夏调配（止18年9月30日）'!$A:$A,运营部分析!$B16,'2.3-18春夏调配（止18年9月30日）'!$Z:$Z,"否",'2.3-18春夏调配（止18年9月30日）'!$AA:$AA,"是")/10000 -> 0 | AC16: =SUMIFS('2.3-18春夏调配（止18年9月30日）'!$P:$P,'2.3-18春夏调配（止18年9月30日）'!$G:$G,运营部分析!$J$1,'2.3-18春夏调配（止18年9月30日）'!$A:$A,运营部分析!$B16,'2.3-18春夏调配（止18年9月30日）'!$Z:$Z,"是",'2.3-18春夏调配（止18年9月30日）'!$AA:$AA,"是") -> 0 | AD16: =SUMIFS('2.3-18春夏调配（止18年9月30日）'!$Y:$Y,'2.3-18春夏调配（止18年9月30日）'!$G:$G,运营部分析!$J$1,'2.3-18春夏调配（止18年9月30日）'!$A:$A,运营部分析!$B16,'2.3-18春夏调配（止18年9月30日）'!$Z:$Z,"是",'2.3-18春夏调配（止18年9月30日）'!$AA:$AA,"是")/10000 -> 0 | AE16: 0.4444444444 | AF16: 0.4488156254 | AI16: -0.2567873303 | AJ16: -0.2720837681 | AK16: =SUMIFS('2.3-18春夏调配（止18年9月30日）'!$P:$P,'2.3-18春夏调配（止18年9月30日）'!$G:$G,运营部分析!$J$1,'2.3-18春夏调配（止18年9月30日）'!$A:$A,运营部分析!$B16,'2.3-18春夏调配（止18年9月30日）'!$Z:$Z,"否") -> 1 | AL16: =SUMIFS('2.3-18春夏调配（止18年9月30日）'!$Y:$Y,'2.3-18春夏调配（止18年9月30日）'!$G:$G,运营部分析!$J$1,'2.3-18春夏调配（止18年9月30日）'!$A:$A,运营部分析!$B16,'2.3-18春夏调配（止18年9月30日）'!$Z:$Z,"否")/10000 -> 0.0799 | AM16: =SUMIFS('2.3-18春夏调配（止18年9月30日）'!$P:$P,'2.3-18春夏调配（止18年9月30日）'!$G:$G,运营部分析!$J$1,'2.3-18春夏调配（止18年9月30日）'!$A:$A,运营部分析!$B16,'2.3-18春夏调配（止18年9月30日）'!$Z:$Z,"是") -> 0 | AN16: =SUMIFS('2.3-18春夏调配（止18年9月30日）'!$Y:$Y,'2.3-18春夏调配（止18年9月30日）'!$G:$G,运营部分析!$J$1,'2.3-18春夏调配（止18年9月30日）'!$A:$A,运营部分析!$B16,'2.3-18春夏调配（止18年9月30日）'!$Z:$Z,"是")/10000 -> 0 | AO16: 0.6444444444 | AP16: 0.6502562682 | AQ16: =SUMIFS('1.2-19春夏发货（更新）'!$K:$K,'1.2-19春夏发货（更新）'!$A:$A,运营部分析!$B16,'1.2-19春夏发货（更新）'!Q:Q,运营部分析!$J$1) -> 221 | AR16: 1 | AS16: 0 | AT16: 221 | AU16: =SUMIFS('1.6-19春夏期货订单（更新）'!$AP:$AP,'1.6-19春夏期货订单（更新）'!$A:$A,运营部分析!$B16,'1.6-19春夏期货订单（更新）'!$F:$F,运营部分析!$J$1) -> 4 | AV16: =SUMIFS('1.1-19春夏新旧品销售（更新）'!$X:$X,'1.1-19春夏新旧品销售（更新）'!$A:$A,运营部分析!$B16,'1.1-19春夏新旧品销售（更新）'!D:D,运营部分析!$J$1,'1.1-19春夏新旧品销售（更新）'!$U:$U,"月",'1.1-19春夏新旧品销售（更新）'!$AH:$AH,"新品") -> 4 | AW16: =SUMIFS('1.5-19春夏新旧品库存（更新）'!$BM:$BM,'1.5-19春夏新旧品库存（更新）'!$E:$E,运营部分析!$B16,'1.5-19春夏新旧品库存（更新）'!$B:$B,运营部分析!$J$1,'1.5-19春夏新旧品库存（更新）'!$BI:$BI,"新品") -> 4 | AX16: 1 | AY16: 14.8 | AZ16: =SUMIFS('1.1-19春夏新旧品销售（更新）'!$I:$I,'1.1-19春夏新旧品销售（更新）'!$A:$A,运营部分析!$B16,'1.1-19春夏新旧品销售（更新）'!$U:$U,"月",'1.1-19春夏新旧品销售（更新）'!$D:$D,运营部分析!$J$1,'1.1-19春夏新旧品销售（更新）'!$AH:$AH,"新品") -> 10 | BA16: =SUMIFS('1.1-19春夏新旧品销售（更新）'!$J:$J,'1.1-19春夏新旧品销售（更新）'!$A:$A,运营部分析!$B16,'1.1-19春夏新旧品销售（更新）'!$U:$U,"月",'1.1-19春夏新旧品销售（更新）'!$D:$D,运营部分析!$J$1,'1.1-19春夏新旧品销售（更新）'!$AH:$AH,"新品")/10000 -> 0.5727 | BB16: =SUMIFS('1.1-19春夏新旧品销售（更新）'!$K:$K,'1.1-19春夏新旧品销售（更新）'!$A:$A,运营部分析!$B16,'1.1-19春夏新旧品销售（更新）'!$U:$U,"月",'1.1-19春夏新旧品销售（更新）'!$D:$D,运营部分析!$J$1,'1.1-19春夏新旧品销售（更新）'!$AH:$AH,"新品")/10000 -> 0.885 | BC16: =SUMIFS('1.1-19春夏新旧品销售（更新）'!$S:$S,'1.1-19春夏新旧品销售（更新）'!$A:$A,运营部分析!$B16,'1.1-19春夏新旧品销售（更新）'!$U:$U,"月",'1.1-19春夏新旧品销售（更新）'!$D:$D,运营部分析!$J$1,'1.1-19春夏新旧品销售（更新）'!$AH:$AH,"新品")/10000 -> 0.791 | BD16: 1.118836915 | BE16: 572.7 | BF16: 0.7240202276 | BG16: =SUMIFS('2.1-18春夏销售（止18年9月30日）'!$J:$J,'2.1-18春夏销售（止18年9月30日）'!$A:$A,运营部分析!$B16,'2.1-18春夏销售（止18年9月30日）'!$D:$D,运营部分析!$J$1,'2.1-18春夏销售（止18年9月30日）'!$U:$U,"月",'2.1-18春夏销售（止18年9月30日）'!$X:$X,"新品")/10000 -> 0.7895 | BH16: =SUMIFS('2.1-18春夏销售（止18年9月30日）'!$S:$S,'2.1-18春夏销售（止18年9月30日）'!$A:$A,运营部分析!$B16,'2.1-18春夏销售（止18年9月30日）'!$D:$D,运营部分析!$J$1,'2.1-18春夏销售（止18年9月30日）'!$U:$U,"月",'2.1-18春夏销售（止18年9月30日）'!$X:$X,"新品")/10000 -> 0.9069 | BI16: 0.8705480207 | BJ16: =SUMIFS('1.1-19春夏新旧品销售（更新）'!$J:$J,'1.1-19春夏新旧品销售（更新）'!$A:$A,运营部分析!$B16,'1.1-19春夏新旧品销售（更新）'!$D:$D,运营部分析!$J$1,'1.1-19春夏新旧品销售（更新）'!$T:$T,"本周",'1.1-19春夏新旧品销售（更新）'!$AH:$AH,"新品")/10000 -> 0.0899 | BK16: =SUMIFS('1.1-19春夏新旧品销售（更新）'!$S:$S,'1.1-19春夏新旧品销售（更新）'!$A:$A,运营部分析!$B16,'1.1-19春夏新旧品销售（更新）'!$D:$D,运营部分析!$J$1,'1.1-19春夏新旧品销售（更新）'!$T:$T,"本周",'1.1-19春夏新旧品销售（更新）'!$AH:$AH,"新品")/10000 -> 0.1598 | BL16: 0.5625782228 | BM16: 0.01143607723 | BN16: 0.0061112636 | BO16: =SUMIFS('1.1-19春夏新旧品销售（更新）'!$I:$I,'1.1-19春夏新旧品销售（更新）'!$A:$A,运营部分析!#REF!,'1.1-19春夏新旧品销售（更新）'!$D:$D,运营部分析!$J$1,'1.1-19春夏新旧品销售（更新）'!$T:$T,"上上周",'1.1-19春夏新旧品销售（更新）'!$AH:$AH,"新品") -> 0 | BP16: =SUMIFS('1.1-19春夏新旧品销售（更新）'!$I:$I,'1.1-19春夏新旧品销售（更新）'!$A:$A,运营部分析!$B15,'1.1-19春夏新旧品销售（更新）'!$D:$D,运营部分析!$J$1,'1.1-19春夏新旧品销售（更新）'!$T:$T,"上周",'1.1-19春夏新旧品销售（更新）'!$AH:$AH,"新品") -> 1 | BQ16: =SUMIFS('1.1-19春夏新旧品销售（更新）'!$I:$I,'1.1-19春夏新旧品销售（更新）'!$A:$A,运营部分析!$B15,'1.1-19春夏新旧品销售（更新）'!$D:$D,运营部分析!$J$1,'1.1-19春夏新旧品销售（更新）'!$T:$T,"本周",'1.1-19春夏新旧品销售（更新）'!$AH:$AH,"新品") -> 0 | BR16: =SUMIFS('1.1-19春夏新旧品销售（更新）'!$I:$I,'1.1-19春夏新旧品销售（更新）'!$A:$A,运营部分析!$B16,'1.1-19春夏新旧品销售（更新）'!$D:$D,运营部分析!$J$1,'1.1-19春夏新旧品销售（更新）'!$U:$U,"月",'1.1-19春夏新旧品销售（更新）'!$AH:$AH,"新品") -> 10 | BS16: 0 | BT16: -1 | BU16: 0 | BV16: 0.005324813632 | CA16: =SUMIFS('1.3-19春夏调配（更新）'!$AA:$AA,'1.3-19春夏调配（更新）'!$K:$K,运营部分析!$J$1,'1.3-19春夏调配（更新）'!$A:$A,运营部分析!$B16,'1.3-19春夏调配（更新）'!$X:$X,"<>已审核")/10000 -> 0 | CB16: =SUMIFS('1.3-19春夏调配（更新）'!$AA:$AA,'1.3-19春夏调配（更新）'!$G:$G,运营部分析!$J$1,'1.3-19春夏调配（更新）'!$A:$A,运营部分析!$B16,'1.3-19春夏调配（更新）'!$Z:$Z,"是",'1.3-19春夏调配（更新）'!$X:$X,"<>已审核")/10000 -> 0 | CC16: =SUMIFS('1.3-19春夏调配（更新）'!$AA:$AA,'1.3-19春夏调配（更新）'!$G:$G,运营部分析!$J$1,'1.3-19春夏调配（更新）'!$A:$A,运营部分析!$B16,'1.3-19春夏调配（更新）'!$Z:$Z,"否",'1.3-19春夏调配（更新）'!$X:$X,"<>已审核")/10000 -> 0.5294 | CD16: =SUMIFS('1.3-19春夏调配（更新）'!$P:$P,'1.3-19春夏调配（更新）'!$K:$K,运营部分析!$J$1,'1.3-19春夏调配（更新）'!$A:$A,运营部分析!$B16,'1.3-19春夏调配（更新）'!$X:$X,"<>已审核") -> 0 | CE16: =SUMIFS('1.3-19春夏调配（更新）'!$P:$P,'1.3-19春夏调配（更新）'!$G:$G,运营部分析!$J$1,'1.3-19春夏调配（更新）'!$A:$A,运营部分析!$B16,'1.3-19春夏调配（更新）'!$Z:$Z,"是",'1.3-19春夏调配（更新）'!$X:$X,"<>已审核") -> 0 | CF16: =SUMIFS('1.3-19春夏调配（更新）'!$P:$P,'1.3-19春夏调配（更新）'!$G:$G,运营部分析!$J$1,'1.3-19春夏调配（更新）'!$A:$A,运营部分析!$B16,'1.3-19春夏调配（更新）'!$Z:$Z,"否",'1.3-19春夏调配（更新）'!$X:$X,"<>已审核") -> 6 | CG16: =SUMIFS('2.1-18春夏销售（止18年9月30日）'!$I:$I,'2.1-18春夏销售（止18年9月30日）'!$D:$D,运营部分析!$J$1,'2.1-18春夏销售（止18年9月30日）'!$V:$V,运营部分析!CG$4,'2.1-18春夏销售（止18年9月30日）'!$A:$A,运营部分析!$B16,'2.1-18春夏销售（止18年9月30日）'!$W:$W,"否",'2.1-18春夏销售（止18年9月30日）'!$X:$X,"新品") -> 0 | CH16: =SUMIFS('2.1-18春夏销售（止18年9月30日）'!$I:$I,'2.1-18春夏销售（止18年9月30日）'!$D:$D,运营部分析!$J$1,'2.1-18春夏销售（止18年9月30日）'!$V:$V,运营部分析!CH$4,'2.1-18春夏销售（止18年9月30日）'!$A:$A,运营部分析!$B16,'2.1-18春夏销售（止18年9月30日）'!$W:$W,"否",'2.1-18春夏销售（止18年9月30日）'!$X:$X,"新品") -> 0 | CI16: =SUMIFS('2.1-18春夏销售（止18年9月30日）'!$I:$I,'2.1-18春夏销售（止18年9月30日）'!$D:$D,运营部分析!$J$1,'2.1-18春夏销售（止18年9月30日）'!$V:$V,运营部分析!CI$4,'2.1-18春夏销售（止18年9月30日）'!$A:$A,运营部分析!$B16,'2.1-18春夏销售（止18年9月30日）'!$W:$W,"否",'2.1-18春夏销售（止18年9月30日）'!$X:$X,"新品") -> 0 | CJ16: =SUMIFS('2.1-18春夏销售（止18年9月30日）'!$I:$I,'2.1-18春夏销售（止18年9月30日）'!$D:$D,运营部分析!$J$1,'2.1-18春夏销售（止18年9月30日）'!$V:$V,运营部分析!CJ$4,'2.1-18春夏销售（止18年9月30日）'!$A:$A,运营部分析!$B16,'2.1-18春夏销售（止18年9月30日）'!$W:$W,"否",'2.1-18春夏销售（止18年9月30日）'!$X:$X,"新品") -> 0 | CK16: =SUMIFS('2.1-18春夏销售（止18年9月30日）'!$I:$I,'2.1-18春夏销售（止18年9月30日）'!$D:$D,运营部分析!$J$1,'2.1-18春夏销售（止18年9月30日）'!$V:$V,运营部分析!CK$4,'2.1-18春夏销售（止18年9月30日）'!$A:$A,运营部分析!$B16,'2.1-18春夏销售（止18年9月30日）'!$W:$W,"否",'2.1-18春夏销售（止18年9月30日）'!$X:$X,"新品") -> 0 | CL16: =SUMIFS('2.1-18春夏销售（止18年9月30日）'!$I:$I,'2.1-18春夏销售（止18年9月30日）'!$D:$D,运营部分析!$J$1,'2.1-18春夏销售（止18年9月30日）'!$V:$V,运营部分析!CL$4,'2.1-18春夏销售（止18年9月30日）'!$A:$A,运营部分析!$B16,'2.1-18春夏销售（止18年9月30日）'!$W:$W,"否",'2.1-18春夏销售（止18年9月30日）'!$X:$X,"新品") -> 0 | CM16: =SUMIFS('2.1-18春夏销售（止18年9月30日）'!$I:$I,'2.1-18春夏销售（止18年9月30日）'!$D:$D,运营部分析!$J$1,'2.1-18春夏销售（止18年9月30日）'!$V:$V,运营部分析!CM$4,'2.1-18春夏销售（止18年9月30日）'!$A:$A,运营部分析!$B16,'2.1-18春夏销售（止18年9月30日）'!$W:$W,"否",'2.1-18春夏销售（止18年9月30日）'!$X:$X,"新品") -> 3 | CN16: =SUMIFS('2.1-18春夏销售（止18年9月30日）'!$I:$I,'2.1-18春夏销售（止18年9月30日）'!$D:$D,运营部分析!$J$1,'2.1-18春夏销售（止18年9月30日）'!$V:$V,运营部分析!CN$4,'2.1-18春夏销售（止18年9月30日）'!$A:$A,运营部分析!$B16,'2.1-18春夏销售（止18年9月30日）'!$W:$W,"否",'2.1-18春夏销售（止18年9月30日）'!$X:$X,"新品") -> 4 | CO16: =SUMIFS('2.1-18春夏销售（止18年9月30日）'!$I:$I,'2.1-18春夏销售（止18年9月30日）'!$D:$D,运营部分析!$J$1,'2.1-18春夏销售（止18年9月30日）'!$V:$V,运营部分析!CO$4,'2.1-18春夏销售（止18年9月30日）'!$A:$A,运营部分析!$B16,'2.1-18春夏销售（止18年9月30日）'!$W:$W,"否",'2.1-18春夏销售（止18年9月30日）'!$X:$X,"新品") -> 1 | CP16: =SUMIFS('2.1-18春夏销售（止18年9月30日）'!$I:$I,'2.1-18春夏销售（止18年9月30日）'!$D:$D,运营部分析!$J$1,'2.1-18春夏销售（止18年9月30日）'!$V:$V,运营部分析!CP$4,'2.1-18春夏销售（止18年9月30日）'!$A:$A,运营部分析!$B16,'2.1-18春夏销售（止18年9月30日）'!$W:$W,"否",'2.1-18春夏销售（止18年9月30日）'!$X:$X,"新品") -> 0 | CQ16: 8 | CR16: 140 | CS16: 0.3665158371 | CT16: =SUMIFS('2.1-18春夏销售（止18年9月30日）'!$S:$S,'2.1-18春夏销售（止18年9月30日）'!$D:$D,运营部分析!$J$1,'2.1-18春夏销售（止18年9月30日）'!$V:$V,运营部分析!CT$4,'2.1-18春夏销售（止18年9月30日）'!$A:$A,运营部分析!$B16,'2.1-18春夏销售（止18年9月30日）'!$W:$W,"否",'2.1-18春夏销售（止18年9月30日）'!$X:$X,"新品")/10000 -> 0 | CU16: =SUMIFS('2.1-18春夏销售（止18年9月30日）'!$S:$S,'2.1-18春夏销售（止18年9月30日）'!$D:$D,运营部分析!$J$1,'2.1-18春夏销售（止18年9月30日）'!$V:$V,运营部分析!CU$4,'2.1-18春夏销售（止18年9月30日）'!$A:$A,运营部分析!$B16,'2.1-18春夏销售（止18年9月30日）'!$W:$W,"否",'2.1-18春夏销售（止18年9月30日）'!$X:$X,"新品")/10000 -> 0 | CV16: =SUMIFS('2.1-18春夏销售（止18年9月30日）'!$S:$S,'2.1-18春夏销售（止18年9月30日）'!$D:$D,运营部分析!$J$1,'2.1-18春夏销售（止18年9月30日）'!$V:$V,运营部分析!CV$4,'2.1-18春夏销售（止18年9月30日）'!$A:$A,运营部分析!$B16,'2.1-18春夏销售（止18年9月30日）'!$W:$W,"否",'2.1-18春夏销售（止18年9月30日）'!$X:$X,"新品")/10000 -> 0 | CW16: =SUMIFS('2.1-18春夏销售（止18年9月30日）'!$S:$S,'2.1-18春夏销售（止18年9月30日）'!$D:$D,运营部分析!$J$1,'2.1-18春夏销售（止18年9月30日）'!$V:$V,运营部分析!CW$4,'2.1-18春夏销售（止18年9月30日）'!$A:$A,运营部分析!$B16,'2.1-18春夏销售（止18年9月30日）'!$W:$W,"否",'2.1-18春夏销售（止18年9月30日）'!$X:$X,"新品")/10000 -> 0 | CX16: =SUMIFS('2.1-18春夏销售（止18年9月30日）'!$S:$S,'2.1-18春夏销售（止18年9月30日）'!$D:$D,运营部分析!$J$1,'2.1-18春夏销售（止18年9月30日）'!$V:$V,运营部分析!CX$4,'2.1-18春夏销售（止18年9月30日）'!$A:$A,运营部分析!$B16,'2.1-18春夏销售（止18年9月30日）'!$W:$W,"否",'2.1-18春夏销售（止18年9月30日）'!$X:$X,"新品")/10000 -> 0 | CY16: =SUMIFS('2.1-18春夏销售（止18年9月30日）'!$S:$S,'2.1-18春夏销售（止18年9月30日）'!$D:$D,运营部分析!$J$1,'2.1-18春夏销售（止18年9月30日）'!$V:$V,运营部分析!CY$4,'2.1-18春夏销售（止18年9月30日）'!$A:$A,运营部分析!$B16,'2.1-18春夏销售（止18年9月30日）'!$W:$W,"否",'2.1-18春夏销售（止18年9月30日）'!$X:$X,"新品")/10000 -> 0 | CZ16: =SUMIFS('2.1-18春夏销售（止18年9月30日）'!$S:$S,'2.1-18春夏销售（止18年9月30日）'!$D:$D,运营部分析!$J$1,'2.1-18春夏销售（止18年9月30日）'!$V:$V,运营部分析!CZ$4,'2.1-18春夏销售（止18年9月30日）'!$A:$A,运营部分析!$B16,'2.1-18春夏销售（止18年9月30日）'!$W:$W,"否",'2.1-18春夏销售（止18年9月30日）'!$X:$X,"新品")/10000 -> 0.2497 | DA16: =SUMIFS('2.1-18春夏销售（止18年9月30日）'!$S:$S,'2.1-18春夏销售（止18年9月30日）'!$D:$D,运营部分析!$J$1,'2.1-18春夏销售（止18年9月30日）'!$V:$V,运营部分析!DA$4,'2.1-18春夏销售（止18年9月30日）'!$A:$A,运营部分析!$B16,'2.1-18春夏销售（止18年9月30日）'!$W:$W,"否",'2.1-18春夏销售（止18年9月30日）'!$X:$X,"新品")/10000 -> 0.3216 | DB16: =SUMIFS('2.1-18春夏销售（止18年9月30日）'!$S:$S,'2.1-18春夏销售（止18年9月30日）'!$D:$D,运营部分析!$J$1,'2.1-18春夏销售（止18年9月30日）'!$V:$V,运营部分析!DB$4,'2.1-18春夏销售（止18年9月30日）'!$A:$A,运营部分析!$B16,'2.1-18春夏销售（止18年9月30日）'!$W:$W,"否",'2.1-18春夏销售（止18年9月30日）'!$X:$X,"新品")/10000 -> 0.0759 | DC16: =SUMIFS('2.1-18春夏销售（止18年9月30日）'!$S:$S,'2.1-18春夏销售（止18年9月30日）'!$D:$D,运营部分析!$J$1,'2.1-18春夏销售（止18年9月30日）'!$V:$V,运营部分析!DC$4,'2.1-18春夏销售（止18年9月30日）'!$A:$A,运营部分析!$B16,'2.1-18春夏销售（止18年9月30日）'!$W:$W,"否",'2.1-18春夏销售（止18年9月30日）'!$X:$X,"新品")/10000 -> 0 | DD16: 0.6472 | DE16: 11.662 | DF16: 0.3621013133 | DH16: =SUMIFS('1.1-19春夏新旧品销售（更新）'!$I:$I,'1.1-19春夏新旧品销售（更新）'!$D:$D,运营部分析!$J$1,'1.1-19春夏新旧品销售（更新）'!$A:$A,运营部分析!$B16,'1.1-19春夏新旧品销售（更新）'!$AB:$AB,"新品",'1.1-19春夏新旧品销售（更新）'!$AG:$AG,"是") -> 0 | DI16: =SUMIFS('1.1-19春夏新旧品销售（更新）'!$S:$S,'1.1-19春夏新旧品销售（更新）'!$D:$D,运营部分析!$J$1,'1.1-19春夏新旧品销售（更新）'!$A:$A,运营部分析!$B16,'1.1-19春夏新旧品销售（更新）'!$AB:$AB,"新品",'1.1-19春夏新旧品销售（更新）'!$AG:$AG,"是")/10000 -> 0 | DJ16: =SUMIFS('1.6-19春夏期货订单（更新）'!$AG:$AG,'1.6-19春夏期货订单（更新）'!$F:$F,运营部分析!$J$1,'1.6-19春夏期货订单（更新）'!$A:$A,运营部分析!$B16,'1.6-19春夏期货订单（更新）'!$AQ:$AQ,"是")+SUMIFS('1.2-19春夏发货（更新）'!$K:$K,'1.2-19春夏发货（更新）'!$A:$A,运营部分析!$B16,'1.2-19春夏发货（更新）'!$Q:$Q,运营部分析!$J$1,'1.2-19春夏发货（更新）'!$T:$T,"当季补货",'1.2-19春夏发货（更新）'!$W:$W,"是")+SUMIFS('1.2-19春夏发货（更新）'!$K:$K,'1.2-19春夏发货（更新）'!$A:$A,运营部分析!$B16,'1.2-19春夏发货（更新）'!$Q:$Q,运营部分析!$J$1,'1.2-19春夏发货（更新）'!$T:$T,"往季补货",'1.2-19春夏发货（更新）'!$W:$W,"是")+SUMIFS('1.3-19春夏调配（更新）'!$P:$P,'1.3-19春夏调配（更新）'!$K:$K,运营部分析!$J$1,'1.3-19春夏调配（更新）'!$A:$A,运营部分析!$B16,'1.3-19春夏调配（更新）'!$AC:$AC,"是",'1.3-19春夏调配（更新）'!$X:$X,"<>已审核")-SUMIFS('1.3-19春夏调配（更新）'!$P:$P,'1.3-19春夏调配（更新）'!$G:$G,运营部分析!$J$1,'1.3-19春夏调配（更新）'!$A:$A,运营部分析!$B16,'1.3-19春夏调配（更新）'!$AC:$AC,"是",'1.3-19春夏调配（更新）'!$X:$X,"<>已审核") -> 0 | DK16: =SUMIFS('1.6-19春夏期货订单（更新）'!$AN:$AN,'1.6-19春夏期货订单（更新）'!$F:$F,运营部分析!$J$1,'1.6-19春夏期货订单（更新）'!$A:$A,运营部分析!$B16,'1.6-19春夏期货订单（更新）'!$AQ:$AQ,"是")/10000+SUMIFS('1.2-19春夏发货（更新）'!$U:$U,'1.2-19春夏发货（更新）'!$A:$A,运营部分析!$B16,'1.2-19春夏发货（更新）'!$Q:$Q,运营部分析!$J$1,'1.2-19春夏发货（更新）'!$T:$T,"当季补货",'1.2-19春夏发货（更新）'!$W:$W,"是")/10000+SUMIFS('1.2-19春夏发货（更新）'!$U:$U,'1.2-19春夏发货（更新）'!$A:$A,运营部分析!$B16,'1.2-19春夏发货（更新）'!$Q:$Q,运营部分析!$J$1,'1.2-19春夏发货（更新）'!$T:$T,"往季补货",'1.2-19春夏发货（更新）'!$W:$W,"是")/10000+SUMIFS('1.3-19春夏调配（更新）'!$AA:$AA,'1.3-19春夏调配（更新）'!$K:$K,运营部分析!$J$1,'1.3-19春夏调配（更新）'!$A:$A,运营部分析!$B16,'1.3-19春夏调配（更新）'!$AC:$AC,"是",'1.3-19春夏调配（更新）'!$X:$X,"<>已审核")/10000-SUMIFS('1.3-19春夏调配（更新）'!$AA:$AA,'1.3-19春夏调配（更新）'!$G:$G,运营部分析!$J$1,'1.3-19春夏调配（更新）'!$A:$A,运营部分析!$B16,'1.3-19春夏调配（更新）'!$AC:$AC,"是",'1.3-19春夏调配（更新）'!$X:$X,"<>已审核")/10000 -> 0 | DM16: 0.02714932127 | DN16: 0.02895760287
A17: 春季上衣 汇总 | E17: =SUM(E5:E16) -> 5135 | F17: =SUM(F5:F16) -> 321.0915 | G17: =SUM(G5:G16) -> 6914 | H17: =SUM(H5:H16) -> 390.8776 | I17: -0.2573040208 | J17: -0.178536964 | K17: =SUM(K5:K16) -> 1328 | L17: =SUM(L5:L16) -> 86.7172 | M17: =SUM(M5:M16) -> 2220 | N17: =SUM(N5:N16) -> 127.895 | O17: -0.4018018018 | P17: -0.321965675 | Q17: =SUM(Q5:Q16) -> 3391 | R17: 191.7039 | S17: 3719 | T17: 228.6671 | U17: 3029 | V17: 174.9421 | W17: 0.2277979531 | X17: 0.3071016068 | Y17: 0.2722382325 | Z17: 0.2828572872 | AA17: =SUM(AA5:AA16) -> 116 | AB17: =SUM(AB5:AB16) -> 6.7644 | AC17: =SUM(AC5:AC16) -> 24 | AD17: =SUM(AD5:AD16) -> 1.5166 | AE17: 0.33904209 | AF17: 0.3458471701 | AG17: 0.1776315789 | AH17: 0.1776315789 | AI17: -0.1970370626 | AJ17: -0.1821321333 | AK17: =SUM(AK5:AK16) -> 454 | AL17: =SUM(AL5:AL16) -> 21.8736 | AM17: =SUM(AM5:AM16) -> 40 | AN17: =SUM(AN5:AN16) -> 2.358 | AO17: 0.5593540879 | AP17: 0.5497213011 | AQ17: =SUM(AQ5:AQ16) -> 5065 | AR17: 0.9863680623 | AS17: =SUM(AS5:AS16) -> 70 | AT17: =SUM(AT5:AT16) -> 5151 | AU17: =SUM(AU5:AU16) -> 64 | AV17: =SUM(AV5:AV16) -> 50 | AW17: =SUM(AW5:AW16) -> 66 | AX17: 0.7575757576 | AY17: 16.24017467 | AZ17: =SUM(AZ5:AZ16) -> 229 | BA17: =SUM(BA5:BA16) -> 9.3802 | BB17: =SUM(BB5:BB16) -> 15.7311 | BC17: =SUM(BC5:BC16) -> 14.3271 | BD17: 1.097996105 | BE17: 409.6157205 | BF17: 0.654717284 | BG17: =SUM(BG5:BG16) -> 11.18105 | BH17: =SUM(BH5:BH16) -> 13.9588 | BI17: 0.8010036679 | BJ17: =SUM(BJ5:BJ16) -> 1.7188 | BK17: =SUM(BK5:BK16) -> 2.469 | BL17: 0.6961522884 | BM17: 0.2124471628 | BN17: 0.09050893061 | BO17: =SUM(BO5:BO16) -> 0 | BP17: =SUM(BP5:BP16) -> 32 | BQ17: =SUM(BQ5:BQ16) -> 38 | BR17: =SUM(BR5:BR16) -> 229 | BS17: 0 | BT17: 0.1875 | BU17: 0.0987012987 | BV17: 0.1219382322 | CA17: =SUM(CA5:CA16) -> 6.4395 | CB17: 0.9695 | CC17: 5.6531 | CD17: 85 | CE17: 15 | CF17: 89 | CG17: 0 | CH17: 0 | CI17: 0 | CJ17: 0 | CK17: 0 | CL17: 0 | CM17: 106 | CN17: 602 | CO17: 203 | CP17: 260 | CQ17: =SUM(CG17:CP17) -> 1171 | CR17: 2618 | CS17: 0.4972142171 | CT17: =SUM(CT5:CT16) -> 0 | CU17: 0 | CV17: 0 | CW17: 0 | CX17: 0 | CY17: 0 | CZ17: 6.1274 | DA17: 32.4208 | DB17: 11.4327 | DC17: 13.828 | DD17: 63.8089 | DE17: 170.3823 | DF17: 0.4782535602 | DH17: =SUM(DH5:DH16) -> 27 | DI17: =SUM(DI5:DI16) -> 1.5363 | DJ17: =SUM(DJ5:DJ16) -> 152 | DK17: =SUM(DK5:DK16) -> 8.6488 | DM17: 0.01709894332 | DN17: 0.01731098124
A18: T恤 | B18: 81 | C18: 短T丝光棉 | D18: 夏季 | E18: =SUMIFS('1.6-19春夏期货订单（更新）'!$AG:$AG,'1.6-19春夏期货订单（更新）'!$F:$F,运营部分析!$J$1,'1.6-19春夏期货订单（更新）'!$A:$A,运营部分析!$B18)+SUMIFS('1.2-19春夏发货（更新）'!$K:$K,'1.2-19春夏发货（更新）'!$A:$A,运营部分析!$B18,'1.2-19春夏发货（更新）'!$Q:$Q,运营部分析!$J$1,'1.2-19春夏发货（更新）'!$T:$T,"当季补货")+SUMIFS('1.2-19春夏发货（更新）'!$K:$K,'1.2-19春夏发货（更新）'!$A:$A,运营部分析!$B18,'1.2-19春夏发货（更新）'!$Q:$Q,运营部分析!$J$1,'1.2-19春夏发货（更新）'!$T:$T,"往季补货")+SUMIFS('1.3-19春夏调配（更新）'!$P:$P,'1.3-19春夏调配（更新）'!$K:$K,运营部分析!$J$1,'1.3-19春夏调配（更新）'!$A:$A,运营部分析!$B18)-SUMIFS('1.3-19春夏调配（更新）'!$P:$P,'1.3-19春夏调配（更新）'!$G:$G,运营部分析!$J$1,'1.3-19春夏调配（更新）'!$A:$A,运营部分析!$B18,'1.3-19春夏调配（更新）'!$Z:$Z,"是") -> 0 | F18: =SUMIFS('1.6-19春夏期货订单（更新）'!$AN:$AN,'1.6-19春夏期货订单（更新）'!$F:$F,运营部分析!$J$1,'1.6-19春夏期货订单（更新）'!$A:$A,运营部分析!$B18)/10000+SUMIFS('1.2-19春夏发货（更新）'!$U:$U,'1.2-19春夏发货（更新）'!$A:$A,运营部分析!$B18,'1.2-19春夏发货（更新）'!$Q:$Q,运营部分析!$J$1,'1.2-19春夏发货（更新）'!$T:$T,"当季补货")/10000+SUMIFS('1.2-19春夏发货（更新）'!$U:$U,'1.2-19春夏发货（更新）'!$A:$A,运营部分析!$B18,'1.2-19春夏发货（更新）'!$Q:$Q,运营部分析!$J$1,'1.2-19春夏发货（更新）'!$T:$T,"往季补货")/10000+SUMIFS('1.3-19春夏调配（更新）'!$AA:$AA,'1.3-19春夏调配（更新）'!$K:$K,运营部分析!$J$1,'1.3-19春夏调配（更新）'!$A:$A,运营部分析!$B18)/10000-SUMIFS('1.3-19春夏调配（更新）'!$AA:$AA,'1.3-19春夏调配（更新）'!$G:$G,运营部分析!$J$1,'1.3-19春夏调配（更新）'!$A:$A,运营部分析!$B18,'1.3-19春夏调配（更新）'!$Z:$Z,"是")/10000 -> 0 | G18: =(SUMIFS('2.1-18春夏销售（止18年9月30日）'!$I:$I,'2.1-18春夏销售（止18年9月30日）'!$X:$X,"新品",'2.1-18春夏销售（止18年9月30日）'!$A:$A,运营部分析!$B18,'2.1-18春夏销售（止18年9月30日）'!$D:$D,运营部分析!$J$1)+SUMIFS('2.2--18春夏库存（止18年9月30日）'!$M:$M,'2.2--18春夏库存（止18年9月30日）'!$C:$C,运营部分析!$J$1,'2.2--18春夏库存（止18年9月30日）'!$A:$A,运营部分析!$B18)+SUMIFS('2.4-18春夏冬退货（止18年9月30日）'!$Q:$Q,'2.4-18春夏冬退货（止18年9月30日）'!$D:$D,运营部分析!$J$1,'2.4-18春夏冬退货（止18年9月30日）'!$A:$A,运营部分析!$B18)+SUMIFS('2.3-18春夏调配（止18年9月30日）'!$P:$P,'2.3-18春夏调配（止18年9月30日）'!$G:$G,运营部分析!$J$1,'2.3-18春夏调配（止18年9月30日）'!$A:$A,运营部分析!$B18)) -> 3525 | H18: =(SUMIFS('2.1-18春夏销售（止18年9月30日）'!$S:$S,'2.1-18春夏销售（止18年9月30日）'!$X:$X,"新品",'2.1-18春夏销售（止18年9月30日）'!$A:$A,运营部分析!$B18,'2.1-18春夏销售（止18年9月30日）'!$D:$D,运营部分析!$J$1)/10000+SUMIFS('2.2--18春夏库存（止18年9月30日）'!$P:$P,'2.2--18春夏库存（止18年9月30日）'!$C:$C,运营部分析!$J$1,'2.2--18春夏库存（止18年9月30日）'!$A:$A,运营部分析!$B18)/10000+SUMIFS('2.4-18春夏冬退货（止18年9月30日）'!$T:$T,'2.4-18春夏冬退货（止18年9月30日）'!$D:$D,运营部分析!$J$1,'2.4-18春夏冬退货（止18年9月30日）'!$A:$A,运营部分析!$B18)/10000+SUMIFS('2.3-18春夏调配（止18年9月30日）'!$Y:$Y,'2.3-18春夏调配（止18年9月30日）'!$G:$G,运营部分析!$J$1,'2.3-18春夏调配（止18年9月30日）'!$A:$A,运营部分析!$B18)/10000) -> 164.5935 | I18: -1 | J18: -1 | K18: =SUMIFS('1.1-19春夏新旧品销售（更新）'!$I:$I,'1.1-19春夏新旧品销售（更新）'!$D:$D,运营部分析!$J$1,'1.1-19春夏新旧品销售（更新）'!$A:$A,运营部分析!$B18,'1.1-19春夏新旧品销售（更新）'!$AB:$AB,"新品") -> 0 | L18: =SUMIFS('1.1-19春夏新旧品销售（更新）'!$S:$S,'1.1-19春夏新旧品销售（更新）'!$D:$D,运营部分析!$J$1,'1.1-19春夏新旧品销售（更新）'!$A:$A,运营部分析!$B18,'1.1-19春夏新旧品销售（更新）'!$AB:$AB,"新品")/10000 -> 0 | M18: =SUMIFS('2.1-18春夏销售（止18年9月30日）'!$I:$I,'2.1-18春夏销售（止18年9月30日）'!$D:$D,运营部分析!$J$1,'2.1-18春夏销售（止18年9月30日）'!$A:$A,运营部分析!$B18,'2.1-18春夏销售（止18年9月30日）'!$X:$X,"新品",'2.1-18春夏销售（止18年9月30日）'!$T:$T,"同期销售") -> 869 | N18: =SUMIFS('2.1-18春夏销售（止18年9月30日）'!$S:$S,'2.1-18春夏销售（止18年9月30日）'!$D:$D,运营部分析!$J$1,'2.1-18春夏销售（止18年9月30日）'!$A:$A,运营部分析!$B18,'2.1-18春夏销售（止18年9月30日）'!$X:$X,"新品",'2.1-18春夏销售（止18年9月30日）'!$T:$T,"同期销售")/10000 -> 40.8741 | O18: -1 | P18: -1 | Q18: =SUMIFS('2.1-18春夏销售（止18年9月30日）'!$I:$I,'2.1-18春夏销售（止18年9月30日）'!$D:$D,运营部分析!$J$1,'2.1-18春夏销售（止18年9月30日）'!$A:$A,运营部分析!$B18,'2.1-18春夏销售（止18年9月30日）'!$X:$X,"新品") -> 2022 | R18: =SUMIFS('2.1-18春夏销售（止18年9月30日）'!$S:$S,'2.1-18春夏销售（止18年9月30日）'!$D:$D,运营部分析!$J$1,'2.1-18春夏销售（止18年9月30日）'!$A:$A,运营部分析!$B18,'2.1-18春夏销售（止18年9月30日）'!$X:$X,"新品")/10000 -> 95.6068 | S18: =SUMIFS('1.5-19春夏新旧品库存（更新）'!$BF:$BF,'1.5-19春夏新旧品库存（更新）'!$B:$B,运营部分析!$J$1,'1.5-19春夏新旧品库存（更新）'!$E:$E,运营部分析!$B18,'1.5-19春夏新旧品库存（更新）'!$BI:$BI,"新品") -> 0 | T18: =SUMIFS('1.5-19春夏新旧品库存（更新）'!$BG:$BG,'1.5-19春夏新旧品库存（更新）'!$B:$B,运营部分析!$J$1,'1.5-19春夏新旧品库存（更新）'!$E:$E,运营部分析!$B18,'1.5-19春夏新旧品库存（更新）'!$BI:$BI,"新品")/10000 -> 0 | U18: =(SUMIFS('2.2--18春夏库存（止18年9月30日）'!$M:$M,'2.2--18春夏库存（止18年9月30日）'!$C:$C,运营部分析!$J$1,'2.2--18春夏库存（止18年9月30日）'!$A:$A,运营部分析!$B18)) -> 981 | V18: =(SUMIFS('2.2--18春夏库存（止18年9月30日）'!$P:$P,'2.2--18春夏库存（止18年9月30日）'!$C:$C,运营部分析!$J$1,'2.2--18春夏库存（止18年9月30日）'!$A:$A,运营部分析!$B18))/10000 -> 44.8029 | W18: -1 | X18: -1 | AA18: =SUMIFS('2.3-18春夏调配（止18年9月30日）'!$P:$P,'2.3-18春夏调配（止18年9月30日）'!$G:$G,运营部分析!$J$1,'2.3-18春夏调配（止18年9月30日）'!$A:$A,运营部分析!$B18,'2.3-18春夏调配（止18年9月30日）'!$Z:$Z,"否",'2.3-18春夏调配（止18年9月30日）'!$AA:$AA,"是") -> 107 | AB18: =SUMIFS('2.3-18春夏调配（止18年9月30日）'!$Y:$Y,'2.3-18春夏调配（止18年9月30日）'!$G:$G,运营部分析!$J$1,'2.3-18春夏调配（止18年9月30日）'!$A:$A,运营部分析!$B18,'2.3-18春夏调配（止18年9月30日）'!$Z:$Z,"否",'2.3-18春夏调配（止18年9月30日）'!$AA:$AA,"是")/10000 -> 5.2423 | AC18: =SUMIFS('2.3-18春夏调配（止18年9月30日）'!$P:$P,'2.3-18春夏调配（止18年9月30日）'!$G:$G,运营部分析!$J$1,'2.3-18春夏调配（止18年9月30日）'!$A:$A,运营部分析!$B18,'2.3-18春夏调配（止18年9月30日）'!$Z:$Z,"是",'2.3-18春夏调配（止18年9月30日）'!$AA:$AA,"是") -> 5 | AD18: =SUMIFS('2.3-18春夏调配（止18年9月30日）'!$Y:$Y,'2.3-18春夏调配（止18年9月30日）'!$G:$G,运营部分析!$J$1,'2.3-18春夏调配（止18年9月30日）'!$A:$A,运营部分析!$B18,'2.3-18春夏调配（止18年9月30日）'!$Z:$Z,"是",'2.3-18春夏调配（止18年9月30日）'!$AA:$AA,"是")/10000 -> 0.2515 | AE18: 0.2772727273 | AF18: 0.2806123815 | AK18: =SUMIFS('2.3-18春夏调配（止18年9月30日）'!$P:$P,'2.3-18春夏调配（止18年9月30日）'!$G:$G,运营部分析!$J$1,'2.3-18春夏调配（止18年9月30日）'!$A:$A,运营部分析!$B18,'2.3-18春夏调配（止18年9月30日）'!$Z:$Z,"否") -> 393 | AL18: =SUMIFS('2.3-18春夏调配（止18年9月30日）'!$Y:$Y,'2.3-18春夏调配（止18年9月30日）'!$G:$G,运营部分析!$J$1,'2.3-18春夏调配（止18年9月30日）'!$A:$A,运营部分析!$B18,'2.3-18春夏调配（止18年9月30日）'!$Z:$Z,"否")/10000 -> 18.1967 | AM18: =SUMIFS('2.3-18春夏调配（止18年9月30日）'!$P:$P,'2.3-18春夏调配（止18年9月30日）'!$G:$G,运营部分析!$J$1,'2.3-18春夏调配（止18年9月30日）'!$A:$A,运营部分析!$B18,'2.3-18春夏调配（止18年9月30日）'!$Z:$Z,"是") -> 129 | AN18: =SUMIFS('2.3-18春夏调配（止18年9月30日）'!$Y:$Y,'2.3-18春夏调配（止18年9月30日）'!$G:$G,运营部分析!$J$1,'2.3-18春夏调配（止18年9月30日）'!$A:$A,运营部分析!$B18,'2.3-18春夏调配（止18年9月30日）'!$Z:$Z,"是")/10000 -> 5.9871 | AO18: 0.711130742 | AP18: 0.7175214872 | AQ18: =SUMIFS('1.2-19春夏发货（更新）'!$K:$K,'1.2-19春夏发货（更新）'!$A:$A,运营部分析!$B18,'1.2-19春夏发货（更新）'!Q:Q,运营部分析!$J$1) -> 0 | AS18: 0 | AT18: 0 | AU18: =SUMIFS('1.6-19春夏期货订单（更新）'!$AP:$AP,'1.6-19春夏期货订单（更新）'!$A:$A,运营部分析!$B18,'1.6-19春夏期货订单（更新）'!$F:$F,运营部分析!$J$1) -> 0 | AV18: =SUMIFS('1.1-19春夏新旧品销售（更新）'!$X:$X,'1.1-19春夏新旧品销售（更新）'!$A:$A,运营部分析!$B18,'1.1-19春夏新旧品销售（更新）'!D:D,运营部分析!$J$1,'1.1-19春夏新旧品销售（更新）'!$U:$U,"月",'1.1-19春夏新旧品销售（更新）'!$AH:$AH,"新品") -> 0 | AW18: =SUMIFS('1.5-19春夏新旧品库存（更新）'!$BM:$BM,'1.5-19春夏新旧品库存（更新）'!$E:$E,运营部分析!$B18,'1.5-19春夏新旧品库存（更新）'!$B:$B,运营部分析!$J$1,'1.5-19春夏新旧品库存（更新）'!$BI:$BI,"新品") -> 0 | AX18: 0 | AY18: 0 | AZ18: =SUMIFS('1.1-19春夏新旧品销售（更新）'!$I:$I,'1.1-19春夏新旧品销售（更新）'!$A:$A,运营部分析!$B18,'1.1-19春夏新旧品销售（更新）'!$U:$U,"月",'1.1-19春夏新旧品销售（更新）'!$D:$D,运营部分析!$J$1,'1.1-19春夏新旧品销售（更新）'!$AH:$AH,"新品") -> 0 | BA18: =SUMIFS('1.1-19春夏新旧品销售（更新）'!$J:$J,'1.1-19春夏新旧品销售（更新）'!$A:$A,运营部分析!$B18,'1.1-19春夏新旧品销售（更新）'!$U:$U,"月",'1.1-19春夏新旧品销售（更新）'!$D:$D,运营部分析!$J$1,'1.1-19春夏新旧品销售（更新）'!$AH:$AH,"新品")/10000 -> 0 | BB18: =SUMIFS('1.1-19春夏新旧品销售（更新）'!$K:$K,'1.1-19春夏新旧品销售（更新）'!$A:$A,运营部分析!$B18,'1.1-19春夏新旧品销售（更新）'!$U:$U,"月",'1.1-19春夏新旧品销售（更新）'!$D:$D,运营部分析!$J$1,'1.1-19春夏新旧品销售（更新）'!$AH:$AH,"新品")/10000 -> 0 | BC18: =SUMIFS('1.1-19春夏新旧品销售（更新）'!$S:$S,'1.1-19春夏新旧品销售（更新）'!$A:$A,运营部分析!$B18,'1.1-19春夏新旧品销售（更新）'!$U:$U,"月",'1.1-19春夏新旧品销售（更新）'!$D:$D,运营部分析!$J$1,'1.1-19春夏新旧品销售（更新）'!$AH:$AH,"新品")/10000 -> 0 | BE18: 0 | BF18: 0 | BG18: =SUMIFS('2.1-18春夏销售（止18年9月30日）'!$J:$J,'2.1-18春夏销售（止18年9月30日）'!$A:$A,运营部分析!$B18,'2.1-18春夏销售（止18年9月30日）'!$D:$D,运营部分析!$J$1,'2.1-18春夏销售（止18年9月30日）'!$U:$U,"月",'2.1-18春夏销售（止18年9月30日）'!$X:$X,"新品")/10000 -> 13.2253 | BH18: =SUMIFS('2.1-18春夏销售（止18年9月30日）'!$S:$S,'2.1-18春夏销售（止18年9月30日）'!$A:$A,运营部分析!$B18,'2.1-18春夏销售（止18年9月30日）'!$D:$D,运营部分析!$J$1,'2.1-18春夏销售（止18年9月30日）'!$U:$U,"月",'2.1-18春夏销售（止18年9月30日）'!$X:$X,"新品")/10000 -> 16.205 | BI18: 0.8161246529 | BJ18: =SUMIFS('1.1-19春夏新旧品销售（更新）'!$J:$J,'1.1-19春夏新旧品销售（更新）'!$A:$A,运营部分析!$B18,'1.1-19春夏新旧品销售（更新）'!$D:$D,运营部分析!$J$1,'1.1-19春夏新旧品销售（更新）'!$T:$T,"本周",'1.1-19春夏新旧品销售（更新）'!$AH:$AH,"新品")/10000 -> 0 | BK18: =SUMIFS('1.1-19春夏新旧品销售（更新）'!$S:$S,'1.1-19春夏新旧品销售（更新）'!$A:$A,运营部分析!$B18,'1.1-19春夏新旧品销售（更新）'!$D:$D,运营部分析!$J$1,'1.1-19春夏新旧品销售（更新）'!$T:$T,"本周",'1.1-19春夏新旧品销售（更新）'!$AH:$AH,"新品")/10000 -> 0 | BL18: 0 | BM18: 0 | BN18: 0 | BO18: =SUMIFS('1.1-19春夏新旧品销售（更新）'!$I:$I,'1.1-19春夏新旧品销售（更新）'!$A:$A,运营部分析!#REF!,'1.1-19春夏新旧品销售（更新）'!$D:$D,运营部分析!$J$1,'1.1-19春夏新旧品销售（更新）'!$T:$T,"上上周",'1.1-19春夏新旧品销售（更新）'!$AH:$AH,"新品") -> 0 | BP18: =SUMIFS('1.1-19春夏新旧品销售（更新）'!$I:$I,'1.1-19春夏新旧品销售（更新）'!$A:$A,运营部分析!$B17,'1.1-19春夏新旧品销售（更新）'!$D:$D,运营部分析!$J$1,'1.1-19春夏新旧品销售（更新）'!$T:$T,"上周",'1.1-19春夏新旧品销售（更新）'!$AH:$AH,"新品") -> 0 | BQ18: =SUMIFS('1.1-19春夏新旧品销售（更新）'!$I:$I,'1.1-19春夏新旧品销售（更新）'!$A:$A,运营部分析!$B17,'1.1-19春夏新旧品销售（更新）'!$D:$D,运营部分析!$J$1,'1.1-19春夏新旧品销售（更新）'!$T:$T,"本周",'1.1-19春夏新旧品销售（更新）'!$AH:$AH,"新品") -> 0 | BR18: =SUMIFS('1.1-19春夏新旧品销售（更新）'!$I:$I,'1.1-19春夏新旧品销售（更新）'!$A:$A,运营部分析!$B18,'1.1-19春夏新旧品销售（更新）'!$D:$D,运营部分析!$J$1,'1.1-19春夏新旧品销售（更新）'!$U:$U,"月",'1.1-19春夏新旧品销售（更新）'!$AH:$AH,"新品") -> 0 | BS18: 0 | BT18: 0 | BU18: 0 | BV18: 0 | CA18: =SUMIFS('1.3-19春夏调配（更新）'!$AA:$AA,'1.3-19春夏调配（更新）'!$K:$K,运营部分析!$J$1,'1.3-19春夏调配（更新）'!$A:$A,运营部分析!$B18,'1.3-19春夏调配（更新）'!$X:$X,"<>已审核")/10000 -> 0 | CB18: =SUMIFS('1.3-19春夏调配（更新）'!$AA:$AA,'1.3-19春夏调配（更新）'!$G:$G,运营部分析!$J$1,'1.3-19春夏调配（更新）'!$A:$A,运营部分析!$B18,'1.3-19春夏调配（更新）'!$Z:$Z,"是",'1.3-19春夏调配（更新）'!$X:$X,"<>已审核")/10000 -> 0 | CC18: =SUMIFS('1.3-19春夏调配（更新）'!$AA:$AA,'1.3-19春夏调配（更新）'!$G:$G,运营部分析!$J$1,'1.3-19春夏调配（更新）'!$A:$A,运营部分析!$B18,'1.3-19春夏调配（更新）'!$Z:$Z,"否",'1.3-19春夏调配（更新）'!$X:$X,"<>已审核")/10000 -> 0 | CD18: =SUMIFS('1.3-19春夏调配（更新）'!$P:$P,'1.3-19春夏调配（更新）'!$K:$K,运营部分析!$J$1,'1.3-19春夏调配（更新）'!$A:$A,运营部分析!$B18,'1.3-19春夏调配（更新）'!$X:$X,"<>已审核") -> 0 | CE18: =SUMIFS('1.3-19春夏调配（更新）'!$P:$P,'1.3-19春夏调配（更新）'!$G:$G,运营部分析!$J$1,'1.3-19春夏调配（更新）'!$A:$A,运营部分析!$B18,'1.3-19春夏调配（更新）'!$Z:$Z,"是",'1.3-19春夏调配（更新）'!$X:$X,"<>已审核") -> 0 | CF18: =SUMIFS('1.3-19春夏调配（更新）'!$P:$P,'1.3-19春夏调配（更新）'!$G:$G,运营部分析!$J$1,'1.3-19春夏调配（更新）'!$A:$A,运营部分析!$B18,'1.3-19春夏调配（更新）'!$Z:$Z,"否",'1.3-19春夏调配（更新）'!$X:$X,"<>已审核") -> 0 | CG18: =SUMIFS('2.1-18春夏销售（止18年9月30日）'!$I:$I,'2.1-18春夏销售（止18年9月30日）'!$D:$D,运营部分析!$J$1,'2.1-18春夏销售（止18年9月30日）'!$V:$V,运营部分析!CG$4,'2.1-18春夏销售（止18年9月30日）'!$A:$A,运营部分析!$B18,'2.1-18春夏销售（止18年9月30日）'!$W:$W,"否",'2.1-18春夏销售（止18年9月30日）'!$X:$X,"新品") -> 0 | CH18: =SUMIFS('2.1-18春夏销售（止18年9月30日）'!$I:$I,'2.1-18春夏销售（止18年9月30日）'!$D:$D,运营部分析!$J$1,'2.1-18春夏销售（止18年9月30日）'!$V:$V,运营部分析!CH$4,'2.1-18春夏销售（止18年9月30日）'!$A:$A,运营部分析!$B18,'2.1-18春夏销售（止18年9月30日）'!$W:$W,"否",'2.1-18春夏销售（止18年9月30日）'!$X:$X,"新品") -> 0 | CI18: =SUMIFS('2.1-18春夏销售（止18年9月30日）'!$I:$I,'2.1-18春夏销售（止18年9月30日）'!$D:$D,运营部分析!$J$1,'2.1-18春夏销售（止18年9月30日）'!$V:$V,运营部分析!CI$4,'2.1-18春夏销售（止18年9月30日）'!$A:$A,运营部分析!$B18,'2.1-18春夏销售（止18年9月30日）'!$W:$W,"否",'2.1-18春夏销售（止18年9月30日）'!$X:$X,"新品") -> 0 | CJ18: =SUMIFS('2.1-18春夏销售（止18年9月30日）'!$I:$I,'2.1-18春夏销售（止18年9月30日）'!$D:$D,运营部分析!$J$1,'2.1-18春夏销售（止18年9月30日）'!$V:$V,运营部分析!CJ$4,'2.1-18春夏销售（止18年9月30日）'!$A:$A,运营部分析!$B18,'2.1-18春夏销售（止18年9月30日）'!$W:$W,"否",'2.1-18春夏销售（止18年9月30日）'!$X:$X,"新品") -> 0 | CK18: =SUMIFS('2.1-18春夏销售（止18年9月30日）'!$I:$I,'2.1-18春夏销售（止18年9月30日）'!$D:$D,运营部分析!$J$1,'2.1-18春夏销售（止18年9月30日）'!$V:$V,运营部分析!CK$4,'2.1-18春夏销售（止18年9月30日）'!$A:$A,运营部分析!$B18,'2.1-18春夏销售（止18年9月30日）'!$W:$W,"否",'2.1-18春夏销售（止18年9月30日）'!$X:$X,"新品") -> 0 | CL18: =SUMIFS('2.1-18春夏销售（止18年9月30日）'!$I:$I,'2.1-18春夏销售（止18年9月30日）'!$D:$D,运营部分析!$J$1,'2.1-18春夏销售（止18年9月30日）'!$V:$V,运营部分析!CL$4,'2.1-18春夏销售（止18年9月30日）'!$A:$A,运营部分析!$B18,'2.1-18春夏销售（止18年9月30日）'!$W:$W,"否",'2.1-18春夏销售（止18年9月30日）'!$X:$X,"新品") -> 0 | CM18: =SUMIFS('2.1-18春夏销售（止18年9月30日）'!$I:$I,'2.1-18春夏销售（止18年9月30日）'!$D:$D,运营部分析!$J$1,'2.1-18春夏销售（止18年9月30日）'!$V:$V,运营部分析!CM$4,'2.1-18春夏销售（止18年9月30日）'!$A:$A,运营部分析!$B18,'2.1-18春夏销售（止18年9月30日）'!$W:$W,"否",'2.1-18春夏销售（止18年9月30日）'!$X:$X,"新品") -> 199 | CN18: =SUMIFS('2.1-18春夏销售（止18年9月30日）'!$I:$I,'2.1-18春夏销售（止18年9月30日）'!$D:$D,运营部分析!$J$1,'2.1-18春夏销售（止18年9月30日）'!$V:$V,运营部分析!CN$4,'2.1-18春夏销售（止18年9月30日）'!$A:$A,运营部分析!$B18,'2.1-18春夏销售（止18年9月30日）'!$W:$W,"否",'2.1-18春夏销售（止18年9月30日）'!$X:$X,"新品") -> 552 | CO18: =SUMIFS('2.1-18春夏销售（止18年9月30日）'!$I:$I,'2.1-18春夏销售（止18年9月30日）'!$D:$D,运营部分析!$J$1,'2.1-18春夏销售（止18年9月30日）'!$V:$V,运营部分析!CO$4,'2.1-18春夏销售（止18年9月30日）'!$A:$A,运营部分析!$B18,'2.1-18春夏销售（止18年9月30日）'!$W:$W,"否",'2.1-18春夏销售（止18年9月30日）'!$X:$X,"新品") -> 291 | CP18: =SUMIFS('2.1-18春夏销售（止18年9月30日）'!$I:$I,'2.1-18春夏销售（止18年9月30日）'!$D:$D,运营部分析!$J$1,'2.1-18春夏销售（止18年9月30日）'!$V:$V,运营部分析!CP$4,'2.1-18春夏销售（止18年9月30日）'!$A:$A,运营部分析!$B18,'2.1-18春夏销售（止18年9月30日）'!$W:$W,"否",'2.1-18春夏销售（止18年9月30日）'!$X:$X,"新品") -> 111 | CQ18: =SUM(CG18:CP18) -> 1153 | CR18: 0 | CT18: =SUMIFS('2.1-18春夏销售（止18年9月30日）'!$S:$S,'2.1-18春夏销售（止18年9月30日）'!$D:$D,运营部分析!$J$1,'2.1-18春夏销售（止18年9月30日）'!$V:$V,运营部分析!CT$4,'2.1-18春夏销售（止18年9月30日）'!$A:$A,运营部分析!$B18,'2.1-18春夏销售（止18年9月30日）'!$W:$W,"否",'2.1-18春夏销售（止18年9月30日）'!$X:$X,"新品")/10000 -> 0 | CU18: =SUMIFS('2.1-18春夏销售（止18年9月30日）'!$S:$S,'2.1-18春夏销售（止18年9月30日）'!$D:$D,运营部分析!$J$1,'2.1-18春夏销售（止18年9月30日）'!$V:$V,运营部分析!CU$4,'2.1-18春夏销售（止18年9月30日）'!$A:$A,运营部分析!$B18,'2.1-18春夏销售（止18年9月30日）'!$W:$W,"否",'2.1-18春夏销售（止18年9月30日）'!$X:$X,"新品")/10000 -> 0 | CV18: =SUMIFS('2.1-18春夏销售（止18年9月30日）'!$S:$S,'2.1-18春夏销售（止18年9月30日）'!$D:$D,运营部分析!$J$1,'2.1-18春夏销售（止18年9月30日）'!$V:$V,运营部分析!CV$4,'2.1-18春夏销售（止18年9月30日）'!$A:$A,运营部分析!$B18,'2.1-18春夏销售（止18年9月30日）'!$W:$W,"否",'2.1-18春夏销售（止18年9月30日）'!$X:$X,"新品")/10000 -> 0 | CW18: =SUMIFS('2.1-18春夏销售（止18年9月30日）'!$S:$S,'2.1-18春夏销售（止18年9月30日）'!$D:$D,运营部分析!$J$1,'2.1-18春夏销售（止18年9月30日）'!$V:$V,运营部分析!CW$4,'2.1-18春夏销售（止18年9月30日）'!$A:$A,运营部分析!$B18,'2.1-18春夏销售（止18年9月30日）'!$W:$W,"否",'2.1-18春夏销售（止18年9月30日）'!$X:$X,"新品")/10000 -> 0 | CX18: =SUMIFS('2.1-18春夏销售（止18年9月30日）'!$S:$S,'2.1-18春夏销售（止18年9月30日）'!$D:$D,运营部分析!$J$1,'2.1-18春夏销售（止18年9月30日）'!$V:$V,运营部分析!CX$4,'2.1-18春夏销售（止18年9月30日）'!$A:$A,运营部分析!$B18,'2.1-18春夏销售（止18年9月30日）'!$W:$W,"否",'2.1-18春夏销售（止18年9月30日）'!$X:$X,"新品")/10000 -> 0 | CY18: =SUMIFS('2.1-18春夏销售（止18年9月30日）'!$S:$S,'2.1-18春夏销售（止18年9月30日）'!$D:$D,运营部分析!$J$1,'2.1-18春夏销售（止18年9月30日）'!$V:$V,运营部分析!CY$4,'2.1-18春夏销售（止18年9月30日）'!$A:$A,运营部分析!$B18,'2.1-18春夏销售（止18年9月30日）'!$W:$W,"否",'2.1-18春夏销售（止18年9月30日）'!$X:$X,"新品")/10000 -> 0 | CZ18: =SUMIFS('2.1-18春夏销售（止18年9月30日）'!$S:$S,'2.1-18春夏销售（止18年9月30日）'!$D:$D,运营部分析!$J$1,'2.1-18春夏销售（止18年9月30日）'!$V:$V,运营部分析!CZ$4,'2.1-18春夏销售（止18年9月30日）'!$A:$A,运营部分析!$B18,'2.1-18春夏销售（止18年9月30日）'!$W:$W,"否",'2.1-18春夏销售（止18年9月30日）'!$X:$X,"新品")/10000 -> 9.6511 | DA18: =SUMIFS('2.1-18春夏销售（止18年9月30日）'!$S:$S,'2.1-18春夏销售（止18年9月30日）'!$D:$D,运营部分析!$J$1,'2.1-18春夏销售（止18年9月30日）'!$V:$V,运营部分析!DA$4,'2.1-18春夏销售（止18年9月30日）'!$A:$A,运营部分析!$B18,'2.1-18春夏销售（止18年9月30日）'!$W:$W,"否",'2.1-18春夏销售（止18年9月30日）'!$X:$X,"新品")/10000 -> 26.1278 | DB18: =SUMIFS('2.1-18春夏销售（止18年9月30日）'!$S:$S,'2.1-18春夏销售（止18年9月30日）'!$D:$D,运营部分析!$J$1,'2.1-18春夏销售（止18年9月30日）'!$V:$V,运营部分析!DB$4,'2.1-18春夏销售（止18年9月30日）'!$A:$A,运营部分析!$B18,'2.1-18春夏销售（止18年9月30日）'!$W:$W,"否",'2.1-18春夏销售（止18年9月30日）'!$X:$X,"新品")/10000 -> 13.6459 | DC18: =SUMIFS('2.1-18春夏销售（止18年9月30日）'!$S:$S,'2.1-18春夏销售（止18年9月30日）'!$D:$D,运营部分析!$J$1,'2.1-18春夏销售（止18年9月30日）'!$V:$V,运营部分析!DC$4,'2.1-18春夏销售（止18年9月30日）'!$A:$A,运营部分析!$B18,'2.1-18春夏销售（止18年9月30日）'!$W:$W,"否",'2.1-18春夏销售（止18年9月30日）'!$X:$X,"新品")/10000 -> 5.3079 | DD18: =SUM(CT18:DC18) -> 54.7327 | DH18: =SUMIFS('1.1-19春夏新旧品销售（更新）'!$I:$I,'1.1-19春夏新旧品销售（更新）'!$D:$D,运营部分析!$J$1,'1.1-19春夏新旧品销售（更新）'!$A:$A,运营部分析!$B18,'1.1-19春夏新旧品销售（更新）'!$AB:$AB,"新品",'1.1-19春夏新旧品销售（更新）'!$AG:$AG,"是") -> 0 | DI18: =SUMIFS('1.1-19春夏新旧品销售（更新）'!$S:$S,'1.1-19春夏新旧品销售（更新）'!$D:$D,运营部分析!$J$1,'1.1-19春夏新旧品销售（更新）'!$A:$A,运营部分析!$B18,'1.1-19春夏新旧品销售（更新）'!$AB:$AB,"新品",'1.1-19春夏新旧品销售（更新）'!$AG:$AG,"是")/10000 -> 0 | DJ18: =SUMIFS('1.6-19春夏期货订单（更新）'!$AG:$AG,'1.6-19春夏期货订单（更新）'!$F:$F,运营部分析!$J$1,'1.6-19春夏期货订单（更新）'!$A:$A,运营部分析!$B18,'1.6-19春夏期货订单（更新）'!$AQ:$AQ,"是")+SUMIFS('1.2-19春夏发货（更新）'!$K:$K,'1.2-19春夏发货（更新）'!$A:$A,运营部分析!$B18,'1.2-19春夏发货（更新）'!$Q:$Q,运营部分析!$J$1,'1.2-19春夏发货（更新）'!$T:$T,"当季补货",'1.2-19春夏发货（更新）'!$W:$W,"是")+SUMIFS('1.2-19春夏发货（更新）'!$K:$K,'1.2-19春夏发货（更新）'!$A:$A,运营部分析!$B18,'1.2-19春夏发货（更新）'!$Q:$Q,运营部分析!$J$1,'1.2-19春夏发货（更新）'!$T:$T,"往季补货",'1.2-19春夏发货（更新）'!$W:$W,"是")+SUMIFS('1.3-19春夏调配（更新）'!$P:$P,'1.3-19春夏调配（更新）'!$K:$K,运营部分析!$J$1,'1.3-19春夏调配（更新）'!$A:$A,运营部分析!$B18,'1.3-19春夏调配（更新）'!$AC:$AC,"是",'1.3-19春夏调配（更新）'!$X:$X,"<>已审核")-SUMIFS('1.3-19春夏调配（更新）'!$P:$P,'1.3-19春夏调配（更新）'!$G:$G,运营部分析!$J$1,'1.3-19春夏调配（更新）'!$A:$A,运营部分析!$B18,'1.3-19春夏调配（更新）'!$AC:$AC,"是",'1.3-19春夏调配（更新）'!$X:$X,"<>已审核") -> 0 | DK18: =SUMIFS('1.6-19春夏期货订单（更新）'!$AN:$AN,'1.6-19春夏期货订单（更新）'!$F:$F,运营部分析!$J$1,'1.6-19春夏期货订单（更新）'!$A:$A,运营部分析!$B18,'1.6-19春夏期货订单（更新）'!$AQ:$AQ,"是")/10000+SUMIFS('1.2-19春夏发货（更新）'!$U:$U,'1.2-19春夏发货（更新）'!$A:$A,运营部分析!$B18,'1.2-19春夏发货（更新）'!$Q:$Q,运营部分析!$J$1,'1.2-19春夏发货（更新）'!$T:$T,"当季补货",'1.2-19春夏发货（更新）'!$W:$W,"是")/10000+SUMIFS('1.2-19春夏发货（更新）'!$U:$U,'1.2-19春夏发货（更新）'!$A:$A,运营部分析!$B18,'1.2-19春夏发货（更新）'!$Q:$Q,运营部分析!$J$1,'1.2-19春夏发货（更新）'!$T:$T,"往季补货",'1.2-19春夏发货（更新）'!$W:$W,"是")/10000+SUMIFS('1.3-19春夏调配（更新）'!$AA:$AA,'1.3-19春夏调配（更新）'!$K:$K,运营部分析!$J$1,'1.3-19春夏调配（更新）'!$A:$A,运营部分析!$B18,'1.3-19春夏调配（更新）'!$AC:$AC,"是",'1.3-19春夏调配（更新）'!$X:$X,"<>已审核")/10000-SUMIFS('1.3-19春夏调配（更新）'!$AA:$AA,'1.3-19春夏调配（更新）'!$G:$G,运营部分析!$J$1,'1.3-19春夏调配（更新）'!$A:$A,运营部分析!$B18,'1.3-19春夏调配（更新）'!$AC:$AC,"是",'1.3-19春夏调配（更新）'!$X:$X,"<>已审核")/10000 -> 0
B19: 82 | C19: 短T普棉 | E19: =SUMIFS('1.6-19春夏期货订单（更新）'!$AG:$AG,'1.6-19春夏期货订单（更新）'!$F:$F,运营部分析!$J$1,'1.6-19春夏期货订单（更新）'!$A:$A,运营部分析!$B19)+SUMIFS('1.2-19春夏发货（更新）'!$K:$K,'1.2-19春夏发货（更新）'!$A:$A,运营部分析!$B19,'1.2-19春夏发货（更新）'!$Q:$Q,运营部分析!$J$1,'1.2-19春夏发货（更新）'!$T:$T,"当季补货")+SUMIFS('1.2-19春夏发货（更新）'!$K:$K,'1.2-19春夏发货（更新）'!$A:$A,运营部分析!$B19,'1.2-19春夏发货（更新）'!$Q:$Q,运营部分析!$J$1,'1.2-19春夏发货（更新）'!$T:$T,"往季补货")+SUMIFS('1.3-19春夏调配（更新）'!$P:$P,'1.3-19春夏调配（更新）'!$K:$K,运营部分析!$J$1,'1.3-19春夏调配（更新）'!$A:$A,运营部分析!$B19)-SUMIFS('1.3-19春夏调配（更新）'!$P:$P,'1.3-19春夏调配（更新）'!$G:$G,运营部分析!$J$1,'1.3-19春夏调配（更新）'!$A:$A,运营部分析!$B19,'1.3-19春夏调配（更新）'!$Z:$Z,"是") -> 9345 | F19: =SUMIFS('1.6-19春夏期货订单（更新）'!$AN:$AN,'1.6-19春夏期货订单（更新）'!$F:$F,运营部分析!$J$1,'1.6-19春夏期货订单（更新）'!$A:$A,运营部分析!$B19)/10000+SUMIFS('1.2-19春夏发货（更新）'!$U:$U,'1.2-19春夏发货（更新）'!$A:$A,运营部分析!$B19,'1.2-19春夏发货（更新）'!$Q:$Q,运营部分析!$J$1,'1.2-19春夏发货（更新）'!$T:$T,"当季补货")/10000+SUMIFS('1.2-19春夏发货（更新）'!$U:$U,'1.2-19春夏发货（更新）'!$A:$A,运营部分析!$B19,'1.2-19春夏发货（更新）'!$Q:$Q,运营部分析!$J$1,'1.2-19春夏发货（更新）'!$T:$T,"往季补货")/10000+SUMIFS('1.3-19春夏调配（更新）'!$AA:$AA,'1.3-19春夏调配（更新）'!$K:$K,运营部分析!$J$1,'1.3-19春夏调配（更新）'!$A:$A,运营部分析!$B19)/10000-SUMIFS('1.3-19春夏调配（更新）'!$AA:$AA,'1.3-19春夏调配（更新）'!$G:$G,运营部分析!$J$1,'1.3-19春夏调配（更新）'!$A:$A,运营部分析!$B19,'1.3-19春夏调配（更新）'!$Z:$Z,"是")/10000 -> 405.8451 | G19: =(SUMIFS('2.1-18春夏销售（止18年9月30日）'!$I:$I,'2.1-18春夏销售（止18年9月30日）'!$X:$X,"新品",'2.1-18春夏销售（止18年9月30日）'!$A:$A,运营部分析!$B19,'2.1-18春夏销售（止18年9月30日）'!$D:$D,运营部分析!$J$1)+SUMIFS('2.2--18春夏库存（止18年9月30日）'!$M:$M,'2.2--18春夏库存（止18年9月30日）'!$C:$C,运营部分析!$J$1,'2.2--18春夏库存（止18年9月30日）'!$A:$A,运营部分析!$B19)+SUMIFS('2.4-18春夏冬退货（止18年9月30日）'!$Q:$Q,'2.4-18春夏冬退货（止18年9月30日）'!$D:$D,运营部分析!$J$1,'2.4-18春夏冬退货（止18年9月30日）'!$A:$A,运营部分析!$B19)+SUMIFS('2.3-18春夏调配（止18年9月30日）'!$P:$P,'2.3-18春夏调配（止18年9月30日）'!$G:$G,运营部分析!$J$1,'2.3-18春夏调配（止18年9月30日）'!$A:$A,运营部分析!$B19)) -> 4180 | H19: =(SUMIFS('2.1-18春夏销售（止18年9月30日）'!$S:$S,'2.1-18春夏销售（止18年9月30日）'!$X:$X,"新品",'2.1-18春夏销售（止18年9月30日）'!$A:$A,运营部分析!$B19,'2.1-18春夏销售（止18年9月30日）'!$D:$D,运营部分析!$J$1)/10000+SUMIFS('2.2--18春夏库存（止18年9月30日）'!$P:$P,'2.2--18春夏库存（止18年9月30日）'!$C:$C,运营部分析!$J$1,'2.2--18春夏库存（止18年9月30日）'!$A:$A,运营部分析!$B19)/10000+SUMIFS('2.4-18春夏冬退货（止18年9月30日）'!$T:$T,'2.4-18春夏冬退货（止18年9月30日）'!$D:$D,运营部分析!$J$1,'2.4-18春夏冬退货（止18年9月30日）'!$A:$A,运营部分析!$B19)/10000+SUMIFS('2.3-18春夏调配（止18年9月30日）'!$Y:$Y,'2.3-18春夏调配（止18年9月30日）'!$G:$G,运营部分析!$J$1,'2.3-18春夏调配（止18年9月30日）'!$A:$A,运营部分析!$B19)/10000) -> 135.696 | I19: 1.235645933 | J19: 1.990840555 | K19: =SUMIFS('1.1-19春夏新旧品销售（更新）'!$I:$I,'1.1-19春夏新旧品销售（更新）'!$D:$D,运营部分析!$J$1,'1.1-19春夏新旧品销售（更新）'!$A:$A,运营部分析!$B19,'1.1-19春夏新旧品销售（更新）'!$AB:$AB,"新品") -> 1550 | L19: =SUMIFS('1.1-19春夏新旧品销售（更新）'!$S:$S,'1.1-19春夏新旧品销售（更新）'!$D:$D,运营部分析!$J$1,'1.1-19春夏新旧品销售（更新）'!$A:$A,运营部分析!$B19,'1.1-19春夏新旧品销售（更新）'!$AB:$AB,"新品")/10000 -> 69.717 | M19: =SUMIFS('2.1-18春夏销售（止18年9月30日）'!$I:$I,'2.1-18春夏销售（止18年9月30日）'!$D:$D,运营部分析!$J$1,'2.1-18春夏销售（止18年9月30日）'!$A:$A,运营部分析!$B19,'2.1-18春夏销售（止18年9月30日）'!$X:$X,"新品",'2.1-18春夏销售（止18年9月30日）'!$T:$T,"同期销售") -> 907 | N19: =SUMIFS('2.1-18春夏销售（止18年9月30日）'!$S:$S,'2.1-18春夏销售（止18年9月30日）'!$D:$D,运营部分析!$J$1,'2.1-18春夏销售（止18年9月30日）'!$A:$A,运营部分析!$B19,'2.1-18春夏销售（止18年9月30日）'!$X:$X,"新品",'2.1-18春夏销售（止18年9月30日）'!$T:$T,"同期销售")/10000 -> 28.5193 | O19: 0.7089305402 | P19: 1.444555091 | Q19: =SUMIFS('2.1-18春夏销售（止18年9月30日）'!$I:$I,'2.1-18春夏销售（止18年9月30日）'!$D:$D,运营部分析!$J$1,'2.1-18春夏销售（止18年9月30日）'!$A:$A,运营部分析!$B19,'2.1-18春夏销售（止18年9月30日）'!$X:$X,"新品") -> 2126 | R19: =SUMIFS('2.1-18春夏销售（止18年9月30日）'!$S:$S,'2.1-18春夏销售（止18年9月30日）'!$D:$D,运营部分析!$J$1,'2.1-18春夏销售（止18年9月30日）'!$A:$A,运营部分析!$B19,'2.1-18春夏销售（止18年9月30日）'!$X:$X,"新品")/10000 -> 67.5754 | S19: =SUMIFS('1.5-19春夏新旧品库存（更新）'!$BF:$BF,'1.5-19春夏新旧品库存（更新）'!$B:$B,运营部分析!$J$1,'1.5-19春夏新旧品库存（更新）'!$E:$E,运营部分析!$B19,'1.5-19春夏新旧品库存（更新）'!$BI:$BI,"新品") -> 7160 | T19: =SUMIFS('1.5-19春夏新旧品库存（更新）'!$BG:$BG,'1.5-19春夏新旧品库存（更新）'!$B:$B,运营部分析!$J$1,'1.5-19春夏新旧品库存（更新）'!$E:$E,运营部分析!$B19,'1.5-19春夏新旧品库存（更新）'!$BI:$BI,"新品")/10000 -> 312.583 | U19: =(SUMIFS('2.2--18春夏库存（止18年9月30日）'!$M:$M,'2.2--18春夏库存（止18年9月30日）'!$C:$C,运营部分析!$J$1,'2.2--18春夏库存（止18年9月30日）'!$A:$A,运营部分析!$B19)) -> 1566 | V19: =(SUMIFS('2.2--18春夏库存（止18年9月30日）'!$P:$P,'2.2--18春夏库存（止18年9月30日）'!$C:$C,运营部分析!$J$1,'2.2--18春夏库存（止18年9月30日）'!$A:$A,运营部分析!$B19))/10000 -> 52.2644 | W19: 3.572158365 | X19: 4.980801463 | Y19: 0.1831599066 | Z19: 0.1894021775 | AA19: =SUMIFS('2.3-18春夏调配（止18年9月30日）'!$P:$P,'2.3-18春夏调配（止18年9月30日）'!$G:$G,运营部分析!$J$1,'2.3-18春夏调配（止18年9月30日）'!$A:$A,运营部分析!$B19,'2.3-18春夏调配（止18年9月30日）'!$Z:$Z,"否",'2.3-18春夏调配（止18年9月30日）'!$AA:$AA,"是") -> 109 | AB19: =SUMIFS('2.3-18春夏调配（止18年9月30日）'!$Y:$Y,'2.3-18春夏调配（止18年9月30日）'!$G:$G,运营部分析!$J$1,'2.3-18春夏调配（止18年9月30日）'!$A:$A,运营部分析!$B19,'2.3-18春夏调配（止18年9月30日）'!$Z:$Z,"否",'2.3-18春夏调配（止18年9月30日）'!$AA:$AA,"是")/10000 -> 3.4761 | AC19: =SUMIFS('2.3-18春夏调配（止18年9月30日）'!$P:$P,'2.3-18春夏调配（止18年9月30日）'!$G:$G,运营部分析!$J$1,'2.3-18春夏调配（止18年9月30日）'!$A:$A,运营部分析!$B19,'2.3-18春夏调配（止18年9月30日）'!$Z:$Z,"是",'2.3-18春夏调配（止18年9月30日）'!$AA:$AA,"是") -> 4 | AD19: =SUMIFS('2.3-18春夏调配（止18年9月30日）'!$Y:$Y,'2.3-18春夏调配（止18年9月30日）'!$G:$G,运营部分析!$J$1,'2.3-18春夏调配（止18年9月30日）'!$A:$A,运营部分析!$B19,'2.3-18春夏调配（止18年9月30日）'!$Z:$Z,"是",'2.3-18春夏调配（止18年9月30日）'!$AA:$AA,"是")/10000 -> 0.1416 | AE19: 0.2432950192 | AF19: 0.2360336514 | AG19: 0.1763819852 | AH19: 0.18111078 | AI19: -0.2471695179 | AJ19: -0.1975628206 | AK19: =SUMIFS('2.3-18春夏调配（止18年9月30日）'!$P:$P,'2.3-18春夏调配（止18年9月30日）'!$G:$G,运营部分析!$J$1,'2.3-18春夏调配（止18年9月30日）'!$A:$A,运营部分析!$B19,'2.3-18春夏调配（止18年9月30日）'!$Z:$Z,"否") -> 481 | AL19: =SUMIFS('2.3-18春夏调配（止18年9月30日）'!$Y:$Y,'2.3-18春夏调配（止18年9月30日）'!$G:$G,运营部分析!$J$1,'2.3-18春夏调配（止18年9月30日）'!$A:$A,运营部分析!$B19,'2.3-18春夏调配（止18年9月30日）'!$Z:$Z,"否")/10000 -> 15.6109 | AM19: =SUMIFS('2.3-18春夏调配（止18年9月30日）'!$P:$P,'2.3-18春夏调配（止18年9月30日）'!$G:$G,运营部分析!$J$1,'2.3-18春夏调配（止18年9月30日）'!$A:$A,运营部分析!$B19,'2.3-18春夏调配（止18年9月30日）'!$Z:$Z,"是") -> 7 | AN19: =SUMIFS('2.3-18春夏调配（止18年9月30日）'!$Y:$Y,'2.3-18春夏调配（止18年9月30日）'!$G:$G,运营部分析!$J$1,'2.3-18春夏调配（止18年9月30日）'!$A:$A,运营部分析!$B19,'2.3-18春夏调配（止18年9月30日）'!$Z:$Z,"是")/10000 -> 0.2453 | AO19: 0.6247304098 | AP19: 0.6141444821 | AQ19: =SUMIFS('1.2-19春夏发货（更新）'!$K:$K,'1.2-19春夏发货（更新）'!$A:$A,运营部分析!$B19,'1.2-19春夏发货（更新）'!Q:Q,运营部分析!$J$1) -> 8917 | AR19: 0.954200107 | AS19: 428 | AT19: 8928 | AU19: =SUMIFS('1.6-19春夏期货订单（更新）'!$AP:$AP,'1.6-19春夏期货订单（更新）'!$A:$A,运营部分析!$B19,'1.6-19春夏期货订单（更新）'!$F:$F,运营部分析!$J$1) -> 69 | AV19: =SUMIFS('1.1-19春夏新旧品销售（更新）'!$X:$X,'1.1-19春夏新旧品销售（更新）'!$A:$A,运营部分析!$B19,'1.1-19春夏新旧品销售（更新）'!D:D,运营部分析!$J$1,'1.1-19春夏新旧品销售（更新）'!$U:$U,"月",'1.1-19春夏新旧品销售（更新）'!$AH:$AH,"新品") -> 69 | AW19: =SUMIFS('1.5-19春夏新旧品库存（更新）'!$BM:$BM,'1.5-19春夏新旧品库存（更新）'!$E:$E,运营部分析!$B19,'1.5-19春夏新旧品库存（更新）'!$B:$B,运营部分析!$J$1,'1.5-19春夏新旧品库存（更新）'!$BI:$BI,"新品") -> 82 | AX19: 0.8414634146 | AY19: 11.43769968 | AZ19: =SUMIFS('1.1-19春夏新旧品销售（更新）'!$I:$I,'1.1-19春夏新旧品销售（更新）'!$A:$A,运营部分析!$B19,'1.1-19春夏新旧品销售（更新）'!$U:$U,"月",'1.1-19春夏新旧品销售（更新）'!$D:$D,运营部分析!$J$1,'1.1-19春夏新旧品销售（更新）'!$AH:$AH,"新品") -> 626 | BA19: =SUMIFS('1.1-19春夏新旧品销售（更新）'!$J:$J,'1.1-19春夏新旧品销售（更新）'!$A:$A,运营部分析!$B19,'1.1-19春夏新旧品销售（更新）'!$U:$U,"月",'1.1-19春夏新旧品销售（更新）'!$D:$D,运营部分析!$J$1,'1.1-19春夏新旧品销售（更新）'!$AH:$AH,"新品")/10000 -> 22.7125 | BB19: =SUMIFS('1.1-19春夏新旧品销售（更新）'!$K:$K,'1.1-19春夏新旧品销售（更新）'!$A:$A,运营部分析!$B19,'1.1-19春夏新旧品销售（更新）'!$U:$U,"月",'1.1-19春夏新旧品销售（更新）'!$D:$D,运营部分析!$J$1,'1.1-19春夏新旧品销售（更新）'!$AH:$AH,"新品")/10000 -> 33.8884 | BC19: =SUMIFS('1.1-19春夏新旧品销售（更新）'!$S:$S,'1.1-19春夏新旧品销售（更新）'!$A:$A,运营部分析!$B19,'1.1-19春夏新旧品销售（更新）'!$U:$U,"月",'1.1-19春夏新旧品销售（更新）'!$D:$D,运营部分析!$J$1,'1.1-19春夏新旧品销售（更新）'!$AH:$AH,"新品")/10000 -> 28.4984 | BD19: 1.189133425 | BE19: 362.8194888 | BF19: 0.796974567 | BG19: =SUMIFS('2.1-18春夏销售（止18年9月30日）'!$J:$J,'2.1-18春夏销售（止18年9月30日）'!$A:$A,运营部分析!$B19,'2.1-18春夏销售（止18年9月30日）'!$D:$D,运营部分析!$J$1,'2.1-18春夏销售（止18年9月30日）'!$U:$U,"月",'2.1-18春夏销售（止18年9月30日）'!$X:$X,"新品")/10000 -> 8.76993 | BH19: =SUMIFS('2.1-18春夏销售（止18年9月30日）'!$S:$S,'2.1-18春夏销售（止18年9月30日）'!$A:$A,运营部分析!$B19,'2.1-18春夏销售（止18年9月30日）'!$D:$D,运营部分析!$J$1,'2.1-18春夏销售（止18年9月30日）'!$U:$U,"月",'2.1-18春夏销售（止18年9月30日）'!$X:$X,"新品")/10000 -> 10.4834 | BI19: 0.8365539806 | BJ19: =SUMIFS('1.1-19春夏新旧品销售（更新）'!$J:$J,'1.1-19春夏新旧品销售（更新）'!$A:$A,运营部分析!$B19,'1.1-19春夏新旧品销售（更新）'!$D:$D,运营部分析!$J$1,'1.1-19春夏新旧品销售（更新）'!$T:$T,"本周",'1.1-19春夏新旧品销售（更新）'!$AH:$AH,"新品")/10000 -> 6.2588 | BK19: =SUMIFS('1.1-19春夏新旧品销售（更新）'!$S:$S,'1.1-19春夏新旧品销售（更新）'!$A:$A,运营部分析!$B19,'1.1-19春夏新旧品销售（更新）'!$D:$D,运营部分析!$J$1,'1.1-19春夏新旧品销售（更新）'!$T:$T,"本周",'1.1-19春夏新旧品销售（更新）'!$AH:$AH,"新品")/10000 -> 7.8731 | BL19: 0.7949600539 | BM19: 0.2904106952 | BN19: -0.04292263813 | BO19: =SUMIFS('1.1-19春夏新旧品销售（更新）'!$I:$I,'1.1-19春夏新旧品销售（更新）'!$A:$A,运营部分析!#REF!,'1.1-19春夏新旧品销售（更新）'!$D:$D,运营部分析!$J$1,'1.1-19春夏新旧品销售（更新）'!$T:$T,"上上周",'1.1-19春夏新旧品销售（更新）'!$AH:$AH,"新品") -> 0 | BP19: =SUMIFS('1.1-19春夏新旧品销售（更新）'!$I:$I,'1.1-19春夏新旧品销售（更新）'!$A:$A,运营部分析!$B18,'1.1-19春夏新旧品销售（更新）'!$D:$D,运营部分析!$J$1,'1.1-19春夏新旧品销售（更新）'!$T:$T,"上周",'1.1-19春夏新旧品销售（更新）'!$AH:$AH,"新品") -> 0 | BQ19: =SUMIFS('1.1-19春夏新旧品销售（更新）'!$I:$I,'1.1-19春夏新旧品销售（更新）'!$A:$A,运营部分析!$B18,'1.1-19春夏新旧品销售（更新）'!$D:$D,运营部分析!$J$1,'1.1-19春夏新旧品销售（更新）'!$T:$T,"本周",'1.1-19春夏新旧品销售（更新）'!$AH:$AH,"新品") -> 0 | BR19: =SUMIFS('1.1-19春夏新旧品销售（更新）'!$I:$I,'1.1-19春夏新旧品销售（更新）'!$A:$A,运营部分析!$B19,'1.1-19春夏新旧品销售（更新）'!$D:$D,运营部分析!$J$1,'1.1-19春夏新旧品销售（更新）'!$U:$U,"月",'1.1-19春夏新旧品销售（更新）'!$AH:$AH,"新品") -> 626 | BS19: 0 | BT19: 0 | BU19: 0 | BV19: 0.3333333333 | CA19: =SUMIFS('1.3-19春夏调配（更新）'!$AA:$AA,'1.3-19春夏调配（更新）'!$K:$K,运营部分析!$J$1,'1.3-19春夏调配（更新）'!$A:$A,运营部分析!$B19,'1.3-19春夏调配（更新）'!$X:$X,"<>已审核")/10000 -> 5.1074 | CB19: =SUMIFS('1.3-19春夏调配（更新）'!$AA:$AA,'1.3-19春夏调配（更新）'!$G:$G,运营部分析!$J$1,'1.3-19春夏调配（更新）'!$A:$A,运营部分析!$B19,'1.3-19春夏调配（更新）'!$Z:$Z,"是",'1.3-19春夏调配（更新）'!$X:$X,"<>已审核")/10000 -> 1.7307 | CC19: =SUMIFS('1.3-19春夏调配（更新）'!$AA:$AA,'1.3-19春夏调配（更新）'!$G:$G,运营部分析!$J$1,'1.3-19春夏调配（更新）'!$A:$A,运营部分析!$B19,'1.3-19春夏调配（更新）'!$Z:$Z,"否",'1.3-19春夏调配（更新）'!$X:$X,"<>已审核")/10000 -> 7.7905 | CD19: =SUMIFS('1.3-19春夏调配（更新）'!$P:$P,'1.3-19春夏调配（更新）'!$K:$K,运营部分析!$J$1,'1.3-19春夏调配（更新）'!$A:$A,运营部分析!$B19,'1.3-19春夏调配（更新）'!$X:$X,"<>已审核") -> 116 | CE19: =SUMIFS('1.3-19春夏调配（更新）'!$P:$P,'1.3-19春夏调配（更新）'!$G:$G,运营部分析!$J$1,'1.3-19春夏调配（更新）'!$A:$A,运营部分析!$B19,'1.3-19春夏调配（更新）'!$Z:$Z,"是",'1.3-19春夏调配（更新）'!$X:$X,"<>已审核") -> 43 | CF19: =SUMIFS('1.3-19春夏调配（更新）'!$P:$P,'1.3-19春夏调配（更新）'!$G:$G,运营部分析!$J$1,'1.3-19春夏调配（更新）'!$A:$A,运营部分析!$B19,'1.3-19春夏调配（更新）'!$Z:$Z,"否",'1.3-19春夏调配（更新）'!$X:$X,"<>已审核") -> 175 | CG19: =SUMIFS('2.1-18春夏销售（止18年9月30日）'!$I:$I,'2.1-18春夏销售（止18年9月30日）'!$D:$D,运营部分析!$J$1,'2.1-18春夏销售（止18年9月30日）'!$V:$V,运营部分析!CG$4,'2.1-18春夏销售（止18年9月30日）'!$A:$A,运营部分析!$B19,'2.1-18春夏销售（止18年9月30日）'!$W:$W,"否",'2.1-18春夏销售（止18年9月30日）'!$X:$X,"新品") -> 0 | CH19: =SUMIFS('2.1-18春夏销售（止18年9月30日）'!$I:$I,'2.1-18春夏销售（止18年9月30日）'!$D:$D,运营部分析!$J$1,'2.1-18春夏销售（止18年9月30日）'!$V:$V,运营部分析!CH$4,'2.1-18春夏销售（止18年9月30日）'!$A:$A,运营部分析!$B19,'2.1-18春夏销售（止18年9月30日）'!$W:$W,"否",'2.1-18春夏销售（止18年9月30日）'!$X:$X,"新品") -> 0 | CI19: =SUMIFS('2.1-18春夏销售（止18年9月30日）'!$I:$I,'2.1-18春夏销售（止18年9月30日）'!$D:$D,运营部分析!$J$1,'2.1-18春夏销售（止18年9月30日）'!$V:$V,运营部分析!CI$4,'2.1-18春夏销售（止18年9月30日）'!$A:$A,运营部分析!$B19,'2.1-18春夏销售（止18年9月30日）'!$W:$W,"否",'2.1-18春夏销售（止18年9月30日）'!$X:$X,"新品") -> 0 | CJ19: =SUMIFS('2.1-18春夏销售（止18年9月30日）'!$I:$I,'2.1-18春夏销售（止18年9月30日）'!$D:$D,运营部分析!$J$1,'2.1-18春夏销售（止18年9月30日）'!$V:$V,运营部分析!CJ$4,'2.1-18春夏销售（止18年9月30日）'!$A:$A,运营部分析!$B19,'2.1-18春夏销售（止18年9月30日）'!$W:$W,"否",'2.1-18春夏销售（止18年9月30日）'!$X:$X,"新品") -> 0 | CK19: =SUMIFS('2.1-18春夏销售（止18年9月30日）'!$I:$I,'2.1-18春夏销售（止18年9月30日）'!$D:$D,运营部分析!$J$1,'2.1-18春夏销售（止18年9月30日）'!$V:$V,运营部分析!CK$4,'2.1-18春夏销售（止18年9月30日）'!$A:$A,运营部分析!$B19,'2.1-18春夏销售（止18年9月30日）'!$W:$W,"否",'2.1-18春夏销售（止18年9月30日）'!$X:$X,"新品") -> 0 | CL19: =SUMIFS('2.1-18春夏销售（止18年9月30日）'!$I:$I,'2.1-18春夏销售（止18年9月30日）'!$D:$D,运营部分析!$J$1,'2.1-18春夏销售（止18年9月30日）'!$V:$V,运营部分析!CL$4,'2.1-18春夏销售（止18年9月30日）'!$A:$A,运营部分析!$B19,'2.1-18春夏销售（止18年9月30日）'!$W:$W,"否",'2.1-18春夏销售（止18年9月30日）'!$X:$X,"新品") -> 0 | CM19: =SUMIFS('2.1-18春夏销售（止18年9月30日）'!$I:$I,'2.1-18春夏销售（止18年9月30日）'!$D:$D,运营部分析!$J$1,'2.1-18春夏销售（止18年9月30日）'!$V:$V,运营部分析!CM$4,'2.1-18春夏销售（止18年9月30日）'!$A:$A,运营部分析!$B19,'2.1-18春夏销售（止18年9月30日）'!$W:$W,"否",'2.1-18春夏销售（止18年9月30日）'!$X:$X,"新品") -> 195 | CN19: =SUMIFS('2.1-18春夏销售（止18年9月30日）'!$I:$I,'2.1-18春夏销售（止18年9月30日）'!$D:$D,运营部分析!$J$1,'2.1-18春夏销售（止18年9月30日）'!$V:$V,运营部分析!CN$4,'2.1-18春夏销售（止18年9月30日）'!$A:$A,运营部分析!$B19,'2.1-18春夏销售（止18年9月30日）'!$W:$W,"否",'2.1-18春夏销售（止18年9月30日）'!$X:$X,"新品") -> 561 | CO19: =SUMIFS('2.1-18春夏销售（止18年9月30日）'!$I:$I,'2.1-18春夏销售（止18年9月30日）'!$D:$D,运营部分析!$J$1,'2.1-18春夏销售（止18年9月30日）'!$V:$V,运营部分析!CO$4,'2.1-18春夏销售（止18年9月30日）'!$A:$A,运营部分析!$B19,'2.1-18春夏销售（止18年9月30日）'!$W:$W,"否",'2.1-18春夏销售（止18年9月30日）'!$X:$X,"新品") -> 326 | CP19: =SUMIFS('2.1-18春夏销售（止18年9月30日）'!$I:$I,'2.1-18春夏销售（止18年9月30日）'!$D:$D,运营部分析!$J$1,'2.1-18春夏销售（止18年9月30日）'!$V:$V,运营部分析!CP$4,'2.1-18春夏销售（止18年9月30日）'!$A:$A,运营部分析!$B19,'2.1-18春夏销售（止18年9月30日）'!$W:$W,"否",'2.1-18春夏销售（止18年9月30日）'!$X:$X,"新品") -> 137 | CQ19: =SUM(CG19:CP19)+CQ18 -> 2372 | CR19: 5216 | CS19: 0.4350180505 | CT19: =SUMIFS('2.1-18春夏销售（止18年9月30日）'!$S:$S,'2.1-18春夏销售（止18年9月30日）'!$D:$D,运营部分析!$J$1,'2.1-18春夏销售（止18年9月30日）'!$V:$V,运营部分析!CT$4,'2.1-18春夏销售（止18年9月30日）'!$A:$A,运营部分析!$B19,'2.1-18春夏销售（止18年9月30日）'!$W:$W,"否",'2.1-18春夏销售（止18年9月30日）'!$X:$X,"新品")/10000 -> 0 | CU19: =SUMIFS('2.1-18春夏销售（止18年9月30日）'!$S:$S,'2.1-18春夏销售（止18年9月30日）'!$D:$D,运营部分析!$J$1,'2.1-18春夏销售（止18年9月30日）'!$V:$V,运营部分析!CU$4,'2.1-18春夏销售（止18年9月30日）'!$A:$A,运营部分析!$B19,'2.1-18春夏销售（止18年9月30日）'!$W:$W,"否",'2.1-18春夏销售（止18年9月30日）'!$X:$X,"新品")/10000 -> 0 | CV19: =SUMIFS('2.1-18春夏销售（止18年9月30日）'!$S:$S,'2.1-18春夏销售（止18年9月30日）'!$D:$D,运营部分析!$J$1,'2.1-18春夏销售（止18年9月30日）'!$V:$V,运营部分析!CV$4,'2.1-18春夏销售（止18年9月30日）'!$A:$A,运营部分析!$B19,'2.1-18春夏销售（止18年9月30日）'!$W:$W,"否",'2.1-18春夏销售（止18年9月30日）'!$X:$X,"新品")/10000 -> 0 | CW19: =SUMIFS('2.1-18春夏销售（止18年9月30日）'!$S:$S,'2.1-18春夏销售（止18年9月30日）'!$D:$D,运营部分析!$J$1,'2.1-18春夏销售（止18年9月30日）'!$V:$V,运营部分析!CW$4,'2.1-18春夏销售（止18年9月30日）'!$A:$A,运营部分析!$B19,'2.1-18春夏销售（止18年9月30日）'!$W:$W,"否",'2.1-18春夏销售（止18年9月30日）'!$X:$X,"新品")/10000 -> 0 | CX19: =SUMIFS('2.1-18春夏销售（止18年9月30日）'!$S:$S,'2.1-18春夏销售（止18年9月30日）'!$D:$D,运营部分析!$J$1,'2.1-18春夏销售（止18年9月30日）'!$V:$V,运营部分析!CX$4,'2.1-18春夏销售（止18年9月30日）'!$A:$A,运营部分析!$B19,'2.1-18春夏销售（止18年9月30日）'!$W:$W,"否",'2.1-18春夏销售（止18年9月30日）'!$X:$X,"新品")/10000 -> 0 | CY19: =SUMIFS('2.1-18春夏销售（止18年9月30日）'!$S:$S,'2.1-18春夏销售（止18年9月30日）'!$D:$D,运营部分析!$J$1,'2.1-18春夏销售（止18年9月30日）'!$V:$V,运营部分析!CY$4,'2.1-18春夏销售（止18年9月30日）'!$A:$A,运营部分析!$B19,'2.1-18春夏销售（止18年9月30日）'!$W:$W,"否",'2.1-18春夏销售（止18年9月30日）'!$X:$X,"新品")/10000 -> 0 | CZ19: =SUMIFS('2.1-18春夏销售（止18年9月30日）'!$S:$S,'2.1-18春夏销售（止18年9月30日）'!$D:$D,运营部分析!$J$1,'2.1-18春夏销售（止18年9月30日）'!$V:$V,运营部分析!CZ$4,'2.1-18春夏销售（止18年9月30日）'!$A:$A,运营部分析!$B19,'2.1-18春夏销售（止18年9月30日）'!$W:$W,"否",'2.1-18春夏销售（止18年9月30日）'!$X:$X,"新品")/10000 -> 6.2625 | DA19: =SUMIFS('2.1-18春夏销售（止18年9月30日）'!$S:$S,'2.1-18春夏销售（止18年9月30日）'!$D:$D,运营部分析!$J$1,'2.1-18春夏销售（止18年9月30日）'!$V:$V,运营部分析!DA$4,'2.1-18春夏销售（止18年9月30日）'!$A:$A,运营部分析!$B19,'2.1-18春夏销售（止18年9月30日）'!$W:$W,"否",'2.1-18春夏销售（止18年9月30日）'!$X:$X,"新品")/10000 -> 18.1439 | DB19: =SUMIFS('2.1-18春夏销售（止18年9月30日）'!$S:$S,'2.1-18春夏销售（止18年9月30日）'!$D:$D,运营部分析!$J$1,'2.1-18春夏销售（止18年9月30日）'!$V:$V,运营部分析!DB$4,'2.1-18春夏销售（止18年9月30日）'!$A:$A,运营部分析!$B19,'2.1-18春夏销售（止18年9月30日）'!$W:$W,"否",'2.1-18春夏销售（止18年9月30日）'!$X:$X,"新品")/10000 -> 10.2404 | DC19: =SUMIFS('2.1-18春夏销售（止18年9月30日）'!$S:$S,'2.1-18春夏销售（止18年9月30日）'!$D:$D,运营部分析!$J$1,'2.1-18春夏销售（止18年9月30日）'!$V:$V,运营部分析!DC$4,'2.1-18春夏销售（止18年9月30日）'!$A:$A,运营部分析!$B19,'2.1-18春夏销售（止18年9月30日）'!$W:$W,"否",'2.1-18春夏销售（止18年9月30日）'!$X:$X,"新品")/10000 -> 4.4093 | DD19: =SUM(CT19:DC19) -> 39.0561 | DE19: 292.6582 | DF19: 0.2848421076 | DH19: =SUMIFS('1.1-19春夏新旧品销售（更新）'!$I:$I,'1.1-19春夏新旧品销售（更新）'!$D:$D,运营部分析!$J$1,'1.1-19春夏新旧品销售（更新）'!$A:$A,运营部分析!$B19,'1.1-19春夏新旧品销售（更新）'!$AB:$AB,"新品",'1.1-19春夏新旧品销售（更新）'!$AG:$AG,"是") -> 1171 | DI19: =SUMIFS('1.1-19春夏新旧品销售（更新）'!$S:$S,'1.1-19春夏新旧品销售（更新）'!$D:$D,运营部分析!$J$1,'1.1-19春夏新旧品销售（更新）'!$A:$A,运营部分析!$B19,'1.1-19春夏新旧品销售（更新）'!$AB:$AB,"新品",'1.1-19春夏新旧品销售（更新）'!$AG:$AG,"是")/10000 -> 51.8399 | DJ19: =SUMIFS('1.6-19春夏期货订单（更新）'!$AG:$AG,'1.6-19春夏期货订单（更新）'!$F:$F,运营部分析!$J$1,'1.6-19春夏期货订单（更新）'!$A:$A,运营部分析!$B19,'1.6-19春夏期货订单（更新）'!$AQ:$AQ,"是")+SUMIFS('1.2-19春夏发货（更新）'!$K:$K,'1.2-19春夏发货（更新）'!$A:$A,运营部分析!$B19,'1.2-19春夏发货（更新）'!$Q:$Q,运营部分析!$J$1,'1.2-19春夏发货（更新）'!$T:$T,"当季补货",'1.2-19春夏发货（更新）'!$W:$W,"是")+SUMIFS('1.2-19春夏发货（更新）'!$K:$K,'1.2-19春夏发货（更新）'!$A:$A,运营部分析!$B19,'1.2-19春夏发货（更新）'!$Q:$Q,运营部分析!$J$1,'1.2-19春夏发货（更新）'!$T:$T,"往季补货",'1.2-19春夏发货（更新）'!$W:$W,"是")+SUMIFS('1.3-19春夏调配（更新）'!$P:$P,'1.3-19春夏调配（更新）'!$K:$K,运营部分析!$J$1,'1.3-19春夏调配（更新）'!$A:$A,运营部分析!$B19,'1.3-19春夏调配（更新）'!$AC:$AC,"是",'1.3-19春夏调配（更新）'!$X:$X,"<>已审核")-SUMIFS('1.3-19春夏调配（更新）'!$P:$P,'1.3-19春夏调配（更新）'!$G:$G,运营部分析!$J$1,'1.3-19春夏调配（更新）'!$A:$A,运营部分析!$B19,'1.3-19春夏调配（更新）'!$AC:$AC,"是",'1.3-19春夏调配（更新）'!$X:$X,"<>已审核") -> 6639 | DK19: =SUMIFS('1.6-19春夏期货订单（更新）'!$AN:$AN,'1.6-19春夏期货订单（更新）'!$F:$F,运营部分析!$J$1,'1.6-19春夏期货订单（更新）'!$A:$A,运营部分析!$B19,'1.6-19春夏期货订单（更新）'!$AQ:$AQ,"是")/10000+SUMIFS('1.2-19春夏发货（更新）'!$U:$U,'1.2-19春夏发货（更新）'!$A:$A,运营部分析!$B19,'1.2-19春夏发货（更新）'!$Q:$Q,运营部分析!$J$1,'1.2-19春夏发货（更新）'!$T:$T,"当季补货",'1.2-19春夏发货（更新）'!$W:$W,"是")/10000+SUMIFS('1.2-19春夏发货（更新）'!$U:$U,'1.2-19春夏发货（更新）'!$A:$A,运营部分析!$B19,'1.2-19春夏发货（更新）'!$Q:$Q,运营部分析!$J$1,'1.2-19春夏发货（更新）'!$T:$T,"往季补货",'1.2-19春夏发货（更新）'!$W:$W,"是")/10000+SUMIFS('1.3-19春夏调配（更新）'!$AA:$AA,'1.3-19春夏调配（更新）'!$K:$K,运营部分析!$J$1,'1.3-19春夏调配（更新）'!$A:$A,运营部分析!$B19,'1.3-19春夏调配（更新）'!$AC:$AC,"是",'1.3-19春夏调配（更新）'!$X:$X,"<>已审核")/10000-SUMIFS('1.3-19春夏调配（更新）'!$AA:$AA,'1.3-19春夏调配（更新）'!$G:$G,运营部分析!$J$1,'1.3-19春夏调配（更新）'!$A:$A,运营部分析!$B19,'1.3-19春夏调配（更新）'!$AC:$AC,"是",'1.3-19春夏调配（更新）'!$X:$X,"<>已审核")/10000 -> 286.2331 | DM19: 0.0185814398 | DN19: 0.01903735334
A20: 衬衫 | B20: 10 | C20: 正装短衬 | E20: =SUMIFS('1.6-19春夏期货订单（更新）'!$AG:$AG,'1.6-19春夏期货订单（更新）'!$F:$F,运营部分析!$J$1,'1.6-19春夏期货订单（更新）'!$A:$A,运营部分析!$B20)+SUMIFS('1.2-19春夏发货（更新）'!$K:$K,'1.2-19春夏发货（更新）'!$A:$A,运营部分析!$B20,'1.2-19春夏发货（更新）'!$Q:$Q,运营部分析!$J$1,'1.2-19春夏发货（更新）'!$T:$T,"当季补货")+SUMIFS('1.2-19春夏发货（更新）'!$K:$K,'1.2-19春夏发货（更新）'!$A:$A,运营部分析!$B20,'1.2-19春夏发货（更新）'!$Q:$Q,运营部分析!$J$1,'1.2-19春夏发货（更新）'!$T:$T,"往季补货")+SUMIFS('1.3-19春夏调配（更新）'!$P:$P,'1.3-19春夏调配（更新）'!$K:$K,运营部分析!$J$1,'1.3-19春夏调配（更新）'!$A:$A,运营部分析!$B20)-SUMIFS('1.3-19春夏调配（更新）'!$P:$P,'1.3-19春夏调配（更新）'!$G:$G,运营部分析!$J$1,'1.3-19春夏调配（更新）'!$A:$A,运营部分析!$B20,'1.3-19春夏调配（更新）'!$Z:$Z,"是") -> 1363 | F20: =SUMIFS('1.6-19春夏期货订单（更新）'!$AN:$AN,'1.6-19春夏期货订单（更新）'!$F:$F,运营部分析!$J$1,'1.6-19春夏期货订单（更新）'!$A:$A,运营部分析!$B20)/10000+SUMIFS('1.2-19春夏发货（更新）'!$U:$U,'1.2-19春夏发货（更新）'!$A:$A,运营部分析!$B20,'1.2-19春夏发货（更新）'!$Q:$Q,运营部分析!$J$1,'1.2-19春夏发货（更新）'!$T:$T,"当季补货")/10000+SUMIFS('1.2-19春夏发货（更新）'!$U:$U,'1.2-19春夏发货（更新）'!$A:$A,运营部分析!$B20,'1.2-19春夏发货（更新）'!$Q:$Q,运营部分析!$J$1,'1.2-19春夏发货（更新）'!$T:$T,"往季补货")/10000+SUMIFS('1.3-19春夏调配（更新）'!$AA:$AA,'1.3-19春夏调配（更新）'!$K:$K,运营部分析!$J$1,'1.3-19春夏调配（更新）'!$A:$A,运营部分析!$B20)/10000-SUMIFS('1.3-19春夏调配（更新）'!$AA:$AA,'1.3-19春夏调配（更新）'!$G:$G,运营部分析!$J$1,'1.3-19春夏调配（更新）'!$A:$A,运营部分析!$B20,'1.3-19春夏调配（更新）'!$Z:$Z,"是")/10000 -> 41.2687 | G20: =(SUMIFS('2.1-18春夏销售（止18年9月30日）'!$I:$I,'2.1-18春夏销售（止18年9月30日）'!$X:$X,"新品",'2.1-18春夏销售（止18年9月30日）'!$A:$A,运营部分析!$B20,'2.1-18春夏销售（止18年9月30日）'!$D:$D,运营部分析!$J$1)+SUMIFS('2.2--18春夏库存（止18年9月30日）'!$M:$M,'2.2--18春夏库存（止18年9月30日）'!$C:$C,运营部分析!$J$1,'2.2--18春夏库存（止18年9月30日）'!$A:$A,运营部分析!$B20)+SUMIFS('2.4-18春夏冬退货（止18年9月30日）'!$Q:$Q,'2.4-18春夏冬退货（止18年9月30日）'!$D:$D,运营部分析!$J$1,'2.4-18春夏冬退货（止18年9月30日）'!$A:$A,运营部分析!$B20)+SUMIFS('2.3-18春夏调配（止18年9月30日）'!$P:$P,'2.3-18春夏调配（止18年9月30日）'!$G:$G,运营部分析!$J$1,'2.3-18春夏调配（止18年9月30日）'!$A:$A,运营部分析!$B20)) -> 965 | H20: =(SUMIFS('2.1-18春夏销售（止18年9月30日）'!$S:$S,'2.1-18春夏销售（止18年9月30日）'!$X:$X,"新品",'2.1-18春夏销售（止18年9月30日）'!$A:$A,运营部分析!$B20,'2.1-18春夏销售（止18年9月30日）'!$D:$D,运营部分析!$J$1)/10000+SUMIFS('2.2--18春夏库存（止18年9月30日）'!$P:$P,'2.2--18春夏库存（止18年9月30日）'!$C:$C,运营部分析!$J$1,'2.2--18春夏库存（止18年9月30日）'!$A:$A,运营部分析!$B20)/10000+SUMIFS('2.4-18春夏冬退货（止18年9月30日）'!$T:$T,'2.4-18春夏冬退货（止18年9月30日）'!$D:$D,运营部分析!$J$1,'2.4-18春夏冬退货（止18年9月30日）'!$A:$A,运营部分析!$B20)/10000+SUMIFS('2.3-18春夏调配（止18年9月30日）'!$Y:$Y,'2.3-18春夏调配（止18年9月30日）'!$G:$G,运营部分析!$J$1,'2.3-18春夏调配（止18年9月30日）'!$A:$A,运营部分析!$B20)/10000) -> 28.4775 | I20: 0.4124352332 | J20: 0.4491686419 | K20: =SUMIFS('1.1-19春夏新旧品销售（更新）'!$I:$I,'1.1-19春夏新旧品销售（更新）'!$D:$D,运营部分析!$J$1,'1.1-19春夏新旧品销售（更新）'!$A:$A,运营部分析!$B20,'1.1-19春夏新旧品销售（更新）'!$AB:$AB,"新品") -> 203 | L20: =SUMIFS('1.1-19春夏新旧品销售（更新）'!$S:$S,'1.1-19春夏新旧品销售（更新）'!$D:$D,运营部分析!$J$1,'1.1-19春夏新旧品销售（更新）'!$A:$A,运营部分析!$B20,'1.1-19春夏新旧品销售（更新）'!$AB:$AB,"新品")/10000 -> 6.1157 | M20: =SUMIFS('2.1-18春夏销售（止18年9月30日）'!$I:$I,'2.1-18春夏销售（止18年9月30日）'!$D:$D,运营部分析!$J$1,'2.1-18春夏销售（止18年9月30日）'!$A:$A,运营部分析!$B20,'2.1-18春夏销售（止18年9月30日）'!$X:$X,"新品",'2.1-18春夏销售（止18年9月30日）'!$T:$T,"同期销售") -> 198 | N20: =SUMIFS('2.1-18春夏销售（止18年9月30日）'!$S:$S,'2.1-18春夏销售（止18年9月30日）'!$D:$D,运营部分析!$J$1,'2.1-18春夏销售（止18年9月30日）'!$A:$A,运营部分析!$B20,'2.1-18春夏销售（止18年9月30日）'!$X:$X,"新品",'2.1-18春夏销售（止18年9月30日）'!$T:$T,"同期销售")/10000 -> 5.8132 | O20: 0.02525252525 | P20: 0.05203674396 | Q20: =SUMIFS('2.1-18春夏销售（止18年9月30日）'!$I:$I,'2.1-18春夏销售（止18年9月30日）'!$D:$D,运营部分析!$J$1,'2.1-18春夏销售（止18年9月30日）'!$A:$A,运营部分析!$B20,'2.1-18春夏销售（止18年9月30日）'!$X:$X,"新品") -> 549 | R20: =SUMIFS('2.1-18春夏销售（止18年9月30日）'!$S:$S,'2.1-18春夏销售（止18年9月30日）'!$D:$D,运营部分析!$J$1,'2.1-18春夏销售（止18年9月30日）'!$A:$A,运营部分析!$B20,'2.1-18春夏销售（止18年9月30日）'!$X:$X,"新品")/10000 -> 16.0591 | S20: =SUMIFS('1.5-19春夏新旧品库存（更新）'!$BF:$BF,'1.5-19春夏新旧品库存（更新）'!$B:$B,运营部分析!$J$1,'1.5-19春夏新旧品库存（更新）'!$E:$E,运营部分析!$B20,'1.5-19春夏新旧品库存（更新）'!$BI:$BI,"新品") -> 1123 | T20: =SUMIFS('1.5-19春夏新旧品库存（更新）'!$BG:$BG,'1.5-19春夏新旧品库存（更新）'!$B:$B,运营部分析!$J$1,'1.5-19春夏新旧品库存（更新）'!$E:$E,运营部分析!$B20,'1.5-19春夏新旧品库存（更新）'!$BI:$BI,"新品")/10000 -> 34.0497 | U20: =(SUMIFS('2.2--18春夏库存（止18年9月30日）'!$M:$M,'2.2--18春夏库存（止18年9月30日）'!$C:$C,运营部分析!$J$1,'2.2--18春夏库存（止18年9月30日）'!$A:$A,运营部分析!$B20)) -> 247 | V20: =(SUMIFS('2.2--18春夏库存（止18年9月30日）'!$P:$P,'2.2--18春夏库存（止18年9月30日）'!$C:$C,运营部分析!$J$1,'2.2--18春夏库存（止18年9月30日）'!$A:$A,运营部分析!$B20))/10000 -> 7.4103 | W20: 3.546558704 | X20: 3.594915186 | Y20: 0.164756447 | Z20: 0.1625772519 | AA20: =SUMIFS('2.3-18春夏调配（止18年9月30日）'!$P:$P,'2.3-18春夏调配（止18年9月30日）'!$G:$G,运营部分析!$J$1,'2.3-18春夏调配（止18年9月30日）'!$A:$A,运营部分析!$B20,'2.3-18春夏调配（止18年9月30日）'!$Z:$Z,"否",'2.3-18春夏调配（止18年9月30日）'!$AA:$AA,"是") -> 15 | AB20: =SUMIFS('2.3-18春夏调配（止18年9月30日）'!$Y:$Y,'2.3-18春夏调配（止18年9月30日）'!$G:$G,运营部分析!$J$1,'2.3-18春夏调配（止18年9月30日）'!$A:$A,运营部分析!$B20,'2.3-18春夏调配（止18年9月30日）'!$Z:$Z,"否",'2.3-18春夏调配（止18年9月30日）'!$AA:$AA,"是")/10000 -> 0.4725 | AC20: =SUMIFS('2.3-18春夏调配（止18年9月30日）'!$P:$P,'2.3-18春夏调配（止18年9月30日）'!$G:$G,运营部分析!$J$1,'2.3-18春夏调配（止18年9月30日）'!$A:$A,运营部分析!$B20,'2.3-18春夏调配（止18年9月30日）'!$Z:$Z,"是",'2.3-18春夏调配（止18年9月30日）'!$AA:$AA,"是") -> 5 | AD20: =SUMIFS('2.3-18春夏调配（止18年9月30日）'!$Y:$Y,'2.3-18春夏调配（止18年9月30日）'!$G:$G,运营部分析!$J$1,'2.3-18春夏调配（止18年9月30日）'!$A:$A,运营部分析!$B20,'2.3-18春夏调配（止18年9月30日）'!$Z:$Z,"是",'2.3-18春夏调配（止18年9月30日）'!$AA:$AA,"是")/10000 -> 0.1315 | AE20: 0.221875 | AF20: 0.2217491004 | AG20: 0.1941074523 | AH20: 0.1954134424 | AI20: -0.2574357319 | AJ20: -0.2668414364 | AK20: =SUMIFS('2.3-18春夏调配（止18年9月30日）'!$P:$P,'2.3-18春夏调配（止18年9月30日）'!$G:$G,运营部分析!$J$1,'2.3-18春夏调配（止18年9月30日）'!$A:$A,运营部分析!$B20,'2.3-18春夏调配（止18年9月30日）'!$Z:$Z,"否") -> 121 | AL20: =SUMIFS('2.3-18春夏调配（止18年9月30日）'!$Y:$Y,'2.3-18春夏调配（止18年9月30日）'!$G:$G,运营部分析!$J$1,'2.3-18春夏调配（止18年9月30日）'!$A:$A,运营部分析!$B20,'2.3-18春夏调配（止18年9月30日）'!$Z:$Z,"否")/10000 -> 3.6929 | AM20: =SUMIFS('2.3-18春夏调配（止18年9月30日）'!$P:$P,'2.3-18春夏调配（止18年9月30日）'!$G:$G,运营部分析!$J$1,'2.3-18春夏调配（止18年9月30日）'!$A:$A,运营部分析!$B20,'2.3-18春夏调配（止18年9月30日）'!$Z:$Z,"是") -> 48 | AN20: =SUMIFS('2.3-18春夏调配（止18年9月30日）'!$Y:$Y,'2.3-18春夏调配（止18年9月30日）'!$G:$G,运营部分析!$J$1,'2.3-18春夏调配（止18年9月30日）'!$A:$A,运营部分析!$B20,'2.3-18春夏调配（止18年9月30日）'!$Z:$Z,"是")/10000 -> 1.3152 | AO20: 0.7306434024 | AP20: 0.7271843695 | AQ20: =SUMIFS('1.2-19春夏发货（更新）'!$K:$K,'1.2-19春夏发货（更新）'!$A:$A,运营部分析!$B20,'1.2-19春夏发货（更新）'!Q:Q,运营部分析!$J$1) -> 1330 | AR20: 0.9757887014 | AS20: 33 | AT20: 1355 | AU20: =SUMIFS('1.6-19春夏期货订单（更新）'!$AP:$AP,'1.6-19春夏期货订单（更新）'!$A:$A,运营部分析!$B20,'1.6-19春夏期货订单（更新）'!$F:$F,运营部分析!$J$1) -> 14 | AV20: =SUMIFS('1.1-19春夏新旧品销售（更新）'!$X:$X,'1.1-19春夏新旧品销售（更新）'!$A:$A,运营部分析!$B20,'1.1-19春夏新旧品销售（更新）'!D:D,运营部分析!$J$1,'1.1-19春夏新旧品销售（更新）'!$U:$U,"月",'1.1-19春夏新旧品销售（更新）'!$AH:$AH,"新品") -> 11 | AW20: =SUMIFS('1.5-19春夏新旧品库存（更新）'!$BM:$BM,'1.5-19春夏新旧品库存（更新）'!$E:$E,运营部分析!$B20,'1.5-19春夏新旧品库存（更新）'!$B:$B,运营部分析!$J$1,'1.5-19春夏新旧品库存（更新）'!$BI:$BI,"新品") -> 17 | AX20: 0.6470588235 | AY20: 13.36904762 | AZ20: =SUMIFS('1.1-19春夏新旧品销售（更新）'!$I:$I,'1.1-19春夏新旧品销售（更新）'!$A:$A,运营部分析!$B20,'1.1-19春夏新旧品销售（更新）'!$U:$U,"月",'1.1-19春夏新旧品销售（更新）'!$D:$D,运营部分析!$J$1,'1.1-19春夏新旧品销售（更新）'!$AH:$AH,"新品") -> 84 | BA20: =SUMIFS('1.1-19春夏新旧品销售（更新）'!$J:$J,'1.1-19春夏新旧品销售（更新）'!$A:$A,运营部分析!$B20,'1.1-19春夏新旧品销售（更新）'!$U:$U,"月",'1.1-19春夏新旧品销售（更新）'!$D:$D,运营部分析!$J$1,'1.1-19春夏新旧品销售（更新）'!$AH:$AH,"新品")/10000 -> 1.9294 | BB20: =SUMIFS('1.1-19春夏新旧品销售（更新）'!$K:$K,'1.1-19春夏新旧品销售（更新）'!$A:$A,运营部分析!$B20,'1.1-19春夏新旧品销售（更新）'!$U:$U,"月",'1.1-19春夏新旧品销售（更新）'!$D:$D,运营部分析!$J$1,'1.1-19春夏新旧品销售（更新）'!$AH:$AH,"新品")/10000 -> 2.9096 | BC20: =SUMIFS('1.1-19春夏新旧品销售（更新）'!$S:$S,'1.1-19春夏新旧品销售（更新）'!$A:$A,运营部分析!$B20,'1.1-19春夏新旧品销售（更新）'!$U:$U,"月",'1.1-19春夏新旧品销售（更新）'!$D:$D,运营部分析!$J$1,'1.1-19春夏新旧品销售（更新）'!$AH:$AH,"新品")/10000 -> 2.5316 | BD20: 1.149312688 | BE20: 229.6904762 | BF20: 0.7621267183 | BG20: =SUMIFS('2.1-18春夏销售（止18年9月30日）'!$J:$J,'2.1-18春夏销售（止18年9月30日）'!$A:$A,运营部分析!$B20,'2.1-18春夏销售（止18年9月30日）'!$D:$D,运营部分析!$J$1,'2.1-18春夏销售（止18年9月30日）'!$U:$U,"月",'2.1-18春夏销售（止18年9月30日）'!$X:$X,"新品")/10000 -> 2.2124 | BH20: =SUMIFS('2.1-18春夏销售（止18年9月30日）'!$S:$S,'2.1-18春夏销售（止18年9月30日）'!$A:$A,运营部分析!$B20,'2.1-18春夏销售（止18年9月30日）'!$D:$D,运营部分析!$J$1,'2.1-18春夏销售（止18年9月30日）'!$U:$U,"月",'2.1-18春夏销售（止18年9月30日）'!$X:$X,"新品")/10000 -> 2.7369 | BI20: 0.8083598232 | BJ20: =SUMIFS('1.1-19春夏新旧品销售（更新）'!$J:$J,'1.1-19春夏新旧品销售（更新）'!$A:$A,运营部分析!$B20,'1.1-19春夏新旧品销售（更新）'!$D:$D,运营部分析!$J$1,'1.1-19春夏新旧品销售（更新）'!$T:$T,"本周",'1.1-19春夏新旧品销售（更新）'!$AH:$AH,"新品")/10000 -> 0.4096 | BK20: =SUMIFS('1.1-19春夏新旧品销售（更新）'!$S:$S,'1.1-19春夏新旧品销售（更新）'!$A:$A,运营部分析!$B20,'1.1-19春夏新旧品销售（更新）'!$D:$D,运营部分析!$J$1,'1.1-19春夏新旧品销售（更新）'!$T:$T,"本周",'1.1-19春夏新旧品销售（更新）'!$AH:$AH,"新品")/10000 -> 0.5392 | BL20: 0.7596439169 | BM20: 0.03163446844 | BN20: -0.01309396606 | BO20: =SUMIFS('1.1-19春夏新旧品销售（更新）'!$I:$I,'1.1-19春夏新旧品销售（更新）'!$A:$A,运营部分析!#REF!,'1.1-19春夏新旧品销售（更新）'!$D:$D,运营部分析!$J$1,'1.1-19春夏新旧品销售（更新）'!$T:$T,"上上周",'1.1-19春夏新旧品销售（更新）'!$AH:$AH,"新品") -> 0 | BP20: =SUMIFS('1.1-19春夏新旧品销售（更新）'!$I:$I,'1.1-19春夏新旧品销售（更新）'!$A:$A,运营部分析!$B19,'1.1-19春夏新旧品销售（更新）'!$D:$D,运营部分析!$J$1,'1.1-19春夏新旧品销售（更新）'!$T:$T,"上周",'1.1-19春夏新旧品销售（更新）'!$AH:$AH,"新品") -> 157 | BQ20: =SUMIFS('1.1-19春夏新旧品销售（更新）'!$I:$I,'1.1-19春夏新旧品销售（更新）'!$A:$A,运营部分析!$B19,'1.1-19春夏新旧品销售（更新）'!$D:$D,运营部分析!$J$1,'1.1-19春夏新旧品销售（更新）'!$T:$T,"本周",'1.1-19春夏新旧品销售（更新）'!$AH:$AH,"新品") -> 169 | BR20: =SUMIFS('1.1-19春夏新旧品销售（更新）'!$I:$I,'1.1-19春夏新旧品销售（更新）'!$A:$A,运营部分析!$B20,'1.1-19春夏新旧品销售（更新）'!$D:$D,运营部分析!$J$1,'1.1-19春夏新旧品销售（更新）'!$U:$U,"月",'1.1-19春夏新旧品销售（更新）'!$AH:$AH,"新品") -> 84 | BS20: 0 | BT20: 0.07643312102 | BU20: 0.438961039 | BV20: 0.0447284345 | CA20: =SUMIFS('1.3-19春夏调配（更新）'!$AA:$AA,'1.3-19春夏调配（更新）'!$K:$K,运营部分析!$J$1,'1.3-19春夏调配（更新）'!$A:$A,运营部分析!$B20,'1.3-19春夏调配（更新）'!$X:$X,"<>已审核")/10000 -> 1.1465 | CB20: =SUMIFS('1.3-19春夏调配（更新）'!$AA:$AA,'1.3-19春夏调配（更新）'!$G:$G,运营部分析!$J$1,'1.3-19春夏调配（更新）'!$A:$A,运营部分析!$B20,'1.3-19春夏调配（更新）'!$Z:$Z,"是",'1.3-19春夏调配（更新）'!$X:$X,"<>已审核")/10000 -> 0.0538 | CC20: =SUMIFS('1.3-19春夏调配（更新）'!$AA:$AA,'1.3-19春夏调配（更新）'!$G:$G,运营部分析!$J$1,'1.3-19春夏调配（更新）'!$A:$A,运营部分析!$B20,'1.3-19春夏调配（更新）'!$Z:$Z,"否",'1.3-19春夏调配（更新）'!$X:$X,"<>已审核")/10000 -> 0.7713 | CD20: =SUMIFS('1.3-19春夏调配（更新）'!$P:$P,'1.3-19春夏调配（更新）'!$K:$K,运营部分析!$J$1,'1.3-19春夏调配（更新）'!$A:$A,运营部分析!$B20,'1.3-19春夏调配（更新）'!$X:$X,"<>已审核") -> 35 | CE20: =SUMIFS('1.3-19春夏调配（更新）'!$P:$P,'1.3-19春夏调配（更新）'!$G:$G,运营部分析!$J$1,'1.3-19春夏调配（更新）'!$A:$A,运营部分析!$B20,'1.3-19春夏调配（更新）'!$Z:$Z,"是",'1.3-19春夏调配（更新）'!$X:$X,"<>已审核") -> 2 | CF20: =SUMIFS('1.3-19春夏调配（更新）'!$P:$P,'1.3-19春夏调配（更新）'!$G:$G,运营部分析!$J$1,'1.3-19春夏调配（更新）'!$A:$A,运营部分析!$B20,'1.3-19春夏调配（更新）'!$Z:$Z,"否",'1.3-19春夏调配（更新）'!$X:$X,"<>已审核") -> 27 | CG20: =SUMIFS('2.1-18春夏销售（止18年9月30日）'!$I:$I,'2.1-18春夏销售（止18年9月30日）'!$D:$D,运营部分析!$J$1,'2.1-18春夏销售（止18年9月30日）'!$V:$V,运营部分析!CG$4,'2.1-18春夏销售（止18年9月30日）'!$A:$A,运营部分析!$B20,'2.1-18春夏销售（止18年9月30日）'!$W:$W,"否",'2.1-18春夏销售（止18年9月30日）'!$X:$X,"新品") -> 0 | CH20: =SUMIFS('2.1-18春夏销售（止18年9月30日）'!$I:$I,'2.1-18春夏销售（止18年9月30日）'!$D:$D,运营部分析!$J$1,'2.1-18春夏销售（止18年9月30日）'!$V:$V,运营部分析!CH$4,'2.1-18春夏销售（止18年9月30日）'!$A:$A,运营部分析!$B20,'2.1-18春夏销售（止18年9月30日）'!$W:$W,"否",'2.1-18春夏销售（止18年9月30日）'!$X:$X,"新品") -> 0 | CI20: =SUMIFS('2.1-18春夏销售（止18年9月30日）'!$I:$I,'2.1-18春夏销售（止18年9月30日）'!$D:$D,运营部分析!$J$1,'2.1-18春夏销售（止18年9月30日）'!$V:$V,运营部分析!CI$4,'2.1-18春夏销售（止18年9月30日）'!$A:$A,运营部分析!$B20,'2.1-18春夏销售（止18年9月30日）'!$W:$W,"否",'2.1-18春夏销售（止18年9月30日）'!$X:$X,"新品") -> 0 | CJ20: =SUMIFS('2.1-18春夏销售（止18年9月30日）'!$I:$I,'2.1-18春夏销售（止18年9月30日）'!$D:$D,运营部分析!$J$1,'2.1-18春夏销售（止18年9月30日）'!$V:$V,运营部分析!CJ$4,'2.1-18春夏销售（止18年9月30日）'!$A:$A,运营部分析!$B20,'2.1-18春夏销售（止18年9月30日）'!$W:$W,"否",'2.1-18春夏销售（止18年9月30日）'!$X:$X,"新品") -> 0 | CK20: =SUMIFS('2.1-18春夏销售（止18年9月30日）'!$I:$I,'2.1-18春夏销售（止18年9月30日）'!$D:$D,运营部分析!$J$1,'2.1-18春夏销售（止18年9月30日）'!$V:$V,运营部分析!CK$4,'2.1-18春夏销售（止18年9月30日）'!$A:$A,运营部分析!$B20,'2.1-18春夏销售（止18年9月30日）'!$W:$W,"否",'2.1-18春夏销售（止18年9月30日）'!$X:$X,"新品") -> 0 | CL20: =SUMIFS('2.1-18春夏销售（止18年9月30日）'!$I:$I,'2.1-18春夏销售（止18年9月30日）'!$D:$D,运营部分析!$J$1,'2.1-18春夏销售（止18年9月30日）'!$V:$V,运营部分析!CL$4,'2.1-18春夏销售（止18年9月30日）'!$A:$A,运营部分析!$B20,'2.1-18春夏销售（止18年9月30日）'!$W:$W,"否",'2.1-18春夏销售（止18年9月30日）'!$X:$X,"新品") -> 0 | CM20: =SUMIFS('2.1-18春夏销售（止18年9月30日）'!$I:$I,'2.1-18春夏销售（止18年9月30日）'!$D:$D,运营部分析!$J$1,'2.1-18春夏销售（止18年9月30日）'!$V:$V,运营部分析!CM$4,'2.1-18春夏销售（止18年9月30日）'!$A:$A,运营部分析!$B20,'2.1-18春夏销售（止18年9月30日）'!$W:$W,"否",'2.1-18春夏销售（止18年9月30日）'!$X:$X,"新品") -> 86 | CN20: =SUMIFS('2.1-18春夏销售（止18年9月30日）'!$I:$I,'2.1-18春夏销售（止18年9月30日）'!$D:$D,运营部分析!$J$1,'2.1-18春夏销售（止18年9月30日）'!$V:$V,运营部分析!CN$4,'2.1-18春夏销售（止18年9月30日）'!$A:$A,运营部分析!$B20,'2.1-18春夏销售（止18年9月30日）'!$W:$W,"否",'2.1-18春夏销售（止18年9月30日）'!$X:$X,"新品") -> 139 | CO20: =SUMIFS('2.1-18春夏销售（止18年9月30日）'!$I:$I,'2.1-18春夏销售（止18年9月30日）'!$D:$D,运营部分析!$J$1,'2.1-18春夏销售（止18年9月30日）'!$V:$V,运营部分析!CO$4,'2.1-18春夏销售（止18年9月30日）'!$A:$A,运营部分析!$B20,'2.1-18春夏销售（止18年9月30日）'!$W:$W,"否",'2.1-18春夏销售（止18年9月30日）'!$X:$X,"新品") -> 81 | CP20: =SUMIFS('2.1-18春夏销售（止18年9月30日）'!$I:$I,'2.1-18春夏销售（止18年9月30日）'!$D:$D,运营部分析!$J$1,'2.1-18春夏销售（止18年9月30日）'!$V:$V,运营部分析!CP$4,'2.1-18春夏销售（止18年9月30日）'!$A:$A,运营部分析!$B20,'2.1-18春夏销售（止18年9月30日）'!$W:$W,"否",'2.1-18春夏销售（止18年9月30日）'!$X:$X,"新品") -> 45 | CQ20: =SUM(CG20:CP20) -> 351 | CR20: 805 | CS20: 0.4161891117 | CT20: =SUMIFS('2.1-18春夏销售（止18年9月30日）'!$S:$S,'2.1-18春夏销售（止18年9月30日）'!$D:$D,运营部分析!$J$1,'2.1-18春夏销售（止18年9月30日）'!$V:$V,运营部分析!CT$4,'2.1-18春夏销售（止18年9月30日）'!$A:$A,运营部分析!$B20,'2.1-18春夏销售（止18年9月30日）'!$W:$W,"否",'2.1-18春夏销售（止18年9月30日）'!$X:$X,"新品")/10000 -> 0 | CU20: =SUMIFS('2.1-18春夏销售（止18年9月30日）'!$S:$S,'2.1-18春夏销售（止18年9月30日）'!$D:$D,运营部分析!$J$1,'2.1-18春夏销售（止18年9月30日）'!$V:$V,运营部分析!CU$4,'2.1-18春夏销售（止18年9月30日）'!$A:$A,运营部分析!$B20,'2.1-18春夏销售（止18年9月30日）'!$W:$W,"否",'2.1-18春夏销售（止18年9月30日）'!$X:$X,"新品")/10000 -> 0 | CV20: =SUMIFS('2.1-18春夏销售（止18年9月30日）'!$S:$S,'2.1-18春夏销售（止18年9月30日）'!$D:$D,运营部分析!$J$1,'2.1-18春夏销售（止18年9月30日）'!$V:$V,运营部分析!CV$4,'2.1-18春夏销售（止18年9月30日）'!$A:$A,运营部分析!$B20,'2.1-18春夏销售（止18年9月30日）'!$W:$W,"否",'2.1-18春夏销售（止18年9月30日）'!$X:$X,"新品")/10000 -> 0 | CW20: =SUMIFS('2.1-18春夏销售（止18年9月30日）'!$S:$S,'2.1-18春夏销售（止18年9月30日）'!$D:$D,运营部分析!$J$1,'2.1-18春夏销售（止18年9月30日）'!$V:$V,运营部分析!CW$4,'2.1-18春夏销售（止18年9月30日）'!$A:$A,运营部分析!$B20,'2.1-18春夏销售（止18年9月30日）'!$W:$W,"否",'2.1-18春夏销售（止18年9月30日）'!$X:$X,"新品")/10000 -> 0 | CX20: =SUMIFS('2.1-18春夏销售（止18年9月30日）'!$S:$S,'2.1-18春夏销售（止18年9月30日）'!$D:$D,运营部分析!$J$1,'2.1-18春夏销售（止18年9月30日）'!$V:$V,运营部分析!CX$4,'2.1-18春夏销售（止18年9月30日）'!$A:$A,运营部分析!$B20,'2.1-18春夏销售（止18年9月30日）'!$W:$W,"否",'2.1-18春夏销售（止18年9月30日）'!$X:$X,"新品")/10000 -> 0 | CY20: =SUMIFS('2.1-18春夏销售（止18年9月30日）'!$S:$S,'2.1-18春夏销售（止18年9月30日）'!$D:$D,运营部分析!$J$1,'2.1-18春夏销售（止18年9月30日）'!$V:$V,运营部分析!CY$4,'2.1-18春夏销售（止18年9月30日）'!$A:$A,运营部分析!$B20,'2.1-18春夏销售（止18年9月30日）'!$W:$W,"否",'2.1-18春夏销售（止18年9月30日）'!$X:$X,"新品")/10000 -> 0 | CZ20: =SUMIFS('2.1-18春夏销售（止18年9月30日）'!$S:$S,'2.1-18春夏销售（止18年9月30日）'!$D:$D,运营部分析!$J$1,'2.1-18春夏销售（止18年9月30日）'!$V:$V,运营部分析!CZ$4,'2.1-18春夏销售（止18年9月30日）'!$A:$A,运营部分析!$B20,'2.1-18春夏销售（止18年9月30日）'!$W:$W,"否",'2.1-18春夏销售（止18年9月30日）'!$X:$X,"新品")/10000 -> 2.5084 | DA20: =SUMIFS('2.1-18春夏销售（止18年9月30日）'!$S:$S,'2.1-18春夏销售（止18年9月30日）'!$D:$D,运营部分析!$J$1,'2.1-18春夏销售（止18年9月30日）'!$V:$V,运营部分析!DA$4,'2.1-18春夏销售（止18年9月30日）'!$A:$A,运营部分析!$B20,'2.1-18春夏销售（止18年9月30日）'!$W:$W,"否",'2.1-18春夏销售（止18年9月30日）'!$X:$X,"新品")/10000 -> 4.1171 | DB20: =SUMIFS('2.1-18春夏销售（止18年9月30日）'!$S:$S,'2.1-18春夏销售（止18年9月30日）'!$D:$D,运营部分析!$J$1,'2.1-18春夏销售（止18年9月30日）'!$V:$V,运营部分析!DB$4,'2.1-18春夏销售（止18年9月30日）'!$A:$A,运营部分析!$B20,'2.1-18春夏销售（止18年9月30日）'!$W:$W,"否",'2.1-18春夏销售（止18年9月30日）'!$X:$X,"新品")/10000 -> 2.2889 | DC20: =SUMIFS('2.1-18春夏销售（止18年9月30日）'!$S:$S,'2.1-18春夏销售（止18年9月30日）'!$D:$D,运营部分析!$J$1,'2.1-18春夏销售（止18年9月30日）'!$V:$V,运营部分析!DC$4,'2.1-18春夏销售（止18年9月30日）'!$A:$A,运营部分析!$B20,'2.1-18春夏销售（止18年9月30日）'!$W:$W,"否",'2.1-18春夏销售（止18年9月30日）'!$X:$X,"新品")/10000 -> 1.3315 | DD20: =SUM(CT20:DC20) -> 10.2459 | DE20: 25.2285 | DF20: 0.4044460287 | DH20: =SUMIFS('1.1-19春夏新旧品销售（更新）'!$I:$I,'1.1-19春夏新旧品销售（更新）'!$D:$D,运营部分析!$J$1,'1.1-19春夏新旧品销售（更新）'!$A:$A,运营部分析!$B20,'1.1-19春夏新旧品销售（更新）'!$AB:$AB,"新品",'1.1-19春夏新旧品销售（更新）'!$AG:$AG,"是") -> 112 | DI20: =SUMIFS('1.1-19春夏新旧品销售（更新）'!$S:$S,'1.1-19春夏新旧品销售（更新）'!$D:$D,运营部分析!$J$1,'1.1-19春夏新旧品销售（更新）'!$A:$A,运营部分析!$B20,'1.1-19春夏新旧品销售（更新）'!$AB:$AB,"新品",'1.1-19春夏新旧品销售（更新）'!$AG:$AG,"是")/10000 -> 3.3258 | DJ20: =SUMIFS('1.6-19春夏期货订单（更新）'!$AG:$AG,'1.6-19春夏期货订单（更新）'!$F:$F,运营部分析!$J$1,'1.6-19春夏期货订单（更新）'!$A:$A,运营部分析!$B20,'1.6-19春夏期货订单（更新）'!$AQ:$AQ,"是")+SUMIFS('1.2-19春夏发货（更新）'!$K:$K,'1.2-19春夏发货（更新）'!$A:$A,运营部分析!$B20,'1.2-19春夏发货（更新）'!$Q:$Q,运营部分析!$J$1,'1.2-19春夏发货（更新）'!$T:$T,"当季补货",'1.2-19春夏发货（更新）'!$W:$W,"是")+SUMIFS('1.2-19春夏发货（更新）'!$K:$K,'1.2-19春夏发货（更新）'!$A:$A,运营部分析!$B20,'1.2-19春夏发货（更新）'!$Q:$Q,运营部分析!$J$1,'1.2-19春夏发货（更新）'!$T:$T,"往季补货",'1.2-19春夏发货（更新）'!$W:$W,"是")+SUMIFS('1.3-19春夏调配（更新）'!$P:$P,'1.3-19春夏调配（更新）'!$K:$K,运营部分析!$J$1,'1.3-19春夏调配（更新）'!$A:$A,运营部分析!$B20,'1.3-19春夏调配（更新）'!$AC:$AC,"是",'1.3-19春夏调配（更新）'!$X:$X,"<>已审核")-SUMIFS('1.3-19春夏调配（更新）'!$P:$P,'1.3-19春夏调配（更新）'!$G:$G,运营部分析!$J$1,'1.3-19春夏调配（更新）'!$A:$A,运营部分析!$B20,'1.3-19春夏调配（更新）'!$AC:$AC,"是",'1.3-19春夏调配（更新）'!$X:$X,"<>已审核") -> 577 | DK20: =SUMIFS('1.6-19春夏期货订单（更新）'!$AN:$AN,'1.6-19春夏期货订单（更新）'!$F:$F,运营部分析!$J$1,'1.6-19春夏期货订单（更新）'!$A:$A,运营部分析!$B20,'1.6-19春夏期货订单（更新）'!$AQ:$AQ,"是")/10000+SUMIFS('1.2-19春夏发货（更新）'!$U:$U,'1.2-19春夏发货（更新）'!$A:$A,运营部分析!$B20,'1.2-19春夏发货（更新）'!$Q:$Q,运营部分析!$J$1,'1.2-19春夏发货（更新）'!$T:$T,"当季补货",'1.2-19春夏发货（更新）'!$W:$W,"是")/10000+SUMIFS('1.2-19春夏发货（更新）'!$U:$U,'1.2-19春夏发货（更新）'!$A:$A,运营部分析!$B20,'1.2-19春夏发货（更新）'!$Q:$Q,运营部分析!$J$1,'1.2-19春夏发货（更新）'!$T:$T,"往季补货",'1.2-19春夏发货（更新）'!$W:$W,"是")/10000+SUMIFS('1.3-19春夏调配（更新）'!$AA:$AA,'1.3-19春夏调配（更新）'!$K:$K,运营部分析!$J$1,'1.3-19春夏调配（更新）'!$A:$A,运营部分析!$B20,'1.3-19春夏调配（更新）'!$AC:$AC,"是",'1.3-19春夏调配（更新）'!$X:$X,"<>已审核")/10000-SUMIFS('1.3-19春夏调配（更新）'!$AA:$AA,'1.3-19春夏调配（更新）'!$G:$G,运营部分析!$J$1,'1.3-19春夏调配（更新）'!$A:$A,运营部分析!$B20,'1.3-19春夏调配（更新）'!$AC:$AC,"是",'1.3-19春夏调配（更新）'!$X:$X,"<>已审核")/10000 -> 17.0193 | DM20: 0.01934097421 | DN20: 0.01820761353
B21: 12 | C21: 休闲短衬 | E21: =SUMIFS('1.6-19春夏期货订单（更新）'!$AG:$AG,'1.6-19春夏期货订单（更新）'!$F:$F,运营部分析!$J$1,'1.6-19春夏期货订单（更新）'!$A:$A,运营部分析!$B21)+SUMIFS('1.2-19春夏发货（更新）'!$K:$K,'1.2-19春夏发货（更新）'!$A:$A,运营部分析!$B21,'1.2-19春夏发货（更新）'!$Q:$Q,运营部分析!$J$1,'1.2-19春夏发货（更新）'!$T:$T,"当季补货")+SUMIFS('1.2-19春夏发货（更新）'!$K:$K,'1.2-19春夏发货（更新）'!$A:$A,运营部分析!$B21,'1.2-19春夏发货（更新）'!$Q:$Q,运营部分析!$J$1,'1.2-19春夏发货（更新）'!$T:$T,"往季补货")+SUMIFS('1.3-19春夏调配（更新）'!$P:$P,'1.3-19春夏调配（更新）'!$K:$K,运营部分析!$J$1,'1.3-19春夏调配（更新）'!$A:$A,运营部分析!$B21)-SUMIFS('1.3-19春夏调配（更新）'!$P:$P,'1.3-19春夏调配（更新）'!$G:$G,运营部分析!$J$1,'1.3-19春夏调配（更新）'!$A:$A,运营部分析!$B21,'1.3-19春夏调配（更新）'!$Z:$Z,"是") -> 3938 | F21: =SUMIFS('1.6-19春夏期货订单（更新）'!$AN:$AN,'1.6-19春夏期货订单（更新）'!$F:$F,运营部分析!$J$1,'1.6-19春夏期货订单（更新）'!$A:$A,运营部分析!$B21)/10000+SUMIFS('1.2-19春夏发货（更新）'!$U:$U,'1.2-19春夏发货（更新）'!$A:$A,运营部分析!$B21,'1.2-19春夏发货（更新）'!$Q:$Q,运营部分析!$J$1,'1.2-19春夏发货（更新）'!$T:$T,"当季补货")/10000+SUMIFS('1.2-19春夏发货（更新）'!$U:$U,'1.2-19春夏发货（更新）'!$A:$A,运营部分析!$B21,'1.2-19春夏发货（更新）'!$Q:$Q,运营部分析!$J$1,'1.2-19春夏发货（更新）'!$T:$T,"往季补货")/10000+SUMIFS('1.3-19春夏调配（更新）'!$AA:$AA,'1.3-19春夏调配（更新）'!$K:$K,运营部分析!$J$1,'1.3-19春夏调配（更新）'!$A:$A,运营部分析!$B21)/10000-SUMIFS('1.3-19春夏调配（更新）'!$AA:$AA,'1.3-19春夏调配（更新）'!$G:$G,运营部分析!$J$1,'1.3-19春夏调配（更新）'!$A:$A,运营部分析!$B21,'1.3-19春夏调配（更新）'!$Z:$Z,"是")/10000 -> 137.9992 | G21: =(SUMIFS('2.1-18春夏销售（止18年9月30日）'!$I:$I,'2.1-18春夏销售（止18年9月30日）'!$X:$X,"新品",'2.1-18春夏销售（止18年9月30日）'!$A:$A,运营部分析!$B21,'2.1-18春夏销售（止18年9月30日）'!$D:$D,运营部分析!$J$1)+SUMIFS('2.2--18春夏库存（止18年9月30日）'!$M:$M,'2.2--18春夏库存（止18年9月30日）'!$C:$C,运营部分析!$J$1,'2.2--18春夏库存（止18年9月30日）'!$A:$A,运营部分析!$B21)+SUMIFS('2.4-18春夏冬退货（止18年9月30日）'!$Q:$Q,'2.4-18春夏冬退货（止18年9月30日）'!$D:$D,运营部分析!$J$1,'2.4-18春夏冬退货（止18年9月30日）'!$A:$A,运营部分析!$B21)+SUMIFS('2.3-18春夏调配（止18年9月30日）'!$P:$P,'2.3-18春夏调配（止18年9月30日）'!$G:$G,运营部分析!$J$1,'2.3-18春夏调配（止18年9月30日）'!$A:$A,运营部分析!$B21)) -> 4067 | H21: =(SUMIFS('2.1-18春夏销售（止18年9月30日）'!$S:$S,'2.1-18春夏销售（止18年9月30日）'!$X:$X,"新品",'2.1-18春夏销售（止18年9月30日）'!$A:$A,运营部分析!$B21,'2.1-18春夏销售（止18年9月30日）'!$D:$D,运营部分析!$J$1)/10000+SUMIFS('2.2--18春夏库存（止18年9月30日）'!$P:$P,'2.2--18春夏库存（止18年9月30日）'!$C:$C,运营部分析!$J$1,'2.2--18春夏库存（止18年9月30日）'!$A:$A,运营部分析!$B21)/10000+SUMIFS('2.4-18春夏冬退货（止18年9月30日）'!$T:$T,'2.4-18春夏冬退货（止18年9月30日）'!$D:$D,运营部分析!$J$1,'2.4-18春夏冬退货（止18年9月30日）'!$A:$A,运营部分析!$B21)/10000+SUMIFS('2.3-18春夏调配（止18年9月30日）'!$Y:$Y,'2.3-18春夏调配（止18年9月30日）'!$G:$G,运营部分析!$J$1,'2.3-18春夏调配（止18年9月30日）'!$A:$A,运营部分析!$B21)/10000) -> 125.1973 | I21: -0.03171871158 | J21: 0.1022538026 | K21: =SUMIFS('1.1-19春夏新旧品销售（更新）'!$I:$I,'1.1-19春夏新旧品销售（更新）'!$D:$D,运营部分析!$J$1,'1.1-19春夏新旧品销售（更新）'!$A:$A,运营部分析!$B21,'1.1-19春夏新旧品销售（更新）'!$AB:$AB,"新品") -> 508 | L21: =SUMIFS('1.1-19春夏新旧品销售（更新）'!$S:$S,'1.1-19春夏新旧品销售（更新）'!$D:$D,运营部分析!$J$1,'1.1-19春夏新旧品销售（更新）'!$A:$A,运营部分析!$B21,'1.1-19春夏新旧品销售（更新）'!$AB:$AB,"新品")/10000 -> 17.8892 | M21: =SUMIFS('2.1-18春夏销售（止18年9月30日）'!$I:$I,'2.1-18春夏销售（止18年9月30日）'!$D:$D,运营部分析!$J$1,'2.1-18春夏销售（止18年9月30日）'!$A:$A,运营部分析!$B21,'2.1-18春夏销售（止18年9月30日）'!$X:$X,"新品",'2.1-18春夏销售（止18年9月30日）'!$T:$T,"同期销售") -> 1108 | N21: =SUMIFS('2.1-18春夏销售（止18年9月30日）'!$S:$S,'2.1-18春夏销售（止18年9月30日）'!$D:$D,运营部分析!$J$1,'2.1-18春夏销售（止18年9月30日）'!$A:$A,运营部分析!$B21,'2.1-18春夏销售（止18年9月30日）'!$X:$X,"新品",'2.1-18春夏销售（止18年9月30日）'!$T:$T,"同期销售")/10000 -> 33.3892 | O21: -0.5415162455 | P21: -0.464221964 | Q21: =SUMIFS('2.1-18春夏销售（止18年9月30日）'!$I:$I,'2.1-18春夏销售（止18年9月30日）'!$D:$D,运营部分析!$J$1,'2.1-18春夏销售（止18年9月30日）'!$A:$A,运营部分析!$B21,'2.1-18春夏销售（止18年9月30日）'!$X:$X,"新品") -> 2171 | R21: =SUMIFS('2.1-18春夏销售（止18年9月30日）'!$S:$S,'2.1-18春夏销售（止18年9月30日）'!$D:$D,运营部分析!$J$1,'2.1-18春夏销售（止18年9月30日）'!$A:$A,运营部分析!$B21,'2.1-18春夏销售（止18年9月30日）'!$X:$X,"新品")/10000 -> 65.6409 | S21: =SUMIFS('1.5-19春夏新旧品库存（更新）'!$BF:$BF,'1.5-19春夏新旧品库存（更新）'!$B:$B,运营部分析!$J$1,'1.5-19春夏新旧品库存（更新）'!$E:$E,运营部分析!$B21,'1.5-19春夏新旧品库存（更新）'!$BI:$BI,"新品") -> 3334 | T21: =SUMIFS('1.5-19春夏新旧品库存（更新）'!$BG:$BG,'1.5-19春夏新旧品库存（更新）'!$B:$B,运营部分析!$J$1,'1.5-19春夏新旧品库存（更新）'!$E:$E,运营部分析!$B21,'1.5-19春夏新旧品库存（更新）'!$BI:$BI,"新品")/10000 -> 116.7396 | U21: =(SUMIFS('2.2--18春夏库存（止18年9月30日）'!$M:$M,'2.2--18春夏库存（止18年9月30日）'!$C:$C,运营部分析!$J$1,'2.2--18春夏库存（止18年9月30日）'!$A:$A,运营部分析!$B21)) -> 1328 | V21: =(SUMIFS('2.2--18春夏库存（止18年9月30日）'!$P:$P,'2.2--18春夏库存（止18年9月30日）'!$C:$C,运营部分析!$J$1,'2.2--18春夏库存（止18年9月30日）'!$A:$A,运营部分析!$B21))/10000 -> 42.0682 | W21: 1.510542169 | X21: 1.775008201 | Y21: 0.1408521303 | Z21: 0.1410262274 | AA21: =SUMIFS('2.3-18春夏调配（止18年9月30日）'!$P:$P,'2.3-18春夏调配（止18年9月30日）'!$G:$G,运营部分析!$J$1,'2.3-18春夏调配（止18年9月30日）'!$A:$A,运营部分析!$B21,'2.3-18春夏调配（止18年9月30日）'!$Z:$Z,"否",'2.3-18春夏调配（止18年9月30日）'!$AA:$AA,"是") -> 147 | AB21: =SUMIFS('2.3-18春夏调配（止18年9月30日）'!$Y:$Y,'2.3-18春夏调配（止18年9月30日）'!$G:$G,运营部分析!$J$1,'2.3-18春夏调配（止18年9月30日）'!$A:$A,运营部分析!$B21,'2.3-18春夏调配（止18年9月30日）'!$Z:$Z,"否",'2.3-18春夏调配（止18年9月30日）'!$AA:$AA,"是")/10000 -> 4.5203 | AC21: =SUMIFS('2.3-18春夏调配（止18年9月30日）'!$P:$P,'2.3-18春夏调配（止18年9月30日）'!$G:$G,运营部分析!$J$1,'2.3-18春夏调配（止18年9月30日）'!$A:$A,运营部分析!$B21,'2.3-18春夏调配（止18年9月30日）'!$Z:$Z,"是",'2.3-18春夏调配（止18年9月30日）'!$AA:$AA,"是") -> 17 | AD21: =SUMIFS('2.3-18春夏调配（止18年9月30日）'!$Y:$Y,'2.3-18春夏调配（止18年9月30日）'!$G:$G,运营部分析!$J$1,'2.3-18春夏调配（止18年9月30日）'!$A:$A,运营部分析!$B21,'2.3-18春夏调配（止18年9月30日）'!$Z:$Z,"是",'2.3-18春夏调配（止18年9月30日）'!$AA:$AA,"是")/10000 -> 0.5293 | AE21: 0.3098765432 | AF21: 0.3040836462 | AG21: 0.118993135 | AH21: 0.1185224716 | AI21: -0.5454572687 | AJ21: -0.5362255446 | AK21: =SUMIFS('2.3-18春夏调配（止18年9月30日）'!$P:$P,'2.3-18春夏调配（止18年9月30日）'!$G:$G,运营部分析!$J$1,'2.3-18春夏调配（止18年9月30日）'!$A:$A,运营部分析!$B21,'2.3-18春夏调配（止18年9月30日）'!$Z:$Z,"否") -> 415 | AL21: =SUMIFS('2.3-18春夏调配（止18年9月30日）'!$Y:$Y,'2.3-18春夏调配（止18年9月30日）'!$G:$G,运营部分析!$J$1,'2.3-18春夏调配（止18年9月30日）'!$A:$A,运营部分析!$B21,'2.3-18春夏调配（止18年9月30日）'!$Z:$Z,"否")/10000 -> 12.9135 | AM21: =SUMIFS('2.3-18春夏调配（止18年9月30日）'!$P:$P,'2.3-18春夏调配（止18年9月30日）'!$G:$G,运营部分析!$J$1,'2.3-18春夏调配（止18年9月30日）'!$A:$A,运营部分析!$B21,'2.3-18春夏调配（止18年9月30日）'!$Z:$Z,"是") -> 152 | AN21: =SUMIFS('2.3-18春夏调配（止18年9月30日）'!$Y:$Y,'2.3-18春夏调配（止18年9月30日）'!$G:$G,运营部分析!$J$1,'2.3-18春夏调配（止18年9月30日）'!$A:$A,运营部分析!$B21,'2.3-18春夏调配（止18年9月30日）'!$Z:$Z,"是")/10000 -> 4.5408 | AO21: 0.6605363985 | AP21: 0.6510581693 | AQ21: =SUMIFS('1.2-19春夏发货（更新）'!$K:$K,'1.2-19春夏发货（更新）'!$A:$A,运营部分析!$B21,'1.2-19春夏发货（更新）'!Q:Q,运营部分析!$J$1) -> 3848 | AR21: 0.9771457593 | AS21: 90 | AT21: 3897 | AU21: =SUMIFS('1.6-19春夏期货订单（更新）'!$AP:$AP,'1.6-19春夏期货订单（更新）'!$A:$A,运营部分析!$B21,'1.6-19春夏期货订单（更新）'!$F:$F,运营部分析!$J$1) -> 35 | AV21: =SUMIFS('1.1-19春夏新旧品销售（更新）'!$X:$X,'1.1-19春夏新旧品销售（更新）'!$A:$A,运营部分析!$B21,'1.1-19春夏新旧品销售（更新）'!D:D,运营部分析!$J$1,'1.1-19春夏新旧品销售（更新）'!$U:$U,"月",'1.1-19春夏新旧品销售（更新）'!$AH:$AH,"新品") -> 32 | AW21: =SUMIFS('1.5-19春夏新旧品库存（更新）'!$BM:$BM,'1.5-19春夏新旧品库存（更新）'!$E:$E,运营部分析!$B21,'1.5-19春夏新旧品库存（更新）'!$B:$B,运营部分析!$J$1,'1.5-19春夏新旧品库存（更新）'!$BI:$BI,"新品") -> 37 | AX21: 0.8648648649 | AY21: 15.72641509 | AZ21: =SUMIFS('1.1-19春夏新旧品销售（更新）'!$I:$I,'1.1-19春夏新旧品销售（更新）'!$A:$A,运营部分析!$B21,'1.1-19春夏新旧品销售（更新）'!$U:$U,"月",'1.1-19春夏新旧品销售（更新）'!$D:$D,运营部分析!$J$1,'1.1-19春夏新旧品销售（更新）'!$AH:$AH,"新品") -> 212 | BA21: =SUMIFS('1.1-19春夏新旧品销售（更新）'!$J:$J,'1.1-19春夏新旧品销售（更新）'!$A:$A,运营部分析!$B21,'1.1-19春夏新旧品销售（更新）'!$U:$U,"月",'1.1-19春夏新旧品销售（更新）'!$D:$D,运营部分析!$J$1,'1.1-19春夏新旧品销售（更新）'!$AH:$AH,"新品")/10000 -> 5.926 | BB21: =SUMIFS('1.1-19春夏新旧品销售（更新）'!$K:$K,'1.1-19春夏新旧品销售（更新）'!$A:$A,运营部分析!$B21,'1.1-19春夏新旧品销售（更新）'!$U:$U,"月",'1.1-19春夏新旧品销售（更新）'!$D:$D,运营部分析!$J$1,'1.1-19春夏新旧品销售（更新）'!$AH:$AH,"新品")/10000 -> 8.7108 | BC21: =SUMIFS('1.1-19春夏新旧品销售（更新）'!$S:$S,'1.1-19春夏新旧品销售（更新）'!$A:$A,运营部分析!$B21,'1.1-19春夏新旧品销售（更新）'!$U:$U,"月",'1.1-19春夏新旧品销售（更新）'!$D:$D,运营部分析!$J$1,'1.1-19春夏新旧品销售（更新）'!$AH:$AH,"新品")/10000 -> 7.5568 | BD21: 1.152710142 | BE21: 279.5283019 | BF21: 0.784194368 | BG21: =SUMIFS('2.1-18春夏销售（止18年9月30日）'!$J:$J,'2.1-18春夏销售（止18年9月30日）'!$A:$A,运营部分析!$B21,'2.1-18春夏销售（止18年9月30日）'!$D:$D,运营部分析!$J$1,'2.1-18春夏销售（止18年9月30日）'!$U:$U,"月",'2.1-18春夏销售（止18年9月30日）'!$X:$X,"新品")/10000 -> 10.232 | BH21: =SUMIFS('2.1-18春夏销售（止18年9月30日）'!$S:$S,'2.1-18春夏销售（止18年9月30日）'!$A:$A,运营部分析!$B21,'2.1-18春夏销售（止18年9月30日）'!$D:$D,运营部分析!$J$1,'2.1-18春夏销售（止18年9月30日）'!$U:$U,"月",'2.1-18春夏销售（止18年9月30日）'!$X:$X,"新品")/10000 -> 12.0271 | BI21: 0.8507454 | BJ21: =SUMIFS('1.1-19春夏新旧品销售（更新）'!$J:$J,'1.1-19春夏新旧品销售（更新）'!$A:$A,运营部分析!$B21,'1.1-19春夏新旧品销售（更新）'!$D:$D,运营部分析!$J$1,'1.1-19春夏新旧品销售（更新）'!$T:$T,"本周",'1.1-19春夏新旧品销售（更新）'!$AH:$AH,"新品")/10000 -> 1.0954 | BK21: =SUMIFS('1.1-19春夏新旧品销售（更新）'!$S:$S,'1.1-19春夏新旧品销售（更新）'!$A:$A,运营部分析!$B21,'1.1-19春夏新旧品销售（更新）'!$D:$D,运营部分析!$J$1,'1.1-19春夏新旧品销售（更新）'!$T:$T,"本周",'1.1-19春夏新旧品销售（更新）'!$AH:$AH,"新品")/10000 -> 1.418 | BL21: 0.7724964739 | BM21: 0.1084589642 | BN21: -0.00442708483 | BO21: =SUMIFS('1.1-19春夏新旧品销售（更新）'!$I:$I,'1.1-19春夏新旧品销售（更新）'!$A:$A,运营部分析!#REF!,'1.1-19春夏新旧品销售（更新）'!$D:$D,运营部分析!$J$1,'1.1-19春夏新旧品销售（更新）'!$T:$T,"上上周",'1.1-19春夏新旧品销售（更新）'!$AH:$AH,"新品") -> 0 | BP21: =SUMIFS('1.1-19春夏新旧品销售（更新）'!$I:$I,'1.1-19春夏新旧品销售（更新）'!$A:$A,运营部分析!$B20,'1.1-19春夏新旧品销售（更新）'!$D:$D,运营部分析!$J$1,'1.1-19春夏新旧品销售（更新）'!$T:$T,"上周",'1.1-19春夏新旧品销售（更新）'!$AH:$AH,"新品") -> 21 | BQ21: =SUMIFS('1.1-19春夏新旧品销售（更新）'!$I:$I,'1.1-19春夏新旧品销售（更新）'!$A:$A,运营部分析!$B20,'1.1-19春夏新旧品销售（更新）'!$D:$D,运营部分析!$J$1,'1.1-19春夏新旧品销售（更新）'!$T:$T,"本周",'1.1-19春夏新旧品销售（更新）'!$AH:$AH,"新品") -> 18 | BR21: =SUMIFS('1.1-19春夏新旧品销售（更新）'!$I:$I,'1.1-19春夏新旧品销售（更新）'!$A:$A,运营部分析!$B21,'1.1-19春夏新旧品销售（更新）'!$D:$D,运营部分析!$J$1,'1.1-19春夏新旧品销售（更新）'!$U:$U,"月",'1.1-19春夏新旧品销售（更新）'!$AH:$AH,"新品") -> 212 | BS21: 0 | BT21: -0.1428571429 | BU21: 0.04675324675 | BV21: 0.112886049 | CA21: =SUMIFS('1.3-19春夏调配（更新）'!$AA:$AA,'1.3-19春夏调配（更新）'!$K:$K,运营部分析!$J$1,'1.3-19春夏调配（更新）'!$A:$A,运营部分析!$B21,'1.3-19春夏调配（更新）'!$X:$X,"<>已审核")/10000 -> 1.9707 | CB21: =SUMIFS('1.3-19春夏调配（更新）'!$AA:$AA,'1.3-19春夏调配（更新）'!$G:$G,运营部分析!$J$1,'1.3-19春夏调配（更新）'!$A:$A,运营部分析!$B21,'1.3-19春夏调配（更新）'!$Z:$Z,"是",'1.3-19春夏调配（更新）'!$X:$X,"<>已审核")/10000 -> 0.0399 | CC21: =SUMIFS('1.3-19春夏调配（更新）'!$AA:$AA,'1.3-19春夏调配（更新）'!$G:$G,运营部分析!$J$1,'1.3-19春夏调配（更新）'!$A:$A,运营部分析!$B21,'1.3-19春夏调配（更新）'!$Z:$Z,"否",'1.3-19春夏调配（更新）'!$X:$X,"<>已审核")/10000 -> 1.8446 | CD21: =SUMIFS('1.3-19春夏调配（更新）'!$P:$P,'1.3-19春夏调配（更新）'!$K:$K,运营部分析!$J$1,'1.3-19春夏调配（更新）'!$A:$A,运营部分析!$B21,'1.3-19春夏调配（更新）'!$X:$X,"<>已审核") -> 53 | CE21: =SUMIFS('1.3-19春夏调配（更新）'!$P:$P,'1.3-19春夏调配（更新）'!$G:$G,运营部分析!$J$1,'1.3-19春夏调配（更新）'!$A:$A,运营部分析!$B21,'1.3-19春夏调配（更新）'!$Z:$Z,"是",'1.3-19春夏调配（更新）'!$X:$X,"<>已审核") -> 1 | CF21: =SUMIFS('1.3-19春夏调配（更新）'!$P:$P,'1.3-19春夏调配（更新）'!$G:$G,运营部分析!$J$1,'1.3-19春夏调配（更新）'!$A:$A,运营部分析!$B21,'1.3-19春夏调配（更新）'!$Z:$Z,"否",'1.3-19春夏调配（更新）'!$X:$X,"<>已审核") -> 54 | CG21: =SUMIFS('2.1-18春夏销售（止18年9月30日）'!$I:$I,'2.1-18春夏销售（止18年9月30日）'!$D:$D,运营部分析!$J$1,'2.1-18春夏销售（止18年9月30日）'!$V:$V,运营部分析!CG$4,'2.1-18春夏销售（止18年9月30日）'!$A:$A,运营部分析!$B21,'2.1-18春夏销售（止18年9月30日）'!$W:$W,"否",'2.1-18春夏销售（止18年9月30日）'!$X:$X,"新品") -> 0 | CH21: =SUMIFS('2.1-18春夏销售（止18年9月30日）'!$I:$I,'2.1-18春夏销售（止18年9月30日）'!$D:$D,运营部分析!$J$1,'2.1-18春夏销售（止18年9月30日）'!$V:$V,运营部分析!CH$4,'2.1-18春夏销售（止18年9月30日）'!$A:$A,运营部分析!$B21,'2.1-18春夏销售（止18年9月30日）'!$W:$W,"否",'2.1-18春夏销售（止18年9月30日）'!$X:$X,"新品") -> 0 | CI21: =SUMIFS('2.1-18春夏销售（止18年9月30日）'!$I:$I,'2.1-18春夏销售（止18年9月30日）'!$D:$D,运营部分析!$J$1,'2.1-18春夏销售（止18年9月30日）'!$V:$V,运营部分析!CI$4,'2.1-18春夏销售（止18年9月30日）'!$A:$A,运营部分析!$B21,'2.1-18春夏销售（止18年9月30日）'!$W:$W,"否",'2.1-18春夏销售（止18年9月30日）'!$X:$X,"新品") -> 0 | CJ21: =SUMIFS('2.1-18春夏销售（止18年9月30日）'!$I:$I,'2.1-18春夏销售（止18年9月30日）'!$D:$D,运营部分析!$J$1,'2.1-18春夏销售（止18年9月30日）'!$V:$V,运营部分析!CJ$4,'2.1-18春夏销售（止18年9月30日）'!$A:$A,运营部分析!$B21,'2.1-18春夏销售（止18年9月30日）'!$W:$W,"否",'2.1-18春夏销售（止18年9月30日）'!$X:$X,"新品") -> 0 | CK21: =SUMIFS('2.1-18春夏销售（止18年9月30日）'!$I:$I,'2.1-18春夏销售（止18年9月30日）'!$D:$D,运营部分析!$J$1,'2.1-18春夏销售（止18年9月30日）'!$V:$V,运营部分析!CK$4,'2.1-18春夏销售（止18年9月30日）'!$A:$A,运营部分析!$B21,'2.1-18春夏销售（止18年9月30日）'!$W:$W,"否",'2.1-18春夏销售（止18年9月30日）'!$X:$X,"新品") -> 0 | CL21: =SUMIFS('2.1-18春夏销售（止18年9月30日）'!$I:$I,'2.1-18春夏销售（止18年9月30日）'!$D:$D,运营部分析!$J$1,'2.1-18春夏销售（止18年9月30日）'!$V:$V,运营部分析!CL$4,'2.1-18春夏销售（止18年9月30日）'!$A:$A,运营部分析!$B21,'2.1-18春夏销售（止18年9月30日）'!$W:$W,"否",'2.1-18春夏销售（止18年9月30日）'!$X:$X,"新品") -> 0 | CM21: =SUMIFS('2.1-18春夏销售（止18年9月30日）'!$I:$I,'2.1-18春夏销售（止18年9月30日）'!$D:$D,运营部分析!$J$1,'2.1-18春夏销售（止18年9月30日）'!$V:$V,运营部分析!CM$4,'2.1-18春夏销售（止18年9月30日）'!$A:$A,运营部分析!$B21,'2.1-18春夏销售（止18年9月30日）'!$W:$W,"否",'2.1-18春夏销售（止18年9月30日）'!$X:$X,"新品") -> 208 | CN21: =SUMIFS('2.1-18春夏销售（止18年9月30日）'!$I:$I,'2.1-18春夏销售（止18年9月30日）'!$D:$D,运营部分析!$J$1,'2.1-18春夏销售（止18年9月30日）'!$V:$V,运营部分析!CN$4,'2.1-18春夏销售（止18年9月30日）'!$A:$A,运营部分析!$B21,'2.1-18春夏销售（止18年9月30日）'!$W:$W,"否",'2.1-18春夏销售（止18年9月30日）'!$X:$X,"新品") -> 474 | CO21: =SUMIFS('2.1-18春夏销售（止18年9月30日）'!$I:$I,'2.1-18春夏销售（止18年9月30日）'!$D:$D,运营部分析!$J$1,'2.1-18春夏销售（止18年9月30日）'!$V:$V,运营部分析!CO$4,'2.1-18春夏销售（止18年9月30日）'!$A:$A,运营部分析!$B21,'2.1-18春夏销售（止18年9月30日）'!$W:$W,"否",'2.1-18春夏销售（止18年9月30日）'!$X:$X,"新品") -> 280 | CP21: =SUMIFS('2.1-18春夏销售（止18年9月30日）'!$I:$I,'2.1-18春夏销售（止18年9月30日）'!$D:$D,运营部分析!$J$1,'2.1-18春夏销售（止18年9月30日）'!$V:$V,运营部分析!CP$4,'2.1-18春夏销售（止18年9月30日）'!$A:$A,运营部分析!$B21,'2.1-18春夏销售（止18年9月30日）'!$W:$W,"否",'2.1-18春夏销售（止18年9月30日）'!$X:$X,"新品") -> 101 | CQ21: 1063 | CR21: 2361 | CS21: 0.4072681704 | CT21: =SUMIFS('2.1-18春夏销售（止18年9月30日）'!$S:$S,'2.1-18春夏销售（止18年9月30日）'!$D:$D,运营部分析!$J$1,'2.1-18春夏销售（止18年9月30日）'!$V:$V,运营部分析!CT$4,'2.1-18春夏销售（止18年9月30日）'!$A:$A,运营部分析!$B21,'2.1-18春夏销售（止18年9月30日）'!$W:$W,"否",'2.1-18春夏销售（止18年9月30日）'!$X:$X,"新品")/10000 -> 0 | CU21: =SUMIFS('2.1-18春夏销售（止18年9月30日）'!$S:$S,'2.1-18春夏销售（止18年9月30日）'!$D:$D,运营部分析!$J$1,'2.1-18春夏销售（止18年9月30日）'!$V:$V,运营部分析!CU$4,'2.1-18春夏销售（止18年9月30日）'!$A:$A,运营部分析!$B21,'2.1-18春夏销售（止18年9月30日）'!$W:$W,"否",'2.1-18春夏销售（止18年9月30日）'!$X:$X,"新品")/10000 -> 0 | CV21: =SUMIFS('2.1-18春夏销售（止18年9月30日）'!$S:$S,'2.1-18春夏销售（止18年9月30日）'!$D:$D,运营部分析!$J$1,'2.1-18春夏销售（止18年9月30日）'!$V:$V,运营部分析!CV$4,'2.1-18春夏销售（止18年9月30日）'!$A:$A,运营部分析!$B21,'2.1-18春夏销售（止18年9月30日）'!$W:$W,"否",'2.1-18春夏销售（止18年9月30日）'!$X:$X,"新品")/10000 -> 0 | CW21: =SUMIFS('2.1-18春夏销售（止18年9月30日）'!$S:$S,'2.1-18春夏销售（止18年9月30日）'!$D:$D,运营部分析!$J$1,'2.1-18春夏销售（止18年9月30日）'!$V:$V,运营部分析!CW$4,'2.1-18春夏销售（止18年9月30日）'!$A:$A,运营部分析!$B21,'2.1-18春夏销售（止18年9月30日）'!$W:$W,"否",'2.1-18春夏销售（止18年9月30日）'!$X:$X,"新品")/10000 -> 0 | CX21: =SUMIFS('2.1-18春夏销售（止18年9月30日）'!$S:$S,'2.1-18春夏销售（止18年9月30日）'!$D:$D,运营部分析!$J$1,'2.1-18春夏销售（止18年9月30日）'!$V:$V,运营部分析!CX$4,'2.1-18春夏销售（止18年9月30日）'!$A:$A,运营部分析!$B21,'2.1-18春夏销售（止18年9月30日）'!$W:$W,"否",'2.1-18春夏销售（止18年9月30日）'!$X:$X,"新品")/10000 -> 0 | CY21: =SUMIFS('2.1-18春夏销售（止18年9月30日）'!$S:$S,'2.1-18春夏销售（止18年9月30日）'!$D:$D,运营部分析!$J$1,'2.1-18春夏销售（止18年9月30日）'!$V:$V,运营部分析!CY$4,'2.1-18春夏销售（止18年9月30日）'!$A:$A,运营部分析!$B21,'2.1-18春夏销售（止18年9月30日）'!$W:$W,"否",'2.1-18春夏销售（止18年9月30日）'!$X:$X,"新品")/10000 -> 0 | CZ21: =SUMIFS('2.1-18春夏销售（止18年9月30日）'!$S:$S,'2.1-18春夏销售（止18年9月30日）'!$D:$D,运营部分析!$J$1,'2.1-18春夏销售（止18年9月30日）'!$V:$V,运营部分析!CZ$4,'2.1-18春夏销售（止18年9月30日）'!$A:$A,运营部分析!$B21,'2.1-18春夏销售（止18年9月30日）'!$W:$W,"否",'2.1-18春夏销售（止18年9月30日）'!$X:$X,"新品")/10000 -> 6.3302 | DA21: =SUMIFS('2.1-18春夏销售（止18年9月30日）'!$S:$S,'2.1-18春夏销售（止18年9月30日）'!$D:$D,运营部分析!$J$1,'2.1-18春夏销售（止18年9月30日）'!$V:$V,运营部分析!DA$4,'2.1-18春夏销售（止18年9月30日）'!$A:$A,运营部分析!$B21,'2.1-18春夏销售（止18年9月30日）'!$W:$W,"否",'2.1-18春夏销售（止18年9月30日）'!$X:$X,"新品")/10000 -> 14.4966 | DB21: =SUMIFS('2.1-18春夏销售（止18年9月30日）'!$S:$S,'2.1-18春夏销售（止18年9月30日）'!$D:$D,运营部分析!$J$1,'2.1-18春夏销售（止18年9月30日）'!$V:$V,运营部分析!DB$4,'2.1-18春夏销售（止18年9月30日）'!$A:$A,运营部分析!$B21,'2.1-18春夏销售（止18年9月30日）'!$W:$W,"否",'2.1-18春夏销售（止18年9月30日）'!$X:$X,"新品")/10000 -> 8.338 | DC21: =SUMIFS('2.1-18春夏销售（止18年9月30日）'!$S:$S,'2.1-18春夏销售（止18年9月30日）'!$D:$D,运营部分析!$J$1,'2.1-18春夏销售（止18年9月30日）'!$V:$V,运营部分析!DC$4,'2.1-18春夏销售（止18年9月30日）'!$A:$A,运营部分析!$B21,'2.1-18春夏销售（止18年9月30日）'!$W:$W,"否",'2.1-18春夏销售（止18年9月30日）'!$X:$X,"新品")/10000 -> 3.0869 | DD21: =SUM(CT21:DC21) -> 32.2517 | DE21: 87.9445 | DF21: 0.3715107554 | DH21: =SUMIFS('1.1-19春夏新旧品销售（更新）'!$I:$I,'1.1-19春夏新旧品销售（更新）'!$D:$D,运营部分析!$J$1,'1.1-19春夏新旧品销售（更新）'!$A:$A,运营部分析!$B21,'1.1-19春夏新旧品销售（更新）'!$AB:$AB,"新品",'1.1-19春夏新旧品销售（更新）'!$AG:$AG,"是") -> 156 | DI21: =SUMIFS('1.1-19春夏新旧品销售（更新）'!$S:$S,'1.1-19春夏新旧品销售（更新）'!$D:$D,运营部分析!$J$1,'1.1-19春夏新旧品销售（更新）'!$A:$A,运营部分析!$B21,'1.1-19春夏新旧品销售（更新）'!$AB:$AB,"新品",'1.1-19春夏新旧品销售（更新）'!$AG:$AG,"是")/10000 -> 5.4634 | DJ21: =SUMIFS('1.6-19春夏期货订单（更新）'!$AG:$AG,'1.6-19春夏期货订单（更新）'!$F:$F,运营部分析!$J$1,'1.6-19春夏期货订单（更新）'!$A:$A,运营部分析!$B21,'1.6-19春夏期货订单（更新）'!$AQ:$AQ,"是")+SUMIFS('1.2-19春夏发货（更新）'!$K:$K,'1.2-19春夏发货（更新）'!$A:$A,运营部分析!$B21,'1.2-19春夏发货（更新）'!$Q:$Q,运营部分析!$J$1,'1.2-19春夏发货（更新）'!$T:$T,"当季补货",'1.2-19春夏发货（更新）'!$W:$W,"是")+SUMIFS('1.2-19春夏发货（更新）'!$K:$K,'1.2-19春夏发货（更新）'!$A:$A,运营部分析!$B21,'1.2-19春夏发货（更新）'!$Q:$Q,运营部分析!$J$1,'1.2-19春夏发货（更新）'!$T:$T,"往季补货",'1.2-19春夏发货（更新）'!$W:$W,"是")+SUMIFS('1.3-19春夏调配（更新）'!$P:$P,'1.3-19春夏调配（更新）'!$K:$K,运营部分析!$J$1,'1.3-19春夏调配（更新）'!$A:$A,运营部分析!$B21,'1.3-19春夏调配（更新）'!$AC:$AC,"是",'1.3-19春夏调配（更新）'!$X:$X,"<>已审核")-SUMIFS('1.3-19春夏调配（更新）'!$P:$P,'1.3-19春夏调配（更新）'!$G:$G,运营部分析!$J$1,'1.3-19春夏调配（更新）'!$A:$A,运营部分析!$B21,'1.3-19春夏调配（更新）'!$AC:$AC,"是",'1.3-19春夏调配（更新）'!$X:$X,"<>已审核") -> 1311 | DK21: =SUMIFS('1.6-19春夏期货订单（更新）'!$AN:$AN,'1.6-19春夏期货订单（更新）'!$F:$F,运营部分析!$J$1,'1.6-19春夏期货订单（更新）'!$A:$A,运营部分析!$B21,'1.6-19春夏期货订单（更新）'!$AQ:$AQ,"是")/10000+SUMIFS('1.2-19春夏发货（更新）'!$U:$U,'1.2-19春夏发货（更新）'!$A:$A,运营部分析!$B21,'1.2-19春夏发货（更新）'!$Q:$Q,运营部分析!$J$1,'1.2-19春夏发货（更新）'!$T:$T,"当季补货",'1.2-19春夏发货（更新）'!$W:$W,"是")/10000+SUMIFS('1.2-19春夏发货（更新）'!$U:$U,'1.2-19春夏发货（更新）'!$A:$A,运营部分析!$B21,'1.2-19春夏发货（更新）'!$Q:$Q,运营部分析!$J$1,'1.2-19春夏发货（更新）'!$T:$T,"往季补货",'1.2-19春夏发货（更新）'!$W:$W,"是")/10000+SUMIFS('1.3-19春夏调配（更新）'!$AA:$AA,'1.3-19春夏调配（更新）'!$K:$K,运营部分析!$J$1,'1.3-19春夏调配（更新）'!$A:$A,运营部分析!$B21,'1.3-19春夏调配（更新）'!$AC:$AC,"是",'1.3-19春夏调配（更新）'!$X:$X,"<>已审核")/10000-SUMIFS('1.3-19春夏调配（更新）'!$AA:$AA,'1.3-19春夏调配（更新）'!$G:$G,运营部分析!$J$1,'1.3-19春夏调配（更新）'!$A:$A,运营部分析!$B21,'1.3-19春夏调配（更新）'!$AC:$AC,"是",'1.3-19春夏调配（更新）'!$X:$X,"<>已审核")/10000 -> 46.0959 | DM21: 0.01353383459 | DN21: 0.01318230544
B22: 90 | C22: 针织短衬 | E22: =SUMIFS('1.6-19春夏期货订单（更新）'!$AG:$AG,'1.6-19春夏期货订单（更新）'!$F:$F,运营部分析!$J$1,'1.6-19春夏期货订单（更新）'!$A:$A,运营部分析!$B22)+SUMIFS('1.2-19春夏发货（更新）'!$K:$K,'1.2-19春夏发货（更新）'!$A:$A,运营部分析!$B22,'1.2-19春夏发货（更新）'!$Q:$Q,运营部分析!$J$1,'1.2-19春夏发货（更新）'!$T:$T,"当季补货")+SUMIFS('1.2-19春夏发货（更新）'!$K:$K,'1.2-19春夏发货（更新）'!$A:$A,运营部分析!$B22,'1.2-19春夏发货（更新）'!$Q:$Q,运营部分析!$J$1,'1.2-19春夏发货（更新）'!$T:$T,"往季补货")+SUMIFS('1.3-19春夏调配（更新）'!$P:$P,'1.3-19春夏调配（更新）'!$K:$K,运营部分析!$J$1,'1.3-19春夏调配（更新）'!$A:$A,运营部分析!$B22)-SUMIFS('1.3-19春夏调配（更新）'!$P:$P,'1.3-19春夏调配（更新）'!$G:$G,运营部分析!$J$1,'1.3-19春夏调配（更新）'!$A:$A,运营部分析!$B22,'1.3-19春夏调配（更新）'!$Z:$Z,"是") -> 211 | F22: =SUMIFS('1.6-19春夏期货订单（更新）'!$AN:$AN,'1.6-19春夏期货订单（更新）'!$F:$F,运营部分析!$J$1,'1.6-19春夏期货订单（更新）'!$A:$A,运营部分析!$B22)/10000+SUMIFS('1.2-19春夏发货（更新）'!$U:$U,'1.2-19春夏发货（更新）'!$A:$A,运营部分析!$B22,'1.2-19春夏发货（更新）'!$Q:$Q,运营部分析!$J$1,'1.2-19春夏发货（更新）'!$T:$T,"当季补货")/10000+SUMIFS('1.2-19春夏发货（更新）'!$U:$U,'1.2-19春夏发货（更新）'!$A:$A,运营部分析!$B22,'1.2-19春夏发货（更新）'!$Q:$Q,运营部分析!$J$1,'1.2-19春夏发货（更新）'!$T:$T,"往季补货")/10000+SUMIFS('1.3-19春夏调配（更新）'!$AA:$AA,'1.3-19春夏调配（更新）'!$K:$K,运营部分析!$J$1,'1.3-19春夏调配（更新）'!$A:$A,运营部分析!$B22)/10000-SUMIFS('1.3-19春夏调配（更新）'!$AA:$AA,'1.3-19春夏调配（更新）'!$G:$G,运营部分析!$J$1,'1.3-19春夏调配（更新）'!$A:$A,运营部分析!$B22,'1.3-19春夏调配（更新）'!$Z:$Z,"是")/10000 -> 10.8049 | G22: =(SUMIFS('2.1-18春夏销售（止18年9月30日）'!$I:$I,'2.1-18春夏销售（止18年9月30日）'!$X:$X,"新品",'2.1-18春夏销售（止18年9月30日）'!$A:$A,运营部分析!$B22,'2.1-18春夏销售（止18年9月30日）'!$D:$D,运营部分析!$J$1)+SUMIFS('2.2--18春夏库存（止18年9月30日）'!$M:$M,'2.2--18春夏库存（止18年9月30日）'!$C:$C,运营部分析!$J$1,'2.2--18春夏库存（止18年9月30日）'!$A:$A,运营部分析!$B22)+SUMIFS('2.4-18春夏冬退货（止18年9月30日）'!$Q:$Q,'2.4-18春夏冬退货（止18年9月30日）'!$D:$D,运营部分析!$J$1,'2.4-18春夏冬退货（止18年9月30日）'!$A:$A,运营部分析!$B22)+SUMIFS('2.3-18春夏调配（止18年9月30日）'!$P:$P,'2.3-18春夏调配（止18年9月30日）'!$G:$G,运营部分析!$J$1,'2.3-18春夏调配（止18年9月30日）'!$A:$A,运营部分析!$B22)) -> 780 | H22: =(SUMIFS('2.1-18春夏销售（止18年9月30日）'!$S:$S,'2.1-18春夏销售（止18年9月30日）'!$X:$X,"新品",'2.1-18春夏销售（止18年9月30日）'!$A:$A,运营部分析!$B22,'2.1-18春夏销售（止18年9月30日）'!$D:$D,运营部分析!$J$1)/10000+SUMIFS('2.2--18春夏库存（止18年9月30日）'!$P:$P,'2.2--18春夏库存（止18年9月30日）'!$C:$C,运营部分析!$J$1,'2.2--18春夏库存（止18年9月30日）'!$A:$A,运营部分析!$B22)/10000+SUMIFS('2.4-18春夏冬退货（止18年9月30日）'!$T:$T,'2.4-18春夏冬退货（止18年9月30日）'!$D:$D,运营部分析!$J$1,'2.4-18春夏冬退货（止18年9月30日）'!$A:$A,运营部分析!$B22)/10000+SUMIFS('2.3-18春夏调配（止18年9月30日）'!$Y:$Y,'2.3-18春夏调配（止18年9月30日）'!$G:$G,运营部分析!$J$1,'2.3-18春夏调配（止18年9月30日）'!$A:$A,运营部分析!$B22)/10000) -> 38.416 | I22: -0.7294871795 | J22: -0.7187395877 | K22: =SUMIFS('1.1-19春夏新旧品销售（更新）'!$I:$I,'1.1-19春夏新旧品销售（更新）'!$D:$D,运营部分析!$J$1,'1.1-19春夏新旧品销售（更新）'!$A:$A,运营部分析!$B22,'1.1-19春夏新旧品销售（更新）'!$AB:$AB,"新品") -> 39 | L22: =SUMIFS('1.1-19春夏新旧品销售（更新）'!$S:$S,'1.1-19春夏新旧品销售（更新）'!$D:$D,运营部分析!$J$1,'1.1-19春夏新旧品销售（更新）'!$A:$A,运营部分析!$B22,'1.1-19春夏新旧品销售（更新）'!$AB:$AB,"新品")/10000 -> 1.9461 | M22: =SUMIFS('2.1-18春夏销售（止18年9月30日）'!$I:$I,'2.1-18春夏销售（止18年9月30日）'!$D:$D,运营部分析!$J$1,'2.1-18春夏销售（止18年9月30日）'!$A:$A,运营部分析!$B22,'2.1-18春夏销售（止18年9月30日）'!$X:$X,"新品",'2.1-18春夏销售（止18年9月30日）'!$T:$T,"同期销售") -> 77 | N22: =SUMIFS('2.1-18春夏销售（止18年9月30日）'!$S:$S,'2.1-18春夏销售（止18年9月30日）'!$D:$D,运营部分析!$J$1,'2.1-18春夏销售（止18年9月30日）'!$A:$A,运营部分析!$B22,'2.1-18春夏销售（止18年9月30日）'!$X:$X,"新品",'2.1-18春夏销售（止18年9月30日）'!$T:$T,"同期销售")/10000 -> 3.7543 | O22: -0.4935064935 | P22: -0.4816343926 | Q22: =SUMIFS('2.1-18春夏销售（止18年9月30日）'!$I:$I,'2.1-18春夏销售（止18年9月30日）'!$D:$D,运营部分析!$J$1,'2.1-18春夏销售（止18年9月30日）'!$A:$A,运营部分析!$B22,'2.1-18春夏销售（止18年9月30日）'!$X:$X,"新品") -> 217 | R22: =SUMIFS('2.1-18春夏销售（止18年9月30日）'!$S:$S,'2.1-18春夏销售（止18年9月30日）'!$D:$D,运营部分析!$J$1,'2.1-18春夏销售（止18年9月30日）'!$A:$A,运营部分析!$B22,'2.1-18春夏销售（止18年9月30日）'!$X:$X,"新品")/10000 -> 10.5953 | S22: =SUMIFS('1.5-19春夏新旧品库存（更新）'!$BF:$BF,'1.5-19春夏新旧品库存（更新）'!$B:$B,运营部分析!$J$1,'1.5-19春夏新旧品库存（更新）'!$E:$E,运营部分析!$B22,'1.5-19春夏新旧品库存（更新）'!$BI:$BI,"新品") -> 163 | T22: =SUMIFS('1.5-19春夏新旧品库存（更新）'!$BG:$BG,'1.5-19春夏新旧品库存（更新）'!$B:$B,运营部分析!$J$1,'1.5-19春夏新旧品库存（更新）'!$E:$E,运营部分析!$B22,'1.5-19春夏新旧品库存（更新）'!$BI:$BI,"新品")/10000 -> 8.4097 | U22: =(SUMIFS('2.2--18春夏库存（止18年9月30日）'!$M:$M,'2.2--18春夏库存（止18年9月30日）'!$C:$C,运营部分析!$J$1,'2.2--18春夏库存（止18年9月30日）'!$A:$A,运营部分析!$B22)) -> 400 | V22: =(SUMIFS('2.2--18春夏库存（止18年9月30日）'!$P:$P,'2.2--18春夏库存（止18年9月30日）'!$C:$C,运营部分析!$J$1,'2.2--18春夏库存（止18年9月30日）'!$A:$A,运营部分析!$B22))/10000 -> 19.729 | W22: -0.5925 | X22: -0.5737391657 | Y22: 0.2376237624 | Z22: 0.2312906777 | AA22: =SUMIFS('2.3-18春夏调配（止18年9月30日）'!$P:$P,'2.3-18春夏调配（止18年9月30日）'!$G:$G,运营部分析!$J$1,'2.3-18春夏调配（止18年9月30日）'!$A:$A,运营部分析!$B22,'2.3-18春夏调配（止18年9月30日）'!$Z:$Z,"否",'2.3-18春夏调配（止18年9月30日）'!$AA:$AA,"是") -> 49 | AB22: =SUMIFS('2.3-18春夏调配（止18年9月30日）'!$Y:$Y,'2.3-18春夏调配（止18年9月30日）'!$G:$G,运营部分析!$J$1,'2.3-18春夏调配（止18年9月30日）'!$A:$A,运营部分析!$B22,'2.3-18春夏调配（止18年9月30日）'!$Z:$Z,"否",'2.3-18春夏调配（止18年9月30日）'!$AA:$AA,"是")/10000 -> 2.4391 | AC22: =SUMIFS('2.3-18春夏调配（止18年9月30日）'!$P:$P,'2.3-18春夏调配（止18年9月30日）'!$G:$G,运营部分析!$J$1,'2.3-18春夏调配（止18年9月30日）'!$A:$A,运营部分析!$B22,'2.3-18春夏调配（止18年9月30日）'!$Z:$Z,"是",'2.3-18春夏调配（止18年9月30日）'!$AA:$AA,"是") -> 2 | AD22: =SUMIFS('2.3-18春夏调配（止18年9月30日）'!$Y:$Y,'2.3-18春夏调配（止18年9月30日）'!$G:$G,运营部分析!$J$1,'2.3-18春夏调配（止18年9月30日）'!$A:$A,运营部分析!$B22,'2.3-18春夏调配（止18年9月30日）'!$Z:$Z,"是",'2.3-18春夏调配（止18年9月30日）'!$AA:$AA,"是")/10000 -> 0.0998 | AE22: 0.1619537275 | AF22: 0.1616392022 | AG22: 0.04545454545 | AH22: 0.04545454545 | AI22: 0.4672324375 | AJ22: 0.4309070728 | AK22: =SUMIFS('2.3-18春夏调配（止18年9月30日）'!$P:$P,'2.3-18春夏调配（止18年9月30日）'!$G:$G,运营部分析!$J$1,'2.3-18春夏调配（止18年9月30日）'!$A:$A,运营部分析!$B22,'2.3-18春夏调配（止18年9月30日）'!$Z:$Z,"否") -> 161 | AL22: =SUMIFS('2.3-18春夏调配（止18年9月30日）'!$Y:$Y,'2.3-18春夏调配（止18年9月30日）'!$G:$G,运营部分析!$J$1,'2.3-18春夏调配（止18年9月30日）'!$A:$A,运营部分析!$B22,'2.3-18春夏调配（止18年9月30日）'!$Z:$Z,"否")/10000 -> 7.9919 | AM22: =SUMIFS('2.3-18春夏调配（止18年9月30日）'!$P:$P,'2.3-18春夏调配（止18年9月30日）'!$G:$G,运营部分析!$J$1,'2.3-18春夏调配（止18年9月30日）'!$A:$A,运营部分析!$B22,'2.3-18春夏调配（止18年9月30日）'!$Z:$Z,"是") -> 2 | AN22: =SUMIFS('2.3-18春夏调配（止18年9月30日）'!$Y:$Y,'2.3-18春夏调配（止18年9月30日）'!$G:$G,运营部分析!$J$1,'2.3-18春夏调配（止18年9月30日）'!$A:$A,运营部分析!$B22,'2.3-18春夏调配（止18年9月30日）'!$Z:$Z,"是")/10000 -> 0.0998 | AO22: 0.4858611825 | AP22: 0.485100297 | AQ22: =SUMIFS('1.2-19春夏发货（更新）'!$K:$K,'1.2-19春夏发货（更新）'!$A:$A,运营部分析!$B22,'1.2-19春夏发货（更新）'!Q:Q,运营部分析!$J$1) -> 220 | AR22: 1.042654028 | AS22: -9 | AT22: 220 | AU22: =SUMIFS('1.6-19春夏期货订单（更新）'!$AP:$AP,'1.6-19春夏期货订单（更新）'!$A:$A,运营部分析!$B22,'1.6-19春夏期货订单（更新）'!$F:$F,运营部分析!$J$1) -> 2 | AV22: =SUMIFS('1.1-19春夏新旧品销售（更新）'!$X:$X,'1.1-19春夏新旧品销售（更新）'!$A:$A,运营部分析!$B22,'1.1-19春夏新旧品销售（更新）'!D:D,运营部分析!$J$1,'1.1-19春夏新旧品销售（更新）'!$U:$U,"月",'1.1-19春夏新旧品销售（更新）'!$AH:$AH,"新品") -> 3 | AW22: =SUMIFS('1.5-19春夏新旧品库存（更新）'!$BM:$BM,'1.5-19春夏新旧品库存（更新）'!$E:$E,运营部分析!$B22,'1.5-19春夏新旧品库存（更新）'!$B:$B,运营部分析!$J$1,'1.5-19春夏新旧品库存（更新）'!$BI:$BI,"新品") -> 3 | AX22: 1 | AY22: 13.58333333 | AZ22: =SUMIFS('1.1-19春夏新旧品销售（更新）'!$I:$I,'1.1-19春夏新旧品销售（更新）'!$A:$A,运营部分析!$B22,'1.1-19春夏新旧品销售（更新）'!$U:$U,"月",'1.1-19春夏新旧品销售（更新）'!$D:$D,运营部分析!$J$1,'1.1-19春夏新旧品销售（更新）'!$AH:$AH,"新品") -> 12 | BA22: =SUMIFS('1.1-19春夏新旧品销售（更新）'!$J:$J,'1.1-19春夏新旧品销售（更新）'!$A:$A,运营部分析!$B22,'1.1-19春夏新旧品销售（更新）'!$U:$U,"月",'1.1-19春夏新旧品销售（更新）'!$D:$D,运营部分析!$J$1,'1.1-19春夏新旧品销售（更新）'!$AH:$AH,"新品")/10000 -> 0.4823 | BB22: =SUMIFS('1.1-19春夏新旧品销售（更新）'!$K:$K,'1.1-19春夏新旧品销售（更新）'!$A:$A,运营部分析!$B22,'1.1-19春夏新旧品销售（更新）'!$U:$U,"月",'1.1-19春夏新旧品销售（更新）'!$D:$D,运营部分析!$J$1,'1.1-19春夏新旧品销售（更新）'!$AH:$AH,"新品")/10000 -> 0.6948 | BC22: =SUMIFS('1.1-19春夏新旧品销售（更新）'!$S:$S,'1.1-19春夏新旧品销售（更新）'!$A:$A,运营部分析!$B22,'1.1-19春夏新旧品销售（更新）'!$U:$U,"月",'1.1-19春夏新旧品销售（更新）'!$D:$D,运营部分析!$J$1,'1.1-19春夏新旧品销售（更新）'!$AH:$AH,"新品")/10000 -> 0.6078 | BD22: 1.143139191 | BE22: 401.9166667 | BF22: 0.7935176045 | BG22: =SUMIFS('2.1-18春夏销售（止18年9月30日）'!$J:$J,'2.1-18春夏销售（止18年9月30日）'!$A:$A,运营部分析!$B22,'2.1-18春夏销售（止18年9月30日）'!$D:$D,运营部分析!$J$1,'2.1-18春夏销售（止18年9月30日）'!$U:$U,"月",'2.1-18春夏销售（止18年9月30日）'!$X:$X,"新品")/10000 -> 1.1235 | BH22: =SUMIFS('2.1-18春夏销售（止18年9月30日）'!$S:$S,'2.1-18春夏销售（止18年9月30日）'!$A:$A,运营部分析!$B22,'2.1-18春夏销售（止18年9月30日）'!$D:$D,运营部分析!$J$1,'2.1-18春夏销售（止18年9月30日）'!$U:$U,"月",'2.1-18春夏销售（止18年9月30日）'!$X:$X,"新品")/10000 -> 1.3742 | BI22: 0.8175665842 | BJ22: =SUMIFS('1.1-19春夏新旧品销售（更新）'!$J:$J,'1.1-19春夏新旧品销售（更新）'!$A:$A,运营部分析!$B22,'1.1-19春夏新旧品销售（更新）'!$D:$D,运营部分析!$J$1,'1.1-19春夏新旧品销售（更新）'!$T:$T,"本周",'1.1-19春夏新旧品销售（更新）'!$AH:$AH,"新品")/10000 -> 0 | BK22: =SUMIFS('1.1-19春夏新旧品销售（更新）'!$S:$S,'1.1-19春夏新旧品销售（更新）'!$A:$A,运营部分析!$B22,'1.1-19春夏新旧品销售（更新）'!$D:$D,运营部分析!$J$1,'1.1-19春夏新旧品销售（更新）'!$T:$T,"本周",'1.1-19春夏新旧品销售（更新）'!$AH:$AH,"新品")/10000 -> 0 | BL22: 0 | BM22: 0.007813178655 | BN22: 0.001423402297 | BO22: =SUMIFS('1.1-19春夏新旧品销售（更新）'!$I:$I,'1.1-19春夏新旧品销售（更新）'!$A:$A,运营部分析!#REF!,'1.1-19春夏新旧品销售（更新）'!$D:$D,运营部分析!$J$1,'1.1-19春夏新旧品销售（更新）'!$T:$T,"上上周",'1.1-19春夏新旧品销售（更新）'!$AH:$AH,"新品") -> 0 | BP22: =SUMIFS('1.1-19春夏新旧品销售（更新）'!$I:$I,'1.1-19春夏新旧品销售（更新）'!$A:$A,运营部分析!$B21,'1.1-19春夏新旧品销售（更新）'!$D:$D,运营部分析!$J$1,'1.1-19春夏新旧品销售（更新）'!$T:$T,"上周",'1.1-19春夏新旧品销售（更新）'!$AH:$AH,"新品") -> 46 | BQ22: =SUMIFS('1.1-19春夏新旧品销售（更新）'!$I:$I,'1.1-19春夏新旧品销售（更新）'!$A:$A,运营部分析!$B21,'1.1-19春夏新旧品销售（更新）'!$D:$D,运营部分析!$J$1,'1.1-19春夏新旧品销售（更新）'!$T:$T,"本周",'1.1-19春夏新旧品销售（更新）'!$AH:$AH,"新品") -> 40 | BR22: =SUMIFS('1.1-19春夏新旧品销售（更新）'!$I:$I,'1.1-19春夏新旧品销售（更新）'!$A:$A,运营部分析!$B22,'1.1-19春夏新旧品销售（更新）'!$D:$D,运营部分析!$J$1,'1.1-19春夏新旧品销售（更新）'!$U:$U,"月",'1.1-19春夏新旧品销售（更新）'!$AH:$AH,"新品") -> 12 | BS22: 0 | BT22: -0.1304347826 | BU22: 0.1038961039 | BV22: 0.006389776358 | CA22: =SUMIFS('1.3-19春夏调配（更新）'!$AA:$AA,'1.3-19春夏调配（更新）'!$K:$K,运营部分析!$J$1,'1.3-19春夏调配（更新）'!$A:$A,运营部分析!$B22,'1.3-19春夏调配（更新）'!$X:$X,"<>已审核")/10000 -> 0 | CB22: =SUMIFS('1.3-19春夏调配（更新）'!$AA:$AA,'1.3-19春夏调配（更新）'!$G:$G,运营部分析!$J$1,'1.3-19春夏调配（更新）'!$A:$A,运营部分析!$B22,'1.3-19春夏调配（更新）'!$Z:$Z,"是",'1.3-19春夏调配（更新）'!$X:$X,"<>已审核")/10000 -> 0.4491 | CC22: =SUMIFS('1.3-19春夏调配（更新）'!$AA:$AA,'1.3-19春夏调配（更新）'!$G:$G,运营部分析!$J$1,'1.3-19春夏调配（更新）'!$A:$A,运营部分析!$B22,'1.3-19春夏调配（更新）'!$Z:$Z,"否",'1.3-19春夏调配（更新）'!$X:$X,"<>已审核")/10000 -> 0.4491 | CD22: =SUMIFS('1.3-19春夏调配（更新）'!$P:$P,'1.3-19春夏调配（更新）'!$K:$K,运营部分析!$J$1,'1.3-19春夏调配（更新）'!$A:$A,运营部分析!$B22,'1.3-19春夏调配（更新）'!$X:$X,"<>已审核") -> 0 | CE22: =SUMIFS('1.3-19春夏调配（更新）'!$P:$P,'1.3-19春夏调配（更新）'!$G:$G,运营部分析!$J$1,'1.3-19春夏调配（更新）'!$A:$A,运营部分析!$B22,'1.3-19春夏调配（更新）'!$Z:$Z,"是",'1.3-19春夏调配（更新）'!$X:$X,"<>已审核") -> 9 | CF22: =SUMIFS('1.3-19春夏调配（更新）'!$P:$P,'1.3-19春夏调配（更新）'!$G:$G,运营部分析!$J$1,'1.3-19春夏调配（更新）'!$A:$A,运营部分析!$B22,'1.3-19春夏调配（更新）'!$Z:$Z,"否",'1.3-19春夏调配（更新）'!$X:$X,"<>已审核") -> 9 | CG22: =SUMIFS('2.1-18春夏销售（止18年9月30日）'!$I:$I,'2.1-18春夏销售（止18年9月30日）'!$D:$D,运营部分析!$J$1,'2.1-18春夏销售（止18年9月30日）'!$V:$V,运营部分析!CG$4,'2.1-18春夏销售（止18年9月30日）'!$A:$A,运营部分析!$B22,'2.1-18春夏销售（止18年9月30日）'!$W:$W,"否",'2.1-18春夏销售（止18年9月30日）'!$X:$X,"新品") -> 0 | CH22: =SUMIFS('2.1-18春夏销售（止18年9月30日）'!$I:$I,'2.1-18春夏销售（止18年9月30日）'!$D:$D,运营部分析!$J$1,'2.1-18春夏销售（止18年9月30日）'!$V:$V,运营部分析!CH$4,'2.1-18春夏销售（止18年9月30日）'!$A:$A,运营部分析!$B22,'2.1-18春夏销售（止18年9月30日）'!$W:$W,"否",'2.1-18春夏销售（止18年9月30日）'!$X:$X,"新品") -> 0 | CI22: =SUMIFS('2.1-18春夏销售（止18年9月30日）'!$I:$I,'2.1-18春夏销售（止18年9月30日）'!$D:$D,运营部分析!$J$1,'2.1-18春夏销售（止18年9月30日）'!$V:$V,运营部分析!CI$4,'2.1-18春夏销售（止18年9月30日）'!$A:$A,运营部分析!$B22,'2.1-18春夏销售（止18年9月30日）'!$W:$W,"否",'2.1-18春夏销售（止18年9月30日）'!$X:$X,"新品") -> 0 | CJ22: =SUMIFS('2.1-18春夏销售（止18年9月30日）'!$I:$I,'2.1-18春夏销售（止18年9月30日）'!$D:$D,运营部分析!$J$1,'2.1-18春夏销售（止18年9月30日）'!$V:$V,运营部分析!CJ$4,'2.1-18春夏销售（止18年9月30日）'!$A:$A,运营部分析!$B22,'2.1-18春夏销售（止18年9月30日）'!$W:$W,"否",'2.1-18春夏销售（止18年9月30日）'!$X:$X,"新品") -> 0 | CK22: =SUMIFS('2.1-18春夏销售（止18年9月30日）'!$I:$I,'2.1-18春夏销售（止18年9月30日）'!$D:$D,运营部分析!$J$1,'2.1-18春夏销售（止18年9月30日）'!$V:$V,运营部分析!CK$4,'2.1-18春夏销售（止18年9月30日）'!$A:$A,运营部分析!$B22,'2.1-18春夏销售（止18年9月30日）'!$W:$W,"否",'2.1-18春夏销售（止18年9月30日）'!$X:$X,"新品") -> 0 | CL22: =SUMIFS('2.1-18春夏销售（止18年9月30日）'!$I:$I,'2.1-18春夏销售（止18年9月30日）'!$D:$D,运营部分析!$J$1,'2.1-18春夏销售（止18年9月30日）'!$V:$V,运营部分析!CL$4,'2.1-18春夏销售（止18年9月30日）'!$A:$A,运营部分析!$B22,'2.1-18春夏销售（止18年9月30日）'!$W:$W,"否",'2.1-18春夏销售（止18年9月30日）'!$X:$X,"新品") -> 0 | CM22: =SUMIFS('2.1-18春夏销售（止18年9月30日）'!$I:$I,'2.1-18春夏销售（止18年9月30日）'!$D:$D,运营部分析!$J$1,'2.1-18春夏销售（止18年9月30日）'!$V:$V,运营部分析!CM$4,'2.1-18春夏销售（止18年9月30日）'!$A:$A,运营部分析!$B22,'2.1-18春夏销售（止18年9月30日）'!$W:$W,"否",'2.1-18春夏销售（止18年9月30日）'!$X:$X,"新品") -> 8 | CN22: =SUMIFS('2.1-18春夏销售（止18年9月30日）'!$I:$I,'2.1-18春夏销售（止18年9月30日）'!$D:$D,运营部分析!$J$1,'2.1-18春夏销售（止18年9月30日）'!$V:$V,运营部分析!CN$4,'2.1-18春夏销售（止18年9月30日）'!$A:$A,运营部分析!$B22,'2.1-18春夏销售（止18年9月30日）'!$W:$W,"否",'2.1-18春夏销售（止18年9月30日）'!$X:$X,"新品") -> 80 | CO22: =SUMIFS('2.1-18春夏销售（止18年9月30日）'!$I:$I,'2.1-18春夏销售（止18年9月30日）'!$D:$D,运营部分析!$J$1,'2.1-18春夏销售（止18年9月30日）'!$V:$V,运营部分析!CO$4,'2.1-18春夏销售（止18年9月30日）'!$A:$A,运营部分析!$B22,'2.1-18春夏销售（止18年9月30日）'!$W:$W,"否",'2.1-18春夏销售（止18年9月30日）'!$X:$X,"新品") -> 34 | CP22: =SUMIFS('2.1-18春夏销售（止18年9月30日）'!$I:$I,'2.1-18春夏销售（止18年9月30日）'!$D:$D,运营部分析!$J$1,'2.1-18春夏销售（止18年9月30日）'!$V:$V,运营部分析!CP$4,'2.1-18春夏销售（止18年9月30日）'!$A:$A,运营部分析!$B22,'2.1-18春夏销售（止18年9月30日）'!$W:$W,"否",'2.1-18春夏销售（止18年9月30日）'!$X:$X,"新品") -> 18 | CQ22: 140 | CR22: 14 | CS22: 70% | CT22: =SUMIFS('2.1-18春夏销售（止18年9月30日）'!$S:$S,'2.1-18春夏销售（止18年9月30日）'!$D:$D,运营部分析!$J$1,'2.1-18春夏销售（止18年9月30日）'!$V:$V,运营部分析!CT$4,'2.1-18春夏销售（止18年9月30日）'!$A:$A,运营部分析!$B22,'2.1-18春夏销售（止18年9月30日）'!$W:$W,"否",'2.1-18春夏销售（止18年9月30日）'!$X:$X,"新品")/10000 -> 0 | CU22: =SUMIFS('2.1-18春夏销售（止18年9月30日）'!$S:$S,'2.1-18春夏销售（止18年9月30日）'!$D:$D,运营部分析!$J$1,'2.1-18春夏销售（止18年9月30日）'!$V:$V,运营部分析!CU$4,'2.1-18春夏销售（止18年9月30日）'!$A:$A,运营部分析!$B22,'2.1-18春夏销售（止18年9月30日）'!$W:$W,"否",'2.1-18春夏销售（止18年9月30日）'!$X:$X,"新品")/10000 -> 0 | CV22: =SUMIFS('2.1-18春夏销售（止18年9月30日）'!$S:$S,'2.1-18春夏销售（止18年9月30日）'!$D:$D,运营部分析!$J$1,'2.1-18春夏销售（止18年9月30日）'!$V:$V,运营部分析!CV$4,'2.1-18春夏销售（止18年9月30日）'!$A:$A,运营部分析!$B22,'2.1-18春夏销售（止18年9月30日）'!$W:$W,"否",'2.1-18春夏销售（止18年9月30日）'!$X:$X,"新品")/10000 -> 0 | CW22: =SUMIFS('2.1-18春夏销售（止18年9月30日）'!$S:$S,'2.1-18春夏销售（止18年9月30日）'!$D:$D,运营部分析!$J$1,'2.1-18春夏销售（止18年9月30日）'!$V:$V,运营部分析!CW$4,'2.1-18春夏销售（止18年9月30日）'!$A:$A,运营部分析!$B22,'2.1-18春夏销售（止18年9月30日）'!$W:$W,"否",'2.1-18春夏销售（止18年9月30日）'!$X:$X,"新品")/10000 -> 0 | CX22: =SUMIFS('2.1-18春夏销售（止18年9月30日）'!$S:$S,'2.1-18春夏销售（止18年9月30日）'!$D:$D,运营部分析!$J$1,'2.1-18春夏销售（止18年9月30日）'!$V:$V,运营部分析!CX$4,'2.1-18春夏销售（止18年9月30日）'!$A:$A,运营部分析!$B22,'2.1-18春夏销售（止18年9月30日）'!$W:$W,"否",'2.1-18春夏销售（止18年9月30日）'!$X:$X,"新品")/10000 -> 0 | CY22: =SUMIFS('2.1-18春夏销售（止18年9月30日）'!$S:$S,'2.1-18春夏销售（止18年9月30日）'!$D:$D,运营部分析!$J$1,'2.1-18春夏销售（止18年9月30日）'!$V:$V,运营部分析!CY$4,'2.1-18春夏销售（止18年9月30日）'!$A:$A,运营部分析!$B22,'2.1-18春夏销售（止18年9月30日）'!$W:$W,"否",'2.1-18春夏销售（止18年9月30日）'!$X:$X,"新品")/10000 -> 0 | CZ22: =SUMIFS('2.1-18春夏销售（止18年9月30日）'!$S:$S,'2.1-18春夏销售（止18年9月30日）'!$D:$D,运营部分析!$J$1,'2.1-18春夏销售（止18年9月30日）'!$V:$V,运营部分析!CZ$4,'2.1-18春夏销售（止18年9月30日）'!$A:$A,运营部分析!$B22,'2.1-18春夏销售（止18年9月30日）'!$W:$W,"否",'2.1-18春夏销售（止18年9月30日）'!$X:$X,"新品")/10000 -> 0.3972 | DA22: =SUMIFS('2.1-18春夏销售（止18年9月30日）'!$S:$S,'2.1-18春夏销售（止18年9月30日）'!$D:$D,运营部分析!$J$1,'2.1-18春夏销售（止18年9月30日）'!$V:$V,运营部分析!DA$4,'2.1-18春夏销售（止18年9月30日）'!$A:$A,运营部分析!$B22,'2.1-18春夏销售（止18年9月30日）'!$W:$W,"否",'2.1-18春夏销售（止18年9月30日）'!$X:$X,"新品")/10000 -> 3.924 | DB22: =SUMIFS('2.1-18春夏销售（止18年9月30日）'!$S:$S,'2.1-18春夏销售（止18年9月30日）'!$D:$D,运营部分析!$J$1,'2.1-18春夏销售（止18年9月30日）'!$V:$V,运营部分析!DB$4,'2.1-18春夏销售（止18年9月30日）'!$A:$A,运营部分析!$B22,'2.1-18春夏销售（止18年9月30日）'!$W:$W,"否",'2.1-18春夏销售（止18年9月30日）'!$X:$X,"新品")/10000 -> 1.6406 | DC22: =SUMIFS('2.1-18春夏销售（止18年9月30日）'!$S:$S,'2.1-18春夏销售（止18年9月30日）'!$D:$D,运营部分析!$J$1,'2.1-18春夏销售（止18年9月30日）'!$V:$V,运营部分析!DC$4,'2.1-18春夏销售（止18年9月30日）'!$A:$A,运营部分析!$B22,'2.1-18春夏销售（止18年9月30日）'!$W:$W,"否",'2.1-18春夏销售（止18年9月30日）'!$X:$X,"新品")/10000 -> 0.8792 | DD22: =SUM(CT22:DC22) -> 6.841 | DE22: 1.1196 | DF22: 70% | DH22: =SUMIFS('1.1-19春夏新旧品销售（更新）'!$I:$I,'1.1-19春夏新旧品销售（更新）'!$D:$D,运营部分析!$J$1,'1.1-19春夏新旧品销售（更新）'!$A:$A,运营部分析!$B22,'1.1-19春夏新旧品销售（更新）'!$AB:$AB,"新品",'1.1-19春夏新旧品销售（更新）'!$AG:$AG,"是") -> 1 | DI22: =SUMIFS('1.1-19春夏新旧品销售（更新）'!$S:$S,'1.1-19春夏新旧品销售（更新）'!$D:$D,运营部分析!$J$1,'1.1-19春夏新旧品销售（更新）'!$A:$A,运营部分析!$B22,'1.1-19春夏新旧品销售（更新）'!$AB:$AB,"新品",'1.1-19春夏新旧品销售（更新）'!$AG:$AG,"是")/10000 -> 0.0739 | DJ22: =SUMIFS('1.6-19春夏期货订单（更新）'!$AG:$AG,'1.6-19春夏期货订单（更新）'!$F:$F,运营部分析!$J$1,'1.6-19春夏期货订单（更新）'!$A:$A,运营部分析!$B22,'1.6-19春夏期货订单（更新）'!$AQ:$AQ,"是")+SUMIFS('1.2-19春夏发货（更新）'!$K:$K,'1.2-19春夏发货（更新）'!$A:$A,运营部分析!$B22,'1.2-19春夏发货（更新）'!$Q:$Q,运营部分析!$J$1,'1.2-19春夏发货（更新）'!$T:$T,"当季补货",'1.2-19春夏发货（更新）'!$W:$W,"是")+SUMIFS('1.2-19春夏发货（更新）'!$K:$K,'1.2-19春夏发货（更新）'!$A:$A,运营部分析!$B22,'1.2-19春夏发货（更新）'!$Q:$Q,运营部分析!$J$1,'1.2-19春夏发货（更新）'!$T:$T,"往季补货",'1.2-19春夏发货（更新）'!$W:$W,"是")+SUMIFS('1.3-19春夏调配（更新）'!$P:$P,'1.3-19春夏调配（更新）'!$K:$K,运营部分析!$J$1,'1.3-19春夏调配（更新）'!$A:$A,运营部分析!$B22,'1.3-19春夏调配（更新）'!$AC:$AC,"是",'1.3-19春夏调配（更新）'!$X:$X,"<>已审核")-SUMIFS('1.3-19春夏调配（更新）'!$P:$P,'1.3-19春夏调配（更新）'!$G:$G,运营部分析!$J$1,'1.3-19春夏调配（更新）'!$A:$A,运营部分析!$B22,'1.3-19春夏调配（更新）'!$AC:$AC,"是",'1.3-19春夏调配（更新）'!$X:$X,"<>已审核") -> 22 | DK22: =SUMIFS('1.6-19春夏期货订单（更新）'!$AN:$AN,'1.6-19春夏期货订单（更新）'!$F:$F,运营部分析!$J$1,'1.6-19春夏期货订单（更新）'!$A:$A,运营部分析!$B22,'1.6-19春夏期货订单（更新）'!$AQ:$AQ,"是")/10000+SUMIFS('1.2-19春夏发货（更新）'!$U:$U,'1.2-19春夏发货（更新）'!$A:$A,运营部分析!$B22,'1.2-19春夏发货（更新）'!$Q:$Q,运营部分析!$J$1,'1.2-19春夏发货（更新）'!$T:$T,"当季补货",'1.2-19春夏发货（更新）'!$W:$W,"是")/10000+SUMIFS('1.2-19春夏发货（更新）'!$U:$U,'1.2-19春夏发货（更新）'!$A:$A,运营部分析!$B22,'1.2-19春夏发货（更新）'!$Q:$Q,运营部分析!$J$1,'1.2-19春夏发货（更新）'!$T:$T,"往季补货",'1.2-19春夏发货（更新）'!$W:$W,"是")/10000+SUMIFS('1.3-19春夏调配（更新）'!$AA:$AA,'1.3-19春夏调配（更新）'!$K:$K,运营部分析!$J$1,'1.3-19春夏调配（更新）'!$A:$A,运营部分析!$B22,'1.3-19春夏调配（更新）'!$AC:$AC,"是",'1.3-19春夏调配（更新）'!$X:$X,"<>已审核")/10000-SUMIFS('1.3-19春夏调配（更新）'!$AA:$AA,'1.3-19春夏调配（更新）'!$G:$G,运营部分析!$J$1,'1.3-19春夏调配（更新）'!$A:$A,运营部分析!$B22,'1.3-19春夏调配（更新）'!$AC:$AC,"是",'1.3-19春夏调配（更新）'!$X:$X,"<>已审核")/10000 -> 1.6258 | DM22: 0.04455445545 | DN22: 0.04336700207
A23: 夏季上衣 汇总 | E23: =SUM(E18:E22) -> 14857 | F23: =SUM(F18:F22) -> 595.9179 | G23: =SUM(G18:G22) -> 13517 | H23: =SUM(H18:H22) -> 492.3803 | I23: 0.09913442332 | J23: 0.210279737 | K23: =SUM(K18:K22) -> 2300 | L23: =SUM(L18:L22) -> 95.668 | M23: =SUM(M18:M22) -> 3159 | N23: =SUM(N18:N22) -> 112.3501 | O23: -0.2719214941 | P23: -0.1484831789 | Q23: =SUM(Q18:Q22) -> 7085 | R23: 255.4775 | S23: 11780 | T23: 471.782 | U23: 4522 | V23: 166.2748 | W23: 1.605042017 | X23: 1.837363208 | Y23: 0.1709316273 | Z23: 0.1769878495 | AA23: =SUM(AA18:AA22) -> 427 | AB23: =SUM(AB18:AB22) -> 16.1503 | AC23: =SUM(AC18:AC22) -> 33 | AD23: =SUM(AD18:AD22) -> 1.1537 | AE23: 0.2659448235 | AF23: 0.2615908829 | AG23: 0.1684407533 | AH23: 0.1729557822 | AI23: -0.3572665747 | AJ23: -0.3234173624 | AK23: =SUM(AK18:AK22) -> 1571 | AL23: =SUM(AL18:AL22) -> 58.4059 | AM23: =SUM(AM18:AM22) -> 338 | AN23: =SUM(AN18:AN22) -> 12.1882 | AO23: 0.6568024888 | AP23: 0.653662149 | AQ23: =SUM(AQ18:AQ22) -> 14315 | AR23: 0.96351888 | AS23: =SUM(AS18:AS22) -> 542 | AT23: =SUM(AT18:AT22) -> 14400 | AU23: =SUM(AU18:AU22) -> 120 | AV23: =SUM(AV18:AV22) -> 115 | AW23: =SUM(AW18:AW22) -> 139 | AX23: 0.8273381295 | AY23: 12.6124197 | AZ23: =SUM(AZ18:AZ22) -> 934 | BA23: =SUM(BA18:BA22) -> 31.0502 | BB23: =SUM(BB18:BB22) -> 46.2036 | BC23: =SUM(BC18:BC22) -> 39.1946 | BD23: 1.178825655 | BE23: 332.4432548 | BF23: 0.7922060692 | BG23: =SUM(BG18:BG22) -> 35.56313 | BH23: =SUM(BH18:BH22) -> 42.8266 | BI23: 0.8303981638 | BJ23: =SUM(BJ18:BJ22) -> 7.7638 | BK23: =SUM(BK18:BK22) -> 9.8303 | BL23: 0.7897826109 | BM23: 0.4383173065 | BN23: -0.05902028673 | BO23: =SUM(BO18:BO22) -> 0 | BP23: =SUM(BP18:BP22) -> 224 | BQ23: =SUM(BQ18:BQ22) -> 227 | BR23: =SUM(BR18:BR22) -> 934 | BS23: 0 | BT23: 0.01339285714 | BU23: 0.5896103896 | BV23: 0.4973375932 | CA23: =SUM(CA18:CA22) -> 8.2246 | CB23: 2.2735 | CC23: 10.8555 | CD23: 204 | CE23: 55 | CF23: 265 | CG23: 0 | CH23: 0 | CI23: 0 | CJ23: 0 | CK23: 0 | CL23: 0 | CM23: 696 | CN23: 1806 | CO23: 1012 | CP23: 412 | CQ23: 3926 | CR23: 8396 | CS23: 0.4325603092 | CT23: =SUM(CT18:CT22) -> 0 | CU23: 0 | CV23: 0 | CW23: 0 | CX23: 0 | CY23: 0 | CZ23: 25.1494 | DA23: 66.8094 | DB23: 36.1538 | DC23: 15.0148 | DD23: 143.1274 | DE23: 352.2181 | DF23: 0.4147927539 | DH23: =SUM(DH18:DH22) -> 1440 | DI23: =SUM(DI18:DI22) -> 60.703 | DJ23: =SUM(DJ18:DJ22) -> 8549 | DK23: =SUM(DK18:DK22) -> 350.9741 | DM23: 0.01765960283 | DN23: 0.01803631687
